{"text_format":"1","workbook":"xlsx","n_sheets":7,"sheets":["Cover","Navigator","Style Guide","Model Parameters","PivotTable","Database","Error Checks"],"not_rendered":{"charts":0,"images":1,"macros":1,"external_links":0,"defined_names":24,"comments":0,"pivot_tables":2},"unopened":[],"bounds":{"document_bytes":16777216,"sheet_cells":100000,"rows_first":2000,"rows_last":500,"rows_between":2000,"halvings":0,"cell_chars":16384,"cell_head_chars":4096},"cells_cut":0,"cells_raw":0,"read":"whole","date_system":"1900"}

{"sheet":"Cover","index":0,"n_rows":22,"n_cols":7,"rows_kept":22,"cut":false,"hidden":false,"merged":[[16,2,16,9],[17,2,17,9],[20,6,20,8],[21,6,21,8]]}
[]
[]
["Navigator"]
[]
[null,null,{"$f":"Client_Name","v":"SumProduct Pty Limited"}]
[null,null,{"$f":"Model_Name","v":"SP Searching Slicers Example.xlsm"}]
[]
[]
[]
[]
[]
[]
[]
[null,null,"Primary Developer:  Liam Bastick"]
[]
[null,null,"General Cover Notes:"]
[null,null,"How to create a search facility in a slicer."]
[]
[]
[]
[null,null,"Any queries, please e-mail:",null,null,null,"liam.bastick@sumproduct.com"]
[null,null,"Website:",null,null,null,"www.sumproduct.com"]

{"sheet":"Navigator","index":1,"n_rows":14,"n_cols":7,"rows_kept":14,"cut":false,"hidden":false,"merged":[]}
["Navigator"]
[{"$f":"Model_Name","v":"SP Searching Slicers Example.xlsm"}]
["Navigator"]
[null,null,null,null,"Error Checks:",null,{"$f":"Overall_Error_Check","v":0}]
[]
[]
[null,1,"Table of Contents"]
[]
[null,null,null,null,null,"Cover"]
[null,null,null,null,null,"Style Guide"]
[null,null,null,null,null,"Model Parameters"]
[null,null,null,null,null,"PivotTable"]
[null,null,null,null,null,"Database"]
[null,null,null,null,null,"Error Checks"]

{"sheet":"Style Guide","index":2,"n_rows":74,"n_cols":11,"rows_kept":74,"cut":false,"hidden":false,"merged":[[16,2,16,6],[2,0,2,4],[7,2,7,6],[8,2,8,6],[9,2,9,6],[10,2,10,6],[11,2,11,6],[12,2,12,6],[13,2,13,6],[14,2,14,6],[15,2,15,6],[34,2,34,6],[17,2,17,6],[18,2,18,6],[19,2,19,6],[24,2,24,6],[25,2,25,6],[26,2,26,6],[27,2,27,6],[28,2,28,6],[29,2,29,6],[30,2,30,6],[31,2,31,6],[46,2,46,6],[35,2,35,6],[36,2,36,6],[37,2,37,6],[38,2,38,6],[39,2,39,6],[40,2,40,6],[41,2,41,6],[42,2,42,6],[43,2,43,6],[44,2,44,6],[45,2,45,6],[61,2,61,6],[47,2,47,6],[48,2,48,6],[49,2,49,6],[50,2,50,6],[51,2,51,6],[52,2,52,6],[53,2,53,6],[54,2,54,6],[57,2,57,6],[59,2,59,6],[60,2,60,6],[73,2,73,6],[62,2,62,6],[63,2,63,6],[64,2,64,6],[65,2,65,6],[66,2,66,6],[67,2,67,6],[68,2,68,6],[69,2,69,6],[70,2,70,6],[71,2,71,6],[72,2,72,6],[80,2,80,6],[74,2,74,6],[75,2,75,6],[76,2,76,6],[77,2,77,6],[78,2,78,6],[79,2,79,6]]}
[{"$f":"IF(ISERROR(RIGHT(CELL(\"filename\",A1),LEN(CELL(\"filename\",A1))-FIND(\"]\",CELL(\"filename\",A1)))),\n\"\",\nRIGHT(CELL(\"filename\",A1),LEN(CELL(\"filename\",A1))-FIND(\"]\",CELL(\"filename\",A1))))","v":"Style Guide"}]
[{"$f":"Model_Name","v":"SP Searching Slicers Example.xlsm"}]
["Navigator"]
[null,null,null,null,"Error Checks:",null,null,null,{"$f":"Overall_Error_Check","v":0}]
[]
[null,{"$f":"MAX($B$5:$B5)+1","v":1},"Formatting of Headers / Dividers"]
[]
[null,null,"Description",null,null,null,null,null,"Display",null,"Style Name"]
[]
[null,null,"Sheet Title",null,null,null,null,null,{"$f":"C10","v":"Sheet Title"},null,"Sheet Title"]
[null,null,"Model Name",null,null,null,null,null,{"$f":"C11","v":"Model Name"},null,"Model Name"]
[]
[null,null,"Header 1",null,null,null,null,null,{"$f":"C13","v":"Header 1"},null,"Header 1"]
[null,null,"Header 2",null,null,null,null,null,{"$f":"C14","v":"Header 2"},null,"Header 2"]
[null,null,"Header 3",null,null,null,null,null,{"$f":"C15","v":"Header 3"},null,"Header 3"]
[null,null,"Header 4",null,null,null,null,null,{"$f":"C16","v":"Header 4"},null,"Header 4"]
[]
[null,null,"Notes",null,null,null,null,null,{"$f":"C18","v":"Notes"},null,"Notes"]
[]
[null,null,"Table Heading",null,null,null,null,null,{"$f":"C20","v":"Table Heading"},null,"Table Heading"]
[]
[]
[null,{"$f":"MAX($B$5:$B22)+1","v":2},"Individual Cell Styles"]
[]
[null,null,"Description",null,null,null,null,null,"Display",null,"Style Name"]
[]
[null,null,"Assumption",null,null,null,null,null,"Assumption",null,{"$f":"C27","v":"Assumption"}]
[]
[null,null,"Constraint",null,null,null,null,null,{"$f":"C29","v":"Constraint"},null,{"$f":"C29","v":"Constraint"}]
[]
[null,null,"Empty",null,null,null,null,null,null,null,{"$f":"C31","v":"Empty"}]
[]
[null,null,"Error Check",null,null,null,null,null,0,null,{"$f":"C33","v":"Error Check"}]
[]
[null,null,"Hyperlink",null,null,null,null,null,"Hyperlink",null,{"$f":"C35","v":"Hyperlink"}]
[]
[null,null,"Internal Reference",null,null,null,null,null,{"$f":"'Error Checks'!E12","v":"None in use"},null,{"$f":"C37","v":"Internal Reference"}]
[]
[null,null,"Line Calculation",null,null,null,null,null,77,null,"Line Calc"]
[]
[null,null,"Line Total",null,null,null,null,null,{"$f":"I39","v":77},null,{"$f":"C41","v":"Line Total"}]
[]
[null,null,"Parameter",null,null,null,null,null,365,null,{"$f":"C43","v":"Parameter"}]
[]
[null,null,"Range Name Description",null,null,null,null,null,"Not_Named",null,{"$f":"C45","v":"Range Name Description"}]
[]
[null,null,"Row Reference",null,null,null,null,null,{"$f":"ROW(C47)","v":47},null,"Row Ref"]
[]
[null,null,"Row Summary",null,null,null,null,null,{"$f":"I41","v":77},null,{"$f":"C49","v":"Row Summary"}]
[]
[null,null,"Units",null,null,null,null,null,"A$",null,{"$f":"C51","v":"Units"}]
[]
[null,null,"WIP",null,null,null,null,null,null,null,{"$f":"C53","v":"WIP"}]
[]
[]
[null,{"$f":"MAX($B$5:$B55)+1","v":3},"Numerical Styles"]
[]
[null,null,"Description",null,null,null,null,null,"Display",null,"Style Name"]
[]
[null,null,"Comma",null,null,null,null,null,123456.789,null,{"$f":"C60","v":"Comma"}]
[]
[null,null,"Comma [0]",null,null,null,null,null,-123456.789,null,"Comma [0]"]
[]
[null,null,"Currency",null,null,null,null,null,123456.789,null,"Currency"]
[]
[null,null,"Currency [0]",null,null,null,null,null,123456.789,null,"Currency [0]"]
[]
[null,null,"Date",null,null,null,null,null,{"$f":"TODAY()","v":"2017-05-20"},null,{"$f":"C68","v":"Date"}]
[]
[null,null,"Date Heading",null,null,null,null,null,{"$f":"TODAY()","v":"2017-05-20"},null,{"$f":"C70","v":"Date Heading"}]
[]
[null,null,"Numbers 0",null,null,null,null,null,-123456.789,null,{"$f":"C72","v":"Numbers 0"}]
[]
[null,null,"Percent",null,null,null,null,null,0.5,null,{"$f":"C74","v":"Percent"}]

{"sheet":"Model Parameters","index":3,"n_rows":31,"n_cols":9,"rows_kept":31,"cut":false,"hidden":false,"merged":[[0,9,0,10],[2,0,2,4],[10,6,10,13],[11,6,11,13]]}
[{"$f":"IF(ISERROR(RIGHT(CELL(\"filename\",A1),LEN(CELL(\"filename\",A1))-FIND(\"]\",CELL(\"filename\",A1)))),\n\"\",\nRIGHT(CELL(\"filename\",A1),LEN(CELL(\"filename\",A1))-FIND(\"]\",CELL(\"filename\",A1))))","v":"Model Parameters"}]
[{"$f":"Model_Name","v":"SP Searching Slicers Example.xlsm"}]
["Navigator"]
[null,null,null,null,"Error Checks:",null,null,null,{"$f":"Overall_Error_Check","v":0}]
[]
[null,{"$f":"MAX($B$5:$B5)+1","v":1},"General"]
[]
[null,null,"Key Inputs"]
[]
[null,null,null,null,"General"]
[null,null,null,null,"Model Name",null,{"$f":"IF(ISERROR(OR(FIND(\"[\",CELL(\"filename\",A1)),FIND(\"]\",CELL(\"filename\",A1)))),\"\",MID(CELL(\"filename\",A1),FIND(\"[\",CELL(\"filename\",A1))+1,FIND(\"]\",CELL(\"filename\",A1))-FIND(\"[\",CELL(\"filename\",A1))-1))","v":"SP Searching Slicers Example.xlsm"}]
[null,null,null,null,"Client Name",null,"SumProduct Pty Limited"]
[]
[]
[null,{"$f":"MAX($B$5:$B14)+1","v":2},"General Range Names"]
[]
[null,null,"Technical Assumptions"]
[]
[null,null,null,null,"Days in Year",null,365]
[null,null,null,null,"Months in Month",null,1]
[null,null,null,null,"Months in Quarter",null,3]
[null,null,null,null,"Months in Half Yr",null,6]
[null,null,null,null,"Months in Year",null,12]
[null,null,null,null,"Quarters in Year",null,4]
[]
[null,null,null,null,"Rounding Accuracy",null,5]
[]
[null,null,null,null,"Very Large Number",null,9.9999999999999997E+98]
[null,null,null,null,"Very Small Number",null,1E-8]
[]
[null,null,null,null,"Thousand",null,1000]

{"sheet":"PivotTable","index":4,"n_rows":19,"n_cols":15,"rows_kept":19,"cut":false,"hidden":false,"merged":[[0,9,0,10],[2,0,2,4]]}
[{"$f":"IF(ISERROR(RIGHT(CELL(\"filename\",A1),LEN(CELL(\"filename\",A1))-FIND(\"]\",CELL(\"filename\",A1)))),\n\"\",\nRIGHT(CELL(\"filename\",A1),LEN(CELL(\"filename\",A1))-FIND(\"]\",CELL(\"filename\",A1))))","v":"PivotTable"}]
[{"$f":"Model_Name","v":"SP Searching Slicers Example.xlsm"}]
["Navigator"]
[null,null,null,null,"Error Checks:",null,null,null,{"$f":"Overall_Error_Check","v":0}]
[]
[null,{"$f":"MAX($B$5:$B5)+1","v":1},{"$f":"A1","v":"PivotTable"}]
[]
[null,null,"Summary"]
[]
[null,null,null,"Searching with a Slicer"]
[]
[null,null,null,null,null,"Sum of Sale ($)","Column Labels",null,null,null,null,null,null,"Name","(All)"]
[null,null,null,null,null,"Row Labels","East","North","South","West","Grand Total"]
[null,null,null,null,null,"Laptop",295176.74,336336.44000000006,278241.69999999995,296814.6999999999,1206569.5799999998]
[null,null,null,null,null,"Phone",353698.91000000009,298889.01999999996,299192.5400000001,287517.37,1239297.8400000003]
[null,null,null,null,null,"Sofa",301773.36,319407.21000000025,296665.75000000006,310206.29999999987,1228052.6200000001]
[null,null,null,null,null,"Stereo",323455.00999999983,304966.68999999994,289063.74999999988,295584.66000000027,1213070.1099999999]
[null,null,null,null,null,"TV",235884.09,289580.50000000006,295804.09000000014,306401.95999999996,1127670.6400000001]
[null,null,null,null,null,"Grand Total",1509988.11,1549179.86,1458967.8299999998,1496524.9899999998,6014660.790000001]

{"sheet":"Database","index":5,"n_rows":4012,"n_cols":11,"rows_kept":4012,"cut":false,"hidden":false,"merged":[[0,9,0,10],[2,0,2,4]]}
[{"$f":"IF(ISERROR(RIGHT(CELL(\"filename\",A1),LEN(CELL(\"filename\",A1))-FIND(\"]\",CELL(\"filename\",A1)))),\n\"\",\nRIGHT(CELL(\"filename\",A1),LEN(CELL(\"filename\",A1))-FIND(\"]\",CELL(\"filename\",A1))))","v":"Database"}]
[{"$f":"Model_Name","v":"SP Searching Slicers Example.xlsm"}]
["Navigator"]
[null,null,null,null,"Error Checks:",null,null,null,{"$f":"Overall_Error_Check","v":0}]
[]
[null,{"$f":"MAX($B$5:$B5)+1","v":1},{"$f":"A1","v":"Database"}]
[]
[null,null,"Data"]
[]
[null,null,null,"Mock Details"]
[]
[null,null,null,null,null,"Name","First Name","Last Name","Product","Store","Sale ($)"]
[null,null,null,null,null,"Tracey Scott","Tracey","Scott","Stereo","North",1821.9]
[null,null,null,null,null,"Donna Forsyth","Donna","Forsyth","Stereo","North",1205.43]
[null,null,null,null,null,"John Newman","John","Newman","Phone","East",1291.75]
[null,null,null,null,null,"Anne Lawrence","Anne","Lawrence","Laptop","North",1514.3]
[null,null,null,null,null,"Sally Ross","Sally","Ross","TV","South",1924.02]
[null,null,null,null,null,"Colin Henderson","Colin","Henderson","Laptop","West",1823.57]
[null,null,null,null,null,"Jennifer Tucker","Jennifer","Tucker","Phone","East",1243.3699999999999]
[null,null,null,null,null,"Adrian Hardacre","Adrian","Hardacre","TV","West",1194.74]
[null,null,null,null,null,"Benjamin Hodges","Benjamin","Hodges","Laptop","West",1835.45]
[null,null,null,null,null,"Thomas Paige","Thomas","Paige","Sofa","South",1457.74]
[null,null,null,null,null,"Harry Clark","Harry","Clark","TV","North",1345.97]
[null,null,null,null,null,"James Hardacre","James","Hardacre","TV","West",1539.28]
[null,null,null,null,null,"Rachel Robertson","Rachel","Robertson","Phone","West",1253.05]
[null,null,null,null,null,"Connor Ince","Connor","Ince","Phone","South",1186.28]
[null,null,null,null,null,"Gabrielle Brown","Gabrielle","Brown","Stereo","West",1458.95]
[null,null,null,null,null,"Nicola Bailey","Nicola","Bailey","Phone","East",1955.15]
[null,null,null,null,null,"Stewart McDonald","Stewart","McDonald","Laptop","North",1320.89]
[null,null,null,null,null,"Caroline Allan","Caroline","Allan","Phone","South",1718.36]
[null,null,null,null,null,"Piers Young","Piers","Young","Sofa","East",1601.26]
[null,null,null,null,null,"Wanda Baker","Wanda","Baker","Laptop","North",1518.37]
[null,null,null,null,null,"Lauren Walker","Lauren","Walker","TV","South",1604.5]
[null,null,null,null,null,"Caroline Slater","Caroline","Slater","Phone","East",1553.29]
[null,null,null,null,null,"Kevin Fraser","Kevin","Fraser","Sofa","East",1773.03]
[null,null,null,null,null,"Joe Ferguson","Joe","Ferguson","Phone","East",1584.84]
[null,null,null,null,null,"Julian MacLeod","Julian","MacLeod","Laptop","South",1691.3]
[null,null,null,null,null,"Gordon Abraham","Gordon","Abraham","Stereo","South",1896.4]
[null,null,null,null,null,"Theresa Fisher","Theresa","Fisher","Phone","North",1346.42]
[null,null,null,null,null,"Dominic Fraser","Dominic","Fraser","TV","South",1309.43]
[null,null,null,null,null,"Ryan Duncan","Ryan","Duncan","TV","South",1514.97]
[null,null,null,null,null,"Grace Jones","Grace","Jones","Phone","North",1702.04]
[null,null,null,null,null,"Vanessa Glover","Vanessa","Glover","TV","North",1648.73]
[null,null,null,null,null,"Sophie Ferguson","Sophie","Ferguson","Sofa","West",1789.08]
[null,null,null,null,null,"Vanessa James","Vanessa","James","Stereo","South",1245.46]
[null,null,null,null,null,"Cameron Forsyth","Cameron","Forsyth","Sofa","West",1616.29]
[null,null,null,null,null,"Alan Wilson","Alan","Wilson","Laptop","West",1141.23]
[null,null,null,null,null,"Dominic Simpson","Dominic","Simpson","Phone","North",1124.23]
[null,null,null,null,null,"Natalie Hunter","Natalie","Hunter","Laptop","East",1636.48]
[null,null,null,null,null,"Diana Lyman","Diana","Lyman","Stereo","East",1339.63]
[null,null,null,null,null,"Benjamin Reid","Benjamin","Reid","Phone","West",1768.36]
[null,null,null,null,null,"Heather Hodges","Heather","Hodges","Stereo","South",1636.74]
[null,null,null,null,null,"Ella Allan","Ella","Allan","Sofa","South",1021.7]
[null,null,null,null,null,"Andrew Robertson","Andrew","Robertson","Stereo","East",1445.27]
[null,null,null,null,null,"Bella Peake","Bella","Peake","TV","East",1337.33]
[null,null,null,null,null,"Karen Jackson","Karen","Jackson","TV","West",1972.38]
[null,null,null,null,null,"Harry Miller","Harry","Miller","Sofa","East",1356.79]
[null,null,null,null,null,"Oliver McLean","Oliver","McLean","Stereo","West",1265.17]
[null,null,null,null,null,"Charles Mackay","Charles","Mackay","Stereo","South",1875.56]
[null,null,null,null,null,"Andrea King","Andrea","King","TV","North",1263.93]
[null,null,null,null,null,"Maria Campbell","Maria","Campbell","Laptop","East",1298.23]
[null,null,null,null,null,"Theresa Knox","Theresa","Knox","Sofa","West",1518.86]
[null,null,null,null,null,"Felicity Taylor","Felicity","Taylor","Stereo","South",1818.84]
[null,null,null,null,null,"Phil Tucker","Phil","Tucker","TV","North",1891.26]
[null,null,null,null,null,"Karen Pullman","Karen","Pullman","Stereo","North",1472.2]
[null,null,null,null,null,"Una Ross","Una","Ross","Stereo","North",1545.47]
[null,null,null,null,null,"Carolyn Alsop","Carolyn","Alsop","Sofa","North",1717.1]
[null,null,null,null,null,"Sarah Hart","Sarah","Hart","TV","South",1867.88]
[null,null,null,null,null,"Christian Duncan","Christian","Duncan","TV","North",1326.67]
[null,null,null,null,null,"Emma May","Emma","May","Sofa","South",1999.56]
[null,null,null,null,null,"Harry Kelly","Harry","Kelly","Sofa","South",1506.68]
[null,null,null,null,null,"Katherine Wilson","Katherine","Wilson","Stereo","East",1023.32]
[null,null,null,null,null,"Sam Bower","Sam","Bower","Phone","West",1405.27]
[null,null,null,null,null,"Jane King","Jane","King","Laptop","South",1777.62]
[null,null,null,null,null,"Joe Young","Joe","Young","Sofa","East",1010.19]
[null,null,null,null,null,"Amelia Johnston","Amelia","Johnston","Stereo","South",1109.17]
[null,null,null,null,null,"Alexandra Quinn","Alexandra","Quinn","Stereo","East",1972.23]
[null,null,null,null,null,"Emma Forsyth","Emma","Forsyth","Phone","West",1478.94]
[null,null,null,null,null,"Blake Edmunds","Blake","Edmunds","Sofa","North",1011.41]
[null,null,null,null,null,"Jennifer Mills","Jennifer","Mills","Stereo","East",1293.71]
[null,null,null,null,null,"Katherine Roberts","Katherine","Roberts","Phone","South",1165.1199999999999]
[null,null,null,null,null,"Warren Lawrence","Warren","Lawrence","Sofa","North",1709.81]
[null,null,null,null,null,"Emily Springer","Emily","Springer","Laptop","South",1012.57]
[null,null,null,null,null,"Amy Bell","Amy","Bell","Phone","North",1807.68]
[null,null,null,null,null,"Fiona Robertson","Fiona","Robertson","Phone","North",1361]
[null,null,null,null,null,"Olivia Cameron","Olivia","Cameron","Laptop","East",1489.13]
[null,null,null,null,null,"Austin Morgan","Austin","Morgan","Laptop","South",1646.61]
[null,null,null,null,null,"Victoria King","Victoria","King","Sofa","East",1678.73]
[null,null,null,null,null,"Sonia Davies","Sonia","Davies","Sofa","East",1560.96]
[null,null,null,null,null,"Stephanie Walker","Stephanie","Walker","Laptop","West",1618.43]
[null,null,null,null,null,"Frank Edmunds","Frank","Edmunds","Stereo","West",1324.78]
[null,null,null,null,null,"Michelle Cornish","Michelle","Cornish","TV","South",1594.96]
[null,null,null,null,null,"Dominic Lyman","Dominic","Lyman","Phone","South",1152.45]
[null,null,null,null,null,"Megan Murray","Megan","Murray","Laptop","East",1640.28]
[null,null,null,null,null,"Virginia Simpson","Virginia","Simpson","Sofa","West",1362.07]
[null,null,null,null,null,"Julian Mackenzie","Julian","Mackenzie","Phone","East",1505.41]
[null,null,null,null,null,"Karen Mitchell","Karen","Mitchell","TV","South",1064.8900000000001]
[null,null,null,null,null,"Jasmine Mathis","Jasmine","Mathis","Stereo","West",1689.17]
[null,null,null,null,null,"Anne James","Anne","James","TV","West",1610.57]
[null,null,null,null,null,"Mary Payne","Mary","Payne","Stereo","North",1046.8399999999999]
[null,null,null,null,null,"Austin Mills","Austin","Mills","TV","North",1729.55]
[null,null,null,null,null,"Blake McGrath","Blake","McGrath","TV","East",1684.96]
[null,null,null,null,null,"Adam North","Adam","North","Phone","South",1864.95]
[null,null,null,null,null,"Kevin Manning","Kevin","Manning","TV","West",1278.29]
[null,null,null,null,null,"Eric Metcalfe","Eric","Metcalfe","Sofa","North",1811.38]
[null,null,null,null,null,"Michelle Churchill","Michelle","Churchill","Sofa","North",1667.45]
[null,null,null,null,null,"Kevin Walker","Kevin","Walker","Sofa","West",1608.58]
[null,null,null,null,null,"Bernadette Arnold","Bernadette","Arnold","Laptop","East",1544.42]
[null,null,null,null,null,"Stephanie Thomson","Stephanie","Thomson","Laptop","West",1086.26]
[null,null,null,null,null,"Gavin Piper","Gavin","Piper","Laptop","North",1909.08]
[null,null,null,null,null,"Nicola Powell","Nicola","Powell","Sofa","North",1003.37]
[null,null,null,null,null,"Karen Lewis","Karen","Lewis","TV","East",1922.71]
[null,null,null,null,null,"Jonathan Manning","Jonathan","Manning","Stereo","East",1583.58]
[null,null,null,null,null,"Leah Fisher","Leah","Fisher","Sofa","South",1375.61]
[null,null,null,null,null,"Justin Anderson","Justin","Anderson","Phone","North",1059.44]
[null,null,null,null,null,"Grace Newman","Grace","Newman","Sofa","North",1380.97]
[null,null,null,null,null,"Yvonne Robertson","Yvonne","Robertson","TV","North",1180.42]
[null,null,null,null,null,"Joshua Cornish","Joshua","Cornish","Stereo","East",1947.48]
[null,null,null,null,null,"Brian Duncan","Brian","Duncan","Laptop","West",1722.91]
[null,null,null,null,null,"Keith Clarkson","Keith","Clarkson","Laptop","North",1709.99]
[null,null,null,null,null,"Ian Davidson","Ian","Davidson","Laptop","West",1009.35]
[null,null,null,null,null,"Pippa Lawrence","Pippa","Lawrence","TV","South",1214.57]
[null,null,null,null,null,"Donna Brown","Donna","Brown","Stereo","East",1347.49]
[null,null,null,null,null,"Stephen Lawrence","Stephen","Lawrence","Laptop","West",1859.92]
[null,null,null,null,null,"Joshua Piper","Joshua","Piper","Phone","East",1966.27]
[null,null,null,null,null,"Angela Wright","Angela","Wright","TV","West",1730.89]
[null,null,null,null,null,"Kimberly Dickens","Kimberly","Dickens","Laptop","West",1688.97]
[null,null,null,null,null,"Blake Morgan","Blake","Morgan","TV","East",1369.74]
[null,null,null,null,null,"Rachel Campbell","Rachel","Campbell","TV","North",1706.79]
[null,null,null,null,null,"Sue Bond","Sue","Bond","Laptop","South",1841.46]
[null,null,null,null,null,"Robert Gray","Robert","Gray","Phone","East",1001.35]
[null,null,null,null,null,"Dorothy Marshall","Dorothy","Marshall","Sofa","North",1486.79]
[null,null,null,null,null,"Steven Quinn","Steven","Quinn","TV","South",1498.28]
[null,null,null,null,null,"Eric Manning","Eric","Manning","Laptop","North",1896.3]
[null,null,null,null,null,"Paul Ellison","Paul","Ellison","Sofa","East",1382.97]
[null,null,null,null,null,"David Morgan","David","Morgan","Phone","North",1231.32]
[null,null,null,null,null,"Jason Ferguson","Jason","Ferguson","Laptop","South",1851.1]
[null,null,null,null,null,"Claire MacLeod","Claire","MacLeod","Laptop","West",1737.9]
[null,null,null,null,null,"Molly Watson","Molly","Watson","TV","East",1413.1]
[null,null,null,null,null,"Kimberly Gray","Kimberly","Gray","Phone","East",1044.69]
[null,null,null,null,null,"Colin White","Colin","White","Laptop","West",1851.93]
[null,null,null,null,null,"Sarah Buckland","Sarah","Buckland","Phone","South",1594.45]
[null,null,null,null,null,"Piers Scott","Piers","Scott","TV","North",1535.6]
[null,null,null,null,null,"Edward Duncan","Edward","Duncan","Stereo","South",1655.26]
[null,null,null,null,null,"Sarah Ferguson","Sarah","Ferguson","Phone","South",1999.7]
[null,null,null,null,null,"Benjamin Sanderson","Benjamin","Sanderson","Stereo","North",1338.3]
[null,null,null,null,null,"Eric Brown","Eric","Brown","Sofa","West",1235.67]
[null,null,null,null,null,"Max Graham","Max","Graham","Laptop","West",1893.36]
[null,null,null,null,null,"Una Bower","Una","Bower","Phone","West",1843.07]
[null,null,null,null,null,"Amelia James","Amelia","James","Sofa","South",1203.04]
[null,null,null,null,null,"Emily Sutherland","Emily","Sutherland","Phone","East",1457.45]
[null,null,null,null,null,"Dan Graham","Dan","Graham","TV","West",1150.57]
[null,null,null,null,null,"Colin Coleman","Colin","Coleman","Sofa","West",1379.13]
[null,null,null,null,null,"Jennifer Chapman","Jennifer","Chapman","Laptop","North",1672.12]
[null,null,null,null,null,"Jake Wilkins","Jake","Wilkins","Stereo","North",1786.58]
[null,null,null,null,null,"Alexander Marshall","Alexander","Marshall","Sofa","East",1539.15]
[null,null,null,null,null,"Bernadette Turner","Bernadette","Turner","Stereo","South",1420.92]
[null,null,null,null,null,"Peter Anderson","Peter","Anderson","Laptop","West",1565.31]
[null,null,null,null,null,"Anna Hart","Anna","Hart","TV","East",1146.1600000000001]
[null,null,null,null,null,"Emma Turner","Emma","Turner","Phone","North",1669.32]
[null,null,null,null,null,"Joanne Vaughan","Joanne","Vaughan","TV","East",1780.21]
[null,null,null,null,null,"Dominic Hunter","Dominic","Hunter","Sofa","South",1683.59]
[null,null,null,null,null,"Pippa Manning","Pippa","Manning","Phone","West",1129.4000000000001]
[null,null,null,null,null,"Amelia Berry","Amelia","Berry","Stereo","North",1294.49]
[null,null,null,null,null,"Grace Rampling","Grace","Rampling","Stereo","West",1834.23]
[null,null,null,null,null,"Justin Thomson","Justin","Thomson","Laptop","West",1445.01]
[null,null,null,null,null,"Keith May","Keith","May","Phone","South",1960.73]
[null,null,null,null,null,"Jack Wallace","Jack","Wallace","TV","West",1080.33]
[null,null,null,null,null,"Joshua Payne","Joshua","Payne","Phone","North",1768.16]
[null,null,null,null,null,"Boris Mackay","Boris","Mackay","Laptop","West",1935.1]
[null,null,null,null,null,"Edward Thomson","Edward","Thomson","Laptop","East",1749.04]
[null,null,null,null,null,"Kimberly Knox","Kimberly","Knox","Stereo","West",1878.35]
[null,null,null,null,null,"Rose Baker","Rose","Baker","Sofa","West",1910.59]
[null,null,null,null,null,"Gavin Tucker","Gavin","Tucker","Laptop","East",1123.97]
[null,null,null,null,null,"Evan Short","Evan","Short","Sofa","East",1139.46]
[null,null,null,null,null,"Matt MacLeod","Matt","MacLeod","Sofa","South",1452.93]
[null,null,null,null,null,"Paul Mackenzie","Paul","Mackenzie","Sofa","North",1870.5]
[null,null,null,null,null,"Max Bower","Max","Bower","Phone","North",1335.03]
[null,null,null,null,null,"Andrew Walker","Andrew","Walker","Stereo","North",1915.74]
[null,null,null,null,null,"David Fraser","David","Fraser","Phone","North",1623.34]
[null,null,null,null,null,"Stephanie Short","Stephanie","Short","Laptop","South",1372.18]
[null,null,null,null,null,"Steven Glover","Steven","Glover","Phone","East",1632.61]
[null,null,null,null,null,"Kimberly Walker","Kimberly","Walker","Sofa","North",1711.83]
[null,null,null,null,null,"Sam Manning","Sam","Manning","Phone","East",1773.07]
[null,null,null,null,null,"Keith Quinn","Keith","Quinn","TV","West",1710.57]
[null,null,null,null,null,"Anna Wallace","Anna","Wallace","Stereo","North",1299.6099999999999]
[null,null,null,null,null,"Felicity Payne","Felicity","Payne","Phone","South",1729.41]
[null,null,null,null,null,"Jason Miller","Jason","Miller","Sofa","South",1291.4100000000001]
[null,null,null,null,null,"Sonia Churchill","Sonia","Churchill","Laptop","East",1788.43]
[null,null,null,null,null,"Dylan Davidson","Dylan","Davidson","TV","North",1365.74]
[null,null,null,null,null,"Lillian Metcalfe","Lillian","Metcalfe","Sofa","South",1719.82]
[null,null,null,null,null,"Abigail Cameron","Abigail","Cameron","Stereo","North",1368.94]
[null,null,null,null,null,"Tracey McGrath","Tracey","McGrath","Laptop","North",1767.39]
[null,null,null,null,null,"Pippa Johnston","Pippa","Johnston","Sofa","East",1377.06]
[null,null,null,null,null,"Heather Walker","Heather","Walker","Sofa","West",1397.12]
[null,null,null,null,null,"Evan Manning","Evan","Manning","Phone","East",1782.47]
[null,null,null,null,null,"Deirdre Poole","Deirdre","Poole","Stereo","West",1422.38]
[null,null,null,null,null,"Jack Carr","Jack","Carr","Laptop","North",1893.32]
[null,null,null,null,null,"James Walker","James","Walker","Laptop","East",1630.47]
[null,null,null,null,null,"Theresa Forsyth","Theresa","Forsyth","Laptop","West",1910.34]
[null,null,null,null,null,"Nicola MacLeod","Nicola","MacLeod","Laptop","East",1240.96]
[null,null,null,null,null,"Karen Blake","Karen","Blake","Sofa","North",1082.27]
[null,null,null,null,null,"Stephanie Morgan","Stephanie","Morgan","Stereo","West",1770.65]
[null,null,null,null,null,"John Peake","John","Peake","Sofa","North",1580.04]
[null,null,null,null,null,"Dorothy Ferguson","Dorothy","Ferguson","Stereo","South",1289.96]
[null,null,null,null,null,"Karen McLean","Karen","McLean","TV","West",1116]
[null,null,null,null,null,"Dominic Butler","Dominic","Butler","Phone","South",1302]
[null,null,null,null,null,"Hannah Bower","Hannah","Bower","Stereo","East",1871.56]
[null,null,null,null,null,"Jessica Vaughan","Jessica","Vaughan","Phone","East",1302.19]
[null,null,null,null,null,"Frank Brown","Frank","Brown","Stereo","East",1583.62]
[null,null,null,null,null,"Connor Howard","Connor","Howard","Sofa","West",1229.29]
[null,null,null,null,null,"Julian Randall","Julian","Randall","Stereo","East",1101.57]
[null,null,null,null,null,"Julian Bell","Julian","Bell","TV","South",1031.51]
[null,null,null,null,null,"Michael Gibson","Michael","Gibson","Stereo","East",1270.1199999999999]
[null,null,null,null,null,"Robert Powell","Robert","Powell","Laptop","North",1711.36]
[null,null,null,null,null,"Carol Mitchell","Carol","Mitchell","Phone","South",1356.23]
[null,null,null,null,null,"Mary Lee","Mary","Lee","TV","East",1351.56]
[null,null,null,null,null,"Rachel Rutherford","Rachel","Rutherford","Sofa","South",1624.28]
[null,null,null,null,null,"Jane Brown","Jane","Brown","Laptop","North",1086.5999999999999]
[null,null,null,null,null,"Joshua Skinner","Joshua","Skinner","Sofa","West",1763.81]
[null,null,null,null,null,"Eric McLean","Eric","McLean","TV","North",1877.37]
[null,null,null,null,null,"Diane Welch","Diane","Welch","Laptop","East",1131.28]
[null,null,null,null,null,"William Fraser","William","Fraser","Phone","West",1376.46]
[null,null,null,null,null,"Alan Young","Alan","Young","Sofa","East",1179.99]
[null,null,null,null,null,"Deirdre Oliver","Deirdre","Oliver","Stereo","East",1767.55]
[null,null,null,null,null,"Heather Carr","Heather","Carr","Sofa","South",1855.62]
[null,null,null,null,null,"Connor Hill","Connor","Hill","Laptop","East",1904.78]
[null,null,null,null,null,"Jasmine Burgess","Jasmine","Burgess","Phone","West",1288.6300000000001]
[null,null,null,null,null,"Carol Quinn","Carol","Quinn","Laptop","West",1088.58]
[null,null,null,null,null,"John Pullman","John","Pullman","TV","West",1941.83]
[null,null,null,null,null,"Gordon Poole","Gordon","Poole","Phone","East",1615.18]
[null,null,null,null,null,"Joseph Gibson","Joseph","Gibson","Sofa","South",1878.92]
[null,null,null,null,null,"Diana Hamilton","Diana","Hamilton","Laptop","North",1507.26]
[null,null,null,null,null,"Jessica Dyer","Jessica","Dyer","Laptop","East",1016.09]
[null,null,null,null,null,"Sophie Underwood","Sophie","Underwood","TV","South",1394.41]
[null,null,null,null,null,"Paul Gibson","Paul","Gibson","Phone","South",1649.94]
[null,null,null,null,null,"Jack Newman","Jack","Newman","TV","West",1550.15]
[null,null,null,null,null,"Thomas McLean","Thomas","McLean","Sofa","West",1784.82]
[null,null,null,null,null,"Lisa Avery","Lisa","Avery","Sofa","North",1286.4100000000001]
[null,null,null,null,null,"Ian Parr","Ian","Parr","Sofa","West",1627.36]
[null,null,null,null,null,"Christopher Bond","Christopher","Bond","Phone","East",1699.46]
[null,null,null,null,null,"Colin Robertson","Colin","Robertson","Stereo","East",1358.85]
[null,null,null,null,null,"Felicity Fisher","Felicity","Fisher","Stereo","South",1191.46]
[null,null,null,null,null,"Sarah Abraham","Sarah","Abraham","Laptop","East",1445.51]
[null,null,null,null,null,"Michelle Thomson","Michelle","Thomson","Stereo","East",1200.24]
[null,null,null,null,null,"Lily Peake","Lily","Peake","Stereo","West",1940.96]
[null,null,null,null,null,"Colin Alsop","Colin","Alsop","Phone","East",1553.63]
[null,null,null,null,null,"Warren Randall","Warren","Randall","Phone","East",1682.32]
[null,null,null,null,null,"Nicola Welch","Nicola","Welch","Phone","East",1380.71]
[null,null,null,null,null,"Amanda Avery","Amanda","Avery","Stereo","East",1879.68]
[null,null,null,null,null,"Joseph Graham","Joseph","Graham","Sofa","East",1561.52]
[null,null,null,null,null,"Claire Wallace","Claire","Wallace","Laptop","East",1035.46]
[null,null,null,null,null,"Richard Ross","Richard","Ross","Phone","West",1519.83]
[null,null,null,null,null,"Owen Nolan","Owen","Nolan","Phone","North",1185.94]
[null,null,null,null,null,"Colin Clarkson","Colin","Clarkson","Laptop","East",1334.56]
[null,null,null,null,null,"Richard Lyman","Richard","Lyman","TV","South",1255.52]
[null,null,null,null,null,"Katherine Baker","Katherine","Baker","Phone","South",1683.82]
[null,null,null,null,null,"Matt Mackenzie","Matt","Mackenzie","Sofa","South",1996.38]
[null,null,null,null,null,"Amy Welch","Amy","Welch","Phone","North",1406.63]
[null,null,null,null,null,"Tracey Lawrence","Tracey","Lawrence","Stereo","South",1506.8]
[null,null,null,null,null,"Ava Hunter","Ava","Hunter","TV","North",1212.07]
[null,null,null,null,null,"David Lambert","David","Lambert","Stereo","North",1700.29]
[null,null,null,null,null,"Neil Anderson","Neil","Anderson","Laptop","South",1391.93]
[null,null,null,null,null,"Michael Abraham","Michael","Abraham","Stereo","West",1697.93]
[null,null,null,null,null,"Stephen Robertson","Stephen","Robertson","Sofa","North",1784.83]
[null,null,null,null,null,"Nathan Brown","Nathan","Brown","Laptop","West",1373.9]
[null,null,null,null,null,"Gabrielle Churchill","Gabrielle","Churchill","Phone","South",1972.22]
[null,null,null,null,null,"Emma Sanderson","Emma","Sanderson","TV","North",1827.19]
[null,null,null,null,null,"Gabrielle Bond","Gabrielle","Bond","Phone","South",1253.5899999999999]
[null,null,null,null,null,"Stewart Black","Stewart","Black","TV","South",1737.89]
[null,null,null,null,null,"Victor Gray","Victor","Gray","Sofa","West",1805.79]
[null,null,null,null,null,"Leonard Butler","Leonard","Butler","Stereo","East",1364.29]
[null,null,null,null,null,"Blake Stewart","Blake","Stewart","Sofa","North",1575.72]
[null,null,null,null,null,"Jack Mathis","Jack","Mathis","Laptop","West",1045.25]
[null,null,null,null,null,"Chloe Knox","Chloe","Knox","Laptop","West",1356.43]
[null,null,null,null,null,"Jack Russell","Jack","Russell","TV","North",1456.05]
[null,null,null,null,null,"Jasmine James","Jasmine","James","Phone","East",1069.4000000000001]
[null,null,null,null,null,"Stephen Vance","Stephen","Vance","Sofa","North",1861.09]
[null,null,null,null,null,"Brandon Sharp","Brandon","Sharp","Sofa","North",1312.86]
[null,null,null,null,null,"Sam Morgan","Sam","Morgan","Phone","South",1983.68]
[null,null,null,null,null,"Maria Alsop","Maria","Alsop","Phone","North",1820.14]
[null,null,null,null,null,"Felicity Slater","Felicity","Slater","Phone","West",1321.53]
[null,null,null,null,null,"Sean Forsyth","Sean","Forsyth","Laptop","North",1718.53]
[null,null,null,null,null,"Claire Vaughan","Claire","Vaughan","Laptop","North",1986.94]
[null,null,null,null,null,"Carolyn McGrath","Carolyn","McGrath","Stereo","South",1181.5899999999999]
[null,null,null,null,null,"Fiona Kerr","Fiona","Kerr","Stereo","West",1886.2]
[null,null,null,null,null,"Joseph Walsh","Joseph","Walsh","Sofa","South",1210.79]
[null,null,null,null,null,"Justin McDonald","Justin","McDonald","Laptop","South",1531.87]
[null,null,null,null,null,"Julian Hemmings","Julian","Hemmings","TV","West",1935.59]
[null,null,null,null,null,"Megan Roberts","Megan","Roberts","Stereo","West",1839]
[null,null,null,null,null,"Kevin Gray","Kevin","Gray","Stereo","South",1880.13]
[null,null,null,null,null,"Emily Simpson","Emily","Simpson","Laptop","North",1806.15]
[null,null,null,null,null,"Ryan Allan","Ryan","Allan","TV","East",1672.05]
[null,null,null,null,null,"Tracey Morgan","Tracey","Morgan","Sofa","West",1380.29]
[null,null,null,null,null,"Dan Churchill","Dan","Churchill","Sofa","East",1834.11]
[null,null,null,null,null,"Carolyn Abraham","Carolyn","Abraham","Sofa","West",1745.51]
[null,null,null,null,null,"Andrew Welch","Andrew","Welch","Phone","East",1904.1]
[null,null,null,null,null,"Paul Hodges","Paul","Hodges","Sofa","West",1997.57]
[null,null,null,null,null,"Deirdre Churchill","Deirdre","Churchill","Laptop","East",1931.69]
[null,null,null,null,null,"Heather Rutherford","Heather","Rutherford","Stereo","South",1305.77]
[null,null,null,null,null,"Jennifer Slater","Jennifer","Slater","TV","South",1456.71]
[null,null,null,null,null,"Anna Hunter","Anna","Hunter","Stereo","North",1240.2]
[null,null,null,null,null,"Nicholas Lee","Nicholas","Lee","Laptop","West",1745.67]
[null,null,null,null,null,"Alison Hemmings","Alison","Hemmings","Stereo","North",1908.59]
[null,null,null,null,null,"Amelia Ince","Amelia","Ince","TV","South",1475.63]
[null,null,null,null,null,"Oliver Johnston","Oliver","Johnston","TV","South",1837.79]
[null,null,null,null,null,"Leonard Piper","Leonard","Piper","Laptop","North",1487.51]
[null,null,null,null,null,"Olivia Edmunds","Olivia","Edmunds","Stereo","South",1781.19]
[null,null,null,null,null,"Kevin Jones","Kevin","Jones","Stereo","West",1190.32]
[null,null,null,null,null,"Victor Grant","Victor","Grant","TV","West",1354.12]
[null,null,null,null,null,"Alison Bailey","Alison","Bailey","Laptop","East",1292.79]
[null,null,null,null,null,"Max Taylor","Max","Taylor","Laptop","East",1761.01]
[null,null,null,null,null,"Joshua Churchill","Joshua","Churchill","TV","East",1304.3800000000001]
[null,null,null,null,null,"Sue Young","Sue","Young","TV","West",1585.65]
[null,null,null,null,null,"Amanda Paterson","Amanda","Paterson","Phone","West",1459.9]
[null,null,null,null,null,"Mary Coleman","Mary","Coleman","Phone","East",1260.8900000000001]
[null,null,null,null,null,"Lillian Roberts","Lillian","Roberts","Laptop","East",1400.38]
[null,null,null,null,null,"Jasmine Simpson","Jasmine","Simpson","TV","West",1818.22]
[null,null,null,null,null,"Lucas Martin","Lucas","Martin","Laptop","South",1168.01]
[null,null,null,null,null,"Justin Grant","Justin","Grant","Laptop","East",1913.49]
[null,null,null,null,null,"Bernadette Davidson","Bernadette","Davidson","Phone","East",1893.52]
[null,null,null,null,null,"Christopher Walker","Christopher","Walker","TV","West",1936.36]
[null,null,null,null,null,"Tracey Cameron","Tracey","Cameron","Phone","East",1934.66]
[null,null,null,null,null,"Andrew Skinner","Andrew","Skinner","Phone","North",1420.56]
[null,null,null,null,null,"Donna Cameron","Donna","Cameron","Laptop","South",1168.3699999999999]
[null,null,null,null,null,"Yvonne Anderson","Yvonne","Anderson","Phone","East",1204.96]
[null,null,null,null,null,"Megan Rampling","Megan","Rampling","Phone","East",1975.26]
[null,null,null,null,null,"Jennifer Coleman","Jennifer","Coleman","Phone","West",1808.72]
[null,null,null,null,null,"Nathan Ince","Nathan","Ince","TV","South",1064.3800000000001]
[null,null,null,null,null,"Virginia Harris","Virginia","Harris","Stereo","East",1471.9]
[null,null,null,null,null,"Andrew Underwood","Andrew","Underwood","Sofa","South",1530.02]
[null,null,null,null,null,"Jasmine Vance","Jasmine","Vance","Stereo","East",1056.44]
[null,null,null,null,null,"Stewart Lyman","Stewart","Lyman","Sofa","South",1665.73]
[null,null,null,null,null,"Alexandra Oliver","Alexandra","Oliver","TV","East",1998.1]
[null,null,null,null,null,"Jessica Hamilton","Jessica","Hamilton","Laptop","East",1624.49]
[null,null,null,null,null,"Bella Powell","Bella","Powell","TV","East",1560.81]
[null,null,null,null,null,"Amelia Carr","Amelia","Carr","Laptop","East",1724.28]
[null,null,null,null,null,"Diane Short","Diane","Short","Sofa","South",1244.92]
[null,null,null,null,null,"Piers Davies","Piers","Davies","Stereo","North",1017.58]
[null,null,null,null,null,"Stephanie Wright","Stephanie","Wright","Sofa","South",1474.82]
[null,null,null,null,null,"Amelia Rees","Amelia","Rees","Phone","West",1865.09]
[null,null,null,null,null,"Phil North","Phil","North","TV","South",1793.81]
[null,null,null,null,null,"Amy Randall","Amy","Randall","Sofa","West",1359.96]
[null,null,null,null,null,"Owen Newman","Owen","Newman","Phone","North",1942.89]
[null,null,null,null,null,"Christopher Lee","Christopher","Lee","Laptop","North",1807.74]
[null,null,null,null,null,"Carl Bell","Carl","Bell","Phone","East",1442.06]
[null,null,null,null,null,"Michael Vance","Michael","Vance","TV","North",1335.95]
[null,null,null,null,null,"Deirdre Lyman","Deirdre","Lyman","Phone","East",1263.72]
[null,null,null,null,null,"Alan Hodges","Alan","Hodges","Stereo","East",1921.38]
[null,null,null,null,null,"Alexander Allan","Alexander","Allan","Sofa","South",1012.15]
[null,null,null,null,null,"Charles Ferguson","Charles","Ferguson","Phone","North",1377]
[null,null,null,null,null,"Thomas Allan","Thomas","Allan","Phone","East",1171.77]
[null,null,null,null,null,"Phil Clarkson","Phil","Clarkson","Laptop","East",1227.7]
[null,null,null,null,null,"Carl Dyer","Carl","Dyer","TV","East",1195.4000000000001]
[null,null,null,null,null,"Dan Duncan","Dan","Duncan","TV","South",1033.32]
[null,null,null,null,null,"Rebecca Vaughan","Rebecca","Vaughan","TV","South",1188.0999999999999]
[null,null,null,null,null,"Lauren Slater","Lauren","Slater","Phone","North",1415.1]
[null,null,null,null,null,"Lillian Nolan","Lillian","Nolan","Laptop","South",1326.78]
[null,null,null,null,null,"Audrey Black","Audrey","Black","Laptop","North",1829.62]
[null,null,null,null,null,"Sam Rees","Sam","Rees","Phone","South",1670.34]
[null,null,null,null,null,"Heather Campbell","Heather","Campbell","Sofa","North",1431.07]
[null,null,null,null,null,"Luke Black","Luke","Black","TV","West",1781.16]
[null,null,null,null,null,"Sonia Blake","Sonia","Blake","Phone","East",1892.43]
[null,null,null,null,null,"Rebecca Hamilton","Rebecca","Hamilton","Laptop","North",1976.95]
[null,null,null,null,null,"Diana Roberts","Diana","Roberts","TV","North",1025.68]
[null,null,null,null,null,"Andrew Wilson","Andrew","Wilson","Sofa","West",1043.53]
[null,null,null,null,null,"Megan Lambert","Megan","Lambert","Sofa","East",1713.92]
[null,null,null,null,null,"Angela Churchill","Angela","Churchill","Stereo","North",1971.33]
[null,null,null,null,null,"Richard Paige","Richard","Paige","Sofa","North",1989.88]
[null,null,null,null,null,"Angela King","Angela","King","Stereo","South",1432.47]
[null,null,null,null,null,"David McDonald","David","McDonald","Sofa","West",1603.5]
[null,null,null,null,null,"Phil James","Phil","James","Laptop","South",1718.27]
[null,null,null,null,null,"Melanie Butler","Melanie","Butler","Laptop","North",1092.92]
[null,null,null,null,null,"Julian Morrison","Julian","Morrison","Stereo","West",1781.89]
[null,null,null,null,null,"Carol Blake","Carol","Blake","Sofa","East",1928.86]
[null,null,null,null,null,"Wanda Dowd","Wanda","Dowd","TV","West",1674.81]
[null,null,null,null,null,"Simon Gray","Simon","Gray","Phone","East",1724.91]
[null,null,null,null,null,"Carl Howard","Carl","Howard","Stereo","North",1419.11]
[null,null,null,null,null,"Elizabeth Robertson","Elizabeth","Robertson","Stereo","South",1989.59]
[null,null,null,null,null,"James Forsyth","James","Forsyth","Sofa","West",1942.92]
[null,null,null,null,null,"Austin McDonald","Austin","McDonald","Sofa","East",1321.41]
[null,null,null,null,null,"Lily Parsons","Lily","Parsons","Phone","East",1351.79]
[null,null,null,null,null,"Andrew Tucker","Andrew","Tucker","Phone","North",1916.52]
[null,null,null,null,null,"Gordon Simpson","Gordon","Simpson","TV","West",1596.19]
[null,null,null,null,null,"Rose Morgan","Rose","Morgan","Laptop","South",1385.62]
[null,null,null,null,null,"Tracey Nolan","Tracey","Nolan","TV","West",1068.46]
[null,null,null,null,null,"Dominic Ferguson","Dominic","Ferguson","Sofa","East",1176.95]
[null,null,null,null,null,"Sonia Martin","Sonia","Martin","Phone","West",1608.97]
[null,null,null,null,null,"Stewart Peters","Stewart","Peters","Sofa","West",1973.68]
[null,null,null,null,null,"Madeleine Terry","Madeleine","Terry","Stereo","South",1598.27]
[null,null,null,null,null,"Diana Kerr","Diana","Kerr","TV","South",1467.01]
[null,null,null,null,null,"Brian Forsyth","Brian","Forsyth","Laptop","East",1703.02]
[null,null,null,null,null,"Julia Blake","Julia","Blake","Sofa","East",1118.6300000000001]
[null,null,null,null,null,"Theresa Davies","Theresa","Davies","TV","West",1380.31]
[null,null,null,null,null,"Alexander MacLeod","Alexander","MacLeod","Laptop","West",1435.68]
[null,null,null,null,null,"Tim Johnston","Tim","Johnston","Sofa","East",1629.52]
[null,null,null,null,null,"Oliver McDonald","Oliver","McDonald","TV","East",1076.1500000000001]
[null,null,null,null,null,"Sonia Harris","Sonia","Harris","Laptop","East",1328.39]
[null,null,null,null,null,"Donna Parsons","Donna","Parsons","Phone","West",1315.64]
[null,null,null,null,null,"Sean Lambert","Sean","Lambert","Phone","South",1923.32]
[null,null,null,null,null,"Amy May","Amy","May","TV","North",1036.46]
[null,null,null,null,null,"Eric Churchill","Eric","Churchill","TV","South",1733.38]
[null,null,null,null,null,"Peter Howard","Peter","Howard","Phone","South",1502.13]
[null,null,null,null,null,"Claire Metcalfe","Claire","Metcalfe","Stereo","East",1567.73]
[null,null,null,null,null,"Sean Clarkson","Sean","Clarkson","Laptop","East",1152.8599999999999]
[null,null,null,null,null,"Rose Young","Rose","Young","Laptop","East",1517.89]
[null,null,null,null,null,"Sarah McDonald","Sarah","McDonald","Laptop","West",1883.75]
[null,null,null,null,null,"Christian Peters","Christian","Peters","Phone","South",1628.16]
[null,null,null,null,null,"Warren Parsons","Warren","Parsons","TV","West",1846.15]
[null,null,null,null,null,"Jason Fisher","Jason","Fisher","Stereo","North",1504.3]
[null,null,null,null,null,"Joseph Glover","Joseph","Glover","Phone","West",1576.59]
[null,null,null,null,null,"Alexander Powell","Alexander","Powell","Sofa","North",1457.51]
[null,null,null,null,null,"Sue Clark","Sue","Clark","Laptop","North",1753.75]
[null,null,null,null,null,"Sam Fisher","Sam","Fisher","TV","South",1415.69]
[null,null,null,null,null,"Elizabeth Lambert","Elizabeth","Lambert","Phone","East",1444.51]
[null,null,null,null,null,"Matt Abraham","Matt","Abraham","TV","West",1210.1500000000001]
[null,null,null,null,null,"Piers Knox","Piers","Knox","Sofa","North",1371.56]
[null,null,null,null,null,"Christopher Howard","Christopher","Howard","Phone","East",1972.75]
[null,null,null,null,null,"Piers Vaughan","Piers","Vaughan","Phone","West",1940.82]
[null,null,null,null,null,"Emily Black","Emily","Black","Phone","West",1774.01]
[null,null,null,null,null,"Charles Fraser","Charles","Fraser","Sofa","West",1926.15]
[null,null,null,null,null,"Nicholas Howard","Nicholas","Howard","Sofa","East",1574.13]
[null,null,null,null,null,"Angela Powell","Angela","Powell","Stereo","East",1342.86]
[null,null,null,null,null,"Sam North","Sam","North","Laptop","South",1778.74]
[null,null,null,null,null,"Lauren Parsons","Lauren","Parsons","Stereo","East",1863.87]
[null,null,null,null,null,"Jasmine Arnold","Jasmine","Arnold","Stereo","North",1584.44]
[null,null,null,null,null,"Stewart Parsons","Stewart","Parsons","Sofa","West",1483.01]
[null,null,null,null,null,"Sally Skinner","Sally","Skinner","Stereo","South",1270.68]
[null,null,null,null,null,"Isaac Randall","Isaac","Randall","TV","West",1548.76]
[null,null,null,null,null,"Vanessa Abraham","Vanessa","Abraham","Sofa","West",1682.25]
[null,null,null,null,null,"Gavin Churchill","Gavin","Churchill","Sofa","East",1297]
[null,null,null,null,null,"Blake Parsons","Blake","Parsons","Sofa","South",1460.34]
[null,null,null,null,null,"Harry MacDonald","Harry","MacDonald","Sofa","North",1537.79]
[null,null,null,null,null,"Nicholas Tucker","Nicholas","Tucker","Phone","South",1095.08]
[null,null,null,null,null,"Max Campbell","Max","Campbell","Phone","North",1160.94]
[null,null,null,null,null,"Ruth Ross","Ruth","Ross","TV","West",1775.06]
[null,null,null,null,null,"Steven Allan","Steven","Allan","Stereo","East",1744.94]
[null,null,null,null,null,"Gavin Payne","Gavin","Payne","Sofa","South",1829.08]
[null,null,null,null,null,"Gavin MacDonald","Gavin","MacDonald","Sofa","South",1190.69]
[null,null,null,null,null,"Amanda Johnston","Amanda","Johnston","Sofa","West",1452.93]
[null,null,null,null,null,"Sally Thomson","Sally","Thomson","Phone","East",1789.8]
[null,null,null,null,null,"Kevin Gill","Kevin","Gill","TV","West",1116.5999999999999]
[null,null,null,null,null,"Matt McGrath","Matt","McGrath","TV","North",1513.97]
[null,null,null,null,null,"Jonathan Paige","Jonathan","Paige","Phone","South",1043.54]
[null,null,null,null,null,"Gavin White","Gavin","White","Stereo","North",1819.13]
[null,null,null,null,null,"Nathan Hudson","Nathan","Hudson","Phone","East",1946.38]
[null,null,null,null,null,"Warren Wallace","Warren","Wallace","Sofa","South",1144.29]
[null,null,null,null,null,"Sophie Walsh","Sophie","Walsh","Phone","South",1062.43]
[null,null,null,null,null,"Jessica Churchill","Jessica","Churchill","Laptop","North",1980.24]
[null,null,null,null,null,"Claire Morrison","Claire","Morrison","Laptop","East",1083.54]
[null,null,null,null,null,"Vanessa Lee","Vanessa","Lee","Sofa","South",1303.57]
[null,null,null,null,null,"Lillian Randall","Lillian","Randall","Sofa","East",1507.04]
[null,null,null,null,null,"Carolyn Oliver","Carolyn","Oliver","Sofa","South",1834]
[null,null,null,null,null,"Stewart Thomson","Stewart","Thomson","Sofa","West",1136.58]
[null,null,null,null,null,"Dorothy Ogden","Dorothy","Ogden","Stereo","North",1161.1600000000001]
[null,null,null,null,null,"Amanda Morrison","Amanda","Morrison","Phone","East",1950.17]
[null,null,null,null,null,"Jessica Jackson","Jessica","Jackson","Sofa","East",1406.63]
[null,null,null,null,null,"Stephanie Young","Stephanie","Young","Phone","North",1767.93]
[null,null,null,null,null,"Irene Ball","Irene","Ball","TV","East",1880.02]
[null,null,null,null,null,"Nathan Hemmings","Nathan","Hemmings","Sofa","South",1761.35]
[null,null,null,null,null,"Blake Paterson","Blake","Paterson","TV","East",1652]
[null,null,null,null,null,"Stewart Knox","Stewart","Knox","TV","East",1444.25]
[null,null,null,null,null,"Steven Edmunds","Steven","Edmunds","Phone","South",1283.08]
[null,null,null,null,null,"Owen Marshall","Owen","Marshall","Sofa","West",1435.86]
[null,null,null,null,null,"Victor Buckland","Victor","Buckland","Laptop","North",1680.66]
[null,null,null,null,null,"Gordon Nolan","Gordon","Nolan","Phone","North",1688.5]
[null,null,null,null,null,"Heather Payne","Heather","Payne","Laptop","East",1898.95]
[null,null,null,null,null,"Stephanie Fisher","Stephanie","Fisher","Sofa","East",1400.65]
[null,null,null,null,null,"Kimberly Pullman","Kimberly","Pullman","Sofa","North",1807.56]
[null,null,null,null,null,"Sophie Churchill","Sophie","Churchill","TV","South",1332.23]
[null,null,null,null,null,"Natalie Ferguson","Natalie","Ferguson","Laptop","West",1350.63]
[null,null,null,null,null,"Eric Black","Eric","Black","TV","South",1858.02]
[null,null,null,null,null,"Leonard Martin","Leonard","Martin","Laptop","East",1959.98]
[null,null,null,null,null,"Lillian Johnston","Lillian","Johnston","Stereo","West",1957.66]
[null,null,null,null,null,"Audrey Lyman","Audrey","Lyman","Phone","South",1753.54]
[null,null,null,null,null,"Bella Graham","Bella","Graham","Stereo","East",1255.51]
[null,null,null,null,null,"Colin Ball","Colin","Ball","Phone","North",1525.35]
[null,null,null,null,null,"Oliver MacLeod","Oliver","MacLeod","Stereo","East",1118.25]
[null,null,null,null,null,"Audrey Payne","Audrey","Payne","Laptop","North",1403.95]
[null,null,null,null,null,"Sonia Hughes","Sonia","Hughes","Laptop","West",1166.57]
[null,null,null,null,null,"Alison Greene","Alison","Greene","Laptop","East",1115.72]
[null,null,null,null,null,"Pippa Hart","Pippa","Hart","Sofa","East",1119.68]
[null,null,null,null,null,"Richard Wallace","Richard","Wallace","TV","West",1932.61]
[null,null,null,null,null,"William Morrison","William","Morrison","Stereo","North",1123.0999999999999]
[null,null,null,null,null,"Vanessa Randall","Vanessa","Randall","Sofa","North",1046.43]
[null,null,null,null,null,"Kylie Vaughan","Kylie","Vaughan","Sofa","East",1226.74]
[null,null,null,null,null,"Sue Russell","Sue","Russell","TV","North",1058.6600000000001]
[null,null,null,null,null,"Stephanie Ferguson","Stephanie","Ferguson","Laptop","North",1143.27]
[null,null,null,null,null,"Andrew Scott","Andrew","Scott","Stereo","East",1354.68]
[null,null,null,null,null,"Joe Chapman","Joe","Chapman","Phone","South",1587.94]
[null,null,null,null,null,"Bella Terry","Bella","Terry","Laptop","West",1283.8599999999999]
[null,null,null,null,null,"Lily McDonald","Lily","McDonald","TV","South",1911.3]
[null,null,null,null,null,"Anthony Jackson","Anthony","Jackson","Sofa","East",1978.94]
[null,null,null,null,null,"Isaac Terry","Isaac","Terry","Laptop","East",1810.56]
[null,null,null,null,null,"Hannah Martin","Hannah","Martin","TV","East",1833.72]
[null,null,null,null,null,"Rebecca Ball","Rebecca","Ball","Laptop","West",1747.22]
[null,null,null,null,null,"Evan Hill","Evan","Hill","Sofa","West",1940.82]
[null,null,null,null,null,"Nicola Lewis","Nicola","Lewis","Phone","North",1403.01]
[null,null,null,null,null,"Phil Rees","Phil","Rees","Stereo","East",1155.18]
[null,null,null,null,null,"Michael Lee","Michael","Lee","Phone","South",1714.93]
[null,null,null,null,null,"Emily Stewart","Emily","Stewart","Sofa","South",1402.98]
[null,null,null,null,null,"Benjamin Slater","Benjamin","Slater","Laptop","West",1906.2]
[null,null,null,null,null,"Boris Springer","Boris","Springer","Phone","South",1655.99]
[null,null,null,null,null,"Alexander McDonald","Alexander","McDonald","Stereo","South",1779.63]
[null,null,null,null,null,"Nicola Mills","Nicola","Mills","Sofa","South",1349.73]
[null,null,null,null,null,"Madeleine Jones","Madeleine","Jones","Stereo","East",1540.13]
[null,null,null,null,null,"Bella Hart","Bella","Hart","Phone","East",1150.18]
[null,null,null,null,null,"Ava Davies","Ava","Davies","Stereo","North",1472.82]
[null,null,null,null,null,"Colin Mathis","Colin","Mathis","Laptop","North",1224.7]
[null,null,null,null,null,"Evan Parsons","Evan","Parsons","Laptop","East",1285.68]
[null,null,null,null,null,"Dylan Kerr","Dylan","Kerr","Stereo","West",1811.52]
[null,null,null,null,null,"Virginia Payne","Virginia","Payne","Laptop","West",1603.24]
[null,null,null,null,null,"Jessica Pullman","Jessica","Pullman","Phone","South",1332.52]
[null,null,null,null,null,"Mary Watson","Mary","Watson","TV","North",1125.5]
[null,null,null,null,null,"Edward White","Edward","White","Phone","South",1031.1600000000001]
[null,null,null,null,null,"Ryan Forsyth","Ryan","Forsyth","Phone","North",1141.73]
[null,null,null,null,null,"Gabrielle Bower","Gabrielle","Bower","Laptop","East",1177.3599999999999]
[null,null,null,null,null,"Andrea May","Andrea","May","Laptop","North",1042.27]
[null,null,null,null,null,"Brian Henderson","Brian","Henderson","Sofa","East",1215.81]
[null,null,null,null,null,"Diana Peters","Diana","Peters","TV","North",1548.88]
[null,null,null,null,null,"Jason Ogden","Jason","Ogden","Phone","East",1256.6099999999999]
[null,null,null,null,null,"Ava Butler","Ava","Butler","Stereo","South",1759.64]
[null,null,null,null,null,"Alan Tucker","Alan","Tucker","TV","South",1889.76]
[null,null,null,null,null,"Richard Lee","Richard","Lee","TV","South",1043.83]
[null,null,null,null,null,"Sarah Wilkins","Sarah","Wilkins","Sofa","North",1412.46]
[null,null,null,null,null,"Jennifer Fraser","Jennifer","Fraser","Sofa","North",1044.97]
[null,null,null,null,null,"Ryan Hunter","Ryan","Hunter","Phone","West",1778.2]
[null,null,null,null,null,"Maria Smith","Maria","Smith","Laptop","South",1646.37]
[null,null,null,null,null,"Sue Rutherford","Sue","Rutherford","Phone","South",1274.49]
[null,null,null,null,null,"Ella Howard","Ella","Howard","Stereo","South",1826.1]
[null,null,null,null,null,"Natalie Simpson","Natalie","Simpson","Phone","North",1750.96]
[null,null,null,null,null,"Ryan King","Ryan","King","Stereo","North",1864.73]
[null,null,null,null,null,"Oliver Wright","Oliver","Wright","Phone","North",1653.04]
[null,null,null,null,null,"Audrey Randall","Audrey","Randall","Sofa","South",1389.46]
[null,null,null,null,null,"Stephen Martin","Stephen","Martin","Phone","West",1603.32]
[null,null,null,null,null,"Edward Vance","Edward","Vance","TV","North",1813.8]
[null,null,null,null,null,"Madeleine Payne","Madeleine","Payne","Laptop","South",1542.9]
[null,null,null,null,null,"Madeleine Alsop","Madeleine","Alsop","Laptop","East",1136.33]
[null,null,null,null,null,"Sebastian Johnston","Sebastian","Johnston","Laptop","North",1599.88]
[null,null,null,null,null,"Sam Abraham","Sam","Abraham","Stereo","West",1070]
[null,null,null,null,null,"Michelle Rees","Michelle","Rees","TV","East",1590.43]
[null,null,null,null,null,"Robert Murray","Robert","Murray","Stereo","South",1610.82]
[null,null,null,null,null,"Nicola MacDonald","Nicola","MacDonald","Laptop","West",1174.1600000000001]
[null,null,null,null,null,"Gordon Paterson","Gordon","Paterson","Stereo","South",1257.55]
[null,null,null,null,null,"Stephen Kelly","Stephen","Kelly","Phone","East",1955.72]
[null,null,null,null,null,"Joanne Ross","Joanne","Ross","Stereo","North",1829.04]
[null,null,null,null,null,"Natalie Rees","Natalie","Rees","Sofa","South",1845.31]
[null,null,null,null,null,"Julia Randall","Julia","Randall","Stereo","South",1350.79]
[null,null,null,null,null,"Eric Ferguson","Eric","Ferguson","Phone","South",1684.96]
[null,null,null,null,null,"Stephanie Metcalfe","Stephanie","Metcalfe","Laptop","East",1411.59]
[null,null,null,null,null,"Brian Churchill","Brian","Churchill","Laptop","South",1953.16]
[null,null,null,null,null,"Ian Lawrence","Ian","Lawrence","Stereo","South",1331]
[null,null,null,null,null,"Luke Dowd","Luke","Dowd","Sofa","East",1257.94]
[null,null,null,null,null,"Kylie Glover","Kylie","Glover","TV","North",1890.87]
[null,null,null,null,null,"Joshua Vaughan","Joshua","Vaughan","TV","South",1693.22]
[null,null,null,null,null,"Natalie Mills","Natalie","Mills","Stereo","North",1002.45]
[null,null,null,null,null,"Richard Edmunds","Richard","Edmunds","Laptop","North",1707.02]
[null,null,null,null,null,"Boris Berry","Boris","Berry","Stereo","South",1650.3]
[null,null,null,null,null,"Lily Scott","Lily","Scott","Laptop","West",1289.49]
[null,null,null,null,null,"Rebecca Martin","Rebecca","Martin","Phone","East",1722.35]
[null,null,null,null,null,"Joseph Miller","Joseph","Miller","Sofa","West",1044.1099999999999]
[null,null,null,null,null,"Jacob Hemmings","Jacob","Hemmings","TV","North",1344.43]
[null,null,null,null,null,"Cameron Cornish","Cameron","Cornish","Sofa","North",1923.46]
[null,null,null,null,null,"Samantha Turner","Samantha","Turner","Phone","East",1668.94]
[null,null,null,null,null,"Isaac Rees","Isaac","Rees","Laptop","North",1778.04]
[null,null,null,null,null,"Charles Slater","Charles","Slater","Laptop","West",1097.49]
[null,null,null,null,null,"Theresa Young","Theresa","Young","Sofa","West",1853.34]
[null,null,null,null,null,"Wendy Edmunds","Wendy","Edmunds","Laptop","West",1271.29]
[null,null,null,null,null,"Gordon Lewis","Gordon","Lewis","TV","West",1225.33]
[null,null,null,null,null,"Olivia King","Olivia","King","Sofa","South",1932.72]
[null,null,null,null,null,"Gavin Wilkins","Gavin","Wilkins","Stereo","South",1507.27]
[null,null,null,null,null,"Trevor Rampling","Trevor","Rampling","Sofa","West",1784.4]
[null,null,null,null,null,"Steven Young","Steven","Young","Stereo","West",1872.73]
[null,null,null,null,null,"Stephanie Skinner","Stephanie","Skinner","Sofa","West",1458.35]
[null,null,null,null,null,"Colin Knox","Colin","Knox","Laptop","East",1199.72]
[null,null,null,null,null,"Christopher Burgess","Christopher","Burgess","Stereo","South",1363.09]
[null,null,null,null,null,"Boris Hamilton","Boris","Hamilton","TV","West",1149.8]
[null,null,null,null,null,"Paul Gray","Paul","Gray","Phone","East",1343.06]
[null,null,null,null,null,"Sophie Marshall","Sophie","Marshall","Laptop","North",1751.89]
[null,null,null,null,null,"Tracey Roberts","Tracey","Roberts","Stereo","West",1370.64]
[null,null,null,null,null,"Ryan Metcalfe","Ryan","Metcalfe","Sofa","South",1375.76]
[null,null,null,null,null,"Sean Ogden","Sean","Ogden","Laptop","East",1606.35]
[null,null,null,null,null,"Wanda Mathis","Wanda","Mathis","Sofa","South",1652.81]
[null,null,null,null,null,"Zoe Marshall","Zoe","Marshall","Laptop","North",1792.28]
[null,null,null,null,null,"Tim Marshall","Tim","Marshall","Stereo","South",1662.41]
[null,null,null,null,null,"Fiona Lawrence","Fiona","Lawrence","Laptop","North",1353.8]
[null,null,null,null,null,"Liam Payne","Liam","Payne","Stereo","East",1066.9100000000001]
[null,null,null,null,null,"Peter Lambert","Peter","Lambert","Laptop","South",1768.29]
[null,null,null,null,null,"Austin Howard","Austin","Howard","Sofa","East",1838.66]
[null,null,null,null,null,"Kevin Nolan","Kevin","Nolan","Stereo","South",1711.66]
[null,null,null,null,null,"Joan Wright","Joan","Wright","Sofa","South",1539.44]
[null,null,null,null,null,"Ian Welch","Ian","Welch","Stereo","South",1777.18]
[null,null,null,null,null,"Heather Reid","Heather","Reid","Sofa","North",1248.6600000000001]
[null,null,null,null,null,"Simon Allan","Simon","Allan","Stereo","West",1313.48]
[null,null,null,null,null,"Faith Ince","Faith","Ince","Sofa","South",1668.79]
[null,null,null,null,null,"Tim Clarkson","Tim","Clarkson","TV","East",1078.44]
[null,null,null,null,null,"Owen Coleman","Owen","Coleman","Phone","West",1391.86]
[null,null,null,null,null,"Matt Kerr","Matt","Kerr","Laptop","East",1515.63]
[null,null,null,null,null,"Natalie Gray","Natalie","Gray","Phone","North",1437.6]
[null,null,null,null,null,"Joshua MacLeod","Joshua","MacLeod","Stereo","North",1244.45]
[null,null,null,null,null,"Tim Howard","Tim","Howard","Laptop","West",1870.93]
[null,null,null,null,null,"Liam Wright","Liam","Wright","Phone","West",1711.42]
[null,null,null,null,null,"Wendy Chapman","Wendy","Chapman","Phone","North",1416.8]
[null,null,null,null,null,"Nicola North","Nicola","North","Laptop","East",1892.38]
[null,null,null,null,null,"Karen Forsyth","Karen","Forsyth","Sofa","South",1984.12]
[null,null,null,null,null,"Grace Kelly","Grace","Kelly","Laptop","South",1057.55]
[null,null,null,null,null,"Joseph Hodges","Joseph","Hodges","Laptop","North",1119.8]
[null,null,null,null,null,"Carl Lambert","Carl","Lambert","Laptop","West",1821.5]
[null,null,null,null,null,"Jacob Tucker","Jacob","Tucker","Phone","West",1113.56]
[null,null,null,null,null,"David Young","David","Young","Sofa","North",1716.07]
[null,null,null,null,null,"Dorothy Martin","Dorothy","Martin","Sofa","South",1299.0999999999999]
[null,null,null,null,null,"Matt Marshall","Matt","Marshall","Stereo","East",1969.21]
[null,null,null,null,null,"Donna Skinner","Donna","Skinner","Laptop","North",1817.73]
[null,null,null,null,null,"Dylan Graham","Dylan","Graham","Phone","East",1852.56]
[null,null,null,null,null,"Ian Smith","Ian","Smith","Stereo","South",1662.07]
[null,null,null,null,null,"Liam Harris","Liam","Harris","Laptop","South",1002.05]
[null,null,null,null,null,"Maria Gill","Maria","Gill","Stereo","East",1370.56]
[null,null,null,null,null,"Penelope Oliver","Penelope","Oliver","Stereo","West",1039.68]
[null,null,null,null,null,"Sebastian Vaughan","Sebastian","Vaughan","Sofa","North",1317.77]
[null,null,null,null,null,"Kevin Dyer","Kevin","Dyer","Stereo","West",1382.51]
[null,null,null,null,null,"Jake Vance","Jake","Vance","Phone","South",1320.34]
[null,null,null,null,null,"Rose Ogden","Rose","Ogden","Sofa","West",1911.55]
[null,null,null,null,null,"Deirdre Fraser","Deirdre","Fraser","TV","East",1905.89]
[null,null,null,null,null,"Wanda Gill","Wanda","Gill","Sofa","North",1116.27]
[null,null,null,null,null,"Alan Berry","Alan","Berry","Stereo","East",1812.02]
[null,null,null,null,null,"Wendy Mackenzie","Wendy","Mackenzie","Laptop","North",1429.93]
[null,null,null,null,null,"Kylie Reid","Kylie","Reid","Laptop","North",1692.37]
[null,null,null,null,null,"Anne Parr","Anne","Parr","Phone","East",1914.78]
[null,null,null,null,null,"Lauren Taylor","Lauren","Taylor","Stereo","South",1647.16]
[null,null,null,null,null,"Alexandra Campbell","Alexandra","Campbell","Sofa","North",1823.75]
[null,null,null,null,null,"Rebecca Stewart","Rebecca","Stewart","Sofa","West",1357.96]
[null,null,null,null,null,"Blake Howard","Blake","Howard","Phone","South",1544.41]
[null,null,null,null,null,"Eric Skinner","Eric","Skinner","TV","West",1033.44]
[null,null,null,null,null,"Austin Glover","Austin","Glover","Phone","East",1621.77]
[null,null,null,null,null,"Una Watson","Una","Watson","Phone","West",1580.48]
[null,null,null,null,null,"Julia Simpson","Julia","Simpson","Sofa","East",1696.02]
[null,null,null,null,null,"Boris Terry","Boris","Terry","Stereo","West",1383.9]
[null,null,null,null,null,"Natalie Vaughan","Natalie","Vaughan","Sofa","West",1759.39]
[null,null,null,null,null,"Ava Payne","Ava","Payne","TV","East",1220.94]
[null,null,null,null,null,"Jacob Abraham","Jacob","Abraham","TV","South",1229.3]
[null,null,null,null,null,"Brandon Stewart","Brandon","Stewart","Laptop","East",1524.4]
[null,null,null,null,null,"Virginia Smith","Virginia","Smith","Stereo","South",1742.62]
[null,null,null,null,null,"Bella Metcalfe","Bella","Metcalfe","Laptop","South",1199.74]
[null,null,null,null,null,"Richard Martin","Richard","Martin","Laptop","West",1170.92]
[null,null,null,null,null,"Sarah Davies","Sarah","Davies","Sofa","West",1993.4]
[null,null,null,null,null,"Sean Manning","Sean","Manning","Stereo","East",1881.23]
[null,null,null,null,null,"Rebecca Pullman","Rebecca","Pullman","Stereo","East",1648.92]
[null,null,null,null,null,"Wendy Greene","Wendy","Greene","Stereo","South",1535.25]
[null,null,null,null,null,"Caroline Roberts","Caroline","Roberts","Laptop","North",1414.21]
[null,null,null,null,null,"Andrea Duncan","Andrea","Duncan","Sofa","East",1635.25]
[null,null,null,null,null,"Sean Walsh","Sean","Walsh","Sofa","North",1429.32]
[null,null,null,null,null,"James Cameron","James","Cameron","TV","South",1287.0899999999999]
[null,null,null,null,null,"Charles Churchill","Charles","Churchill","Phone","North",1874.48]
[null,null,null,null,null,"Richard Hardacre","Richard","Hardacre","Stereo","North",1311.71]
[null,null,null,null,null,"Emily Wilkins","Emily","Wilkins","Stereo","North",1192.2]
[null,null,null,null,null,"Alexandra Peters","Alexandra","Peters","Stereo","West",1433.55]
[null,null,null,null,null,"Alan Randall","Alan","Randall","Phone","West",1857.29]
[null,null,null,null,null,"Andrea Vance","Andrea","Vance","TV","West",1832.09]
[null,null,null,null,null,"Virginia Langdon","Virginia","Langdon","TV","South",1991.2]
[null,null,null,null,null,"Michelle Jackson","Michelle","Jackson","Stereo","West",1555.31]
[null,null,null,null,null,"Anna Howard","Anna","Howard","TV","West",1803.48]
[null,null,null,null,null,"Samantha Parsons","Samantha","Parsons","Laptop","West",1898.45]
[null,null,null,null,null,"Gabrielle Stewart","Gabrielle","Stewart","Laptop","West",1828.84]
[null,null,null,null,null,"Elizabeth Paige","Elizabeth","Paige","Laptop","North",1886.53]
[null,null,null,null,null,"Andrea Lambert","Andrea","Lambert","TV","East",1601.65]
[null,null,null,null,null,"Bella Sutherland","Bella","Sutherland","Stereo","East",1374.2]
[null,null,null,null,null,"Simon Harris","Simon","Harris","Stereo","South",1070.1400000000001]
[null,null,null,null,null,"Paul McDonald","Paul","McDonald","Laptop","South",1121.9100000000001]
[null,null,null,null,null,"Katherine Duncan","Katherine","Duncan","Stereo","East",1231.94]
[null,null,null,null,null,"Matt Gill","Matt","Gill","Sofa","North",1763.29]
[null,null,null,null,null,"Owen Young","Owen","Young","Phone","South",1517.23]
[null,null,null,null,null,"Donna Sharp","Donna","Sharp","Laptop","West",1710.34]
[null,null,null,null,null,"Rebecca Fraser","Rebecca","Fraser","TV","South",1223.3]
[null,null,null,null,null,"Anna Watson","Anna","Watson","Laptop","West",1811.04]
[null,null,null,null,null,"Richard Rutherford","Richard","Rutherford","Laptop","North",1319.79]
[null,null,null,null,null,"Virginia May","Virginia","May","Laptop","East",1368.26]
[null,null,null,null,null,"Melanie Poole","Melanie","Poole","Phone","South",1102.1099999999999]
[null,null,null,null,null,"Dylan Wallace","Dylan","Wallace","Laptop","South",1136.0899999999999]
[null,null,null,null,null,"Abigail Parr","Abigail","Parr","Phone","West",1833.74]
[null,null,null,null,null,"Ryan McLean","Ryan","McLean","TV","North",1711.74]
[null,null,null,null,null,"Oliver Lee","Oliver","Lee","Laptop","South",1797.03]
[null,null,null,null,null,"Alison Graham","Alison","Graham","Stereo","East",1696.09]
[null,null,null,null,null,"Anne Vance","Anne","Vance","Sofa","East",1667.14]
[null,null,null,null,null,"Stewart Abraham","Stewart","Abraham","Phone","South",1739.36]
[null,null,null,null,null,"Jessica Quinn","Jessica","Quinn","Laptop","West",1828.48]
[null,null,null,null,null,"Julia Forsyth","Julia","Forsyth","Sofa","East",1788.4]
[null,null,null,null,null,"Max Vance","Max","Vance","Sofa","West",1644.77]
[null,null,null,null,null,"Penelope Clark","Penelope","Clark","Sofa","South",1195.68]
[null,null,null,null,null,"Anne Springer","Anne","Springer","TV","South",1393.48]
[null,null,null,null,null,"Rebecca Ross","Rebecca","Ross","Stereo","East",1823.62]
[null,null,null,null,null,"Diana Baker","Diana","Baker","Laptop","East",1458.63]
[null,null,null,null,null,"Tracey Oliver","Tracey","Oliver","Sofa","North",1094.5899999999999]
[null,null,null,null,null,"Dylan Harris","Dylan","Harris","Stereo","South",1477.06]
[null,null,null,null,null,"Kylie Grant","Kylie","Grant","Stereo","West",1991.99]
[null,null,null,null,null,"Tim Short","Tim","Short","Laptop","South",1627.75]
[null,null,null,null,null,"Andrea Rampling","Andrea","Rampling","TV","North",1271.22]
[null,null,null,null,null,"Dylan Butler","Dylan","Butler","Phone","North",1307.75]
[null,null,null,null,null,"Faith Mitchell","Faith","Mitchell","TV","West",1713.31]
[null,null,null,null,null,"Blake Hodges","Blake","Hodges","Sofa","West",1395.46]
[null,null,null,null,null,"Charles Walker","Charles","Walker","TV","West",1522.82]
[null,null,null,null,null,"Felicity Edmunds","Felicity","Edmunds","TV","West",1071.3399999999999]
[null,null,null,null,null,"Leonard Coleman","Leonard","Coleman","TV","South",1144.6199999999999]
[null,null,null,null,null,"Frank Bailey","Frank","Bailey","Stereo","West",1966.62]
[null,null,null,null,null,"Rachel Slater","Rachel","Slater","Phone","East",1123.42]
[null,null,null,null,null,"Donna King","Donna","King","TV","North",1924.69]
[null,null,null,null,null,"Jacob North","Jacob","North","Stereo","West",1349.8]
[null,null,null,null,null,"Melanie Ince","Melanie","Ince","Laptop","North",1675.69]
[null,null,null,null,null,"Max Henderson","Max","Henderson","Phone","South",1626.08]
[null,null,null,null,null,"David Johnston","David","Johnston","Sofa","North",1850.24]
[null,null,null,null,null,"Dylan Mackenzie","Dylan","Mackenzie","Phone","East",1988.85]
[null,null,null,null,null,"Audrey Hardacre","Audrey","Hardacre","Laptop","North",1801.41]
[null,null,null,null,null,"Abigail Terry","Abigail","Terry","Laptop","East",1501.87]
[null,null,null,null,null,"Brian Walsh","Brian","Walsh","Phone","East",1366.57]
[null,null,null,null,null,"Adrian Butler","Adrian","Butler","TV","North",1573.53]
[null,null,null,null,null,"Hannah Lewis","Hannah","Lewis","Laptop","East",1164.78]
[null,null,null,null,null,"Emily Brown","Emily","Brown","TV","East",1005.44]
[null,null,null,null,null,"Keith Martin","Keith","Martin","Phone","North",1549.54]
[null,null,null,null,null,"Zoe Rees","Zoe","Rees","Stereo","East",1167.4100000000001]
[null,null,null,null,null,"Michelle Black","Michelle","Black","Laptop","North",1486.12]
[null,null,null,null,null,"Chloe Hart","Chloe","Hart","TV","North",1492.05]
[null,null,null,null,null,"Zoe Reid","Zoe","Reid","Sofa","West",1701.41]
[null,null,null,null,null,"Emily Bond","Emily","Bond","TV","North",1973.92]
[null,null,null,null,null,"Joanne Marshall","Joanne","Marshall","Sofa","North",1109.46]
[null,null,null,null,null,"Jessica Gray","Jessica","Gray","Laptop","East",1697.96]
[null,null,null,null,null,"Lucas Langdon","Lucas","Langdon","Laptop","East",1681.46]
[null,null,null,null,null,"Jake White","Jake","White","TV","North",1432.4]
[null,null,null,null,null,"Victoria Stewart","Victoria","Stewart","Laptop","South",1960.58]
[null,null,null,null,null,"Penelope Cameron","Penelope","Cameron","Sofa","West",1374.94]
[null,null,null,null,null,"Jessica Hardacre","Jessica","Hardacre","TV","West",1997.14]
[null,null,null,null,null,"Gavin May","Gavin","May","Phone","North",1101.73]
[null,null,null,null,null,"Julia Nash","Julia","Nash","Laptop","West",1488.14]
[null,null,null,null,null,"Phil Springer","Phil","Springer","Phone","North",1197.4100000000001]
[null,null,null,null,null,"Natalie Cornish","Natalie","Cornish","TV","South",1618.32]
[null,null,null,null,null,"Mary Rutherford","Mary","Rutherford","Laptop","South",1236.5999999999999]
[null,null,null,null,null,"Olivia Bailey","Olivia","Bailey","Laptop","South",1449.17]
[null,null,null,null,null,"Kimberly MacDonald","Kimberly","MacDonald","Stereo","North",1910.02]
[null,null,null,null,null,"Joshua Mathis","Joshua","Mathis","Sofa","East",1409.26]
[null,null,null,null,null,"Jason Rutherford","Jason","Rutherford","Sofa","North",1840.98]
[null,null,null,null,null,"Christopher Grant","Christopher","Grant","Laptop","West",1475.64]
[null,null,null,null,null,"Colin Welch","Colin","Welch","TV","South",1154.3800000000001]
[null,null,null,null,null,"Theresa Wilson","Theresa","Wilson","Phone","North",1917.03]
[null,null,null,null,null,"Michael Jackson","Michael","Jackson","TV","West",1145.46]
[null,null,null,null,null,"Andrew Brown","Andrew","Brown","TV","South",1817.18]
[null,null,null,null,null,"Kimberly Greene","Kimberly","Greene","Sofa","South",1423.12]
[null,null,null,null,null,"James Skinner","James","Skinner","Phone","East",1840.58]
[null,null,null,null,null,"Ella Brown","Ella","Brown","Stereo","North",1506.59]
[null,null,null,null,null,"Harry Lawrence","Harry","Lawrence","Sofa","East",1062.51]
[null,null,null,null,null,"Dylan Gibson","Dylan","Gibson","Stereo","South",1817.36]
[null,null,null,null,null,"Simon Butler","Simon","Butler","Phone","East",1860.28]
[null,null,null,null,null,"Cameron Black","Cameron","Black","Sofa","South",1766.64]
[null,null,null,null,null,"Elizabeth Reid","Elizabeth","Reid","Sofa","South",1265.3399999999999]
[null,null,null,null,null,"Boris Walker","Boris","Walker","Sofa","North",1898.53]
[null,null,null,null,null,"Diane Peters","Diane","Peters","Stereo","East",1986.99]
[null,null,null,null,null,"Sarah Newman","Sarah","Newman","Sofa","South",1099.49]
[null,null,null,null,null,"Sue Alsop","Sue","Alsop","Stereo","North",1703.56]
[null,null,null,null,null,"Mary Quinn","Mary","Quinn","Sofa","North",1844.01]
[null,null,null,null,null,"Sebastian Peters","Sebastian","Peters","TV","North",1973.82]
[null,null,null,null,null,"Ruth Quinn","Ruth","Quinn","Stereo","North",1182.6500000000001]
[null,null,null,null,null,"Molly King","Molly","King","Stereo","South",1059.05]
[null,null,null,null,null,"Matt Rampling","Matt","Rampling","Stereo","East",1306.07]
[null,null,null,null,null,"Carolyn Dowd","Carolyn","Dowd","Stereo","East",1493.78]
[null,null,null,null,null,"Simon Walsh","Simon","Walsh","Sofa","North",1436.25]
[null,null,null,null,null,"Connor Fraser","Connor","Fraser","Laptop","South",1800.25]
[null,null,null,null,null,"Nathan Black","Nathan","Black","Stereo","South",1199.1600000000001]
[null,null,null,null,null,"Benjamin Chapman","Benjamin","Chapman","Laptop","West",1703.79]
[null,null,null,null,null,"Tracey Langdon","Tracey","Langdon","Stereo","West",1446.2]
[null,null,null,null,null,"Stewart Quinn","Stewart","Quinn","Laptop","East",1341.24]
[null,null,null,null,null,"Simon Oliver","Simon","Oliver","Laptop","South",1157.79]
[null,null,null,null,null,"Felicity Mackay","Felicity","Mackay","Laptop","North",1400.57]
[null,null,null,null,null,"Lily Mackenzie","Lily","Mackenzie","Laptop","West",1409.84]
[null,null,null,null,null,"Blake Lewis","Blake","Lewis","Phone","West",1784.69]
[null,null,null,null,null,"Warren Ferguson","Warren","Ferguson","TV","South",1738.52]
[null,null,null,null,null,"Emily Peters","Emily","Peters","Sofa","North",1103.4100000000001]
[null,null,null,null,null,"Robert Welch","Robert","Welch","Sofa","West",1651.14]
[null,null,null,null,null,"Karen Wright","Karen","Wright","Sofa","West",1327.78]
[null,null,null,null,null,"Leonard Mills","Leonard","Mills","Stereo","East",1488.38]
[null,null,null,null,null,"Abigail Hardacre","Abigail","Hardacre","Stereo","South",1402.47]
[null,null,null,null,null,"Tim Clark","Tim","Clark","Laptop","East",1189.29]
[null,null,null,null,null,"Sally Johnston","Sally","Johnston","Phone","South",1797.64]
[null,null,null,null,null,"Robert Wilson","Robert","Wilson","Phone","North",1321.34]
[null,null,null,null,null,"Dominic Welch","Dominic","Welch","Stereo","East",1065.08]
[null,null,null,null,null,"Jonathan Blake","Jonathan","Blake","Stereo","North",1657.85]
[null,null,null,null,null,"Jane Payne","Jane","Payne","Phone","West",1126.3599999999999]
[null,null,null,null,null,"Wendy White","Wendy","White","TV","North",1737.03]
[null,null,null,null,null,"Dominic Langdon","Dominic","Langdon","Laptop","South",1661.5]
[null,null,null,null,null,"Claire Nolan","Claire","Nolan","Stereo","South",1162.31]
[null,null,null,null,null,"Phil Rampling","Phil","Rampling","TV","South",1599.4]
[null,null,null,null,null,"Neil Gray","Neil","Gray","Phone","West",1481.92]
[null,null,null,null,null,"Donna Hamilton","Donna","Hamilton","Laptop","East",1728.72]
[null,null,null,null,null,"Zoe Hamilton","Zoe","Hamilton","TV","South",1387.46]
[null,null,null,null,null,"Joe Bond","Joe","Bond","TV","West",1242.29]
[null,null,null,null,null,"Charles Ellison","Charles","Ellison","Sofa","South",1605.25]
[null,null,null,null,null,"John Hamilton","John","Hamilton","TV","West",1736.08]
[null,null,null,null,null,"Julian Ball","Julian","Ball","Sofa","North",1388.01]
[null,null,null,null,null,"Benjamin Morgan","Benjamin","Morgan","Laptop","North",1465.86]
[null,null,null,null,null,"Ruth White","Ruth","White","TV","South",1686.28]
[null,null,null,null,null,"Lauren Mackenzie","Lauren","Mackenzie","Phone","West",1354.08]
[null,null,null,null,null,"Theresa Gray","Theresa","Gray","Sofa","East",1627.14]
[null,null,null,null,null,"Theresa Morgan","Theresa","Morgan","Phone","North",1028.76]
[null,null,null,null,null,"Samantha Howard","Samantha","Howard","Phone","North",1827.44]
[null,null,null,null,null,"Rebecca Hemmings","Rebecca","Hemmings","TV","East",1885.04]
[null,null,null,null,null,"Anna Duncan","Anna","Duncan","Laptop","South",1434.48]
[null,null,null,null,null,"Alexandra Morgan","Alexandra","Morgan","Phone","East",1438.13]
[null,null,null,null,null,"Anna Lawrence","Anna","Lawrence","Sofa","North",1702.01]
[null,null,null,null,null,"Emily Lawrence","Emily","Lawrence","Phone","South",1185.1500000000001]
[null,null,null,null,null,"Gabrielle Forsyth","Gabrielle","Forsyth","TV","North",1359.53]
[null,null,null,null,null,"Fiona Hodges","Fiona","Hodges","TV","South",1215.5999999999999]
[null,null,null,null,null,"Kevin Nash","Kevin","Nash","TV","West",1658.13]
[null,null,null,null,null,"Carl Slater","Carl","Slater","Laptop","North",1733.42]
[null,null,null,null,null,"Brandon Hemmings","Brandon","Hemmings","Phone","South",1103.8699999999999]
[null,null,null,null,null,"Connor Wilkins","Connor","Wilkins","Laptop","East",1635.5]
[null,null,null,null,null,"Rachel Hill","Rachel","Hill","Laptop","East",1440.52]
[null,null,null,null,null,"Zoe Churchill","Zoe","Churchill","Stereo","North",1646.36]
[null,null,null,null,null,"Sally Mitchell","Sally","Mitchell","Sofa","West",1644.55]
[null,null,null,null,null,"Joanne Bond","Joanne","Bond","Sofa","East",1522.27]
[null,null,null,null,null,"Isaac Rutherford","Isaac","Rutherford","TV","South",1402.39]
[null,null,null,null,null,"Sue Baker","Sue","Baker","TV","East",1744.14]
[null,null,null,null,null,"Thomas Chapman","Thomas","Chapman","Stereo","West",1465.93]
[null,null,null,null,null,"Lisa Lambert","Lisa","Lambert","Laptop","East",1254.07]
[null,null,null,null,null,"Chloe Alsop","Chloe","Alsop","Phone","West",1302.17]
[null,null,null,null,null,"Elizabeth Campbell","Elizabeth","Campbell","Phone","West",1413.66]
[null,null,null,null,null,"Leah Ross","Leah","Ross","Phone","East",1993.07]
[null,null,null,null,null,"Theresa Peake","Theresa","Peake","Sofa","East",1490.05]
[null,null,null,null,null,"Pippa Bower","Pippa","Bower","Stereo","North",1179.8]
[null,null,null,null,null,"Evan Vaughan","Evan","Vaughan","Sofa","North",1504.68]
[null,null,null,null,null,"Justin Ball","Justin","Ball","Sofa","South",1155.72]
[null,null,null,null,null,"Blake White","Blake","White","Stereo","East",1688.17]
[null,null,null,null,null,"Deirdre Hamilton","Deirdre","Hamilton","Sofa","North",1306.75]
[null,null,null,null,null,"Simon Peters","Simon","Peters","TV","East",1430.76]
[null,null,null,null,null,"Ryan Burgess","Ryan","Burgess","TV","East",1462.12]
[null,null,null,null,null,"Andrea Peake","Andrea","Peake","Phone","North",1244.0899999999999]
[null,null,null,null,null,"Sean McLean","Sean","McLean","Sofa","East",1452.38]
[null,null,null,null,null,"Peter Johnston","Peter","Johnston","Phone","North",1370.8]
[null,null,null,null,null,"Cameron Smith","Cameron","Smith","Sofa","East",1215.2]
[null,null,null,null,null,"Leah Piper","Leah","Piper","TV","West",1914.72]
[null,null,null,null,null,"Stephanie Jackson","Stephanie","Jackson","Phone","East",1670.45]
[null,null,null,null,null,"Dan Berry","Dan","Berry","Stereo","North",1320.29]
[null,null,null,null,null,"Jason Sanderson","Jason","Sanderson","Stereo","East",1731.59]
[null,null,null,null,null,"Matt Peake","Matt","Peake","Stereo","West",1278]
[null,null,null,null,null,"Anne Miller","Anne","Miller","Stereo","East",1823.65]
[null,null,null,null,null,"Wendy Russell","Wendy","Russell","TV","North",1590.26]
[null,null,null,null,null,"Madeleine Rampling","Madeleine","Rampling","Stereo","East",1859.42]
[null,null,null,null,null,"Felicity Rutherford","Felicity","Rutherford","Laptop","North",1227.32]
[null,null,null,null,null,"Caroline Arnold","Caroline","Arnold","Phone","East",1669.96]
[null,null,null,null,null,"Dan Nash","Dan","Nash","Sofa","West",1450.84]
[null,null,null,null,null,"Samantha Ellison","Samantha","Ellison","Stereo","East",1523.58]
[null,null,null,null,null,"Kimberly Skinner","Kimberly","Skinner","Laptop","South",1004.92]
[null,null,null,null,null,"Victoria Underwood","Victoria","Underwood","Phone","South",1935.92]
[null,null,null,null,null,"Yvonne Hamilton","Yvonne","Hamilton","Sofa","South",1782]
[null,null,null,null,null,"Rose Parsons","Rose","Parsons","Stereo","South",1427.34]
[null,null,null,null,null,"Fiona Alsop","Fiona","Alsop","Phone","East",1770.38]
[null,null,null,null,null,"Edward Rees","Edward","Rees","Laptop","West",1944.12]
[null,null,null,null,null,"Anthony White","Anthony","White","TV","North",1371.54]
[null,null,null,null,null,"Julian Piper","Julian","Piper","Stereo","East",1164.94]
[null,null,null,null,null,"Nicola Metcalfe","Nicola","Metcalfe","Laptop","South",1287.57]
[null,null,null,null,null,"Maria Fisher","Maria","Fisher","TV","West",1083.9000000000001]
[null,null,null,null,null,"Angela Russell","Angela","Russell","Laptop","North",1746.6]
[null,null,null,null,null,"Alan Paige","Alan","Paige","TV","East",1771.42]
[null,null,null,null,null,"Kevin Roberts","Kevin","Roberts","Phone","North",1625.99]
[null,null,null,null,null,"James Hodges","James","Hodges","Phone","West",1519.97]
[null,null,null,null,null,"Amy Clark","Amy","Clark","Sofa","East",1613.2]
[null,null,null,null,null,"Stephanie Hardacre","Stephanie","Hardacre","Stereo","North",1504.8]
[null,null,null,null,null,"Jan Abraham","Jan","Abraham","TV","South",1183.5]
[null,null,null,null,null,"Ella Powell","Ella","Powell","TV","South",1702.92]
[null,null,null,null,null,"Matt Walker","Matt","Walker","Stereo","East",1632]
[null,null,null,null,null,"Ian Taylor","Ian","Taylor","TV","North",1822.24]
[null,null,null,null,null,"Victor Forsyth","Victor","Forsyth","Sofa","West",1035.8499999999999]
[null,null,null,null,null,"Trevor Edmunds","Trevor","Edmunds","Phone","East",1199.94]
[null,null,null,null,null,"James Welch","James","Welch","Phone","North",1819.27]
[null,null,null,null,null,"Yvonne Cornish","Yvonne","Cornish","Stereo","North",1007.5]
[null,null,null,null,null,"Carol Robertson","Carol","Robertson","Stereo","West",1596.14]
[null,null,null,null,null,"Ryan Sutherland","Ryan","Sutherland","Laptop","South",1188.76]
[null,null,null,null,null,"Mary Turner","Mary","Turner","Laptop","North",1948.72]
[null,null,null,null,null,"Leah Ellison","Leah","Ellison","TV","South",1551.4]
[null,null,null,null,null,"Jasmine Wilson","Jasmine","Wilson","Phone","East",1002.51]
[null,null,null,null,null,"Michael Tucker","Michael","Tucker","Laptop","West",1539.19]
[null,null,null,null,null,"Sean Greene","Sean","Greene","Sofa","North",1049.04]
[null,null,null,null,null,"Julia Turner","Julia","Turner","TV","East",1962.34]
[null,null,null,null,null,"Chloe North","Chloe","North","Sofa","East",1406.62]
[null,null,null,null,null,"Jennifer Butler","Jennifer","Butler","Sofa","West",1297.3399999999999]
[null,null,null,null,null,"Colin Slater","Colin","Slater","Sofa","East",1139.1600000000001]
[null,null,null,null,null,"Joseph Vaughan","Joseph","Vaughan","Laptop","South",1200.95]
[null,null,null,null,null,"John Grant","John","Grant","Stereo","South",1617.18]
[null,null,null,null,null,"Lillian McDonald","Lillian","McDonald","Laptop","South",1853.95]
[null,null,null,null,null,"Sally Terry","Sally","Terry","Sofa","East",1666.94]
[null,null,null,null,null,"Andrew Cameron","Andrew","Cameron","Stereo","South",1922.72]
[null,null,null,null,null,"Anthony Vance","Anthony","Vance","Laptop","East",1654.04]
[null,null,null,null,null,"David Gill","David","Gill","Sofa","West",1702.01]
[null,null,null,null,null,"Bernadette Hamilton","Bernadette","Hamilton","Laptop","North",1167.76]
[null,null,null,null,null,"Sam Underwood","Sam","Underwood","Stereo","South",1029.47]
[null,null,null,null,null,"Lillian Sutherland","Lillian","Sutherland","Sofa","North",1090.58]
[null,null,null,null,null,"Colin MacLeod","Colin","MacLeod","Stereo","East",1770.86]
[null,null,null,null,null,"Chloe May","Chloe","May","TV","South",1081.75]
[null,null,null,null,null,"Melanie Abraham","Melanie","Abraham","Laptop","East",1503.75]
[null,null,null,null,null,"Andrea Anderson","Andrea","Anderson","TV","East",1111.0999999999999]
[null,null,null,null,null,"Madeleine Bailey","Madeleine","Bailey","Sofa","West",1814.94]
[null,null,null,null,null,"Frank Smith","Frank","Smith","Stereo","East",1525.88]
[null,null,null,null,null,"Hannah James","Hannah","James","Laptop","West",1443.72]
[null,null,null,null,null,"Nicola Dowd","Nicola","Dowd","Stereo","North",1505.52]
[null,null,null,null,null,"Christopher Rampling","Christopher","Rampling","TV","East",1121.97]
[null,null,null,null,null,"Ryan Stewart","Ryan","Stewart","Laptop","North",1270.99]
[null,null,null,null,null,"Evan Payne","Evan","Payne","Stereo","North",1065.6500000000001]
[null,null,null,null,null,"Phil Turner","Phil","Turner","Sofa","East",1778.3]
[null,null,null,null,null,"Peter Mackenzie","Peter","Mackenzie","TV","West",1825.67]
[null,null,null,null,null,"Fiona Kelly","Fiona","Kelly","Laptop","South",1512.04]
[null,null,null,null,null,"Natalie Johnston","Natalie","Johnston","Sofa","North",1403.12]
[null,null,null,null,null,"Stephen Campbell","Stephen","Campbell","Sofa","West",1728.04]
[null,null,null,null,null,"Owen Hart","Owen","Hart","Sofa","North",1290.75]
[null,null,null,null,null,"Stephen Morrison","Stephen","Morrison","TV","North",1217.93]
[null,null,null,null,null,"Joanne Thomson","Joanne","Thomson","TV","East",1761.18]
[null,null,null,null,null,"Karen North","Karen","North","Laptop","South",1878.18]
[null,null,null,null,null,"Deirdre Parr","Deirdre","Parr","Phone","North",1500.12]
[null,null,null,null,null,"Caroline Gill","Caroline","Gill","TV","East",1464.77]
[null,null,null,null,null,"Emma Carr","Emma","Carr","Sofa","South",1808.96]
[null,null,null,null,null,"Amanda Mackenzie","Amanda","Mackenzie","Stereo","North",1616.94]
[null,null,null,null,null,"Dan Fisher","Dan","Fisher","Laptop","South",1505.4]
[null,null,null,null,null,"Dylan Clark","Dylan","Clark","Stereo","North",1933.7]
[null,null,null,null,null,"Stephanie Hunter","Stephanie","Hunter","Sofa","North",1847.03]
[null,null,null,null,null,"Jessica Ince","Jessica","Ince","TV","North",1843.67]
[null,null,null,null,null,"Deirdre Edmunds","Deirdre","Edmunds","TV","East",1630.17]
[null,null,null,null,null,"Grace Ellison","Grace","Ellison","TV","East",1942.77]
[null,null,null,null,null,"Anne Powell","Anne","Powell","Sofa","East",1467.39]
[null,null,null,null,null,"William Lawrence","William","Lawrence","Stereo","North",1660.59]
[null,null,null,null,null,"Jacob Brown","Jacob","Brown","Sofa","North",1449.3]
[null,null,null,null,null,"Connor Glover","Connor","Glover","Sofa","West",1803.32]
[null,null,null,null,null,"Yvonne Kerr","Yvonne","Kerr","Laptop","North",1913.3]
[null,null,null,null,null,"Una McLean","Una","McLean","Stereo","South",1004.34]
[null,null,null,null,null,"Lauren Greene","Lauren","Greene","Sofa","West",1462.7]
[null,null,null,null,null,"Lillian Dickens","Lillian","Dickens","Phone","East",1376]
[null,null,null,null,null,"Olivia Vaughan","Olivia","Vaughan","Phone","East",1285.4100000000001]
[null,null,null,null,null,"Sebastian North","Sebastian","North","Sofa","West",1987.93]
[null,null,null,null,null,"Charles Forsyth","Charles","Forsyth","Laptop","East",1240.24]
[null,null,null,null,null,"Victor Churchill","Victor","Churchill","Sofa","West",1464.22]
[null,null,null,null,null,"Nicholas Cornish","Nicholas","Cornish","TV","East",1813.8]
[null,null,null,null,null,"Adrian Graham","Adrian","Graham","Phone","South",1083.48]
[null,null,null,null,null,"Sophie Carr","Sophie","Carr","Phone","East",1629.47]
[null,null,null,null,null,"Emily Parsons","Emily","Parsons","Stereo","West",1979.46]
[null,null,null,null,null,"Gordon Blake","Gordon","Blake","Phone","North",1814.09]
[null,null,null,null,null,"Irene MacLeod","Irene","MacLeod","Laptop","North",1650.33]
[null,null,null,null,null,"Tim Lawrence","Tim","Lawrence","Phone","West",1768.68]
[null,null,null,null,null,"Alan Turner","Alan","Turner","Phone","West",1629.81]
[null,null,null,null,null,"Anne Duncan","Anne","Duncan","TV","West",1996.85]
[null,null,null,null,null,"Wendy McGrath","Wendy","McGrath","Stereo","West",1443.53]
[null,null,null,null,null,"Tracey Baker","Tracey","Baker","Stereo","East",1511.12]
[null,null,null,null,null,"David Tucker","David","Tucker","Laptop","East",1650.66]
[null,null,null,null,null,"Angela Lewis","Angela","Lewis","Phone","North",1980.31]
[null,null,null,null,null,"Victor Knox","Victor","Knox","Laptop","North",1818.17]
[null,null,null,null,null,"Irene Smith","Irene","Smith","Sofa","East",1178.07]
[null,null,null,null,null,"Anne Newman","Anne","Newman","Sofa","East",1197.7]
[null,null,null,null,null,"Mary Gill","Mary","Gill","Laptop","South",1875.15]
[null,null,null,null,null,"Rebecca Bell","Rebecca","Bell","Sofa","South",1988.83]
[null,null,null,null,null,"Elizabeth North","Elizabeth","North","Phone","North",1104.3900000000001]
[null,null,null,null,null,"Una Davies","Una","Davies","Stereo","South",1516.04]
[null,null,null,null,null,"Ella Underwood","Ella","Underwood","Stereo","East",1283.8699999999999]
[null,null,null,null,null,"Diana Mackenzie","Diana","Mackenzie","Stereo","West",1310.1600000000001]
[null,null,null,null,null,"Theresa Morrison","Theresa","Morrison","TV","North",1500.72]
[null,null,null,null,null,"Edward Watson","Edward","Watson","Phone","South",1684.32]
[null,null,null,null,null,"Owen Hardacre","Owen","Hardacre","Laptop","West",1581.85]
[null,null,null,null,null,"Michael Randall","Michael","Randall","TV","East",1711.9]
[null,null,null,null,null,"Zoe Scott","Zoe","Scott","Laptop","North",1258.73]
[null,null,null,null,null,"Samantha Morgan","Samantha","Morgan","Phone","East",1493.63]
[null,null,null,null,null,"Sebastian Alsop","Sebastian","Alsop","TV","North",1892.69]
[null,null,null,null,null,"Stewart Underwood","Stewart","Underwood","Stereo","South",1578.35]
[null,null,null,null,null,"Rachel Clark","Rachel","Clark","Phone","East",1664.14]
[null,null,null,null,null,"Pippa Newman","Pippa","Newman","Stereo","North",1863.73]
[null,null,null,null,null,"Alan Paterson","Alan","Paterson","Sofa","East",1254.29]
[null,null,null,null,null,"Natalie Sanderson","Natalie","Sanderson","Sofa","South",1341.3]
[null,null,null,null,null,"Anna Parsons","Anna","Parsons","Sofa","South",1954.7]
[null,null,null,null,null,"Alexandra Walsh","Alexandra","Walsh","Sofa","North",1869.87]
[null,null,null,null,null,"Harry Brown","Harry","Brown","Phone","West",1314.48]
[null,null,null,null,null,"Dorothy Rampling","Dorothy","Rampling","TV","South",1500.69]
[null,null,null,null,null,"Bernadette Welch","Bernadette","Welch","Laptop","North",1304.05]
[null,null,null,null,null,"Jennifer Simpson","Jennifer","Simpson","Phone","East",1774.14]
[null,null,null,null,null,"Leah Cornish","Leah","Cornish","Phone","West",1984.19]
[null,null,null,null,null,"Diana Miller","Diana","Miller","Sofa","West",1008.39]
[null,null,null,null,null,"Audrey Tucker","Audrey","Tucker","Laptop","East",1998.83]
[null,null,null,null,null,"Harry Payne","Harry","Payne","Sofa","South",1901.03]
[null,null,null,null,null,"Alison Pullman","Alison","Pullman","Laptop","North",1726.92]
[null,null,null,null,null,"Olivia Vance","Olivia","Vance","Phone","West",1292.72]
[null,null,null,null,null,"Keith Powell","Keith","Powell","Phone","East",1675.08]
[null,null,null,null,null,"Dorothy Rees","Dorothy","Rees","TV","North",1915.34]
[null,null,null,null,null,"Brandon Mitchell","Brandon","Mitchell","Sofa","East",1875.26]
[null,null,null,null,null,"Brian Oliver","Brian","Oliver","Stereo","West",1791.18]
[null,null,null,null,null,"Dorothy Quinn","Dorothy","Quinn","Stereo","North",1861.23]
[null,null,null,null,null,"Dylan Fisher","Dylan","Fisher","Stereo","North",1509.96]
[null,null,null,null,null,"Leah Wallace","Leah","Wallace","Sofa","West",1529.64]
[null,null,null,null,null,"Liam Churchill","Liam","Churchill","Laptop","North",1687.81]
[null,null,null,null,null,"Jane Mathis","Jane","Mathis","Laptop","North",1740.4]
[null,null,null,null,null,"Liam Parsons","Liam","Parsons","Phone","South",1468.74]
[null,null,null,null,null,"Victoria Chapman","Victoria","Chapman","Phone","North",1093.9000000000001]
[null,null,null,null,null,"Paul Coleman","Paul","Coleman","Stereo","South",1633.91]
[null,null,null,null,null,"Sam Ferguson","Sam","Ferguson","Sofa","West",1062.18]
[null,null,null,null,null,"Harry May","Harry","May","Phone","West",1325.92]
[null,null,null,null,null,"Rachel Davidson","Rachel","Davidson","TV","North",1999.77]
[null,null,null,null,null,"Donna Tucker","Donna","Tucker","Phone","East",1319.67]
[null,null,null,null,null,"Joe Hardacre","Joe","Hardacre","Sofa","North",1294.8499999999999]
[null,null,null,null,null,"Jason Hodges","Jason","Hodges","TV","South",1639.95]
[null,null,null,null,null,"Dorothy Peake","Dorothy","Peake","Sofa","North",1915.78]
[null,null,null,null,null,"Claire Mitchell","Claire","Mitchell","TV","West",1380.34]
[null,null,null,null,null,"Molly Walsh","Molly","Walsh","TV","North",1718.85]
[null,null,null,null,null,"Joshua Russell","Joshua","Russell","Laptop","East",1693.56]
[null,null,null,null,null,"Sebastian Arnold","Sebastian","Arnold","Phone","West",1004.44]
[null,null,null,null,null,"Ruth Mitchell","Ruth","Mitchell","Sofa","North",1182.75]
[null,null,null,null,null,"Harry Burgess","Harry","Burgess","Stereo","East",1572.89]
[null,null,null,null,null,"Jake Robertson","Jake","Robertson","Laptop","East",1622.49]
[null,null,null,null,null,"Sarah Dyer","Sarah","Dyer","Stereo","East",1482.84]
[null,null,null,null,null,"Kevin Knox","Kevin","Knox","TV","West",1325.12]
[null,null,null,null,null,"Mary Knox","Mary","Knox","Phone","South",1422.72]
[null,null,null,null,null,"Chloe Dyer","Chloe","Dyer","Stereo","South",1794.25]
[null,null,null,null,null,"Ruth Thomson","Ruth","Thomson","Laptop","North",1711.06]
[null,null,null,null,null,"Carl Parr","Carl","Parr","Stereo","West",1244.8800000000001]
[null,null,null,null,null,"Jessica Fraser","Jessica","Fraser","Laptop","North",1874.74]
[null,null,null,null,null,"Lucas Hughes","Lucas","Hughes","Stereo","North",1061.06]
[null,null,null,null,null,"Vanessa Alsop","Vanessa","Alsop","Laptop","South",1252.57]
[null,null,null,null,null,"Kevin Young","Kevin","Young","Sofa","North",1718.85]
[null,null,null,null,null,"Jonathan Walker","Jonathan","Walker","Sofa","East",1060.1099999999999]
[null,null,null,null,null,"Olivia Clarkson","Olivia","Clarkson","TV","West",1255.76]
[null,null,null,null,null,"Amelia May","Amelia","May","Stereo","West",1683.26]
[null,null,null,null,null,"Ian May","Ian","May","Laptop","East",1629.39]
[null,null,null,null,null,"Alexander Cornish","Alexander","Cornish","TV","South",1165.73]
[null,null,null,null,null,"Blake Sanderson","Blake","Sanderson","Stereo","North",1331.34]
[null,null,null,null,null,"Yvonne Lyman","Yvonne","Lyman","Laptop","North",1895.15]
[null,null,null,null,null,"Justin Short","Justin","Short","Laptop","North",1100.3499999999999]
[null,null,null,null,null,"Joe Thomson","Joe","Thomson","Stereo","North",1109.48]
[null,null,null,null,null,"Penelope MacDonald","Penelope","MacDonald","Sofa","East",1968.55]
[null,null,null,null,null,"Molly Lee","Molly","Lee","TV","South",1413.55]
[null,null,null,null,null,"Jennifer Hart","Jennifer","Hart","Stereo","South",1377.93]
[null,null,null,null,null,"Peter Poole","Peter","Poole","Sofa","East",1234.0899999999999]
[null,null,null,null,null,"Hannah Welch","Hannah","Welch","Laptop","North",1298.44]
[null,null,null,null,null,"Joshua Miller","Joshua","Miller","Stereo","East",1851.47]
[null,null,null,null,null,"Madeleine Young","Madeleine","Young","TV","North",1215.75]
[null,null,null,null,null,"Melanie Randall","Melanie","Randall","TV","South",1650.83]
[null,null,null,null,null,"Kylie Hardacre","Kylie","Hardacre","Stereo","East",1275.56]
[null,null,null,null,null,"Nicola White","Nicola","White","Sofa","East",1268.58]
[null,null,null,null,null,"Anna Paterson","Anna","Paterson","Sofa","West",1701.63]
[null,null,null,null,null,"Alan Hughes","Alan","Hughes","TV","East",1803.76]
[null,null,null,null,null,"Rose Hudson","Rose","Hudson","Laptop","East",1308.02]
[null,null,null,null,null,"Joanne Mackenzie","Joanne","Mackenzie","Sofa","East",1993.55]
[null,null,null,null,null,"Joseph Manning","Joseph","Manning","Phone","North",1251.48]
[null,null,null,null,null,"Amanda Springer","Amanda","Springer","Phone","West",1239.97]
[null,null,null,null,null,"Sonia Roberts","Sonia","Roberts","Phone","North",1310.26]
[null,null,null,null,null,"Olivia Johnston","Olivia","Johnston","Sofa","South",1168.3599999999999]
[null,null,null,null,null,"Harry Bell","Harry","Bell","Laptop","South",1425.88]
[null,null,null,null,null,"Faith Graham","Faith","Graham","Stereo","East",1241.8800000000001]
[null,null,null,null,null,"Cameron Vance","Cameron","Vance","Laptop","West",1552.01]
[null,null,null,null,null,"Nathan Blake","Nathan","Blake","TV","North",1995.38]
[null,null,null,null,null,"Blake May","Blake","May","Sofa","East",1058.4100000000001]
[null,null,null,null,null,"Claire Sutherland","Claire","Sutherland","Laptop","East",1861.52]
[null,null,null,null,null,"Sebastian Parr","Sebastian","Parr","Stereo","East",1164.53]
[null,null,null,null,null,"Jasmine Walker","Jasmine","Walker","TV","North",1199.0899999999999]
[null,null,null,null,null,"Mary Rampling","Mary","Rampling","Phone","East",1331.39]
[null,null,null,null,null,"Edward Ince","Edward","Ince","Laptop","West",1550.47]
[null,null,null,null,null,"Wendy Fisher","Wendy","Fisher","TV","North",1803.27]
[null,null,null,null,null,"Madeleine Morgan","Madeleine","Morgan","Laptop","South",1672.48]
[null,null,null,null,null,"Edward Walsh","Edward","Walsh","Laptop","North",1427.71]
[null,null,null,null,null,"Colin Walsh","Colin","Walsh","Laptop","South",1745.94]
[null,null,null,null,null,"Stewart Johnston","Stewart","Johnston","Stereo","South",1278.47]
[null,null,null,null,null,"Dan Dyer","Dan","Dyer","Stereo","West",1725.86]
[null,null,null,null,null,"Sonia Glover","Sonia","Glover","Laptop","South",1474.48]
[null,null,null,null,null,"Rachel Vance","Rachel","Vance","Stereo","South",1011.61]
[null,null,null,null,null,"Diana Sutherland","Diana","Sutherland","Phone","East",1085.5899999999999]
[null,null,null,null,null,"Virginia Ball","Virginia","Ball","Stereo","West",1829.79]
[null,null,null,null,null,"Theresa Gill","Theresa","Gill","Phone","North",1963.21]
[null,null,null,null,null,"Austin Fisher","Austin","Fisher","Stereo","West",1938.22]
[null,null,null,null,null,"Lillian Wilson","Lillian","Wilson","TV","East",1563.2]
[null,null,null,null,null,"Gabrielle Hodges","Gabrielle","Hodges","Stereo","West",1884.09]
[null,null,null,null,null,"Jonathan North","Jonathan","North","TV","South",1549.12]
[null,null,null,null,null,"Dominic Springer","Dominic","Springer","Phone","North",1962.42]
[null,null,null,null,null,"Wanda Nash","Wanda","Nash","Stereo","South",1440.9]
[null,null,null,null,null,"Eric Springer","Eric","Springer","Sofa","North",1680.8]
[null,null,null,null,null,"James Lewis","James","Lewis","Stereo","West",1227.93]
[null,null,null,null,null,"Jacob Mills","Jacob","Mills","Sofa","East",1911.61]
[null,null,null,null,null,"Gavin Manning","Gavin","Manning","Sofa","North",1938.05]
[null,null,null,null,null,"Peter Clarkson","Peter","Clarkson","Sofa","East",1527.09]
[null,null,null,null,null,"James Manning","James","Manning","TV","West",1434.61]
[null,null,null,null,null,"Bernadette Fisher","Bernadette","Fisher","Sofa","West",1156.8399999999999]
[null,null,null,null,null,"Rachel Stewart","Rachel","Stewart","Phone","East",1553.55]
[null,null,null,null,null,"Kimberly Russell","Kimberly","Russell","Laptop","West",1764.07]
[null,null,null,null,null,"Dorothy Alsop","Dorothy","Alsop","Phone","South",1263.83]
[null,null,null,null,null,"Ian Reid","Ian","Reid","TV","South",1577.54]
[null,null,null,null,null,"Justin Marshall","Justin","Marshall","TV","North",1522.34]
[null,null,null,null,null,"Amanda McLean","Amanda","McLean","Phone","West",1521.1]
[null,null,null,null,null,"Penelope McDonald","Penelope","McDonald","Sofa","West",1045.5999999999999]
[null,null,null,null,null,"James Davidson","James","Davidson","Laptop","East",1184.47]
[null,null,null,null,null,"Maria Glover","Maria","Glover","Sofa","South",1512.54]
[null,null,null,null,null,"Liam Paterson","Liam","Paterson","Sofa","West",1700.06]
[null,null,null,null,null,"Una Baker","Una","Baker","TV","North",1394.31]
[null,null,null,null,null,"Kevin Fisher","Kevin","Fisher","Stereo","East",1176.51]
[null,null,null,null,null,"Dan Buckland","Dan","Buckland","TV","East",1515.3]
[null,null,null,null,null,"Sally Welch","Sally","Welch","Laptop","East",1546.34]
[null,null,null,null,null,"Zoe Grant","Zoe","Grant","TV","East",1670.75]
[null,null,null,null,null,"Frank Ellison","Frank","Ellison","TV","North",1603.38]
[null,null,null,null,null,"Michelle White","Michelle","White","Stereo","South",1368.41]
[null,null,null,null,null,"Thomas Fraser","Thomas","Fraser","Laptop","West",1211.5]
[null,null,null,null,null,"Leonard Abraham","Leonard","Abraham","Sofa","East",1560.38]
[null,null,null,null,null,"Dylan Buckland","Dylan","Buckland","Phone","West",1730.91]
[null,null,null,null,null,"Andrea Sutherland","Andrea","Sutherland","Laptop","West",1271.74]
[null,null,null,null,null,"Sean Gill","Sean","Gill","Laptop","South",1275.42]
[null,null,null,null,null,"Dan Terry","Dan","Terry","Stereo","East",1170.76]
[null,null,null,null,null,"Tim Skinner","Tim","Skinner","TV","North",1047.05]
[null,null,null,null,null,"Keith Davidson","Keith","Davidson","Sofa","North",1121.44]
[null,null,null,null,null,"Anthony Lewis","Anthony","Lewis","Stereo","East",1192.48]
[null,null,null,null,null,"Angela Carr","Angela","Carr","Sofa","South",1511.38]
[null,null,null,null,null,"Bella Johnston","Bella","Johnston","TV","West",1278.0999999999999]
[null,null,null,null,null,"Irene Fraser","Irene","Fraser","Laptop","North",1525.57]
[null,null,null,null,null,"Amy Chapman","Amy","Chapman","Stereo","West",1809.6]
[null,null,null,null,null,"Sonia Hudson","Sonia","Hudson","Stereo","North",1591.28]
[null,null,null,null,null,"Nathan Vance","Nathan","Vance","TV","North",1978.41]
[null,null,null,null,null,"Angela Grant","Angela","Grant","TV","North",1189.21]
[null,null,null,null,null,"Alan McDonald","Alan","McDonald","Laptop","East",1785.18]
[null,null,null,null,null,"Thomas Pullman","Thomas","Pullman","TV","East",1424.08]
[null,null,null,null,null,"James Lee","James","Lee","Phone","East",1141.71]
[null,null,null,null,null,"Sally Ferguson","Sally","Ferguson","Laptop","West",1611.1]
[null,null,null,null,null,"Luke Clark","Luke","Clark","Stereo","South",1206.33]
[null,null,null,null,null,"Wendy Rees","Wendy","Rees","Phone","South",1408.64]
[null,null,null,null,null,"Ava MacDonald","Ava","MacDonald","Phone","North",1504.79]
[null,null,null,null,null,"Austin Chapman","Austin","Chapman","Sofa","West",1889.99]
[null,null,null,null,null,"Austin Avery","Austin","Avery","Sofa","East",1156.74]
[null,null,null,null,null,"Colin Kerr","Colin","Kerr","Stereo","West",1549.16]
[null,null,null,null,null,"Abigail Mathis","Abigail","Mathis","Sofa","North",1184.95]
[null,null,null,null,null,"Stewart Forsyth","Stewart","Forsyth","TV","West",1914.7]
[null,null,null,null,null,"Wanda Langdon","Wanda","Langdon","Sofa","South",1485.4]
[null,null,null,null,null,"Gabrielle Murray","Gabrielle","Murray","TV","East",1165.8399999999999]
[null,null,null,null,null,"Michelle Baker","Michelle","Baker","Phone","West",1720.35]
[null,null,null,null,null,"Connor Carr","Connor","Carr","Sofa","West",1720.3]
[null,null,null,null,null,"Amanda Hemmings","Amanda","Hemmings","TV","South",1021.36]
[null,null,null,null,null,"Leonard Glover","Leonard","Glover","Laptop","South",1627.68]
[null,null,null,null,null,"Colin Greene","Colin","Greene","Stereo","North",1746.86]
[null,null,null,null,null,"Natalie Clark","Natalie","Clark","Sofa","West",1512.76]
[null,null,null,null,null,"Katherine Quinn","Katherine","Quinn","Sofa","North",1075.21]
[null,null,null,null,null,"Alan Butler","Alan","Butler","Phone","East",1138]
[null,null,null,null,null,"Irene Piper","Irene","Piper","Phone","North",1540.87]
[null,null,null,null,null,"Lillian Brown","Lillian","Brown","Stereo","West",1699.28]
[null,null,null,null,null,"Jennifer Russell","Jennifer","Russell","TV","South",1086.8800000000001]
[null,null,null,null,null,"Elizabeth Harris","Elizabeth","Harris","Stereo","North",1558.39]
[null,null,null,null,null,"David Dyer","David","Dyer","Stereo","West",1979.82]
[null,null,null,null,null,"Ruth Underwood","Ruth","Underwood","Stereo","West",1668.77]
[null,null,null,null,null,"Luke Clarkson","Luke","Clarkson","Phone","South",1319.13]
[null,null,null,null,null,"Brandon Pullman","Brandon","Pullman","Stereo","South",1351.35]
[null,null,null,null,null,"Vanessa MacLeod","Vanessa","MacLeod","Stereo","South",1040.5999999999999]
[null,null,null,null,null,"Lillian Piper","Lillian","Piper","Stereo","South",1102.27]
[null,null,null,null,null,"Lucas Parr","Lucas","Parr","Laptop","South",1027.95]
[null,null,null,null,null,"Alexandra MacDonald","Alexandra","MacDonald","TV","West",1533.22]
[null,null,null,null,null,"Brian Vance","Brian","Vance","Laptop","East",1022.5]
[null,null,null,null,null,"Anne Quinn","Anne","Quinn","Sofa","East",1143.8599999999999]
[null,null,null,null,null,"Deirdre Langdon","Deirdre","Langdon","Phone","South",1156.9000000000001]
[null,null,null,null,null,"Yvonne Avery","Yvonne","Avery","Sofa","West",1156.54]
[null,null,null,null,null,"Andrea Dickens","Andrea","Dickens","Phone","North",1567.55]
[null,null,null,null,null,"Eric James","Eric","James","Phone","North",1176.27]
[null,null,null,null,null,"Lucas Lee","Lucas","Lee","Laptop","South",1631.33]
[null,null,null,null,null,"Carol Manning","Carol","Manning","Stereo","East",1191.8900000000001]
[null,null,null,null,null,"Kylie Tucker","Kylie","Tucker","Sofa","East",1362.09]
[null,null,null,null,null,"Donna Bower","Donna","Bower","Stereo","North",1786.49]
[null,null,null,null,null,"Bernadette McLean","Bernadette","McLean","Phone","West",1102.5]
[null,null,null,null,null,"Jasmine Ferguson","Jasmine","Ferguson","Stereo","South",1447.11]
[null,null,null,null,null,"Boris Gray","Boris","Gray","Phone","East",1472.22]
[null,null,null,null,null,"Jessica Peake","Jessica","Peake","TV","North",1264.43]
[null,null,null,null,null,"Phil Quinn","Phil","Quinn","Laptop","West",1353.91]
[null,null,null,null,null,"Jake Dickens","Jake","Dickens","Phone","West",1062.98]
[null,null,null,null,null,"Julia Hardacre","Julia","Hardacre","Phone","North",1088.1300000000001]
[null,null,null,null,null,"Karen James","Karen","James","Laptop","West",1122]
[null,null,null,null,null,"Jack North","Jack","North","Stereo","West",1215.42]
[null,null,null,null,null,"Olivia Burgess","Olivia","Burgess","Sofa","West",1204.94]
[null,null,null,null,null,"Christopher Morgan","Christopher","Morgan","Laptop","North",1869.53]
[null,null,null,null,null,"Vanessa Ross","Vanessa","Ross","TV","South",1157.3900000000001]
[null,null,null,null,null,"Victor Hardacre","Victor","Hardacre","TV","East",1843.83]
[null,null,null,null,null,"Frank Marshall","Frank","Marshall","Sofa","East",1427.47]
[null,null,null,null,null,"Joanne Sutherland","Joanne","Sutherland","TV","East",1451.31]
[null,null,null,null,null,"Bernadette May","Bernadette","May","Laptop","South",1012.41]
[null,null,null,null,null,"David Gray","David","Gray","Phone","South",1843.49]
[null,null,null,null,null,"Alison Marshall","Alison","Marshall","Stereo","East",1389.33]
[null,null,null,null,null,"Deirdre Kelly","Deirdre","Kelly","Stereo","East",1676.79]
[null,null,null,null,null,"Cameron Bailey","Cameron","Bailey","TV","North",1073.51]
[null,null,null,null,null,"Gordon Oliver","Gordon","Oliver","Sofa","West",1474.93]
[null,null,null,null,null,"Julia Short","Julia","Short","Phone","North",1240.1099999999999]
[null,null,null,null,null,"Emily Glover","Emily","Glover","TV","North",1419.53]
[null,null,null,null,null,"Leah Mitchell","Leah","Mitchell","Laptop","North",1108.51]
[null,null,null,null,null,"Theresa Parsons","Theresa","Parsons","TV","East",1416.17]
[null,null,null,null,null,"Cameron Edmunds","Cameron","Edmunds","TV","East",1003.42]
[null,null,null,null,null,"Ella Marshall","Ella","Marshall","Laptop","West",1021.39]
[null,null,null,null,null,"Trevor Lyman","Trevor","Lyman","Phone","East",1067.71]
[null,null,null,null,null,"Cameron Lambert","Cameron","Lambert","Sofa","North",1363.41]
[null,null,null,null,null,"Frank McDonald","Frank","McDonald","Phone","West",1427.66]
[null,null,null,null,null,"Steven MacLeod","Steven","MacLeod","Stereo","North",1406.56]
[null,null,null,null,null,"Ava Taylor","Ava","Taylor","TV","South",1417.49]
[null,null,null,null,null,"Bernadette Edmunds","Bernadette","Edmunds","Laptop","North",1933.7]
[null,null,null,null,null,"Cameron Mackenzie","Cameron","Mackenzie","Stereo","West",1502.75]
[null,null,null,null,null,"Abigail Walsh","Abigail","Walsh","Phone","East",1694.58]
[null,null,null,null,null,"Richard Roberts","Richard","Roberts","Phone","North",1298.68]
[null,null,null,null,null,"Jasmine Berry","Jasmine","Berry","Phone","East",1309.6199999999999]
[null,null,null,null,null,"Anna Rutherford","Anna","Rutherford","TV","South",1080.67]
[null,null,null,null,null,"Caroline Stewart","Caroline","Stewart","Phone","East",1630.55]
[null,null,null,null,null,"Julian Lewis","Julian","Lewis","Phone","East",1318.65]
[null,null,null,null,null,"Jennifer Cameron","Jennifer","Cameron","Laptop","South",1619.15]
[null,null,null,null,null,"Grace Lee","Grace","Lee","Laptop","West",1006.37]
[null,null,null,null,null,"Vanessa Allan","Vanessa","Allan","Stereo","East",1547.63]
[null,null,null,null,null,"Sean Hemmings","Sean","Hemmings","TV","West",1652.89]
[null,null,null,null,null,"Michelle Terry","Michelle","Terry","TV","West",1807.96]
[null,null,null,null,null,"Jonathan Paterson","Jonathan","Paterson","Sofa","East",1844.76]
[null,null,null,null,null,"Irene Butler","Irene","Butler","Sofa","North",1066.55]
[null,null,null,null,null,"Lucas Roberts","Lucas","Roberts","Phone","East",1005.22]
[null,null,null,null,null,"Richard Bower","Richard","Bower","Laptop","South",1162.69]
[null,null,null,null,null,"Molly Mills","Molly","Mills","Stereo","West",1152.73]
[null,null,null,null,null,"Brandon Davidson","Brandon","Davidson","Phone","North",1245.19]
[null,null,null,null,null,"Connor Bailey","Connor","Bailey","TV","South",1537.73]
[null,null,null,null,null,"Theresa Hughes","Theresa","Hughes","Stereo","West",1181.3599999999999]
[null,null,null,null,null,"Alan Poole","Alan","Poole","Phone","South",1762.15]
[null,null,null,null,null,"Sally Robertson","Sally","Robertson","Stereo","West",1483.59]
[null,null,null,null,null,"Kevin Miller","Kevin","Miller","TV","South",1559.05]
[null,null,null,null,null,"Jennifer Duncan","Jennifer","Duncan","Stereo","South",1816.87]
[null,null,null,null,null,"Harry Hill","Harry","Hill","Laptop","North",1996.22]
[null,null,null,null,null,"Lillian Paige","Lillian","Paige","Phone","East",1598.63]
[null,null,null,null,null,"Jessica Manning","Jessica","Manning","Laptop","South",1234.51]
[null,null,null,null,null,"Molly Davidson","Molly","Davidson","TV","West",1568.68]
[null,null,null,null,null,"Claire Edmunds","Claire","Edmunds","Laptop","East",1953.13]
[null,null,null,null,null,"Jane Oliver","Jane","Oliver","Stereo","East",1604.95]
[null,null,null,null,null,"Christian Lyman","Christian","Lyman","Laptop","South",1832.84]
[null,null,null,null,null,"Andrew King","Andrew","King","Laptop","North",1027.43]
[null,null,null,null,null,"Vanessa King","Vanessa","King","TV","North",1303.76]
[null,null,null,null,null,"Sam Randall","Sam","Randall","Phone","West",1244.18]
[null,null,null,null,null,"Jennifer Ogden","Jennifer","Ogden","Laptop","North",1303.96]
[null,null,null,null,null,"Blake Lambert","Blake","Lambert","Laptop","South",1965.95]
[null,null,null,null,null,"Evan Murray","Evan","Murray","Sofa","West",1832.33]
[null,null,null,null,null,"Michelle Langdon","Michelle","Langdon","Laptop","North",1411.25]
[null,null,null,null,null,"Ian Anderson","Ian","Anderson","Sofa","East",1124.2]
[null,null,null,null,null,"Jasmine Young","Jasmine","Young","Sofa","North",1680.69]
[null,null,null,null,null,"Jacob Bower","Jacob","Bower","Stereo","South",1477.71]
[null,null,null,null,null,"Adam Hill","Adam","Hill","TV","East",1105.57]
[null,null,null,null,null,"Gordon Clark","Gordon","Clark","TV","West",1614.47]
[null,null,null,null,null,"Sebastian Hughes","Sebastian","Hughes","Laptop","North",1646.75]
[null,null,null,null,null,"Elizabeth Langdon","Elizabeth","Langdon","TV","South",1373.02]
[null,null,null,null,null,"Carol Peake","Carol","Peake","Laptop","West",1736]
[null,null,null,null,null,"Stephanie Cameron","Stephanie","Cameron","Stereo","West",1179.06]
[null,null,null,null,null,"Thomas Langdon","Thomas","Langdon","TV","South",1247.3]
[null,null,null,null,null,"Rebecca Thomson","Rebecca","Thomson","Laptop","East",1747.66]
[null,null,null,null,null,"Faith Clark","Faith","Clark","Stereo","South",1072.8699999999999]
[null,null,null,null,null,"Kevin Watson","Kevin","Watson","TV","South",1656.28]
[null,null,null,null,null,"Alan Gill","Alan","Gill","Stereo","North",1597.85]
[null,null,null,null,null,"Benjamin Peake","Benjamin","Peake","Stereo","West",1240.55]
[null,null,null,null,null,"Kevin Springer","Kevin","Springer","TV","South",1058.76]
[null,null,null,null,null,"Jack Vaughan","Jack","Vaughan","Phone","North",1646.15]
[null,null,null,null,null,"Katherine Fisher","Katherine","Fisher","Stereo","East",1610.64]
[null,null,null,null,null,"Tracey Thomson","Tracey","Thomson","Phone","West",1937.64]
[null,null,null,null,null,"Michael Hughes","Michael","Hughes","Phone","West",1785.99]
[null,null,null,null,null,"Claire Short","Claire","Short","Stereo","West",1092.9100000000001]
[null,null,null,null,null,"Grace Henderson","Grace","Henderson","Sofa","East",1359.89]
[null,null,null,null,null,"Colin MacDonald","Colin","MacDonald","TV","South",1406.93]
[null,null,null,null,null,"Nicholas Clarkson","Nicholas","Clarkson","TV","West",1916.64]
[null,null,null,null,null,"Anthony Davies","Anthony","Davies","Sofa","East",1095.6300000000001]
[null,null,null,null,null,"Theresa Skinner","Theresa","Skinner","TV","West",1039.6500000000001]
[null,null,null,null,null,"Julia Roberts","Julia","Roberts","Stereo","West",1644.17]
[null,null,null,null,null,"Jake Roberts","Jake","Roberts","Phone","South",1162.6199999999999]
[null,null,null,null,null,"Benjamin Pullman","Benjamin","Pullman","Phone","North",1153.3699999999999]
[null,null,null,null,null,"Una Berry","Una","Berry","Laptop","South",1766.61]
[null,null,null,null,null,"Stewart Duncan","Stewart","Duncan","Sofa","West",1405.09]
[null,null,null,null,null,"Justin Buckland","Justin","Buckland","Laptop","North",1569.47]
[null,null,null,null,null,"Warren Murray","Warren","Murray","TV","South",1996.97]
[null,null,null,null,null,"Dylan Johnston","Dylan","Johnston","Sofa","South",1681.06]
[null,null,null,null,null,"Natalie Greene","Natalie","Greene","Sofa","West",1945.32]
[null,null,null,null,null,"Megan Sanderson","Megan","Sanderson","Stereo","South",1070.0899999999999]
[null,null,null,null,null,"Adrian Ross","Adrian","Ross","Stereo","South",1771.83]
[null,null,null,null,null,"Stewart Dyer","Stewart","Dyer","Laptop","East",1640.35]
[null,null,null,null,null,"Thomas Walker","Thomas","Walker","Phone","North",1654.13]
[null,null,null,null,null,"Edward Sanderson","Edward","Sanderson","Stereo","South",1460.49]
[null,null,null,null,null,"Leonard Marshall","Leonard","Marshall","Sofa","East",1894.16]
[null,null,null,null,null,"Abigail Bell","Abigail","Bell","Stereo","North",1710.97]
[null,null,null,null,null,"Diana Black","Diana","Black","Sofa","East",1771.42]
[null,null,null,null,null,"Diane Hamilton","Diane","Hamilton","Stereo","South",1869.18]
[null,null,null,null,null,"Chloe Nash","Chloe","Nash","Laptop","West",1692.85]
[null,null,null,null,null,"Katherine Edmunds","Katherine","Edmunds","Stereo","North",1674.09]
[null,null,null,null,null,"Blake Ogden","Blake","Ogden","Phone","East",1008.16]
[null,null,null,null,null,"Leonard Reid","Leonard","Reid","Laptop","West",1388.53]
[null,null,null,null,null,"John Mackenzie","John","Mackenzie","Laptop","West",1438.98]
[null,null,null,null,null,"Piers Payne","Piers","Payne","Laptop","East",1746.43]
[null,null,null,null,null,"Tim Hamilton","Tim","Hamilton","Stereo","West",1329.89]
[null,null,null,null,null,"Ruth Paige","Ruth","Paige","Laptop","North",1976.77]
[null,null,null,null,null,"Andrea Paige","Andrea","Paige","Laptop","East",1240.49]
[null,null,null,null,null,"Jan Burgess","Jan","Burgess","TV","South",1397.11]
[null,null,null,null,null,"Connor Reid","Connor","Reid","TV","North",1785.42]
[null,null,null,null,null,"Sophie Sharp","Sophie","Sharp","Sofa","South",1656.55]
[null,null,null,null,null,"Owen Payne","Owen","Payne","Sofa","East",1069.56]
[null,null,null,null,null,"Anna Gill","Anna","Gill","Stereo","North",1944.27]
[null,null,null,null,null,"Frank Johnston","Frank","Johnston","Laptop","East",1324.48]
[null,null,null,null,null,"Ryan Bower","Ryan","Bower","TV","West",1981.29]
[null,null,null,null,null,"Kimberly Abraham","Kimberly","Abraham","Phone","West",1962.58]
[null,null,null,null,null,"Michelle Smith","Michelle","Smith","Laptop","North",1213.5899999999999]
[null,null,null,null,null,"Owen Rampling","Owen","Rampling","Sofa","North",1235.46]
[null,null,null,null,null,"Victor Mitchell","Victor","Mitchell","Laptop","East",1076.21]
[null,null,null,null,null,"Adrian Reid","Adrian","Reid","Laptop","East",1005.29]
[null,null,null,null,null,"Jonathan Mackenzie","Jonathan","Mackenzie","Phone","North",1725.89]
[null,null,null,null,null,"Sean May","Sean","May","Sofa","North",1111.98]
[null,null,null,null,null,"Pippa Hodges","Pippa","Hodges","TV","South",1293.82]
[null,null,null,null,null,"Edward Taylor","Edward","Taylor","Phone","North",1892.51]
[null,null,null,null,null,"Anthony MacDonald","Anthony","MacDonald","Phone","West",1993.32]
[null,null,null,null,null,"Kimberly Burgess","Kimberly","Burgess","Stereo","North",1241.06]
[null,null,null,null,null,"Colin Rutherford","Colin","Rutherford","Laptop","North",1422.15]
[null,null,null,null,null,"Andrew Morrison","Andrew","Morrison","Laptop","South",1700.57]
[null,null,null,null,null,"Deirdre Newman","Deirdre","Newman","Stereo","South",1026.06]
[null,null,null,null,null,"Joe Murray","Joe","Murray","TV","West",1988.18]
[null,null,null,null,null,"Abigail Henderson","Abigail","Henderson","TV","West",1608.7]
[null,null,null,null,null,"Vanessa Hamilton","Vanessa","Hamilton","TV","North",1242.4000000000001]
[null,null,null,null,null,"Katherine Dickens","Katherine","Dickens","TV","North",1418.36]
[null,null,null,null,null,"Sean Baker","Sean","Baker","Phone","West",1346.24]
[null,null,null,null,null,"Karen Coleman","Karen","Coleman","Sofa","North",1492.96]
[null,null,null,null,null,"Sue Thomson","Sue","Thomson","Sofa","East",1943.17]
[null,null,null,null,null,"Katherine Coleman","Katherine","Coleman","Phone","East",1503.51]
[null,null,null,null,null,"Adam Avery","Adam","Avery","Stereo","East",1332]
[null,null,null,null,null,"Lily Nolan","Lily","Nolan","Sofa","North",1826.91]
[null,null,null,null,null,"Faith Ross","Faith","Ross","Laptop","East",1879.61]
[null,null,null,null,null,"Sean Lewis","Sean","Lewis","TV","South",1551.91]
[null,null,null,null,null,"Andrew Jackson","Andrew","Jackson","Sofa","East",1769.57]
[null,null,null,null,null,"Tim Poole","Tim","Poole","Sofa","East",1407.43]
[null,null,null,null,null,"Kylie Hemmings","Kylie","Hemmings","Phone","East",1604.46]
[null,null,null,null,null,"Rachel Sutherland","Rachel","Sutherland","Laptop","West",1455.24]
[null,null,null,null,null,"Matt Fraser","Matt","Fraser","Phone","South",1954.85]
[null,null,null,null,null,"Madeleine Vance","Madeleine","Vance","Phone","South",1783.03]
[null,null,null,null,null,"Karen Nash","Karen","Nash","Sofa","East",1932.39]
[null,null,null,null,null,"Joshua Nolan","Joshua","Nolan","TV","North",1813.44]
[null,null,null,null,null,"Richard Terry","Richard","Terry","Stereo","West",1314.2]
[null,null,null,null,null,"Michael Gill","Michael","Gill","TV","East",1588.72]
[null,null,null,null,null,"Joshua Morgan","Joshua","Morgan","Sofa","North",1072.49]
[null,null,null,null,null,"Connor Randall","Connor","Randall","Phone","East",1197.51]
[null,null,null,null,null,"Kimberly Smith","Kimberly","Smith","Phone","West",1171.02]
[null,null,null,null,null,"Molly James","Molly","James","Phone","West",1364.69]
[null,null,null,null,null,"Leah Harris","Leah","Harris","TV","South",1705.99]
[null,null,null,null,null,"Ella Peake","Ella","Peake","Stereo","South",1074.31]
[null,null,null,null,null,"Donna Turner","Donna","Turner","Laptop","North",1299.49]
[null,null,null,null,null,"Angela Hamilton","Angela","Hamilton","TV","West",1597.65]
[null,null,null,null,null,"Rebecca Mackay","Rebecca","Mackay","Stereo","South",1509.21]
[null,null,null,null,null,"Sally Reid","Sally","Reid","Stereo","South",1747.7]
[null,null,null,null,null,"Pippa Payne","Pippa","Payne","Sofa","South",1118.18]
[null,null,null,null,null,"Justin Forsyth","Justin","Forsyth","Stereo","South",1427.42]
[null,null,null,null,null,"Thomas Forsyth","Thomas","Forsyth","Phone","East",1981.47]
[null,null,null,null,null,"Andrew Mackay","Andrew","Mackay","Stereo","North",1894.24]
[null,null,null,null,null,"Gavin Oliver","Gavin","Oliver","Sofa","West",1126.3499999999999]
[null,null,null,null,null,"Pippa Short","Pippa","Short","Phone","South",1675.62]
[null,null,null,null,null,"Gabrielle Davies","Gabrielle","Davies","Sofa","West",1545.67]
[null,null,null,null,null,"Emma Lee","Emma","Lee","Laptop","South",1787.88]
[null,null,null,null,null,"Julia Duncan","Julia","Duncan","Laptop","West",1928.94]
[null,null,null,null,null,"Bernadette Harris","Bernadette","Harris","Stereo","West",1913.23]
[null,null,null,null,null,"Boris Piper","Boris","Piper","TV","East",1692.88]
[null,null,null,null,null,"Stewart Dickens","Stewart","Dickens","Sofa","East",1877.86]
[null,null,null,null,null,"Jason Cornish","Jason","Cornish","Phone","West",1185.29]
[null,null,null,null,null,"Emily James","Emily","James","TV","West",1929.37]
[null,null,null,null,null,"Diane Manning","Diane","Manning","Laptop","North",1794.95]
[null,null,null,null,null,"Jane Davies","Jane","Davies","Stereo","East",1190.04]
[null,null,null,null,null,"Simon Metcalfe","Simon","Metcalfe","Laptop","South",1677.78]
[null,null,null,null,null,"Jason Nolan","Jason","Nolan","Sofa","North",1416.76]
[null,null,null,null,null,"Nathan Gray","Nathan","Gray","Sofa","South",1571.51]
[null,null,null,null,null,"Sarah Scott","Sarah","Scott","Laptop","North",1327.51]
[null,null,null,null,null,"Sam Gibson","Sam","Gibson","Laptop","North",1559.47]
[null,null,null,null,null,"Julian Black","Julian","Black","Sofa","South",1228.3900000000001]
[null,null,null,null,null,"Rose Dowd","Rose","Dowd","Sofa","South",1495.09]
[null,null,null,null,null,"Jan Peake","Jan","Peake","Phone","South",1495.3]
[null,null,null,null,null,"Adam Skinner","Adam","Skinner","Phone","South",1540.57]
[null,null,null,null,null,"Phil Bower","Phil","Bower","TV","East",1554.65]
[null,null,null,null,null,"Boris Lambert","Boris","Lambert","Laptop","North",1936.46]
[null,null,null,null,null,"Kimberly Vance","Kimberly","Vance","Stereo","South",1524.04]
[null,null,null,null,null,"Stephen Cameron","Stephen","Cameron","Sofa","South",1686.87]
[null,null,null,null,null,"David Campbell","David","Campbell","Sofa","East",1327.57]
[null,null,null,null,null,"Dorothy Young","Dorothy","Young","Phone","North",1412.01]
[null,null,null,null,null,"Carolyn Arnold","Carolyn","Arnold","Phone","West",1224.23]
[null,null,null,null,null,"Christian Coleman","Christian","Coleman","Phone","North",1637.31]
[null,null,null,null,null,"Simon Howard","Simon","Howard","TV","East",1846.85]
[null,null,null,null,null,"Bernadette Morrison","Bernadette","Morrison","Phone","South",1684.31]
[null,null,null,null,null,"Kevin Vance","Kevin","Vance","Laptop","North",1908.37]
[null,null,null,null,null,"Abigail Sutherland","Abigail","Sutherland","Sofa","South",1946.84]
[null,null,null,null,null,"Amelia Langdon","Amelia","Langdon","Laptop","North",1895.71]
[null,null,null,null,null,"Christian Lawrence","Christian","Lawrence","Sofa","North",1526.94]
[null,null,null,null,null,"Jan Hemmings","Jan","Hemmings","TV","South",1074.46]
[null,null,null,null,null,"Nicola Mathis","Nicola","Mathis","Sofa","South",1978.4]
[null,null,null,null,null,"Lisa Allan","Lisa","Allan","Laptop","East",1855.36]
[null,null,null,null,null,"John Gray","John","Gray","Phone","East",1207.04]
[null,null,null,null,null,"Kylie Terry","Kylie","Terry","Stereo","West",1535.61]
[null,null,null,null,null,"Benjamin Lawrence","Benjamin","Lawrence","Laptop","North",1244.32]
[null,null,null,null,null,"Stephanie Butler","Stephanie","Butler","Sofa","West",1034.48]
[null,null,null,null,null,"Jacob Ellison","Jacob","Ellison","Stereo","North",1992.36]
[null,null,null,null,null,"Audrey Scott","Audrey","Scott","Phone","East",1757.1]
[null,null,null,null,null,"Stewart Campbell","Stewart","Campbell","TV","North",1792.91]
[null,null,null,null,null,"Austin King","Austin","King","Sofa","South",1250.3800000000001]
[null,null,null,null,null,"Rose Smith","Rose","Smith","TV","East",1776.72]
[null,null,null,null,null,"Kimberly Parsons","Kimberly","Parsons","Stereo","East",1343.45]
[null,null,null,null,null,"Jane Graham","Jane","Graham","Sofa","North",1238.49]
[null,null,null,null,null,"Wanda Grant","Wanda","Grant","Phone","North",1170.53]
[null,null,null,null,null,"Theresa Vaughan","Theresa","Vaughan","Phone","West",1393.37]
[null,null,null,null,null,"Matt Alsop","Matt","Alsop","Laptop","East",1922.98]
[null,null,null,null,null,"Faith Knox","Faith","Knox","Laptop","North",1266.8900000000001]
[null,null,null,null,null,"Kylie Wilson","Kylie","Wilson","Laptop","North",1535.58]
[null,null,null,null,null,"Emma Slater","Emma","Slater","Stereo","West",1491.35]
[null,null,null,null,null,"Piers Cornish","Piers","Cornish","Sofa","East",1913.48]
[null,null,null,null,null,"Alan MacLeod","Alan","MacLeod","Phone","West",1432.85]
[null,null,null,null,null,"Leah Thomson","Leah","Thomson","Phone","South",1498.16]
[null,null,null,null,null,"Justin Young","Justin","Young","Stereo","West",1255.7]
[null,null,null,null,null,"Trevor Young","Trevor","Young","Phone","West",1898.44]
[null,null,null,null,null,"Brian Hill","Brian","Hill","Stereo","South",1634.28]
[null,null,null,null,null,"Oliver Ross","Oliver","Ross","Phone","West",1712.06]
[null,null,null,null,null,"Adrian Lawrence","Adrian","Lawrence","Laptop","West",1885.67]
[null,null,null,null,null,"Diana Metcalfe","Diana","Metcalfe","Stereo","North",1711.12]
[null,null,null,null,null,"Alan Mills","Alan","Mills","TV","East",1617.78]
[null,null,null,null,null,"Christian Ferguson","Christian","Ferguson","Stereo","North",1170.18]
[null,null,null,null,null,"Elizabeth Wilson","Elizabeth","Wilson","TV","West",1318.08]
[null,null,null,null,null,"Jason Lambert","Jason","Lambert","Phone","East",1614.41]
[null,null,null,null,null,"Mary Morrison","Mary","Morrison","Sofa","North",1630.78]
[null,null,null,null,null,"Jonathan Hunter","Jonathan","Hunter","Sofa","East",1936.92]
[null,null,null,null,null,"Justin Alsop","Justin","Alsop","Laptop","West",1671.3]
[null,null,null,null,null,"Simon Piper","Simon","Piper","Laptop","East",1581.63]
[null,null,null,null,null,"Angela Martin","Angela","Martin","Sofa","South",1993.56]
[null,null,null,null,null,"Christopher King","Christopher","King","Stereo","West",1415.82]
[null,null,null,null,null,"Joan Paige","Joan","Paige","TV","North",1561.62]
[null,null,null,null,null,"Faith Abraham","Faith","Abraham","Laptop","South",1252.8399999999999]
[null,null,null,null,null,"Matt Sanderson","Matt","Sanderson","Laptop","North",1368.39]
[null,null,null,null,null,"Ryan Terry","Ryan","Terry","TV","East",1784.34]
[null,null,null,null,null,"Chloe Nolan","Chloe","Nolan","Sofa","South",1595.81]
[null,null,null,null,null,"Liam Allan","Liam","Allan","Laptop","South",1788.88]
[null,null,null,null,null,"Anthony Anderson","Anthony","Anderson","Phone","West",1446.28]
[null,null,null,null,null,"Claire Kelly","Claire","Kelly","Sofa","West",1955.46]
[null,null,null,null,null,"Alan Nolan","Alan","Nolan","TV","West",1677.76]
[null,null,null,null,null,"Alan Roberts","Alan","Roberts","Stereo","East",1467.21]
[null,null,null,null,null,"Hannah Vance","Hannah","Vance","TV","North",1285]
[null,null,null,null,null,"Jacob Peake","Jacob","Peake","TV","East",1615.54]
[null,null,null,null,null,"Gavin Buckland","Gavin","Buckland","Stereo","West",1996.14]
[null,null,null,null,null,"Vanessa Young","Vanessa","Young","Phone","North",1268.57]
[null,null,null,null,null,"John Forsyth","John","Forsyth","Laptop","East",1850.29]
[null,null,null,null,null,"Austin Campbell","Austin","Campbell","Phone","North",1879.05]
[null,null,null,null,null,"Jack Manning","Jack","Manning","Laptop","West",1025.67]
[null,null,null,null,null,"Joshua James","Joshua","James","Laptop","North",1056.24]
[null,null,null,null,null,"Dominic Carr","Dominic","Carr","Stereo","South",1369.1]
[null,null,null,null,null,"Heather Wilkins","Heather","Wilkins","Laptop","West",1946.3]
[null,null,null,null,null,"Anne Sharp","Anne","Sharp","TV","East",1017.93]
[null,null,null,null,null,"Charles Hughes","Charles","Hughes","Stereo","North",1817.35]
[null,null,null,null,null,"Vanessa McDonald","Vanessa","McDonald","Stereo","East",1511.02]
[null,null,null,null,null,"Kimberly Lewis","Kimberly","Lewis","Stereo","South",1422.29]
[null,null,null,null,null,"Victoria Ball","Victoria","Ball","TV","South",1612.84]
[null,null,null,null,null,"Rebecca Rees","Rebecca","Rees","Phone","South",1609.68]
[null,null,null,null,null,"Liam Davies","Liam","Davies","TV","West",1872.64]
[null,null,null,null,null,"Amelia King","Amelia","King","TV","South",1334.89]
[null,null,null,null,null,"Diana Henderson","Diana","Henderson","TV","West",1321.94]
[null,null,null,null,null,"Frank Alsop","Frank","Alsop","Stereo","South",1984.9]
[null,null,null,null,null,"Dylan Knox","Dylan","Knox","Sofa","North",1919.07]
[null,null,null,null,null,"Rose Tucker","Rose","Tucker","TV","West",1098.77]
[null,null,null,null,null,"Nathan Avery","Nathan","Avery","Laptop","West",1406.85]
[null,null,null,null,null,"Anthony McDonald","Anthony","McDonald","Stereo","East",1038.05]
[null,null,null,null,null,"Sarah Reid","Sarah","Reid","Phone","North",1456.9]
[null,null,null,null,null,"Sebastian Butler","Sebastian","Butler","TV","West",1871.02]
[null,null,null,null,null,"Adrian Buckland","Adrian","Buckland","Sofa","South",1603.99]
[null,null,null,null,null,"Jacob Hughes","Jacob","Hughes","Sofa","North",1040.83]
[null,null,null,null,null,"Jack Churchill","Jack","Churchill","TV","South",1243.74]
[null,null,null,null,null,"William Skinner","William","Skinner","Stereo","West",1969.58]
[null,null,null,null,null,"Alexandra Smith","Alexandra","Smith","Laptop","East",1602.68]
[null,null,null,null,null,"Justin Vance","Justin","Vance","TV","North",1035.25]
[null,null,null,null,null,"Alexander Abraham","Alexander","Abraham","Laptop","East",1978.25]
[null,null,null,null,null,"Alison Reid","Alison","Reid","TV","North",1815.24]
[null,null,null,null,null,"Owen Short","Owen","Short","Laptop","South",1145.42]
[null,null,null,null,null,"Alison Cameron","Alison","Cameron","Phone","North",1503.95]
[null,null,null,null,null,"Joseph Brown","Joseph","Brown","TV","West",1981.33]
[null,null,null,null,null,"Pippa Gibson","Pippa","Gibson","TV","North",1808.23]
[null,null,null,null,null,"Adrian White","Adrian","White","Sofa","North",1976.6]
[null,null,null,null,null,"Melanie Sutherland","Melanie","Sutherland","Laptop","East",1225.43]
[null,null,null,null,null,"James Wilson","James","Wilson","Phone","South",1887.29]
[null,null,null,null,null,"Victoria Johnston","Victoria","Johnston","Sofa","West",1504.95]
[null,null,null,null,null,"Christian Berry","Christian","Berry","Stereo","West",1180.1500000000001]
[null,null,null,null,null,"Ryan MacLeod","Ryan","MacLeod","Sofa","North",1579.61]
[null,null,null,null,null,"Nicholas Johnston","Nicholas","Johnston","Stereo","South",1500.13]
[null,null,null,null,null,"Jack Dyer","Jack","Dyer","Phone","East",1834.41]
[null,null,null,null,null,"Robert Parr","Robert","Parr","TV","South",1798.3]
[null,null,null,null,null,"Donna Gill","Donna","Gill","Sofa","South",1322.5]
[null,null,null,null,null,"Sue Watson","Sue","Watson","Laptop","South",1485.46]
[null,null,null,null,null,"Penelope Davidson","Penelope","Davidson","Laptop","South",1660.8]
[null,null,null,null,null,"Victor Poole","Victor","Poole","TV","North",1622.8]
[null,null,null,null,null,"Jake Graham","Jake","Graham","Laptop","East",1365.35]
[null,null,null,null,null,"Adrian Powell","Adrian","Powell","Phone","North",1821.64]
[null,null,null,null,null,"Faith Wilkins","Faith","Wilkins","Stereo","North",1489.83]
[null,null,null,null,null,"Alexander Graham","Alexander","Graham","Stereo","East",1565.32]
[null,null,null,null,null,"Evan Hart","Evan","Hart","Stereo","North",1614.99]
[null,null,null,null,null,"Chloe Lawrence","Chloe","Lawrence","Sofa","North",1150.8599999999999]
[null,null,null,null,null,"Kimberly Gibson","Kimberly","Gibson","Stereo","East",1563.54]
[null,null,null,null,null,"Joshua Glover","Joshua","Glover","Phone","South",1766.15]
[null,null,null,null,null,"Christian Gray","Christian","Gray","Stereo","North",1178.22]
[null,null,null,null,null,"Gavin Roberts","Gavin","Roberts","TV","South",1299.79]
[null,null,null,null,null,"Hannah Terry","Hannah","Terry","TV","East",1839.36]
[null,null,null,null,null,"Dan Sharp","Dan","Sharp","Stereo","West",1145.6600000000001]
[null,null,null,null,null,"Ava Sharp","Ava","Sharp","Stereo","East",1328.05]
[null,null,null,null,null,"Deirdre Wallace","Deirdre","Wallace","TV","West",1474.61]
[null,null,null,null,null,"Katherine Bond","Katherine","Bond","Phone","North",1995.73]
[null,null,null,null,null,"Isaac McDonald","Isaac","McDonald","Laptop","South",1379.73]
[null,null,null,null,null,"Virginia Fisher","Virginia","Fisher","TV","West",1032.9000000000001]
[null,null,null,null,null,"Caroline Kelly","Caroline","Kelly","Stereo","East",1711]
[null,null,null,null,null,"Harry Dickens","Harry","Dickens","Sofa","South",1073.9100000000001]
[null,null,null,null,null,"Abigail Edmunds","Abigail","Edmunds","Stereo","North",1169.5]
[null,null,null,null,null,"Kevin Vaughan","Kevin","Vaughan","Laptop","East",1958.59]
[null,null,null,null,null,"Amy Mackay","Amy","Mackay","Phone","North",1430.18]
[null,null,null,null,null,"Kevin Mackenzie","Kevin","Mackenzie","Sofa","North",1499.51]
[null,null,null,null,null,"Jan Kerr","Jan","Kerr","Stereo","South",1494.82]
[null,null,null,null,null,"Liam North","Liam","North","Phone","East",1885.32]
[null,null,null,null,null,"Kimberly Cornish","Kimberly","Cornish","Phone","North",1037.54]
[null,null,null,null,null,"Megan Greene","Megan","Greene","Phone","North",1458.06]
[null,null,null,null,null,"Dorothy Peters","Dorothy","Peters","Sofa","West",1292.95]
[null,null,null,null,null,"Amanda Hudson","Amanda","Hudson","Sofa","South",1760.86]
[null,null,null,null,null,"Justin Hudson","Justin","Hudson","Phone","East",1738.41]
[null,null,null,null,null,"Tracey Greene","Tracey","Greene","Phone","East",1382.53]
[null,null,null,null,null,"Justin Reid","Justin","Reid","Phone","South",1774.84]
[null,null,null,null,null,"Gavin Gibson","Gavin","Gibson","TV","North",1999.64]
[null,null,null,null,null,"Adrian Hemmings","Adrian","Hemmings","Phone","West",1383.05]
[null,null,null,null,null,"Luke Dyer","Luke","Dyer","Phone","East",1326.01]
[null,null,null,null,null,"Thomas Butler","Thomas","Butler","Phone","South",1586.47]
[null,null,null,null,null,"Felicity Newman","Felicity","Newman","Stereo","North",1753.52]
[null,null,null,null,null,"Mary Vance","Mary","Vance","Sofa","North",1424.71]
[null,null,null,null,null,"Sarah Watson","Sarah","Watson","TV","East",1630.02]
[null,null,null,null,null,"Nathan Wallace","Nathan","Wallace","TV","South",1369.11]
[null,null,null,null,null,"Justin Bower","Justin","Bower","Phone","West",1064.72]
[null,null,null,null,null,"Blake Sharp","Blake","Sharp","Laptop","South",1781.79]
[null,null,null,null,null,"Justin McGrath","Justin","McGrath","Stereo","North",1487.12]
[null,null,null,null,null,"Luke Ogden","Luke","Ogden","TV","North",1763.8]
[null,null,null,null,null,"Connor Sanderson","Connor","Sanderson","Laptop","North",1630.4]
[null,null,null,null,null,"Rose Taylor","Rose","Taylor","Stereo","South",1199.49]
[null,null,null,null,null,"Maria Paterson","Maria","Paterson","Laptop","East",1750.05]
[null,null,null,null,null,"Amy Graham","Amy","Graham","Laptop","East",1695.96]
[null,null,null,null,null,"Sean Roberts","Sean","Roberts","Sofa","North",1910.64]
[null,null,null,null,null,"David Sanderson","David","Sanderson","TV","East",1942.76]
[null,null,null,null,null,"Dylan Burgess","Dylan","Burgess","Phone","South",1150.46]
[null,null,null,null,null,"Madeleine Morrison","Madeleine","Morrison","Phone","West",1306.96]
[null,null,null,null,null,"Virginia Lambert","Virginia","Lambert","Laptop","North",1555.39]
[null,null,null,null,null,"Alexander Morrison","Alexander","Morrison","Laptop","North",1842.27]
[null,null,null,null,null,"Warren Stewart","Warren","Stewart","Stereo","East",1219.27]
[null,null,null,null,null,"Sam Hemmings","Sam","Hemmings","Laptop","South",1064.47]
[null,null,null,null,null,"Sonia Clark","Sonia","Clark","Stereo","West",1007.74]
[null,null,null,null,null,"Liam Springer","Liam","Springer","TV","East",1708.3]
[null,null,null,null,null,"Stephen Stewart","Stephen","Stewart","Stereo","West",1109.3599999999999]
[null,null,null,null,null,"Claire Terry","Claire","Terry","Stereo","North",1152.76]
[null,null,null,null,null,"James Poole","James","Poole","Phone","West",1873.79]
[null,null,null,null,null,"Oliver Payne","Oliver","Payne","Sofa","North",1853.59]
[null,null,null,null,null,"Alison Blake","Alison","Blake","Stereo","West",1108.21]
[null,null,null,null,null,"Anne Hemmings","Anne","Hemmings","TV","West",1715.52]
[null,null,null,null,null,"Amanda Smith","Amanda","Smith","Laptop","South",1308.7]
[null,null,null,null,null,"Nathan Jackson","Nathan","Jackson","Laptop","North",1641.24]
[null,null,null,null,null,"Keith Reid","Keith","Reid","Sofa","South",1776.59]
[null,null,null,null,null,"Peter Dickens","Peter","Dickens","Sofa","North",1948.32]
[null,null,null,null,null,"Melanie Bailey","Melanie","Bailey","Laptop","North",1765.64]
[null,null,null,null,null,"Alexandra Dyer","Alexandra","Dyer","Stereo","East",1688.37]
[null,null,null,null,null,"Irene Walker","Irene","Walker","Stereo","South",1412.43]
[null,null,null,null,null,"John Fisher","John","Fisher","Sofa","South",1935.91]
[null,null,null,null,null,"Ruth Miller","Ruth","Miller","TV","South",1148.32]
[null,null,null,null,null,"Ella Hemmings","Ella","Hemmings","Stereo","East",1786.72]
[null,null,null,null,null,"Una Buckland","Una","Buckland","TV","North",1453.23]
[null,null,null,null,null,"Colin Quinn","Colin","Quinn","Stereo","West",1146.27]
[null,null,null,null,null,"Dorothy Arnold","Dorothy","Arnold","Stereo","North",1311.63]
[null,null,null,null,null,"Diana Forsyth","Diana","Forsyth","Phone","North",1689.25]
[null,null,null,null,null,"Abigail Gray","Abigail","Gray","Stereo","East",1627.48]
[null,null,null,null,null,"Carol Simpson","Carol","Simpson","Phone","South",1361.19]
[null,null,null,null,null,"Jessica Piper","Jessica","Piper","Laptop","South",1845.92]
[null,null,null,null,null,"Ava Fraser","Ava","Fraser","Laptop","West",1916.17]
[null,null,null,null,null,"Jasmine Ellison","Jasmine","Ellison","Phone","East",1177.28]
[null,null,null,null,null,"Sarah Forsyth","Sarah","Forsyth","Phone","West",1557.41]
[null,null,null,null,null,"Rachel Parsons","Rachel","Parsons","TV","West",1814.62]
[null,null,null,null,null,"Gavin Greene","Gavin","Greene","Laptop","West",1947.13]
[null,null,null,null,null,"Harry Simpson","Harry","Simpson","TV","North",1872.03]
[null,null,null,null,null,"Dominic Duncan","Dominic","Duncan","Sofa","West",1159.81]
[null,null,null,null,null,"Austin Rampling","Austin","Rampling","Sofa","North",1668.3]
[null,null,null,null,null,"Edward Wilson","Edward","Wilson","TV","South",1471.67]
[null,null,null,null,null,"Brian Wilkins","Brian","Wilkins","Sofa","South",1091.26]
[null,null,null,null,null,"Keith Miller","Keith","Miller","Stereo","South",1616.53]
[null,null,null,null,null,"Wanda Thomson","Wanda","Thomson","Phone","North",1897.82]
[null,null,null,null,null,"Jennifer Smith","Jennifer","Smith","Phone","East",1152.2]
[null,null,null,null,null,"Eric Kerr","Eric","Kerr","Stereo","North",1836.25]
[null,null,null,null,null,"Karen Hardacre","Karen","Hardacre","Sofa","East",1388.59]
[null,null,null,null,null,"Max Skinner","Max","Skinner","Phone","North",1362.74]
[null,null,null,null,null,"Caroline Manning","Caroline","Manning","Phone","West",1330.09]
[null,null,null,null,null,"Bella Burgess","Bella","Burgess","Phone","South",1791.35]
[null,null,null,null,null,"Virginia Morgan","Virginia","Morgan","Sofa","North",1080.05]
[null,null,null,null,null,"Sally Bower","Sally","Bower","TV","West",1727.9]
[null,null,null,null,null,"Piers Walsh","Piers","Walsh","Phone","East",1433.12]
[null,null,null,null,null,"Jake McGrath","Jake","McGrath","Stereo","South",1021.85]
[null,null,null,null,null,"Dorothy Hardacre","Dorothy","Hardacre","Stereo","North",1184.42]
[null,null,null,null,null,"Alexandra Black","Alexandra","Black","Stereo","West",1096.57]
[null,null,null,null,null,"Diana Slater","Diana","Slater","Sofa","East",1505.66]
[null,null,null,null,null,"Jake Hodges","Jake","Hodges","Laptop","East",1653.94]
[null,null,null,null,null,"Adam Jackson","Adam","Jackson","TV","North",1632.29]
[null,null,null,null,null,"Alan Hunter","Alan","Hunter","TV","East",1694.47]
[null,null,null,null,null,"Sarah Paterson","Sarah","Paterson","Sofa","East",1147.58]
[null,null,null,null,null,"Ella Payne","Ella","Payne","Sofa","East",1904.22]
[null,null,null,null,null,"Carol Hemmings","Carol","Hemmings","Stereo","East",1715.63]
[null,null,null,null,null,"Nicholas Berry","Nicholas","Berry","Laptop","West",1451.12]
[null,null,null,null,null,"Lauren Hunter","Lauren","Hunter","Phone","North",1932.38]
[null,null,null,null,null,"Una Ince","Una","Ince","TV","North",1807.48]
[null,null,null,null,null,"Joanne Morgan","Joanne","Morgan","Laptop","South",1141.1400000000001]
[null,null,null,null,null,"Bella Harris","Bella","Harris","TV","West",1029.8599999999999]
[null,null,null,null,null,"Adam Nolan","Adam","Nolan","Phone","West",1610.13]
[null,null,null,null,null,"Victor Berry","Victor","Berry","Stereo","North",1714.16]
[null,null,null,null,null,"John Langdon","John","Langdon","TV","South",1083.93]
[null,null,null,null,null,"Maria Russell","Maria","Russell","Laptop","West",1019.18]
[null,null,null,null,null,"Samantha Churchill","Samantha","Churchill","TV","West",1086.7]
[null,null,null,null,null,"Joan Hart","Joan","Hart","TV","North",1187.8699999999999]
[null,null,null,null,null,"Jason Bailey","Jason","Bailey","Laptop","East",1438.61]
[null,null,null,null,null,"Sonia Poole","Sonia","Poole","Laptop","West",1871.84]
[null,null,null,null,null,"Steven Bailey","Steven","Bailey","Stereo","East",1201.55]
[null,null,null,null,null,"Lisa Langdon","Lisa","Langdon","Sofa","West",1389.76]
[null,null,null,null,null,"Jason McDonald","Jason","McDonald","TV","North",1680.05]
[null,null,null,null,null,"Joan Parsons","Joan","Parsons","Laptop","East",1780.95]
[null,null,null,null,null,"Isaac Gray","Isaac","Gray","Laptop","East",1841.95]
[null,null,null,null,null,"Michael Hardacre","Michael","Hardacre","Stereo","South",1890.78]
[null,null,null,null,null,"Una Rees","Una","Rees","Stereo","North",1502.52]
[null,null,null,null,null,"Grace Dowd","Grace","Dowd","Laptop","North",1319.61]
[null,null,null,null,null,"Bernadette Hunter","Bernadette","Hunter","TV","West",1579.71]
[null,null,null,null,null,"Jane Newman","Jane","Newman","Phone","West",1596.16]
[null,null,null,null,null,"Oliver Miller","Oliver","Miller","Phone","West",1623.34]
[null,null,null,null,null,"Tim Ogden","Tim","Ogden","Stereo","East",1905.31]
[null,null,null,null,null,"Christopher Anderson","Christopher","Anderson","Phone","East",1174.2]
[null,null,null,null,null,"Nicholas King","Nicholas","King","TV","West",1257.82]
[null,null,null,null,null,"Jane Berry","Jane","Berry","Phone","South",1088.24]
[null,null,null,null,null,"Carolyn Wilson","Carolyn","Wilson","Laptop","East",1971.76]
[null,null,null,null,null,"Stephanie Hart","Stephanie","Hart","Sofa","South",1075.58]
[null,null,null,null,null,"Christopher Poole","Christopher","Poole","Phone","South",1686.91]
[null,null,null,null,null,"Bernadette Baker","Bernadette","Baker","Sofa","South",1764.84]
[null,null,null,null,null,"Benjamin Bailey","Benjamin","Bailey","Stereo","East",1990.44]
[null,null,null,null,null,"Bella Bond","Bella","Bond","Phone","East",1505.35]
[null,null,null,null,null,"Maria Walker","Maria","Walker","Phone","North",1089.33]
[null,null,null,null,null,"Natalie Morrison","Natalie","Morrison","TV","South",1569.93]
[null,null,null,null,null,"David Kelly","David","Kelly","Stereo","East",1382.58]
[null,null,null,null,null,"Audrey Bond","Audrey","Bond","Phone","West",1923.2]
[null,null,null,null,null,"Madeleine Metcalfe","Madeleine","Metcalfe","Phone","North",1977.04]
[null,null,null,null,null,"Dorothy Fraser","Dorothy","Fraser","TV","East",1818.01]
[null,null,null,null,null,"Virginia Ellison","Virginia","Ellison","Sofa","South",1517.81]
[null,null,null,null,null,"Carl Gill","Carl","Gill","Laptop","North",1167.92]
[null,null,null,null,null,"Jake Lee","Jake","Lee","Phone","West",1171.6099999999999]
[null,null,null,null,null,"Carol Mills","Carol","Mills","Laptop","South",1006.55]
[null,null,null,null,null,"Sophie Pullman","Sophie","Pullman","Phone","West",1447.37]
[null,null,null,null,null,"Sean Langdon","Sean","Langdon","Sofa","West",1431.34]
[null,null,null,null,null,"Wanda Manning","Wanda","Manning","Laptop","South",1800.08]
[null,null,null,null,null,"Isaac Oliver","Isaac","Oliver","Phone","East",1822.68]
[null,null,null,null,null,"Una Cameron","Una","Cameron","Sofa","East",1267.3499999999999]
[null,null,null,null,null,"Paul Underwood","Paul","Underwood","TV","North",1416.21]
[null,null,null,null,null,"Max Cornish","Max","Cornish","TV","East",1915.81]
[null,null,null,null,null,"Stephanie Peters","Stephanie","Peters","Phone","North",1086.25]
[null,null,null,null,null,"Boris Cornish","Boris","Cornish","TV","East",1095.77]
[null,null,null,null,null,"Simon Jackson","Simon","Jackson","Phone","East",1310.87]
[null,null,null,null,null,"Una Abraham","Una","Abraham","TV","North",1268.1600000000001]
[null,null,null,null,null,"Emma Grant","Emma","Grant","Sofa","North",1836.95]
[null,null,null,null,null,"Carol Springer","Carol","Springer","Phone","West",1603.67]
[null,null,null,null,null,"Joan Hunter","Joan","Hunter","Stereo","East",1258.33]
[null,null,null,null,null,"Joan Hemmings","Joan","Hemmings","Sofa","East",1440.49]
[null,null,null,null,null,"Heather Miller","Heather","Miller","Sofa","South",1406.09]
[null,null,null,null,null,"Harry Duncan","Harry","Duncan","Phone","West",1181.67]
[null,null,null,null,null,"Ian Morgan","Ian","Morgan","Phone","West",1298.23]
[null,null,null,null,null,"Frank Russell","Frank","Russell","Stereo","South",1547.92]
[null,null,null,null,null,"Luke Butler","Luke","Butler","TV","West",1805.31]
[null,null,null,null,null,"Virginia Henderson","Virginia","Henderson","Phone","West",1106.94]
[null,null,null,null,null,"Harry McGrath","Harry","McGrath","Laptop","North",1809.6]
[null,null,null,null,null,"Warren Wright","Warren","Wright","Stereo","North",1634.29]
[null,null,null,null,null,"Lillian Jones","Lillian","Jones","Phone","East",1486.98]
[null,null,null,null,null,"Liam Burgess","Liam","Burgess","TV","East",1328.92]
[null,null,null,null,null,"Matt Scott","Matt","Scott","TV","West",1605.95]
[null,null,null,null,null,"Anne Wright","Anne","Wright","Sofa","East",1254.9100000000001]
[null,null,null,null,null,"Sue Fraser","Sue","Fraser","Sofa","North",1088.6400000000001]
[null,null,null,null,null,"Dan Wilson","Dan","Wilson","TV","North",1695.08]
[null,null,null,null,null,"Sam Berry","Sam","Berry","Phone","South",1022.71]
[null,null,null,null,null,"Maria Metcalfe","Maria","Metcalfe","Sofa","West",1586.9]
[null,null,null,null,null,"Phil Arnold","Phil","Arnold","Stereo","West",1701.85]
[null,null,null,null,null,"David Terry","David","Terry","TV","South",1565.57]
[null,null,null,null,null,"Maria Johnston","Maria","Johnston","Stereo","North",1475.95]
[null,null,null,null,null,"Kevin Hill","Kevin","Hill","Stereo","North",1265.1300000000001]
[null,null,null,null,null,"Sebastian Cameron","Sebastian","Cameron","Laptop","North",1634.84]
[null,null,null,null,null,"Una Clark","Una","Clark","TV","West",1103]
[null,null,null,null,null,"Jonathan Welch","Jonathan","Welch","Stereo","North",1680.16]
[null,null,null,null,null,"Joshua Hart","Joshua","Hart","TV","South",1539.81]
[null,null,null,null,null,"Benjamin Scott","Benjamin","Scott","Stereo","North",1209.6600000000001]
[null,null,null,null,null,"Chloe Burgess","Chloe","Burgess","Sofa","South",1827.43]
[null,null,null,null,null,"Maria Springer","Maria","Springer","Stereo","North",1243.5899999999999]
[null,null,null,null,null,"Elizabeth Dickens","Elizabeth","Dickens","TV","North",1331.66]
[null,null,null,null,null,"Victor Ellison","Victor","Ellison","Laptop","North",1901.79]
[null,null,null,null,null,"Amy Allan","Amy","Allan","Laptop","West",1268.45]
[null,null,null,null,null,"Ian Hughes","Ian","Hughes","Phone","West",1485.41]
[null,null,null,null,null,"Yvonne Allan","Yvonne","Allan","Sofa","South",1231.8699999999999]
[null,null,null,null,null,"Benjamin Jones","Benjamin","Jones","Stereo","East",1703.85]
[null,null,null,null,null,"Sean King","Sean","King","Laptop","East",1145.6600000000001]
[null,null,null,null,null,"Fiona Hart","Fiona","Hart","TV","North",1057.67]
[null,null,null,null,null,"Andrew Vance","Andrew","Vance","Phone","North",1233.6400000000001]
[null,null,null,null,null,"Faith Bell","Faith","Bell","Phone","West",1553.88]
[null,null,null,null,null,"Jane Russell","Jane","Russell","Phone","South",1938.89]
[null,null,null,null,null,"Stephanie Arnold","Stephanie","Arnold","Laptop","South",1785.07]
[null,null,null,null,null,"Brian Turner","Brian","Turner","Stereo","East",1274.6099999999999]
[null,null,null,null,null,"Emma Bower","Emma","Bower","Phone","South",1027.1099999999999]
[null,null,null,null,null,"Lily May","Lily","May","Sofa","West",1197.24]
[null,null,null,null,null,"Gabrielle Oliver","Gabrielle","Oliver","Laptop","South",1562.45]
[null,null,null,null,null,"Isaac Poole","Isaac","Poole","Stereo","North",1556.97]
[null,null,null,null,null,"Natalie Tucker","Natalie","Tucker","Phone","West",1555.66]
[null,null,null,null,null,"Warren North","Warren","North","Stereo","East",1135.67]
[null,null,null,null,null,"Stewart Gibson","Stewart","Gibson","Sofa","West",1220.6300000000001]
[null,null,null,null,null,"Keith Paige","Keith","Paige","Laptop","North",1759.39]
[null,null,null,null,null,"Paul Newman","Paul","Newman","Stereo","East",1114.0999999999999]
[null,null,null,null,null,"Grace Watson","Grace","Watson","Laptop","East",1848.61]
[null,null,null,null,null,"Kimberly Underwood","Kimberly","Underwood","Stereo","North",1209.19]
[null,null,null,null,null,"Victor Morrison","Victor","Morrison","Phone","North",1253.8800000000001]
[null,null,null,null,null,"Rebecca Bower","Rebecca","Bower","Stereo","West",1395.7]
[null,null,null,null,null,"Steven Miller","Steven","Miller","Laptop","West",1468.39]
[null,null,null,null,null,"Rachel Lewis","Rachel","Lewis","Sofa","East",1194.93]
[null,null,null,null,null,"Emily Hamilton","Emily","Hamilton","Sofa","North",1403.94]
[null,null,null,null,null,"Adam Jones","Adam","Jones","Stereo","North",1539.55]
[null,null,null,null,null,"Vanessa Edmunds","Vanessa","Edmunds","Sofa","East",1707.62]
[null,null,null,null,null,"Leah Avery","Leah","Avery","Sofa","East",1192.57]
[null,null,null,null,null,"Natalie Hudson","Natalie","Hudson","Laptop","South",1542.37]
[null,null,null,null,null,"Jacob Martin","Jacob","Martin","TV","East",1910.73]
[null,null,null,null,null,"Caroline Ross","Caroline","Ross","TV","North",1288.1099999999999]
[null,null,null,null,null,"Joanne Rees","Joanne","Rees","Phone","North",1088.3]
[null,null,null,null,null,"Rose Campbell","Rose","Campbell","Stereo","South",1978.7]
[null,null,null,null,null,"Chloe Cameron","Chloe","Cameron","Stereo","North",1198.79]
[null,null,null,null,null,"Leonard Hill","Leonard","Hill","TV","North",1330.87]
[null,null,null,null,null,"Victor Clarkson","Victor","Clarkson","TV","East",1554.06]
[null,null,null,null,null,"Steven Dickens","Steven","Dickens","Sofa","South",1964.09]
[null,null,null,null,null,"Kevin Pullman","Kevin","Pullman","TV","North",1983.17]
[null,null,null,null,null,"Matt Hunter","Matt","Hunter","Phone","North",1668.44]
[null,null,null,null,null,"Gordon Walsh","Gordon","Walsh","Stereo","South",1674.88]
[null,null,null,null,null,"Audrey Baker","Audrey","Baker","Stereo","West",1850.14]
[null,null,null,null,null,"Lauren Terry","Lauren","Terry","Phone","East",1185.46]
[null,null,null,null,null,"Audrey Carr","Audrey","Carr","TV","West",1263.7]
[null,null,null,null,null,"Leonard Parsons","Leonard","Parsons","Phone","South",1986.28]
[null,null,null,null,null,"Michael Bower","Michael","Bower","Laptop","West",1531.9]
[null,null,null,null,null,"Una Hughes","Una","Hughes","Stereo","West",1080.24]
[null,null,null,null,null,"Alexander Vance","Alexander","Vance","Phone","West",1646.43]
[null,null,null,null,null,"Jennifer Jackson","Jennifer","Jackson","Sofa","South",1190.76]
[null,null,null,null,null,"Theresa Ince","Theresa","Ince","TV","East",1530.12]
[null,null,null,null,null,"Penelope Morgan","Penelope","Morgan","Stereo","South",1670.96]
[null,null,null,null,null,"Neil Fraser","Neil","Fraser","Laptop","West",1625.83]
[null,null,null,null,null,"Stephanie Peake","Stephanie","Peake","Sofa","East",1147.57]
[null,null,null,null,null,"Gordon Thomson","Gordon","Thomson","Sofa","North",1968.08]
[null,null,null,null,null,"Gavin Fraser","Gavin","Fraser","TV","East",1762.57]
[null,null,null,null,null,"Christopher Harris","Christopher","Harris","Phone","North",1423.17]
[null,null,null,null,null,"Kimberly Paterson","Kimberly","Paterson","Phone","East",1976.01]
[null,null,null,null,null,"Stephen Piper","Stephen","Piper","Stereo","North",1317.36]
[null,null,null,null,null,"Claire North","Claire","North","Phone","South",1112.1099999999999]
[null,null,null,null,null,"Maria Grant","Maria","Grant","Sofa","West",1408.92]
[null,null,null,null,null,"David Jackson","David","Jackson","Sofa","North",1567.31]
[null,null,null,null,null,"Rose Miller","Rose","Miller","Phone","South",1625.5]
[null,null,null,null,null,"Robert Martin","Robert","Martin","Phone","West",1625.75]
[null,null,null,null,null,"Lucas Tucker","Lucas","Tucker","Laptop","North",1662.09]
[null,null,null,null,null,"Stephanie Rutherford","Stephanie","Rutherford","TV","North",1262.51]
[null,null,null,null,null,"Lucas Metcalfe","Lucas","Metcalfe","Laptop","East",1805.14]
[null,null,null,null,null,"Joe Anderson","Joe","Anderson","Stereo","West",1057.53]
[null,null,null,null,null,"James Berry","James","Berry","TV","West",1571.54]
[null,null,null,null,null,"Steven McGrath","Steven","McGrath","TV","North",1142.23]
[null,null,null,null,null,"Ella Hart","Ella","Hart","TV","North",1026.29]
[null,null,null,null,null,"Pippa Lee","Pippa","Lee","TV","North",1652.61]
[null,null,null,null,null,"Tracey Anderson","Tracey","Anderson","Laptop","West",1976.55]
[null,null,null,null,null,"Ava Davidson","Ava","Davidson","TV","South",1864.06]
[null,null,null,null,null,"Sue Chapman","Sue","Chapman","Phone","East",1613.96]
[null,null,null,null,null,"Faith Dyer","Faith","Dyer","TV","West",1957.82]
[null,null,null,null,null,"William McDonald","William","McDonald","Stereo","North",1817.62]
[null,null,null,null,null,"Felicity Butler","Felicity","Butler","TV","South",1083.99]
[null,null,null,null,null,"Carol Hunter","Carol","Hunter","Stereo","East",1263.82]
[null,null,null,null,null,"Fiona Langdon","Fiona","Langdon","Stereo","West",1577.26]
[null,null,null,null,null,"Samantha Campbell","Samantha","Campbell","TV","North",1942.91]
[null,null,null,null,null,"Cameron Terry","Cameron","Terry","Sofa","East",1140.21]
[null,null,null,null,null,"Kylie Fisher","Kylie","Fisher","TV","South",1431.67]
[null,null,null,null,null,"Ryan James","Ryan","James","TV","North",1402.51]
[null,null,null,null,null,"Gabrielle Ellison","Gabrielle","Ellison","TV","West",1754.61]
[null,null,null,null,null,"Colin Hemmings","Colin","Hemmings","TV","North",1395.85]
[null,null,null,null,null,"Zoe Piper","Zoe","Piper","Laptop","West",1081]
[null,null,null,null,null,"Harry Rampling","Harry","Rampling","Sofa","East",1894.71]
[null,null,null,null,null,"Paul White","Paul","White","TV","West",1135.3800000000001]
[null,null,null,null,null,"Julia Dyer","Julia","Dyer","Laptop","South",1647.7]
[null,null,null,null,null,"Harry Sanderson","Harry","Sanderson","Laptop","South",1804.55]
[null,null,null,null,null,"Dorothy Grant","Dorothy","Grant","Sofa","East",1825.42]
[null,null,null,null,null,"Wanda Bailey","Wanda","Bailey","Phone","West",1767.86]
[null,null,null,null,null,"Amelia Anderson","Amelia","Anderson","Stereo","North",1442.16]
[null,null,null,null,null,"Stewart Lawrence","Stewart","Lawrence","Sofa","South",1574.37]
[null,null,null,null,null,"Fiona Welch","Fiona","Welch","Laptop","North",1669.45]
[null,null,null,null,null,"Natalie Mitchell","Natalie","Mitchell","Sofa","North",1187.18]
[null,null,null,null,null,"Dan Sanderson","Dan","Sanderson","Laptop","North",1870.52]
[null,null,null,null,null,"Natalie Henderson","Natalie","Henderson","Laptop","West",1971.73]
[null,null,null,null,null,"Hannah Oliver","Hannah","Oliver","Phone","South",1092.07]
[null,null,null,null,null,"Megan Marshall","Megan","Marshall","Phone","East",1106.53]
[null,null,null,null,null,"Heather Bond","Heather","Bond","Phone","East",1091.67]
[null,null,null,null,null,"Grace Chapman","Grace","Chapman","Phone","South",1841.9]
[null,null,null,null,null,"Richard Graham","Richard","Graham","Sofa","South",1485.87]
[null,null,null,null,null,"Lauren Tucker","Lauren","Tucker","TV","South",1390.84]
[null,null,null,null,null,"Alexandra Mitchell","Alexandra","Mitchell","TV","South",1150.9000000000001]
[null,null,null,null,null,"Adam Paige","Adam","Paige","Phone","South",1821.53]
[null,null,null,null,null,"Penelope Dickens","Penelope","Dickens","Laptop","West",1454.62]
[null,null,null,null,null,"Keith Nash","Keith","Nash","Phone","North",1550.2]
[null,null,null,null,null,"Kimberly Johnston","Kimberly","Johnston","Laptop","North",1182.51]
[null,null,null,null,null,"Sophie Gill","Sophie","Gill","Stereo","West",1218.1099999999999]
[null,null,null,null,null,"Vanessa Taylor","Vanessa","Taylor","Phone","East",1300.5]
[null,null,null,null,null,"Deirdre MacLeod","Deirdre","MacLeod","Stereo","East",1267.93]
[null,null,null,null,null,"Anna Jackson","Anna","Jackson","TV","South",1636.15]
[null,null,null,null,null,"Max McGrath","Max","McGrath","Laptop","East",1997.62]
[null,null,null,null,null,"Victor MacLeod","Victor","MacLeod","Laptop","South",1754.83]
[null,null,null,null,null,"Ruth Lambert","Ruth","Lambert","Stereo","West",1161.04]
[null,null,null,null,null,"Joanne Skinner","Joanne","Skinner","TV","West",1816.42]
[null,null,null,null,null,"Victoria Coleman","Victoria","Coleman","Stereo","East",1216.28]
[null,null,null,null,null,"Abigail Rutherford","Abigail","Rutherford","TV","East",1807.82]
[null,null,null,null,null,"Samantha Underwood","Samantha","Underwood","Laptop","East",1349.29]
[null,null,null,null,null,"Jake Hunter","Jake","Hunter","TV","North",1530.27]
[null,null,null,null,null,"Nicola Thomson","Nicola","Thomson","TV","North",1778.58]
[null,null,null,null,null,"Michael Vaughan","Michael","Vaughan","TV","East",1945.41]
[null,null,null,null,null,"Diane Murray","Diane","Murray","Phone","North",1132.01]
[null,null,null,null,null,"Alexander Walker","Alexander","Walker","Laptop","West",1921.71]
[null,null,null,null,null,"Austin Bell","Austin","Bell","Laptop","South",1513.86]
[null,null,null,null,null,"Robert Wallace","Robert","Wallace","TV","East",1866.44]
[null,null,null,null,null,"Lauren Hardacre","Lauren","Hardacre","Laptop","East",1735.53]
[null,null,null,null,null,"Angela Ross","Angela","Ross","Laptop","North",1257.33]
[null,null,null,null,null,"Liam Mathis","Liam","Mathis","Phone","West",1996.87]
[null,null,null,null,null,"Virginia Rees","Virginia","Rees","Sofa","East",1077.0899999999999]
[null,null,null,null,null,"Boris Bell","Boris","Bell","Sofa","North",1734.27]
[null,null,null,null,null,"Joe Bell","Joe","Bell","Phone","South",1244.3]
[null,null,null,null,null,"Christian Churchill","Christian","Churchill","TV","South",1698.32]
[null,null,null,null,null,"Neil Ball","Neil","Ball","Sofa","North",1428.1]
[null,null,null,null,null,"Diane Sutherland","Diane","Sutherland","Sofa","West",1254.19]
[null,null,null,null,null,"Rachel Nolan","Rachel","Nolan","Sofa","West",1136.07]
[null,null,null,null,null,"Owen Fisher","Owen","Fisher","Stereo","South",1004.96]
[null,null,null,null,null,"James Morrison","James","Morrison","Stereo","North",1044.8399999999999]
[null,null,null,null,null,"Adam May","Adam","May","Laptop","East",1761.47]
[null,null,null,null,null,"Trevor Underwood","Trevor","Underwood","Laptop","East",1873.07]
[null,null,null,null,null,"Liam Hart","Liam","Hart","Sofa","West",1096.28]
[null,null,null,null,null,"Emma Watson","Emma","Watson","Phone","North",1358.42]
[null,null,null,null,null,"Lisa MacDonald","Lisa","MacDonald","Sofa","East",1483.51]
[null,null,null,null,null,"Bella McGrath","Bella","McGrath","Sofa","West",1971.28]
[null,null,null,null,null,"Ella McLean","Ella","McLean","Phone","South",1259.8699999999999]
[null,null,null,null,null,"Ian Gibson","Ian","Gibson","Laptop","West",1479.19]
[null,null,null,null,null,"Andrew Stewart","Andrew","Stewart","Sofa","East",1450.49]
[null,null,null,null,null,"Gavin Paterson","Gavin","Paterson","Phone","East",1263.31]
[null,null,null,null,null,"Carl Langdon","Carl","Langdon","Stereo","West",1274.6500000000001]
[null,null,null,null,null,"Chloe Murray","Chloe","Murray","Sofa","North",1114.48]
[null,null,null,null,null,"Audrey Stewart","Audrey","Stewart","Laptop","South",1488.02]
[null,null,null,null,null,"Maria Welch","Maria","Welch","Stereo","West",1099.1099999999999]
[null,null,null,null,null,"John Vance","John","Vance","TV","East",1302.98]
[null,null,null,null,null,"Joe Hamilton","Joe","Hamilton","TV","West",1023.28]
[null,null,null,null,null,"Jessica Kerr","Jessica","Kerr","TV","North",1609.75]
[null,null,null,null,null,"Jake Gray","Jake","Gray","Laptop","North",1360.91]
[null,null,null,null,null,"Penelope Kelly","Penelope","Kelly","Sofa","North",1605.56]
[null,null,null,null,null,"Brandon Newman","Brandon","Newman","Laptop","North",1700.66]
[null,null,null,null,null,"Anne Baker","Anne","Baker","Laptop","West",1241.47]
[null,null,null,null,null,"Diana Murray","Diana","Murray","Phone","North",1125.83]
[null,null,null,null,null,"Caroline Martin","Caroline","Martin","Stereo","South",1407.91]
[null,null,null,null,null,"James Parsons","James","Parsons","Laptop","South",1674.75]
[null,null,null,null,null,"Amelia Skinner","Amelia","Skinner","Sofa","North",1498.31]
[null,null,null,null,null,"Maria Ogden","Maria","Ogden","Stereo","South",1127.04]
[null,null,null,null,null,"Maria Nash","Maria","Nash","Phone","South",1898.93]
[null,null,null,null,null,"Yvonne Thomson","Yvonne","Thomson","Stereo","West",1961.74]
[null,null,null,null,null,"Frank Forsyth","Frank","Forsyth","TV","West",1050.69]
[null,null,null,null,null,"Simon Mills","Simon","Mills","Laptop","South",1653.68]
[null,null,null,null,null,"Trevor May","Trevor","May","Laptop","West",1428.99]
[null,null,null,null,null,"Peter North","Peter","North","Laptop","East",1351.08]
[null,null,null,null,null,"Christian Cornish","Christian","Cornish","Stereo","West",1518.8]
[null,null,null,null,null,"Sebastian Avery","Sebastian","Avery","Laptop","East",1311.51]
[null,null,null,null,null,"Penelope Miller","Penelope","Miller","Phone","West",1778.16]
[null,null,null,null,null,"Eric Thomson","Eric","Thomson","TV","North",1634.65]
[null,null,null,null,null,"Brian Burgess","Brian","Burgess","Sofa","North",1485.39]
[null,null,null,null,null,"Steven Burgess","Steven","Burgess","Stereo","West",1012.09]
[null,null,null,null,null,"Felicity Avery","Felicity","Avery","TV","North",1668.77]
[null,null,null,null,null,"Harry Poole","Harry","Poole","Laptop","South",1909.71]
[null,null,null,null,null,"Max Hardacre","Max","Hardacre","Phone","East",1453.43]
[null,null,null,null,null,"Emma Piper","Emma","Piper","Stereo","North",1128.29]
[null,null,null,null,null,"Sue Mackenzie","Sue","Mackenzie","Sofa","East",1251.18]
[null,null,null,null,null,"Alexander White","Alexander","White","TV","North",1693.27]
[null,null,null,null,null,"Diane Cameron","Diane","Cameron","Phone","East",1238.55]
[null,null,null,null,null,"Fiona Campbell","Fiona","Campbell","Phone","North",1900.43]
[null,null,null,null,null,"Dan Paterson","Dan","Paterson","Laptop","West",1858.32]
[null,null,null,null,null,"Kevin Ross","Kevin","Ross","Stereo","West",1199.98]
[null,null,null,null,null,"Kylie Butler","Kylie","Butler","TV","North",1020.86]
[null,null,null,null,null,"Julia Glover","Julia","Glover","Phone","South",1054.45]
[null,null,null,null,null,"Diane Gill","Diane","Gill","Phone","West",1175.06]
[null,null,null,null,null,"Angela Bailey","Angela","Bailey","Stereo","North",1281.2]
[null,null,null,null,null,"Lucas Reid","Lucas","Reid","Sofa","South",1808.82]
[null,null,null,null,null,"Sam Dowd","Sam","Dowd","Sofa","East",1658.33]
[null,null,null,null,null,"Robert Graham","Robert","Graham","Phone","West",1427.53]
[null,null,null,null,null,"Justin Welch","Justin","Welch","Phone","South",1237.55]
[null,null,null,null,null,"Colin Graham","Colin","Graham","Laptop","South",1891.6]
[null,null,null,null,null,"Madeleine Sutherland","Madeleine","Sutherland","Sofa","West",1323.79]
[null,null,null,null,null,"Julian Lyman","Julian","Lyman","TV","North",1467.24]
[null,null,null,null,null,"Amy Blake","Amy","Blake","Phone","East",1079.6099999999999]
[null,null,null,null,null,"Lily Randall","Lily","Randall","Phone","South",1397.84]
[null,null,null,null,null,"Carl Ellison","Carl","Ellison","Stereo","East",1839.63]
[null,null,null,null,null,"Lillian Churchill","Lillian","Churchill","Phone","West",1031.3800000000001]
[null,null,null,null,null,"Jake Ferguson","Jake","Ferguson","Sofa","East",1808.41]
[null,null,null,null,null,"Joshua Howard","Joshua","Howard","Phone","South",1837.28]
[null,null,null,null,null,"Amanda Rutherford","Amanda","Rutherford","Laptop","North",1090.3599999999999]
[null,null,null,null,null,"Stephanie Powell","Stephanie","Powell","Stereo","North",1713.29]
[null,null,null,null,null,"James Quinn","James","Quinn","Sofa","South",1820.26]
[null,null,null,null,null,"Samantha Miller","Samantha","Miller","Phone","West",1093.06]
[null,null,null,null,null,"Lucas May","Lucas","May","Phone","East",1565.51]
[null,null,null,null,null,"Stewart Ferguson","Stewart","Ferguson","Laptop","South",1489]
[null,null,null,null,null,"Leah Hamilton","Leah","Hamilton","Stereo","North",1158.3399999999999]
[null,null,null,null,null,"Phil Greene","Phil","Greene","Stereo","East",1257.31]
[null,null,null,null,null,"Lauren Russell","Lauren","Russell","Laptop","East",1481.59]
[null,null,null,null,null,"Joseph Bower","Joseph","Bower","TV","South",1918.05]
[null,null,null,null,null,"Gordon MacLeod","Gordon","MacLeod","Sofa","East",1949.18]
[null,null,null,null,null,"Pippa Black","Pippa","Black","Phone","East",1952.82]
[null,null,null,null,null,"Julia Mathis","Julia","Mathis","Stereo","North",1649.4]
[null,null,null,null,null,"Dylan Dickens","Dylan","Dickens","TV","East",1009.85]
[null,null,null,null,null,"Lauren Simpson","Lauren","Simpson","Stereo","South",1348.92]
[null,null,null,null,null,"Andrew Rampling","Andrew","Rampling","TV","West",1417.72]
[null,null,null,null,null,"Ryan Manning","Ryan","Manning","Laptop","North",1759.75]
[null,null,null,null,null,"Joanne Peters","Joanne","Peters","TV","South",1568.62]
[null,null,null,null,null,"Nicola Martin","Nicola","Martin","TV","West",1543.5]
[null,null,null,null,null,"Eric Paige","Eric","Paige","Stereo","North",1543.79]
[null,null,null,null,null,"Emily Welch","Emily","Welch","TV","West",1055.69]
[null,null,null,null,null,"Kimberly Poole","Kimberly","Poole","Laptop","South",1883.46]
[null,null,null,null,null,"Edward Hardacre","Edward","Hardacre","Sofa","West",1949.22]
[null,null,null,null,null,"Luke Walker","Luke","Walker","Laptop","West",1067]
[null,null,null,null,null,"Liam Knox","Liam","Knox","Phone","West",1885.12]
[null,null,null,null,null,"Christian Mills","Christian","Mills","Phone","South",1969.41]
[null,null,null,null,null,"Sean Tucker","Sean","Tucker","Sofa","West",1137.3]
[null,null,null,null,null,"Edward Lyman","Edward","Lyman","Phone","East",1352.55]
[null,null,null,null,null,"Emma Johnston","Emma","Johnston","Laptop","North",1576.36]
[null,null,null,null,null,"Diana Davidson","Diana","Davidson","Phone","East",1264.7]
[null,null,null,null,null,"Boris Jones","Boris","Jones","Laptop","North",1390.59]
[null,null,null,null,null,"Abigail Jackson","Abigail","Jackson","Phone","North",1521.34]
[null,null,null,null,null,"Gordon Burgess","Gordon","Burgess","Sofa","South",1798.19]
[null,null,null,null,null,"Dan Butler","Dan","Butler","Laptop","North",1308.76]
[null,null,null,null,null,"Donna Ferguson","Donna","Ferguson","Stereo","East",1470.09]
[null,null,null,null,null,"Nathan Henderson","Nathan","Henderson","Phone","West",1580.74]
[null,null,null,null,null,"Ryan Quinn","Ryan","Quinn","Laptop","South",1269.45]
[null,null,null,null,null,"Charles Mathis","Charles","Mathis","Laptop","East",1440.94]
[null,null,null,null,null,"Irene Payne","Irene","Payne","Phone","West",1292.72]
[null,null,null,null,null,"Adrian Black","Adrian","Black","Laptop","South",1725.72]
[null,null,null,null,null,"Christian Hill","Christian","Hill","TV","West",1595.44]
[null,null,null,null,null,"Warren Gray","Warren","Gray","Stereo","North",1316.11]
[null,null,null,null,null,"Kevin Coleman","Kevin","Coleman","Phone","West",1522.18]
[null,null,null,null,null,"Donna Chapman","Donna","Chapman","Stereo","West",1495.17]
[null,null,null,null,null,"Simon Berry","Simon","Berry","Laptop","West",1470.27]
[null,null,null,null,null,"Julia Ferguson","Julia","Ferguson","Sofa","East",1620.43]
[null,null,null,null,null,"Richard James","Richard","James","Phone","North",1733.14]
[null,null,null,null,null,"Donna Vaughan","Donna","Vaughan","Laptop","West",1793.46]
[null,null,null,null,null,"Stephanie Kelly","Stephanie","Kelly","Laptop","North",1091.8399999999999]
[null,null,null,null,null,"Paul Smith","Paul","Smith","TV","West",1039.21]
[null,null,null,null,null,"Grace Anderson","Grace","Anderson","Phone","North",1596.82]
[null,null,null,null,null,"Rebecca Sanderson","Rebecca","Sanderson","Stereo","North",1393.74]
[null,null,null,null,null,"Olivia Cornish","Olivia","Cornish","Stereo","North",1295]
[null,null,null,null,null,"Joe Morrison","Joe","Morrison","TV","North",1140.97]
[null,null,null,null,null,"Sophie Allan","Sophie","Allan","Sofa","East",1755.68]
[null,null,null,null,null,"Sally Burgess","Sally","Burgess","Laptop","South",1481.52]
[null,null,null,null,null,"Amanda MacDonald","Amanda","MacDonald","Stereo","North",1211.26]
[null,null,null,null,null,"Joe Metcalfe","Joe","Metcalfe","TV","West",1311.9]
[null,null,null,null,null,"Kylie Kelly","Kylie","Kelly","Sofa","South",1566.04]
[null,null,null,null,null,"Una North","Una","North","Laptop","West",1182.51]
[null,null,null,null,null,"Chloe Mackay","Chloe","Mackay","Stereo","South",1756.2]
[null,null,null,null,null,"Blake Graham","Blake","Graham","TV","South",1056.49]
[null,null,null,null,null,"Connor Edmunds","Connor","Edmunds","Phone","East",1272.19]
[null,null,null,null,null,"Dorothy Bower","Dorothy","Bower","Stereo","East",1957.7]
[null,null,null,null,null,"Alexandra Ellison","Alexandra","Ellison","Laptop","West",1834.11]
[null,null,null,null,null,"Grace Knox","Grace","Knox","Laptop","South",1497.16]
[null,null,null,null,null,"Nathan Mitchell","Nathan","Mitchell","Phone","North",1593.07]
[null,null,null,null,null,"Alexandra Underwood","Alexandra","Underwood","Laptop","South",1100.67]
[null,null,null,null,null,"Vanessa Powell","Vanessa","Powell","TV","South",1854.82]
[null,null,null,null,null,"Robert Manning","Robert","Manning","Stereo","West",1424.91]
[null,null,null,null,null,"Joan Oliver","Joan","Oliver","Phone","South",1426.34]
[null,null,null,null,null,"William Thomson","William","Thomson","Laptop","South",1740.02]
[null,null,null,null,null,"Victoria Edmunds","Victoria","Edmunds","Sofa","South",1801.25]
[null,null,null,null,null,"Isaac Hill","Isaac","Hill","Laptop","East",1113.8800000000001]
[null,null,null,null,null,"Ella Vance","Ella","Vance","Stereo","North",1222.8399999999999]
[null,null,null,null,null,"Amy Peters","Amy","Peters","Sofa","West",1097.3800000000001]
[null,null,null,null,null,"Rebecca Blake","Rebecca","Blake","Sofa","South",1690.02]
[null,null,null,null,null,"Felicity Hart","Felicity","Hart","Phone","West",1393.66]
[null,null,null,null,null,"Faith Lyman","Faith","Lyman","TV","West",1631.49]
[null,null,null,null,null,"Lillian Sharp","Lillian","Sharp","Stereo","East",1422.72]
[null,null,null,null,null,"Wanda Metcalfe","Wanda","Metcalfe","Sofa","North",1677.57]
[null,null,null,null,null,"Carol Piper","Carol","Piper","Phone","West",1540.53]
[null,null,null,null,null,"Julia Buckland","Julia","Buckland","Phone","West",1799.02]
[null,null,null,null,null,"Andrea McLean","Andrea","McLean","Laptop","South",1650.72]
[null,null,null,null,null,"Ruth Edmunds","Ruth","Edmunds","Laptop","South",1048.58]
[null,null,null,null,null,"Dorothy Underwood","Dorothy","Underwood","Phone","North",1587.49]
[null,null,null,null,null,"Carolyn Davies","Carolyn","Davies","TV","North",1217.6400000000001]
[null,null,null,null,null,"John Ellison","John","Ellison","Stereo","East",1557.02]
[null,null,null,null,null,"Amelia Ellison","Amelia","Ellison","Stereo","North",1448.75]
[null,null,null,null,null,"Megan Kerr","Megan","Kerr","TV","East",1193.54]
[null,null,null,null,null,"Melanie Rees","Melanie","Rees","TV","South",1950.46]
[null,null,null,null,null,"Ava Wilson","Ava","Wilson","Phone","North",1122.99]
[null,null,null,null,null,"Owen Powell","Owen","Powell","Stereo","North",1800.62]
[null,null,null,null,null,"Natalie Roberts","Natalie","Roberts","Sofa","West",1797.2]
[null,null,null,null,null,"Piers McDonald","Piers","McDonald","Laptop","East",1682.88]
[null,null,null,null,null,"Megan Metcalfe","Megan","Metcalfe","Stereo","East",1037.44]
[null,null,null,null,null,"Anne Ferguson","Anne","Ferguson","TV","West",1531.42]
[null,null,null,null,null,"Donna Alsop","Donna","Alsop","Phone","North",1869.83]
[null,null,null,null,null,"Warren Young","Warren","Young","TV","East",1167.03]
[null,null,null,null,null,"Benjamin Nolan","Benjamin","Nolan","Sofa","South",1807.74]
[null,null,null,null,null,"Christian Parr","Christian","Parr","Phone","West",1709.62]
[null,null,null,null,null,"Irene Walsh","Irene","Walsh","Sofa","East",1357.09]
[null,null,null,null,null,"Natalie Skinner","Natalie","Skinner","TV","East",1046.8399999999999]
[null,null,null,null,null,"Angela Chapman","Angela","Chapman","Sofa","North",1932.33]
[null,null,null,null,null,"Austin Dickens","Austin","Dickens","TV","East",1014.58]
[null,null,null,null,null,"Jake Manning","Jake","Manning","TV","South",1417.14]
[null,null,null,null,null,"Max Lewis","Max","Lewis","Sofa","East",1055.1199999999999]
[null,null,null,null,null,"Jacob Blake","Jacob","Blake","Phone","West",1941.94]
[null,null,null,null,null,"Alison Rutherford","Alison","Rutherford","Sofa","West",1959.88]
[null,null,null,null,null,"Wendy Forsyth","Wendy","Forsyth","Stereo","North",1656.92]
[null,null,null,null,null,"Phil Ince","Phil","Ince","Stereo","East",1368.42]
[null,null,null,null,null,"Diane Hudson","Diane","Hudson","Phone","East",1954.13]
[null,null,null,null,null,"Anthony Ellison","Anthony","Ellison","Sofa","East",1359.78]
[null,null,null,null,null,"Joseph Mills","Joseph","Mills","Sofa","North",1251.72]
[null,null,null,null,null,"Anna Payne","Anna","Payne","Phone","West",1175.51]
[null,null,null,null,null,"Claire Bell","Claire","Bell","Sofa","North",1479.03]
[null,null,null,null,null,"Adam Rees","Adam","Rees","Stereo","West",1589.02]
[null,null,null,null,null,"Joan Bower","Joan","Bower","Stereo","North",1955.89]
[null,null,null,null,null,"Katherine Watson","Katherine","Watson","Laptop","North",1793.65]
[null,null,null,null,null,"Jane Sharp","Jane","Sharp","Sofa","West",1139.75]
[null,null,null,null,null,"Samantha Lee","Samantha","Lee","Stereo","West",1440.12]
[null,null,null,null,null,"Emily Lewis","Emily","Lewis","Laptop","South",1510.89]
[null,null,null,null,null,"Matt Forsyth","Matt","Forsyth","Phone","East",1113.47]
[null,null,null,null,null,"Victoria Ellison","Victoria","Ellison","Laptop","South",1156.17]
[null,null,null,null,null,"Lillian Hudson","Lillian","Hudson","TV","South",1441.04]
[null,null,null,null,null,"Andrea Greene","Andrea","Greene","Sofa","North",1600.79]
[null,null,null,null,null,"Leah Baker","Leah","Baker","TV","East",1856.96]
[null,null,null,null,null,"Madeleine Bower","Madeleine","Bower","Sofa","West",1803.13]
[null,null,null,null,null,"Abigail Miller","Abigail","Miller","Sofa","North",1368.83]
[null,null,null,null,null,"Peter Taylor","Peter","Taylor","Phone","South",1971.58]
[null,null,null,null,null,"Dominic Johnston","Dominic","Johnston","Laptop","South",1930.71]
[null,null,null,null,null,"Alexandra Hudson","Alexandra","Hudson","Phone","West",1996.72]
[null,null,null,null,null,"Emma Pullman","Emma","Pullman","Stereo","West",1911.59]
[null,null,null,null,null,"Felicity Skinner","Felicity","Skinner","Laptop","North",1254.22]
[null,null,null,null,null,"Lily Wright","Lily","Wright","Sofa","North",1515.44]
[null,null,null,null,null,"Diane Smith","Diane","Smith","Stereo","North",1764.66]
[null,null,null,null,null,"Amelia Powell","Amelia","Powell","TV","North",1319.48]
[null,null,null,null,null,"Piers Coleman","Piers","Coleman","Phone","West",1596.82]
[null,null,null,null,null,"Zoe Lyman","Zoe","Lyman","Stereo","West",1707.82]
[null,null,null,null,null,"Michael Dowd","Michael","Dowd","Laptop","South",1705.07]
[null,null,null,null,null,"Samantha Quinn","Samantha","Quinn","Sofa","South",1225.3900000000001]
[null,null,null,null,null,"Steven Walker","Steven","Walker","Sofa","West",1333.14]
[null,null,null,null,null,"Blake Watson","Blake","Watson","Phone","East",1331.84]
[null,null,null,null,null,"Ryan Johnston","Ryan","Johnston","Stereo","East",1708.2]
[null,null,null,null,null,"Joanne May","Joanne","May","Laptop","North",1609.7]
[null,null,null,null,null,"Frank Duncan","Frank","Duncan","Stereo","North",1413.85]
[null,null,null,null,null,"Irene Buckland","Irene","Buckland","Laptop","East",1052.3699999999999]
[null,null,null,null,null,"Madeleine Hamilton","Madeleine","Hamilton","Laptop","East",1593.48]
[null,null,null,null,null,"Joseph Black","Joseph","Black","Phone","East",1305.93]
[null,null,null,null,null,"Stephen Ince","Stephen","Ince","TV","East",1196.31]
[null,null,null,null,null,"Ella Ball","Ella","Ball","Sofa","West",1973.1]
[null,null,null,null,null,"Olivia Mackenzie","Olivia","Mackenzie","Sofa","North",1800.7]
[null,null,null,null,null,"Karen Clarkson","Karen","Clarkson","Laptop","South",1040.6300000000001]
[null,null,null,null,null,"Austin Murray","Austin","Murray","Stereo","West",1763.12]
[null,null,null,null,null,"Charles Duncan","Charles","Duncan","Sofa","East",1191]
[null,null,null,null,null,"Megan Jackson","Megan","Jackson","Stereo","South",1887.71]
[null,null,null,null,null,"Steven Terry","Steven","Terry","TV","East",1762.96]
[null,null,null,null,null,"Keith Burgess","Keith","Burgess","Phone","South",1397.49]
[null,null,null,null,null,"Ava Mills","Ava","Mills","Sofa","North",1987.31]
[null,null,null,null,null,"Andrea Kerr","Andrea","Kerr","Sofa","North",1195.98]
[null,null,null,null,null,"Christian Sutherland","Christian","Sutherland","TV","East",1065.79]
[null,null,null,null,null,"Caroline King","Caroline","King","Stereo","West",1353.02]
[null,null,null,null,null,"Sally Slater","Sally","Slater","Laptop","North",1921.03]
[null,null,null,null,null,"Andrew Mitchell","Andrew","Mitchell","Sofa","East",1949.3]
[null,null,null,null,null,"Anne Johnston","Anne","Johnston","Phone","South",1082.6199999999999]
[null,null,null,null,null,"Lauren Sanderson","Lauren","Sanderson","Phone","East",1806.76]
[null,null,null,null,null,"Christopher Walsh","Christopher","Walsh","TV","East",1755.39]
[null,null,null,null,null,"Isaac Duncan","Isaac","Duncan","Sofa","North",1911.15]
[null,null,null,null,null,"Katherine Grant","Katherine","Grant","Laptop","West",1618.77]
[null,null,null,null,null,"Brian Howard","Brian","Howard","TV","West",1074.5]
[null,null,null,null,null,"David Lewis","David","Lewis","Laptop","West",1657.14]
[null,null,null,null,null,"Adrian Russell","Adrian","Russell","TV","West",1576.28]
[null,null,null,null,null,"Penelope Lambert","Penelope","Lambert","TV","East",1670.27]
[null,null,null,null,null,"Dylan Hart","Dylan","Hart","Phone","South",1332.47]
[null,null,null,null,null,"Carolyn Morrison","Carolyn","Morrison","TV","West",1955.64]
[null,null,null,null,null,"John Walsh","John","Walsh","Laptop","South",1469.62]
[null,null,null,null,null,"Gordon Buckland","Gordon","Buckland","Laptop","East",1390.23]
[null,null,null,null,null,"Christian Ogden","Christian","Ogden","Sofa","West",1404.11]
[null,null,null,null,null,"Peter Glover","Peter","Glover","TV","South",1961.88]
[null,null,null,null,null,"Trevor Forsyth","Trevor","Forsyth","Stereo","South",1732.83]
[null,null,null,null,null,"Victor Blake","Victor","Blake","Phone","West",1094.1300000000001]
[null,null,null,null,null,"Dan Davies","Dan","Davies","Stereo","North",1298.48]
[null,null,null,null,null,"Hannah May","Hannah","May","Phone","East",1719.36]
[null,null,null,null,null,"Ruth Smith","Ruth","Smith","Laptop","East",1844.59]
[null,null,null,null,null,"Wanda Cornish","Wanda","Cornish","TV","West",1054.18]
[null,null,null,null,null,"Liam Hemmings","Liam","Hemmings","Laptop","West",1161.71]
[null,null,null,null,null,"Wanda Lawrence","Wanda","Lawrence","TV","South",1623.67]
[null,null,null,null,null,"Luke Nash","Luke","Nash","Stereo","South",1693.23]
[null,null,null,null,null,"Grace McLean","Grace","McLean","Sofa","South",1390.5]
[null,null,null,null,null,"Lillian Walsh","Lillian","Walsh","Sofa","North",1986.79]
[null,null,null,null,null,"Alan North","Alan","North","Phone","North",1521.86]
[null,null,null,null,null,"Keith Hardacre","Keith","Hardacre","Sofa","South",1647.32]
[null,null,null,null,null,"Elizabeth Wilkins","Elizabeth","Wilkins","Sofa","North",1149.4000000000001]
[null,null,null,null,null,"Liam Alsop","Liam","Alsop","Stereo","West",1406.29]
[null,null,null,null,null,"Boris Avery","Boris","Avery","Laptop","North",1955.22]
[null,null,null,null,null,"Carolyn Mitchell","Carolyn","Mitchell","Phone","South",1546.81]
[null,null,null,null,null,"Julian Metcalfe","Julian","Metcalfe","Laptop","North",1603.72]
[null,null,null,null,null,"Carl Harris","Carl","Harris","Stereo","East",1117.8499999999999]
[null,null,null,null,null,"Liam Bell","Liam","Bell","Sofa","East",1576.27]
[null,null,null,null,null,"Wanda Marshall","Wanda","Marshall","Sofa","South",1733.19]
[null,null,null,null,null,"Austin Roberts","Austin","Roberts","Laptop","East",1830.32]
[null,null,null,null,null,"Dominic Morrison","Dominic","Morrison","Sofa","South",1287.72]
[null,null,null,null,null,"Joan Mathis","Joan","Mathis","Stereo","West",1253.9100000000001]
[null,null,null,null,null,"Jennifer Greene","Jennifer","Greene","Laptop","South",1108.77]
[null,null,null,null,null,"Natalie Paige","Natalie","Paige","Stereo","East",1486.12]
[null,null,null,null,null,"Victoria Hudson","Victoria","Hudson","Phone","East",1202.82]
[null,null,null,null,null,"Ruth Mackay","Ruth","Mackay","Laptop","East",1694.89]
[null,null,null,null,null,"Ava McLean","Ava","McLean","TV","North",1030.02]
[null,null,null,null,null,"Harry Allan","Harry","Allan","TV","North",1275.0999999999999]
[null,null,null,null,null,"Piers Dyer","Piers","Dyer","Sofa","North",1307.72]
[null,null,null,null,null,"Fiona Reid","Fiona","Reid","TV","South",1894.48]
[null,null,null,null,null,"Wendy Wilkins","Wendy","Wilkins","TV","East",1040.46]
[null,null,null,null,null,"Stewart Randall","Stewart","Randall","Stereo","East",1807.02]
[null,null,null,null,null,"Owen Gray","Owen","Gray","Sofa","North",1914.39]
[null,null,null,null,null,"Tim Watson","Tim","Watson","TV","East",1181.73]
[null,null,null,null,null,"Christopher Avery","Christopher","Avery","Phone","South",1067.52]
[null,null,null,null,null,"Sam Welch","Sam","Welch","Sofa","West",1292.76]
[null,null,null,null,null,"Lisa Scott","Lisa","Scott","Sofa","South",1290.18]
[null,null,null,null,null,"Joe Lewis","Joe","Lewis","Phone","North",1541.78]
[null,null,null,null,null,"Rose Jones","Rose","Jones","TV","West",1273.23]
[null,null,null,null,null,"Victoria Vaughan","Victoria","Vaughan","Phone","North",1969.55]
[null,null,null,null,null,"Stephen Black","Stephen","Black","Sofa","West",1203.83]
[null,null,null,null,null,"Virginia Slater","Virginia","Slater","Phone","North",1090.25]
[null,null,null,null,null,"Brian Hart","Brian","Hart","Stereo","North",1054.4000000000001]
[null,null,null,null,null,"Luke Rutherford","Luke","Rutherford","Stereo","South",1425.37]
[null,null,null,null,null,"Harry Manning","Harry","Manning","Phone","North",1969.18]
[null,null,null,null,null,"Ella McGrath","Ella","McGrath","Phone","East",1045.06]
[null,null,null,null,null,"Jacob Young","Jacob","Young","Stereo","North",1152.27]
[null,null,null,null,null,"Madeleine Forsyth","Madeleine","Forsyth","TV","South",1293.2]
[null,null,null,null,null,"Andrew Turner","Andrew","Turner","Laptop","North",1762.24]
[null,null,null,null,null,"Zoe Clark","Zoe","Clark","Sofa","West",1541.25]
[null,null,null,null,null,"Michelle Clarkson","Michelle","Clarkson","Sofa","West",1925.58]
[null,null,null,null,null,"David Mitchell","David","Mitchell","Stereo","West",1941.32]
[null,null,null,null,null,"Wendy Hamilton","Wendy","Hamilton","Phone","East",1024.3800000000001]
[null,null,null,null,null,"Vanessa Stewart","Vanessa","Stewart","Stereo","West",1314.57]
[null,null,null,null,null,"Gavin Sharp","Gavin","Sharp","Stereo","East",1202.72]
[null,null,null,null,null,"Jack Bailey","Jack","Bailey","Phone","North",1632.21]
[null,null,null,null,null,"Robert Quinn","Robert","Quinn","Sofa","South",1266.95]
[null,null,null,null,null,"Melanie Lee","Melanie","Lee","Laptop","South",1441.65]
[null,null,null,null,null,"Sally Wilson","Sally","Wilson","Sofa","West",1485.31]
[null,null,null,null,null,"Molly Fraser","Molly","Fraser","Sofa","North",1171.42]
[null,null,null,null,null,"Heather Lambert","Heather","Lambert","Phone","North",1826.81]
[null,null,null,null,null,"Julian Reid","Julian","Reid","Phone","North",1489.63]
[null,null,null,null,null,"Jan Mackay","Jan","Mackay","Stereo","West",1949.36]
[null,null,null,null,null,"Brandon Lee","Brandon","Lee","Laptop","North",1505.9]
[null,null,null,null,null,"Amanda Davies","Amanda","Davies","Laptop","South",1306.8499999999999]
[null,null,null,null,null,"Heather Cornish","Heather","Cornish","Phone","West",1297.27]
[null,null,null,null,null,"Carolyn Hudson","Carolyn","Hudson","Sofa","West",1803.44]
[null,null,null,null,null,"Victor Mackenzie","Victor","Mackenzie","Phone","South",1350.9]
[null,null,null,null,null,"Kevin Russell","Kevin","Russell","Laptop","West",1723.66]
[null,null,null,null,null,"Molly Alsop","Molly","Alsop","Laptop","West",1064]
[null,null,null,null,null,"Carolyn Vaughan","Carolyn","Vaughan","Stereo","West",1634.16]
[null,null,null,null,null,"Isaac Howard","Isaac","Howard","TV","East",1804.66]
[null,null,null,null,null,"Paul Harris","Paul","Harris","Laptop","East",1736.77]
[null,null,null,null,null,"Sue Wilkins","Sue","Wilkins","Laptop","South",1618.37]
[null,null,null,null,null,"Amanda Taylor","Amanda","Taylor","Stereo","East",1654.22]
[null,null,null,null,null,"Julian Forsyth","Julian","Forsyth","Laptop","East",1491.09]
[null,null,null,null,null,"Ian Davies","Ian","Davies","Laptop","West",1444.24]
[null,null,null,null,null,"Jonathan Dickens","Jonathan","Dickens","TV","North",1284.99]
[null,null,null,null,null,"Chloe Marshall","Chloe","Marshall","Sofa","South",1359.37]
[null,null,null,null,null,"Jennifer Kelly","Jennifer","Kelly","TV","West",1770.56]
[null,null,null,null,null,"Alan Lyman","Alan","Lyman","TV","East",1473.75]
[null,null,null,null,null,"Isaac Murray","Isaac","Murray","TV","South",1727.37]
[null,null,null,null,null,"Olivia Wright","Olivia","Wright","Laptop","North",1380.78]
[null,null,null,null,null,"Gordon Peters","Gordon","Peters","Sofa","East",1727.61]
[null,null,null,null,null,"Karen Campbell","Karen","Campbell","Stereo","East",1563.65]
[null,null,null,null,null,"Jack James","Jack","James","Sofa","South",1536.73]
[null,null,null,null,null,"Alexander Kelly","Alexander","Kelly","Laptop","North",1925.44]
[null,null,null,null,null,"Dylan Greene","Dylan","Greene","TV","North",1710.41]
[null,null,null,null,null,"Liam Dickens","Liam","Dickens","Stereo","South",1103.69]
[null,null,null,null,null,"Sam Dyer","Sam","Dyer","Laptop","South",1075.08]
[null,null,null,null,null,"Robert Rees","Robert","Rees","Phone","North",1959.33]
[null,null,null,null,null,"Robert Arnold","Robert","Arnold","Laptop","North",1659.65]
[null,null,null,null,null,"Victor Watson","Victor","Watson","TV","East",1423.61]
[null,null,null,null,null,"Brian Black","Brian","Black","Laptop","South",1340.4]
[null,null,null,null,null,"Ian Russell","Ian","Russell","TV","North",1522.52]
[null,null,null,null,null,"Amanda Jones","Amanda","Jones","TV","West",1403.35]
[null,null,null,null,null,"Benjamin Wallace","Benjamin","Wallace","Phone","North",1133.71]
[null,null,null,null,null,"Dylan Grant","Dylan","Grant","Laptop","North",1385.79]
[null,null,null,null,null,"Amy Abraham","Amy","Abraham","Sofa","North",1304.9100000000001]
[null,null,null,null,null,"Justin Avery","Justin","Avery","Laptop","North",1317.82]
[null,null,null,null,null,"Lillian Blake","Lillian","Blake","Laptop","South",1298.33]
[null,null,null,null,null,"Audrey Bailey","Audrey","Bailey","TV","North",1374.2]
[null,null,null,null,null,"Benjamin Jackson","Benjamin","Jackson","Stereo","East",1007.19]
[null,null,null,null,null,"Carl Morrison","Carl","Morrison","Sofa","South",1039.04]
[null,null,null,null,null,"Joseph Nolan","Joseph","Nolan","Laptop","West",1144.49]
[null,null,null,null,null,"Trevor Fraser","Trevor","Fraser","Stereo","North",1774.25]
[null,null,null,null,null,"Sean Black","Sean","Black","Sofa","West",1818.29]
[null,null,null,null,null,"Chloe King","Chloe","King","TV","South",1178.19]
[null,null,null,null,null,"Paul Mackay","Paul","Mackay","Stereo","West",1246.95]
[null,null,null,null,null,"Sally Parr","Sally","Parr","Sofa","West",1686.64]
[null,null,null,null,null,"Matt Dickens","Matt","Dickens","Sofa","West",1512.9]
[null,null,null,null,null,"Grace Berry","Grace","Berry","TV","North",1009.6]
[null,null,null,null,null,"Luke Kerr","Luke","Kerr","Stereo","West",1039.26]
[null,null,null,null,null,"Sean Ball","Sean","Ball","Phone","South",1167.8699999999999]
[null,null,null,null,null,"Adrian Jackson","Adrian","Jackson","TV","West",1077.3499999999999]
[null,null,null,null,null,"Fiona Gibson","Fiona","Gibson","Stereo","North",1399.47]
[null,null,null,null,null,"Megan Baker","Megan","Baker","TV","East",1077.56]
[null,null,null,null,null,"Paul Oliver","Paul","Oliver","Stereo","North",1107]
[null,null,null,null,null,"Victoria Arnold","Victoria","Arnold","Stereo","West",1293.1099999999999]
[null,null,null,null,null,"Phil Watson","Phil","Watson","Stereo","South",1639.77]
[null,null,null,null,null,"Ava Turner","Ava","Turner","TV","West",1623.14]
[null,null,null,null,null,"Olivia Abraham","Olivia","Abraham","TV","South",1299.22]
[null,null,null,null,null,"Zoe Slater","Zoe","Slater","TV","South",1189.98]
[null,null,null,null,null,"Thomas Mathis","Thomas","Mathis","Sofa","East",1894.7]
[null,null,null,null,null,"David Baker","David","Baker","Sofa","North",1567.04]
[null,null,null,null,null,"Anthony Hemmings","Anthony","Hemmings","Stereo","North",1845.13]
[null,null,null,null,null,"Victor Campbell","Victor","Campbell","Stereo","North",1576.58]
[null,null,null,null,null,"Ruth Reid","Ruth","Reid","Stereo","North",1351.88]
[null,null,null,null,null,"Phil Martin","Phil","Martin","TV","North",1400.57]
[null,null,null,null,null,"Edward Bond","Edward","Bond","Phone","North",1934.59]
[null,null,null,null,null,"Carol Wallace","Carol","Wallace","Sofa","East",1874.97]
[null,null,null,null,null,"Ava Ogden","Ava","Ogden","Stereo","East",1118.8599999999999]
[null,null,null,null,null,"James Grant","James","Grant","Stereo","South",1202.3900000000001]
[null,null,null,null,null,"Sam Mackay","Sam","Mackay","TV","West",1593.67]
[null,null,null,null,null,"Christopher Martin","Christopher","Martin","Phone","West",1926.22]
[null,null,null,null,null,"Jason Oliver","Jason","Oliver","Sofa","North",1777.02]
[null,null,null,null,null,"Cameron Welch","Cameron","Welch","Stereo","East",1307.1300000000001]
[null,null,null,null,null,"Owen Lambert","Owen","Lambert","Stereo","North",1331.86]
[null,null,null,null,null,"Thomas Harris","Thomas","Harris","Phone","South",1953.66]
[null,null,null,null,null,"Leonard Vaughan","Leonard","Vaughan","Phone","North",1190.03]
[null,null,null,null,null,"Gabrielle Duncan","Gabrielle","Duncan","Phone","West",1609.73]
[null,null,null,null,null,"Alexander Avery","Alexander","Avery","Sofa","East",1476.81]
[null,null,null,null,null,"Audrey Fisher","Audrey","Fisher","Phone","East",1118.3800000000001]
[null,null,null,null,null,"Michelle Gray","Michelle","Gray","Stereo","East",1940.38]
[null,null,null,null,null,"Ryan Welch","Ryan","Welch","Stereo","East",1805.96]
[null,null,null,null,null,"Alexandra Thomson","Alexandra","Thomson","Phone","West",1639.69]
[null,null,null,null,null,"Austin Springer","Austin","Springer","Stereo","West",1995.19]
[null,null,null,null,null,"Adam Fisher","Adam","Fisher","Phone","South",1640.46]
[null,null,null,null,null,"Emily Blake","Emily","Blake","Sofa","North",1268.3399999999999]
[null,null,null,null,null,"Evan Springer","Evan","Springer","Sofa","West",1902.95]
[null,null,null,null,null,"Alexander Poole","Alexander","Poole","Phone","South",1445.2]
[null,null,null,null,null,"Christian Ross","Christian","Ross","Sofa","South",1398.89]
[null,null,null,null,null,"Elizabeth McGrath","Elizabeth","McGrath","Stereo","East",1538.03]
[null,null,null,null,null,"Wendy Abraham","Wendy","Abraham","Sofa","West",1508.65]
[null,null,null,null,null,"Zoe Carr","Zoe","Carr","Laptop","East",1584.49]
[null,null,null,null,null,"Theresa Hart","Theresa","Hart","Sofa","East",1002.51]
[null,null,null,null,null,"Una Jackson","Una","Jackson","Phone","South",1659.89]
[null,null,null,null,null,"Charles Anderson","Charles","Anderson","Stereo","East",1754.06]
[null,null,null,null,null,"Rebecca Quinn","Rebecca","Quinn","Phone","East",1037.27]
[null,null,null,null,null,"Kylie Bower","Kylie","Bower","Phone","South",1089.52]
[null,null,null,null,null,"Donna Harris","Donna","Harris","Stereo","South",1552.83]
[null,null,null,null,null,"Sue Poole","Sue","Poole","Stereo","South",1040.04]
[null,null,null,null,null,"Robert Churchill","Robert","Churchill","TV","South",1583.25]
[null,null,null,null,null,"William Gray","William","Gray","TV","North",1351.85]
[null,null,null,null,null,"Megan MacDonald","Megan","MacDonald","Laptop","South",1549.29]
[null,null,null,null,null,"Maria McGrath","Maria","McGrath","Phone","East",1889.9]
[null,null,null,null,null,"Anthony Forsyth","Anthony","Forsyth","Sofa","West",1037.98]
[null,null,null,null,null,"Deirdre Forsyth","Deirdre","Forsyth","Sofa","South",1006.57]
[null,null,null,null,null,"Ryan Murray","Ryan","Murray","TV","East",1846.31]
[null,null,null,null,null,"Jonathan Clark","Jonathan","Clark","Stereo","East",1616.7]
[null,null,null,null,null,"Dylan Bower","Dylan","Bower","Sofa","West",1504.79]
[null,null,null,null,null,"Jasmine Kerr","Jasmine","Kerr","Laptop","West",1701.39]
[null,null,null,null,null,"Christian Dowd","Christian","Dowd","Phone","East",1448.29]
[null,null,null,null,null,"Nicholas Gibson","Nicholas","Gibson","Stereo","North",1323.97]
[null,null,null,null,null,"Justin Pullman","Justin","Pullman","TV","West",1410.96]
[null,null,null,null,null,"Brian Nolan","Brian","Nolan","Stereo","North",1013]
[null,null,null,null,null,"Angela McGrath","Angela","McGrath","Stereo","South",1435.35]
[null,null,null,null,null,"Rose Quinn","Rose","Quinn","Sofa","East",1590.21]
[null,null,null,null,null,"Rachel Nash","Rachel","Nash","Stereo","East",1971.43]
[null,null,null,null,null,"Lisa Morgan","Lisa","Morgan","Sofa","South",1102.8800000000001]
[null,null,null,null,null,"Bella Oliver","Bella","Oliver","Sofa","East",1704.81]
[null,null,null,null,null,"Alexander Dyer","Alexander","Dyer","Laptop","South",1129.4100000000001]
[null,null,null,null,null,"Colin Campbell","Colin","Campbell","Stereo","South",1672.93]
[null,null,null,null,null,"William Poole","William","Poole","Laptop","South",1129.01]
[null,null,null,null,null,"Benjamin Mackenzie","Benjamin","Mackenzie","Stereo","West",1593.77]
[null,null,null,null,null,"Faith McDonald","Faith","McDonald","Laptop","North",1951.9]
[null,null,null,null,null,"John Mackay","John","Mackay","Laptop","East",1783.23]
[null,null,null,null,null,"Julia Fisher","Julia","Fisher","TV","West",1579.45]
[null,null,null,null,null,"Sophie Paige","Sophie","Paige","Sofa","East",1283.56]
[null,null,null,null,null,"Donna Wallace","Donna","Wallace","TV","North",1560.87]
[null,null,null,null,null,"Sue Parsons","Sue","Parsons","Phone","East",1128.22]
[null,null,null,null,null,"Sophie Hodges","Sophie","Hodges","Stereo","South",1702.64]
[null,null,null,null,null,"Michael Harris","Michael","Harris","Phone","North",1348.09]
[null,null,null,null,null,"Rachel Kelly","Rachel","Kelly","Stereo","South",1873.12]
[null,null,null,null,null,"Austin Lee","Austin","Lee","Phone","South",1013.33]
[null,null,null,null,null,"Blake Glover","Blake","Glover","Stereo","South",1256.46]
[null,null,null,null,null,"Charles Burgess","Charles","Burgess","Phone","West",1096.3599999999999]
[null,null,null,null,null,"Keith Short","Keith","Short","Phone","South",1298.56]
[null,null,null,null,null,"Lisa Baker","Lisa","Baker","Stereo","North",1281.07]
[null,null,null,null,null,"Stephanie Howard","Stephanie","Howard","Phone","North",1863.35]
[null,null,null,null,null,"Karen Sharp","Karen","Sharp","Sofa","West",1730.14]
[null,null,null,null,null,"Abigail Campbell","Abigail","Campbell","Laptop","South",1692.53]
[null,null,null,null,null,"Emily Duncan","Emily","Duncan","Phone","East",1552.38]
[null,null,null,null,null,"Una Jones","Una","Jones","Phone","East",1901.27]
[null,null,null,null,null,"Dominic Lawrence","Dominic","Lawrence","Sofa","East",1092.1500000000001]
[null,null,null,null,null,"Stewart Oliver","Stewart","Oliver","TV","West",1554.7]
[null,null,null,null,null,"Adam Hughes","Adam","Hughes","Laptop","West",1907.79]
[null,null,null,null,null,"Andrea Morrison","Andrea","Morrison","Phone","North",1564.94]
[null,null,null,null,null,"David Blake","David","Blake","Laptop","South",1025.8]
[null,null,null,null,null,"Alexander Murray","Alexander","Murray","Laptop","South",1026.26]
[null,null,null,null,null,"Piers Smith","Piers","Smith","Stereo","West",1764.56]
[null,null,null,null,null,"Angela Bower","Angela","Bower","Sofa","South",1412.99]
[null,null,null,null,null,"Grace Parr","Grace","Parr","Stereo","North",1504.18]
[null,null,null,null,null,"Harry Pullman","Harry","Pullman","Laptop","West",1866.99]
[null,null,null,null,null,"Caroline Newman","Caroline","Newman","Sofa","West",1241.78]
[null,null,null,null,null,"Sam Blake","Sam","Blake","Phone","North",1377.74]
[null,null,null,null,null,"Sue Ball","Sue","Ball","Laptop","North",1491.02]
[null,null,null,null,null,"Stephanie Hughes","Stephanie","Hughes","Phone","West",1972.07]
[null,null,null,null,null,"Penelope Fisher","Penelope","Fisher","Stereo","North",1410.08]
[null,null,null,null,null,"Joe Springer","Joe","Springer","TV","South",1508.91]
[null,null,null,null,null,"Dorothy Mitchell","Dorothy","Mitchell","TV","South",1446.28]
[null,null,null,null,null,"Richard Newman","Richard","Newman","Laptop","North",1238.44]
[null,null,null,null,null,"Jennifer Allan","Jennifer","Allan","Laptop","North",1871.39]
[null,null,null,null,null,"Samantha Greene","Samantha","Greene","Phone","East",1058.96]
[null,null,null,null,null,"Stewart Arnold","Stewart","Arnold","Laptop","South",1151.47]
[null,null,null,null,null,"Owen Hill","Owen","Hill","Laptop","West",1031.53]
[null,null,null,null,null,"Jacob Mackenzie","Jacob","Mackenzie","Sofa","South",1122.31]
[null,null,null,null,null,"Keith Blake","Keith","Blake","TV","North",1227.8800000000001]
[null,null,null,null,null,"Caroline Hodges","Caroline","Hodges","Phone","South",1676.8]
[null,null,null,null,null,"Dan Bond","Dan","Bond","TV","North",1937.21]
[null,null,null,null,null,"Thomas Hardacre","Thomas","Hardacre","Phone","North",1756.18]
[null,null,null,null,null,"Joanne Lyman","Joanne","Lyman","Stereo","East",1078.33]
[null,null,null,null,null,"Andrew Rees","Andrew","Rees","Phone","South",1383.67]
[null,null,null,null,null,"Alan Harris","Alan","Harris","Phone","East",1927.8]
[null,null,null,null,null,"Thomas Rutherford","Thomas","Rutherford","Stereo","West",1652.26]
[null,null,null,null,null,"Brian Hamilton","Brian","Hamilton","Stereo","West",1778.59]
[null,null,null,null,null,"Blake Mitchell","Blake","Mitchell","Phone","North",1921.15]
[null,null,null,null,null,"Tim Turner","Tim","Turner","TV","West",1260.0999999999999]
[null,null,null,null,null,"Julian White","Julian","White","TV","East",1332.4]
[null,null,null,null,null,"Amanda Harris","Amanda","Harris","Sofa","South",1438.77]
[null,null,null,null,null,"Owen Pullman","Owen","Pullman","Sofa","South",1299.94]
[null,null,null,null,null,"Max Dowd","Max","Dowd","TV","East",1403.93]
[null,null,null,null,null,"Carol Thomson","Carol","Thomson","Sofa","North",1566.41]
[null,null,null,null,null,"Nicholas MacLeod","Nicholas","MacLeod","TV","South",1428.36]
[null,null,null,null,null,"Stephen Greene","Stephen","Greene","Phone","North",1300.17]
[null,null,null,null,null,"Olivia Chapman","Olivia","Chapman","Laptop","East",1641.4]
[null,null,null,null,null,"Jessica Skinner","Jessica","Skinner","Phone","North",1690.9]
[null,null,null,null,null,"Katherine Sharp","Katherine","Sharp","TV","West",1063.73]
[null,null,null,null,null,"Vanessa Sutherland","Vanessa","Sutherland","TV","South",1185.3599999999999]
[null,null,null,null,null,"Cameron Murray","Cameron","Murray","TV","South",1210.45]
[null,null,null,null,null,"Hannah Grant","Hannah","Grant","Phone","East",1788.34]
[null,null,null,null,null,"Claire Dowd","Claire","Dowd","TV","North",1260.6600000000001]
[null,null,null,null,null,"Eric Bower","Eric","Bower","TV","South",1094.01]
[null,null,null,null,null,"Anne Mathis","Anne","Mathis","Sofa","East",1414.71]
[null,null,null,null,null,"Rose Newman","Rose","Newman","Sofa","East",1285.05]
[null,null,null,null,null,"Brian Smith","Brian","Smith","TV","East",1503.43]
[null,null,null,null,null,"Tracey Edmunds","Tracey","Edmunds","Sofa","North",1713.33]
[null,null,null,null,null,"Sophie Morrison","Sophie","Morrison","Sofa","West",1823.15]
[null,null,null,null,null,"Virginia MacLeod","Virginia","MacLeod","Laptop","West",1809.9]
[null,null,null,null,null,"Thomas Newman","Thomas","Newman","Phone","South",1535.96]
[null,null,null,null,null,"Brandon Springer","Brandon","Springer","TV","South",1082.49]
[null,null,null,null,null,"Ryan Gill","Ryan","Gill","Sofa","North",1849.13]
[null,null,null,null,null,"Piers Gill","Piers","Gill","Stereo","West",1472.85]
[null,null,null,null,null,"Luke Watson","Luke","Watson","Stereo","West",1404.34]
[null,null,null,null,null,"Cameron May","Cameron","May","TV","East",1305.1600000000001]
[null,null,null,null,null,"Katherine Hardacre","Katherine","Hardacre","Laptop","West",1774.45]
[null,null,null,null,null,"Edward Piper","Edward","Piper","Stereo","North",1677.83]
[null,null,null,null,null,"Anne Mackenzie","Anne","Mackenzie","TV","East",1964.63]
[null,null,null,null,null,"Madeleine Avery","Madeleine","Avery","TV","East",1044.3800000000001]
[null,null,null,null,null,"Sam Rampling","Sam","Rampling","Laptop","South",1605.16]
[null,null,null,null,null,"Ruth Tucker","Ruth","Tucker","Sofa","East",1564.1]
[null,null,null,null,null,"Cameron Davidson","Cameron","Davidson","Stereo","East",1286.3800000000001]
[null,null,null,null,null,"Sophie Hemmings","Sophie","Hemmings","Phone","East",1484.28]
[null,null,null,null,null,"Michael Fraser","Michael","Fraser","Stereo","North",1479.6]
[null,null,null,null,null,"Alison Poole","Alison","Poole","Phone","East",1778.15]
[null,null,null,null,null,"Adrian Simpson","Adrian","Simpson","Phone","North",1687.67]
[null,null,null,null,null,"Jan Peters","Jan","Peters","Stereo","West",1561.34]
[null,null,null,null,null,"Christopher May","Christopher","May","Laptop","East",1259.43]
[null,null,null,null,null,"Jennifer McGrath","Jennifer","McGrath","Stereo","West",1272.0899999999999]
[null,null,null,null,null,"Virginia Walsh","Virginia","Walsh","TV","East",1302.75]
[null,null,null,null,null,"Amanda Wallace","Amanda","Wallace","TV","North",1862.34]
[null,null,null,null,null,"William Carr","William","Carr","Sofa","North",1672.98]
[null,null,null,null,null,"Una Skinner","Una","Skinner","TV","West",1039.95]
[null,null,null,null,null,"Paul Scott","Paul","Scott","Phone","South",1210.18]
[null,null,null,null,null,"Evan Ogden","Evan","Ogden","Phone","East",1867.36]
[null,null,null,null,null,"Abigail King","Abigail","King","Sofa","South",1552.81]
[null,null,null,null,null,"Leah Reid","Leah","Reid","Sofa","East",1807.03]
[null,null,null,null,null,"Caroline Black","Caroline","Black","Phone","East",1062.8699999999999]
[null,null,null,null,null,"Anne Bailey","Anne","Bailey","Sofa","West",1453.02]
[null,null,null,null,null,"Phil Allan","Phil","Allan","TV","West",1391.75]
[null,null,null,null,null,"Bernadette Campbell","Bernadette","Campbell","Phone","North",1880.27]
[null,null,null,null,null,"Joanne Payne","Joanne","Payne","Phone","West",1981.89]
[null,null,null,null,null,"Angela May","Angela","May","Laptop","North",1560.75]
[null,null,null,null,null,"Audrey Vaughan","Audrey","Vaughan","TV","South",1590.08]
[null,null,null,null,null,"Tracey Wilkins","Tracey","Wilkins","Phone","North",1875.74]
[null,null,null,null,null,"James Johnston","James","Johnston","Laptop","East",1690.53]
[null,null,null,null,null,"Jake Walsh","Jake","Walsh","Phone","North",1928.13]
[null,null,null,null,null,"Katherine Anderson","Katherine","Anderson","Stereo","East",1275.98]
[null,null,null,null,null,"Julian Manning","Julian","Manning","Sofa","South",1041.92]
[null,null,null,null,null,"Julian Ross","Julian","Ross","Phone","North",1873.47]
[null,null,null,null,null,"Gavin Hodges","Gavin","Hodges","Sofa","East",1399.29]
[null,null,null,null,null,"Phil MacLeod","Phil","MacLeod","Laptop","South",1571.26]
[null,null,null,null,null,"Sarah Anderson","Sarah","Anderson","TV","West",1009.23]
[null,null,null,null,null,"Theresa Lee","Theresa","Lee","Laptop","South",1523.39]
[null,null,null,null,null,"Victor Jackson","Victor","Jackson","TV","South",1093.27]
[null,null,null,null,null,"David MacDonald","David","MacDonald","Sofa","North",1002.41]
[null,null,null,null,null,"Jessica Howard","Jessica","Howard","Sofa","North",1166.67]
[null,null,null,null,null,"Leah Rutherford","Leah","Rutherford","Stereo","West",1856.18]
[null,null,null,null,null,"Felicity Underwood","Felicity","Underwood","TV","East",1011.84]
[null,null,null,null,null,"Eric Sharp","Eric","Sharp","TV","West",1467.18]
[null,null,null,null,null,"Irene Kelly","Irene","Kelly","TV","South",1974.45]
[null,null,null,null,null,"Yvonne McLean","Yvonne","McLean","Phone","East",1814.67]
[null,null,null,null,null,"Audrey Oliver","Audrey","Oliver","Stereo","East",1377.88]
[null,null,null,null,null,"Rebecca Roberts","Rebecca","Roberts","Laptop","West",1933.69]
[null,null,null,null,null,"Simon Forsyth","Simon","Forsyth","Stereo","East",1660.54]
[null,null,null,null,null,"Mary Dickens","Mary","Dickens","Phone","South",1597.34]
[null,null,null,null,null,"Claire Dickens","Claire","Dickens","TV","North",1887.06]
[null,null,null,null,null,"Theresa Walsh","Theresa","Walsh","TV","South",1695.42]
[null,null,null,null,null,"Caroline Burgess","Caroline","Burgess","Stereo","East",1846.12]
[null,null,null,null,null,"Victor Roberts","Victor","Roberts","Stereo","North",1566.47]
[null,null,null,null,null,"Blake Henderson","Blake","Henderson","Sofa","South",1867.93]
[null,null,null,null,null,"Peter Walsh","Peter","Walsh","Sofa","West",1926.81]
[null,null,null,null,null,"Amanda Howard","Amanda","Howard","Laptop","North",1226.24]
[null,null,null,null,null,"Fiona Berry","Fiona","Berry","Sofa","North",1723.89]
[null,null,null,null,null,"Sam Avery","Sam","Avery","Laptop","West",1173.31]
[null,null,null,null,null,"Carl Black","Carl","Black","Phone","East",1959.35]
[null,null,null,null,null,"Chloe Mills","Chloe","Mills","Sofa","East",1665.04]
[null,null,null,null,null,"Christopher Lewis","Christopher","Lewis","TV","South",1557.27]
[null,null,null,null,null,"Jennifer Wallace","Jennifer","Wallace","Laptop","South",1842.53]
[null,null,null,null,null,"Carl Springer","Carl","Springer","TV","West",1278.73]
[null,null,null,null,null,"Yvonne Wilson","Yvonne","Wilson","Sofa","North",1343.93]
[null,null,null,null,null,"Leah Turner","Leah","Turner","Laptop","South",1927.54]
[null,null,null,null,null,"Claire Russell","Claire","Russell","Phone","West",1028.06]
[null,null,null,null,null,"Alexandra Gibson","Alexandra","Gibson","Sofa","South",1350.15]
[null,null,null,null,null,"Wanda Harris","Wanda","Harris","TV","West",1786.16]
[null,null,null,null,null,"Melanie Churchill","Melanie","Churchill","TV","South",1812.02]
[null,null,null,null,null,"Mary Taylor","Mary","Taylor","Stereo","East",1253.5899999999999]
[null,null,null,null,null,"William Glover","William","Glover","Laptop","East",1957.74]
[null,null,null,null,null,"Jack MacLeod","Jack","MacLeod","Sofa","North",1093.93]
[null,null,null,null,null,"Blake Vance","Blake","Vance","TV","North",1232.9000000000001]
[null,null,null,null,null,"Felicity Clarkson","Felicity","Clarkson","Sofa","West",1063.8399999999999]
[null,null,null,null,null,"Connor Turner","Connor","Turner","Stereo","South",1354.6]
[null,null,null,null,null,"Sam Ince","Sam","Ince","TV","East",1276.1099999999999]
[null,null,null,null,null,"Sonia Rutherford","Sonia","Rutherford","Laptop","West",1465.99]
[null,null,null,null,null,"Liam Thomson","Liam","Thomson","Stereo","South",1815.86]
[null,null,null,null,null,"Melanie Vance","Melanie","Vance","Stereo","North",1720.36]
[null,null,null,null,null,"Adam Parsons","Adam","Parsons","Phone","East",1649.18]
[null,null,null,null,null,"Jasmine Murray","Jasmine","Murray","TV","South",1907.67]
[null,null,null,null,null,"Austin Jackson","Austin","Jackson","Stereo","West",1819.64]
[null,null,null,null,null,"Paul Sharp","Paul","Sharp","Laptop","North",1693.77]
[null,null,null,null,null,"Amy Peake","Amy","Peake","Laptop","West",1416.22]
[null,null,null,null,null,"Cameron Tucker","Cameron","Tucker","Laptop","West",1758.93]
[null,null,null,null,null,"Owen Cornish","Owen","Cornish","Stereo","East",1925.99]
[null,null,null,null,null,"Ian Robertson","Ian","Robertson","Phone","East",1454.4]
[null,null,null,null,null,"Carolyn Bell","Carolyn","Bell","Stereo","West",1013.95]
[null,null,null,null,null,"Olivia White","Olivia","White","TV","North",1002.8]
[null,null,null,null,null,"Gabrielle Kerr","Gabrielle","Kerr","Sofa","East",1083.79]
[null,null,null,null,null,"Kimberly Taylor","Kimberly","Taylor","Stereo","South",1798.93]
[null,null,null,null,null,"Lauren Parr","Lauren","Parr","Phone","West",1370.11]
[null,null,null,null,null,"Leah Ferguson","Leah","Ferguson","Laptop","West",1676.7]
[null,null,null,null,null,"Adrian Gray","Adrian","Gray","Phone","East",1475.89]
[null,null,null,null,null,"Donna Lyman","Donna","Lyman","Phone","West",1068.67]
[null,null,null,null,null,"Bella Manning","Bella","Manning","Laptop","South",1286.8399999999999]
[null,null,null,null,null,"Dan Kelly","Dan","Kelly","TV","South",1272.1199999999999]
[null,null,null,null,null,"Tim Coleman","Tim","Coleman","Sofa","North",1391.04]
[null,null,null,null,null,"Sebastian Metcalfe","Sebastian","Metcalfe","Phone","South",1192.5]
[null,null,null,null,null,"Piers Ogden","Piers","Ogden","Sofa","South",1499.53]
[null,null,null,null,null,"Christopher Watson","Christopher","Watson","TV","West",1066.19]
[null,null,null,null,null,"Neil Hemmings","Neil","Hemmings","Phone","East",1855.61]
[null,null,null,null,null,"Claire Ferguson","Claire","Ferguson","Sofa","West",1019.87]
[null,null,null,null,null,"Joan Howard","Joan","Howard","Sofa","West",1614.35]
[null,null,null,null,null,"Oliver Morgan","Oliver","Morgan","Laptop","East",1347.26]
[null,null,null,null,null,"Matt Simpson","Matt","Simpson","Phone","East",1868.91]
[null,null,null,null,null,"Isaac Manning","Isaac","Manning","TV","West",1530.57]
[null,null,null,null,null,"Joanne Underwood","Joanne","Underwood","Stereo","South",1690.28]
[null,null,null,null,null,"Joshua Davidson","Joshua","Davidson","TV","East",1964.69]
[null,null,null,null,null,"Jane Ince","Jane","Ince","Phone","North",1062.31]
[null,null,null,null,null,"Heather Ince","Heather","Ince","Laptop","North",1956.55]
[null,null,null,null,null,"Carl Poole","Carl","Poole","Stereo","South",1428.13]
[null,null,null,null,null,"Karen Hudson","Karen","Hudson","Phone","North",1318.64]
[null,null,null,null,null,"Amy Wright","Amy","Wright","Sofa","North",1886.98]
[null,null,null,null,null,"Christopher Butler","Christopher","Butler","Stereo","South",1665.34]
[null,null,null,null,null,"Bernadette Davies","Bernadette","Davies","Phone","West",1820.21]
[null,null,null,null,null,"Jasmine Powell","Jasmine","Powell","TV","West",1759.61]
[null,null,null,null,null,"Hannah Cornish","Hannah","Cornish","Sofa","West",1024.97]
[null,null,null,null,null,"Jane Wilson","Jane","Wilson","TV","West",1506.49]
[null,null,null,null,null,"Yvonne Berry","Yvonne","Berry","Phone","East",1241.3599999999999]
[null,null,null,null,null,"Tracey Lee","Tracey","Lee","TV","East",1176.28]
[null,null,null,null,null,"Oliver Greene","Oliver","Greene","TV","East",1658.33]
[null,null,null,null,null,"Natalie Ross","Natalie","Ross","Sofa","West",1748.17]
[null,null,null,null,null,"Tracey Duncan","Tracey","Duncan","Sofa","South",1337.46]
[null,null,null,null,null,"Diane Davidson","Diane","Davidson","Phone","South",1482.43]
[null,null,null,null,null,"Edward Walker","Edward","Walker","Sofa","West",1195.82]
[null,null,null,null,null,"Jake Wright","Jake","Wright","TV","North",1955.72]
[null,null,null,null,null,"Tracey Russell","Tracey","Russell","Sofa","North",1036.01]
[null,null,null,null,null,"Jane Cameron","Jane","Cameron","Sofa","North",1074.8499999999999]
[null,null,null,null,null,"Jake Walker","Jake","Walker","TV","West",1119.05]
[null,null,null,null,null,"Christian Peake","Christian","Peake","Stereo","West",1996.23]
[null,null,null,null,null,"Nicola Parr","Nicola","Parr","Sofa","West",1016.18]
[null,null,null,null,null,"Joan Morrison","Joan","Morrison","Phone","West",1364.83]
[null,null,null,null,null,"Jacob Springer","Jacob","Springer","Stereo","West",1049.49]
[null,null,null,null,null,"Boris Nolan","Boris","Nolan","Sofa","North",1375.77]
[null,null,null,null,null,"Lillian Baker","Lillian","Baker","Phone","West",1915.72]
[null,null,null,null,null,"Lisa Peake","Lisa","Peake","TV","North",1400.44]
[null,null,null,null,null,"Nicholas Greene","Nicholas","Greene","Phone","South",1875.23]
[null,null,null,null,null,"Sebastian Rutherford","Sebastian","Rutherford","TV","South",1132.23]
[null,null,null,null,null,"Sue Arnold","Sue","Arnold","Stereo","East",1082.48]
[null,null,null,null,null,"Neil Knox","Neil","Knox","TV","West",1543.97]
[null,null,null,null,null,"Grace Paterson","Grace","Paterson","TV","North",1182.9000000000001]
[null,null,null,null,null,"Frank Gill","Frank","Gill","Phone","South",1764.27]
[null,null,null,null,null,"Jake King","Jake","King","TV","North",1595.98]
[null,null,null,null,null,"Claire Kerr","Claire","Kerr","Sofa","East",1095.3900000000001]
[null,null,null,null,null,"Robert Mills","Robert","Mills","Phone","East",1847.38]
[null,null,null,null,null,"Andrew Hunter","Andrew","Hunter","Sofa","North",1247.3]
[null,null,null,null,null,"Christian Alsop","Christian","Alsop","Laptop","North",1212.96]
[null,null,null,null,null,"Sarah Baker","Sarah","Baker","Sofa","South",1548.02]
[null,null,null,null,null,"Una Harris","Una","Harris","Phone","West",1306.74]
[null,null,null,null,null,"Jennifer Davies","Jennifer","Davies","Stereo","North",1141.22]
[null,null,null,null,null,"Melanie McGrath","Melanie","McGrath","TV","West",1335.52]
[null,null,null,null,null,"Rose Walker","Rose","Walker","Sofa","North",1022.1]
[null,null,null,null,null,"Jane Henderson","Jane","Henderson","Phone","East",1956.27]
[null,null,null,null,null,"Chloe Gibson","Chloe","Gibson","Stereo","West",1115.51]
[null,null,null,null,null,"Sean Vance","Sean","Vance","TV","North",1643.4]
[null,null,null,null,null,"Joshua Alsop","Joshua","Alsop","TV","North",1525.87]
[null,null,null,null,null,"Eric Wilkins","Eric","Wilkins","Laptop","North",1649.24]
[null,null,null,null,null,"Isaac Campbell","Isaac","Campbell","Laptop","South",1420.78]
[null,null,null,null,null,"Penelope Dowd","Penelope","Dowd","Laptop","South",1598.53]
[null,null,null,null,null,"Piers Brown","Piers","Brown","Stereo","East",1029.8]
[null,null,null,null,null,"Nicola Campbell","Nicola","Campbell","Laptop","West",1807.09]
[null,null,null,null,null,"Justin Springer","Justin","Springer","Laptop","South",1166.23]
[null,null,null,null,null,"John Martin","John","Martin","Stereo","North",1410.66]
[null,null,null,null,null,"Tim Lee","Tim","Lee","Phone","East",1351.85]
[null,null,null,null,null,"Christian Nash","Christian","Nash","Stereo","South",1933.31]
[null,null,null,null,null,"Madeleine Parsons","Madeleine","Parsons","TV","South",1350.44]
[null,null,null,null,null,"Sean Sanderson","Sean","Sanderson","Stereo","East",1113.07]
[null,null,null,null,null,"Luke North","Luke","North","Phone","East",1198.6400000000001]
[null,null,null,null,null,"Isaac Mathis","Isaac","Mathis","Laptop","North",1168.58]
[null,null,null,null,null,"Chloe Watson","Chloe","Watson","Phone","North",1031.67]
[null,null,null,null,null,"Sally Sharp","Sally","Sharp","Laptop","South",1331.77]
[null,null,null,null,null,"Leonard Kelly","Leonard","Kelly","TV","East",1177.19]
[null,null,null,null,null,"Owen Berry","Owen","Berry","Stereo","South",1383.22]
[null,null,null,null,null,"Andrew Hart","Andrew","Hart","Stereo","North",1494.3]
[null,null,null,null,null,"Joseph Parr","Joseph","Parr","Phone","West",1347.72]
[null,null,null,null,null,"Ryan Dyer","Ryan","Dyer","Phone","East",1093.26]
[null,null,null,null,null,"Jason James","Jason","James","Phone","East",1556.45]
[null,null,null,null,null,"Gavin Vaughan","Gavin","Vaughan","Sofa","East",1206.24]
[null,null,null,null,null,"Molly Tucker","Molly","Tucker","TV","South",1998.47]
[null,null,null,null,null,"Joe Arnold","Joe","Arnold","Sofa","East",1266.1400000000001]
[null,null,null,null,null,"Neil Terry","Neil","Terry","TV","East",1190.46]
[null,null,null,null,null,"Jan Bond","Jan","Bond","Laptop","North",1048.8499999999999]
[null,null,null,null,null,"Angela Metcalfe","Angela","Metcalfe","Phone","South",1495.44]
[null,null,null,null,null,"Liam McDonald","Liam","McDonald","Stereo","West",1205.29]
[null,null,null,null,null,"Nicola Vaughan","Nicola","Vaughan","Stereo","East",1914.77]
[null,null,null,null,null,"Dorothy Welch","Dorothy","Welch","Laptop","West",1229.27]
[null,null,null,null,null,"Michelle Abraham","Michelle","Abraham","Phone","West",1910.75]
[null,null,null,null,null,"Andrea MacLeod","Andrea","MacLeod","Phone","East",1587.46]
[null,null,null,null,null,"Connor Alsop","Connor","Alsop","Laptop","West",1060.19]
[null,null,null,null,null,"Carolyn Simpson","Carolyn","Simpson","TV","North",1624.54]
[null,null,null,null,null,"Lauren Fraser","Lauren","Fraser","Stereo","North",1289.99]
[null,null,null,null,null,"Rose Paterson","Rose","Paterson","Phone","North",1102.78]
[null,null,null,null,null,"Joshua Parr","Joshua","Parr","Sofa","South",1322.46]
[null,null,null,null,null,"Maria Oliver","Maria","Oliver","Stereo","West",1246.31]
[null,null,null,null,null,"Christopher Cameron","Christopher","Cameron","Phone","West",1589.3]
[null,null,null,null,null,"Sam Wilson","Sam","Wilson","Phone","South",1976.48]
[null,null,null,null,null,"James Bower","James","Bower","Phone","North",1178.1500000000001]
[null,null,null,null,null,"Luke King","Luke","King","Sofa","South",1991.98]
[null,null,null,null,null,"Sebastian Cornish","Sebastian","Cornish","Sofa","North",1269.3900000000001]
[null,null,null,null,null,"Fiona Tucker","Fiona","Tucker","Sofa","East",1402.51]
[null,null,null,null,null,"Alan Davidson","Alan","Davidson","Laptop","East",1767.92]
[null,null,null,null,null,"Carol King","Carol","King","Phone","East",1638.21]
[null,null,null,null,null,"Leah Paige","Leah","Paige","TV","North",1173.75]
[null,null,null,null,null,"Rose Graham","Rose","Graham","Sofa","East",1560.87]
[null,null,null,null,null,"Virginia Howard","Virginia","Howard","TV","South",1777.04]
[null,null,null,null,null,"Alison Rampling","Alison","Rampling","TV","East",1305.1400000000001]
[null,null,null,null,null,"Harry Nash","Harry","Nash","Stereo","South",1777.85]
[null,null,null,null,null,"Gordon Reid","Gordon","Reid","Stereo","East",1405.66]
[null,null,null,null,null,"David Alsop","David","Alsop","Phone","East",1602.7]
[null,null,null,null,null,"Alexander Burgess","Alexander","Burgess","TV","West",1672.37]
[null,null,null,null,null,"Ava Wilkins","Ava","Wilkins","Phone","East",1895.13]
[null,null,null,null,null,"Heather Edmunds","Heather","Edmunds","Sofa","South",1927.51]
[null,null,null,null,null,"Michael Wilkins","Michael","Wilkins","Phone","West",1496.66]
[null,null,null,null,null,"Irene Jones","Irene","Jones","Stereo","South",1528.82]
[null,null,null,null,null,"Boris Randall","Boris","Randall","Laptop","South",1806.84]
[null,null,null,null,null,"Edward Campbell","Edward","Campbell","Laptop","East",1677.99]
[null,null,null,null,null,"Joanne Hamilton","Joanne","Hamilton","Laptop","East",1156.27]
[null,null,null,null,null,"Mary Welch","Mary","Welch","Stereo","North",1863.47]
[null,null,null,null,null,"Victoria Grant","Victoria","Grant","Sofa","East",1475.41]
[null,null,null,null,null,"Jake Russell","Jake","Russell","Phone","West",1263.79]
[null,null,null,null,null,"Robert Carr","Robert","Carr","Laptop","East",1884.92]
[null,null,null,null,null,"Hannah McGrath","Hannah","McGrath","Laptop","South",1222.81]
[null,null,null,null,null,"Abigail Robertson","Abigail","Robertson","Stereo","North",1840.81]
[null,null,null,null,null,"Jack Underwood","Jack","Underwood","Stereo","West",1060.75]
[null,null,null,null,null,"Benjamin Butler","Benjamin","Butler","TV","North",1804.99]
[null,null,null,null,null,"James Carr","James","Carr","Sofa","West",1705.57]
[null,null,null,null,null,"Alexandra Davies","Alexandra","Davies","Sofa","West",1841.15]
[null,null,null,null,null,"Ruth Rees","Ruth","Rees","TV","North",1469.43]
[null,null,null,null,null,"Christian Underwood","Christian","Underwood","Laptop","North",1319.92]
[null,null,null,null,null,"Neil Simpson","Neil","Simpson","TV","North",1209.45]
[null,null,null,null,null,"Carolyn Terry","Carolyn","Terry","Sofa","West",1866.98]
[null,null,null,null,null,"Nicholas Scott","Nicholas","Scott","Sofa","West",1583.91]
[null,null,null,null,null,"Jane James","Jane","James","Sofa","North",1219.25]
[null,null,null,null,null,"Isaac Graham","Isaac","Graham","Stereo","West",1926.67]
[null,null,null,null,null,"Sebastian Anderson","Sebastian","Anderson","TV","South",1423.16]
[null,null,null,null,null,"Kimberly Hemmings","Kimberly","Hemmings","Phone","West",1834.5]
[null,null,null,null,null,"Jessica Knox","Jessica","Knox","TV","West",1109.96]
[null,null,null,null,null,"Jessica Murray","Jessica","Murray","Laptop","West",1950.74]
[null,null,null,null,null,"Rebecca Langdon","Rebecca","Langdon","TV","North",1616.64]
[null,null,null,null,null,"Cameron Simpson","Cameron","Simpson","TV","East",1911.24]
[null,null,null,null,null,"Adam Underwood","Adam","Underwood","Phone","West",1749.08]
[null,null,null,null,null,"Ryan Ball","Ryan","Ball","Phone","North",1955.56]
[null,null,null,null,null,"Austin Grant","Austin","Grant","TV","West",1250.02]
[null,null,null,null,null,"Charles Sanderson","Charles","Sanderson","Phone","South",1521.17]
[null,null,null,null,null,"William Knox","William","Knox","Laptop","South",1199.31]
[null,null,null,null,null,"Sally Berry","Sally","Berry","Sofa","East",1405.56]
[null,null,null,null,null,"Boris McGrath","Boris","McGrath","Stereo","East",1717.52]
[null,null,null,null,null,"Blake Simpson","Blake","Simpson","Laptop","North",1505.68]
[null,null,null,null,null,"Neil Welch","Neil","Welch","Stereo","East",1306.8900000000001]
[null,null,null,null,null,"Pippa Reid","Pippa","Reid","Stereo","East",1022.82]
[null,null,null,null,null,"Jasmine Turner","Jasmine","Turner","Phone","South",1237.04]
[null,null,null,null,null,"Nathan Ball","Nathan","Ball","Stereo","West",1660.26]
[null,null,null,null,null,"Victoria Sanderson","Victoria","Sanderson","TV","West",1779.8]
[null,null,null,null,null,"Amy Metcalfe","Amy","Metcalfe","TV","North",1169.33]
[null,null,null,null,null,"Gordon Henderson","Gordon","Henderson","Stereo","West",1446.24]
[null,null,null,null,null,"Lisa White","Lisa","White","Stereo","West",1662.66]
[null,null,null,null,null,"Nicola Hamilton","Nicola","Hamilton","Sofa","West",1905.94]
[null,null,null,null,null,"James Clark","James","Clark","Laptop","South",1778.53]
[null,null,null,null,null,"Kylie Lewis","Kylie","Lewis","Laptop","West",1245.24]
[null,null,null,null,null,"Dorothy Mackay","Dorothy","Mackay","Stereo","East",1486.7]
[null,null,null,null,null,"Stewart MacDonald","Stewart","MacDonald","TV","South",1094.96]
[null,null,null,null,null,"Gavin Mitchell","Gavin","Mitchell","Stereo","North",1261.96]
[null,null,null,null,null,"Victor Sanderson","Victor","Sanderson","Laptop","South",1204.77]
[null,null,null,null,null,"Stewart Hamilton","Stewart","Hamilton","Stereo","East",1815.43]
[null,null,null,null,null,"Jake Arnold","Jake","Arnold","Stereo","West",1960.81]
[null,null,null,null,null,"Penelope Rutherford","Penelope","Rutherford","Stereo","North",1588.95]
[null,null,null,null,null,"Andrea Gray","Andrea","Gray","Sofa","North",1752.87]
[null,null,null,null,null,"Amanda Gray","Amanda","Gray","Phone","West",1203.49]
[null,null,null,null,null,"Jason MacDonald","Jason","MacDonald","Phone","South",1599.29]
[null,null,null,null,null,"Andrew Coleman","Andrew","Coleman","Laptop","North",1034.54]
[null,null,null,null,null,"Christopher Hemmings","Christopher","Hemmings","Sofa","South",1701.06]
[null,null,null,null,null,"Tracey Jones","Tracey","Jones","Phone","North",1326.43]
[null,null,null,null,null,"Zoe Terry","Zoe","Terry","TV","West",1642.1]
[null,null,null,null,null,"James McGrath","James","McGrath","Laptop","North",1107.32]
[null,null,null,null,null,"Elizabeth Roberts","Elizabeth","Roberts","Stereo","East",1860.58]
[null,null,null,null,null,"Joan Reid","Joan","Reid","Stereo","South",1811.82]
[null,null,null,null,null,"Maria Gray","Maria","Gray","Stereo","West",1158.8]
[null,null,null,null,null,"Edward Kelly","Edward","Kelly","Laptop","North",1137.9100000000001]
[null,null,null,null,null,"Molly Gibson","Molly","Gibson","Sofa","North",1935.95]
[null,null,null,null,null,"Kylie Rutherford","Kylie","Rutherford","Laptop","North",1878.97]
[null,null,null,null,null,"Melanie Welch","Melanie","Welch","Laptop","West",1686.64]
[null,null,null,null,null,"Trevor White","Trevor","White","TV","West",1985.56]
[null,null,null,null,null,"Virginia Mackay","Virginia","Mackay","Stereo","North",1553.88]
[null,null,null,null,null,"Jacob Ogden","Jacob","Ogden","Laptop","South",1362.72]
[null,null,null,null,null,"Andrew Marshall","Andrew","Marshall","TV","North",1802.78]
[null,null,null,null,null,"Donna Lawrence","Donna","Lawrence","Stereo","West",1772.74]
[null,null,null,null,null,"Heather Mackenzie","Heather","Mackenzie","Laptop","North",1624.24]
[null,null,null,null,null,"Nicholas Lambert","Nicholas","Lambert","Sofa","South",1556.82]
[null,null,null,null,null,"Caroline Lyman","Caroline","Lyman","Phone","West",1754.42]
[null,null,null,null,null,"Evan Paige","Evan","Paige","Phone","East",1404.4]
[null,null,null,null,null,"Peter Hudson","Peter","Hudson","Laptop","North",1644.66]
[null,null,null,null,null,"Lillian Bell","Lillian","Bell","Stereo","North",1504.01]
[null,null,null,null,null,"Joanne Terry","Joanne","Terry","Stereo","South",1800.72]
[null,null,null,null,null,"Leonard Black","Leonard","Black","Sofa","South",1780.62]
[null,null,null,null,null,"Leonard Henderson","Leonard","Henderson","Phone","North",1996.63]
[null,null,null,null,null,"Alexander Bell","Alexander","Bell","Phone","South",1524.14]
[null,null,null,null,null,"Peter Slater","Peter","Slater","Stereo","West",1968.6]
[null,null,null,null,null,"Dorothy Bond","Dorothy","Bond","Phone","North",1757.99]
[null,null,null,null,null,"Ava Quinn","Ava","Quinn","TV","East",1481]
[null,null,null,null,null,"Brandon Jackson","Brandon","Jackson","Sofa","North",1065]
[null,null,null,null,null,"Dan Miller","Dan","Miller","Stereo","North",1024.06]
[null,null,null,null,null,"Lucas Kelly","Lucas","Kelly","Phone","East",1224.2]
[null,null,null,null,null,"Gabrielle Smith","Gabrielle","Smith","Stereo","North",1655.86]
[null,null,null,null,null,"Harry North","Harry","North","Phone","West",1667.55]
[null,null,null,null,null,"Paul Rees","Paul","Rees","Laptop","East",1960.6]
[null,null,null,null,null,"Stephanie Hudson","Stephanie","Hudson","TV","South",1547.25]
[null,null,null,null,null,"Richard Mackenzie","Richard","Mackenzie","Phone","West",1389.12]
[null,null,null,null,null,"Natalie Scott","Natalie","Scott","Sofa","South",1690.12]
[null,null,null,null,null,"Adrian Wallace","Adrian","Wallace","TV","North",1544]
[null,null,null,null,null,"Dominic Peake","Dominic","Peake","Phone","West",1236.05]
[null,null,null,null,null,"Amelia Clark","Amelia","Clark","TV","North",1776.22]
[null,null,null,null,null,"Piers Bower","Piers","Bower","Phone","South",1337.56]
[null,null,null,null,null,"Lily Slater","Lily","Slater","Phone","South",1036.18]
[null,null,null,null,null,"Joe King","Joe","King","Phone","North",1143.23]
[null,null,null,null,null,"Charles Gray","Charles","Gray","Phone","North",1664.59]
[null,null,null,null,null,"Yvonne Paterson","Yvonne","Paterson","Phone","West",1777.41]
[null,null,null,null,null,"Heather Hudson","Heather","Hudson","Phone","South",1901]
[null,null,null,null,null,"Caroline Tucker","Caroline","Tucker","Phone","East",1508.89]
[null,null,null,null,null,"Luke Peake","Luke","Peake","Laptop","South",1019.02]
[null,null,null,null,null,"Amelia Young","Amelia","Young","Phone","East",1103.3900000000001]
[null,null,null,null,null,"Fiona Walsh","Fiona","Walsh","Laptop","West",1713.01]
[null,null,null,null,null,"Michelle Hodges","Michelle","Hodges","Laptop","North",1744.11]
[null,null,null,null,null,"Oliver Bond","Oliver","Bond","Phone","South",1236.32]
[null,null,null,null,null,"Lisa Underwood","Lisa","Underwood","Laptop","West",1824.37]
[null,null,null,null,null,"Justin Lambert","Justin","Lambert","Phone","West",1695.15]
[null,null,null,null,null,"Heather Pullman","Heather","Pullman","TV","East",1423.51]
[null,null,null,null,null,"Joan Chapman","Joan","Chapman","Sofa","North",1246.48]
[null,null,null,null,null,"Eric Glover","Eric","Glover","Laptop","East",1823.9]
[null,null,null,null,null,"Luke McLean","Luke","McLean","Sofa","East",1820.46]
[null,null,null,null,null,"Ryan Randall","Ryan","Randall","TV","West",1528.64]
[null,null,null,null,null,"Amanda Dyer","Amanda","Dyer","Laptop","East",1416.94]
[null,null,null,null,null,"Anthony Pullman","Anthony","Pullman","Laptop","West",1813.63]
[null,null,null,null,null,"Richard Morgan","Richard","Morgan","Stereo","South",1702.05]
[null,null,null,null,null,"Gabrielle MacDonald","Gabrielle","MacDonald","Laptop","South",1293.3]
[null,null,null,null,null,"Rebecca Carr","Rebecca","Carr","Phone","North",1863.05]
[null,null,null,null,null,"Ryan Parsons","Ryan","Parsons","TV","East",1783.86]
[null,null,null,null,null,"Gordon King","Gordon","King","Sofa","South",1764.05]
[null,null,null,null,null,"Simon McGrath","Simon","McGrath","Sofa","North",1721.31]
[null,null,null,null,null,"Sonia Alsop","Sonia","Alsop","Sofa","West",1776.76]
[null,null,null,null,null,"Olivia Lawrence","Olivia","Lawrence","Sofa","South",1724.25]
[null,null,null,null,null,"Gavin Pullman","Gavin","Pullman","Phone","South",1350.23]
[null,null,null,null,null,"Emily Terry","Emily","Terry","Sofa","North",1102.18]
[null,null,null,null,null,"Jane Parsons","Jane","Parsons","Laptop","East",1453.38]
[null,null,null,null,null,"Madeleine Vaughan","Madeleine","Vaughan","Stereo","West",1142.1400000000001]
[null,null,null,null,null,"Ryan Young","Ryan","Young","Phone","South",1564.95]
[null,null,null,null,null,"Keith Abraham","Keith","Abraham","Sofa","West",1504.24]
[null,null,null,null,null,"Carolyn Short","Carolyn","Short","TV","South",1415.84]
[null,null,null,null,null,"Olivia Graham","Olivia","Graham","Sofa","East",1117.3900000000001]
[null,null,null,null,null,"Michael Piper","Michael","Piper","Phone","West",1715.83]
[null,null,null,null,null,"Ian Bell","Ian","Bell","Sofa","West",1825.69]
[null,null,null,null,null,"Cameron Hamilton","Cameron","Hamilton","Laptop","East",1435.44]
[null,null,null,null,null,"Jack Coleman","Jack","Coleman","Phone","East",1347.31]
[null,null,null,null,null,"Elizabeth Duncan","Elizabeth","Duncan","Laptop","South",1576.29]
[null,null,null,null,null,"Leah Hunter","Leah","Hunter","Laptop","East",1020.96]
[null,null,null,null,null,"Kylie Dyer","Kylie","Dyer","Laptop","South",1446.59]
[null,null,null,null,null,"Natalie Wilkins","Natalie","Wilkins","Sofa","South",1089.3599999999999]
[null,null,null,null,null,"Irene Mackay","Irene","Mackay","Laptop","East",1976.2]
[null,null,null,null,null,"Faith Newman","Faith","Newman","Sofa","West",1994.52]
[null,null,null,null,null,"Phil Lawrence","Phil","Lawrence","TV","North",1044.98]
[null,null,null,null,null,"Sean Dowd","Sean","Dowd","Laptop","West",1005.91]
[null,null,null,null,null,"Justin Mills","Justin","Mills","Phone","North",1768.58]
[null,null,null,null,null,"Bella MacLeod","Bella","MacLeod","TV","East",1435.42]
[null,null,null,null,null,"Lily Alsop","Lily","Alsop","Phone","East",1676.02]
[null,null,null,null,null,"Thomas Watson","Thomas","Watson","Phone","North",1935.9]
[null,null,null,null,null,"Austin Nash","Austin","Nash","Stereo","East",1731.81]
[null,null,null,null,null,"James Oliver","James","Oliver","Phone","East",1176.02]
[null,null,null,null,null,"Deirdre Rampling","Deirdre","Rampling","Phone","North",1838.58]
[null,null,null,null,null,"Hannah Mills","Hannah","Mills","Laptop","North",1366.61]
[null,null,null,null,null,"Julian Carr","Julian","Carr","Sofa","East",1377.39]
[null,null,null,null,null,"Abigail Dowd","Abigail","Dowd","Phone","East",1398.64]
[null,null,null,null,null,"Angela Simpson","Angela","Simpson","Stereo","North",1410.31]
[null,null,null,null,null,"Joan Parr","Joan","Parr","Laptop","North",1300.92]
[null,null,null,null,null,"Leonard Mackenzie","Leonard","Mackenzie","Laptop","North",1719.83]
[null,null,null,null,null,"Lauren Hart","Lauren","Hart","TV","North",1204.6099999999999]
[null,null,null,null,null,"Warren Coleman","Warren","Coleman","Laptop","South",1378.75]
[null,null,null,null,null,"Stephen Dickens","Stephen","Dickens","Sofa","North",1964.99]
[null,null,null,null,null,"Leonard Sutherland","Leonard","Sutherland","Phone","North",1089.6600000000001]
[null,null,null,null,null,"Sarah Cornish","Sarah","Cornish","Laptop","North",1227.76]
[null,null,null,null,null,"Gabrielle Rutherford","Gabrielle","Rutherford","Stereo","East",1794.35]
[null,null,null,null,null,"Nicholas Lyman","Nicholas","Lyman","Phone","South",1073.49]
[null,null,null,null,null,"Gavin Johnston","Gavin","Johnston","Stereo","South",1727.87]
[null,null,null,null,null,"Molly Ellison","Molly","Ellison","TV","South",1814.37]
[null,null,null,null,null,"Alison Chapman","Alison","Chapman","TV","South",1775.28]
[null,null,null,null,null,"Amy Knox","Amy","Knox","Phone","West",1186.8800000000001]
[null,null,null,null,null,"Elizabeth Chapman","Elizabeth","Chapman","Sofa","West",1415.06]
[null,null,null,null,null,"Kylie McDonald","Kylie","McDonald","TV","South",1030.77]
[null,null,null,null,null,"Ian Dickens","Ian","Dickens","Stereo","East",1122.0999999999999]
[null,null,null,null,null,"Leonard King","Leonard","King","Phone","South",1630.88]
[null,null,null,null,null,"Donna Kerr","Donna","Kerr","Stereo","North",1638.16]
[null,null,null,null,null,"Neil Avery","Neil","Avery","Stereo","East",1404.19]
[null,null,null,null,null,"Vanessa Duncan","Vanessa","Duncan","Stereo","West",1514.89]
[null,null,null,null,null,"Penelope Peters","Penelope","Peters","TV","West",1197.8599999999999]
[null,null,null,null,null,"Jack Gibson","Jack","Gibson","Laptop","West",1205.3800000000001]
[null,null,null,null,null,"Ruth MacLeod","Ruth","MacLeod","Stereo","South",1413.27]
[null,null,null,null,null,"Jasmine Watson","Jasmine","Watson","TV","West",1629.13]
[null,null,null,null,null,"Claire Quinn","Claire","Quinn","Laptop","East",1072.6600000000001]
[null,null,null,null,null,"Katherine Howard","Katherine","Howard","Phone","North",1283.23]
[null,null,null,null,null,"Carol Butler","Carol","Butler","Sofa","South",1838.34]
[null,null,null,null,null,"Alexandra Sutherland","Alexandra","Sutherland","Phone","West",1604.5]
[null,null,null,null,null,"Zoe White","Zoe","White","Stereo","North",1356.76]
[null,null,null,null,null,"Jack Roberts","Jack","Roberts","Sofa","West",1979.81]
[null,null,null,null,null,"Julia Cornish","Julia","Cornish","Laptop","West",1163.43]
[null,null,null,null,null,"Sally Ince","Sally","Ince","Sofa","South",1266.24]
[null,null,null,null,null,"Wanda Sanderson","Wanda","Sanderson","Sofa","West",1098.53]
[null,null,null,null,null,"Christopher Rees","Christopher","Rees","Stereo","West",1035.46]
[null,null,null,null,null,"Katherine Paterson","Katherine","Paterson","Sofa","North",1234.6099999999999]
[null,null,null,null,null,"Dorothy MacLeod","Dorothy","MacLeod","Stereo","East",1748.68]
[null,null,null,null,null,"Dorothy Graham","Dorothy","Graham","Sofa","North",1836]
[null,null,null,null,null,"Lisa Ball","Lisa","Ball","Stereo","North",1958.09]
[null,null,null,null,null,"Alan Vaughan","Alan","Vaughan","Sofa","South",1701.68]
[null,null,null,null,null,"Kevin Oliver","Kevin","Oliver","TV","West",1057.56]
[null,null,null,null,null,"Tim Robertson","Tim","Robertson","Sofa","West",1157.98]
[null,null,null,null,null,"Joe Hodges","Joe","Hodges","TV","West",1144.1400000000001]
[null,null,null,null,null,"Austin Lambert","Austin","Lambert","Sofa","East",1973.7]
[null,null,null,null,null,"Edward Ross","Edward","Ross","Sofa","West",1214.19]
[null,null,null,null,null,"Rebecca Brown","Rebecca","Brown","Sofa","West",1990.19]
[null,null,null,null,null,"Liam Berry","Liam","Berry","Laptop","West",1372.86]
[null,null,null,null,null,"Virginia Forsyth","Virginia","Forsyth","Laptop","North",1099.6600000000001]
[null,null,null,null,null,"Faith Hudson","Faith","Hudson","Phone","South",1113.95]
[null,null,null,null,null,"Brandon Reid","Brandon","Reid","Laptop","South",1404.8]
[null,null,null,null,null,"Harry Nolan","Harry","Nolan","Stereo","South",1570.6]
[null,null,null,null,null,"Samantha Ross","Samantha","Ross","Laptop","South",1373.71]
[null,null,null,null,null,"Melanie Morrison","Melanie","Morrison","Sofa","East",1895.11]
[null,null,null,null,null,"Irene Wilson","Irene","Wilson","Phone","South",1042.6199999999999]
[null,null,null,null,null,"Evan Grant","Evan","Grant","Laptop","South",1577.38]
[null,null,null,null,null,"Gavin Bower","Gavin","Bower","TV","West",1395.23]
[null,null,null,null,null,"Lucas Carr","Lucas","Carr","Stereo","West",1794.7]
[null,null,null,null,null,"Blake Carr","Blake","Carr","TV","West",1754.91]
[null,null,null,null,null,"Max Alsop","Max","Alsop","Laptop","North",1066.8800000000001]
[null,null,null,null,null,"Simon Wilson","Simon","Wilson","Sofa","North",1228.99]
[null,null,null,null,null,"Leah Grant","Leah","Grant","Stereo","North",1711.12]
[null,null,null,null,null,"Victoria Pullman","Victoria","Pullman","Phone","South",1258.03]
[null,null,null,null,null,"Amy Martin","Amy","Martin","TV","West",1657.96]
[null,null,null,null,null,"Diane Poole","Diane","Poole","TV","West",1852.44]
[null,null,null,null,null,"Lauren Edmunds","Lauren","Edmunds","Stereo","East",1784.05]
[null,null,null,null,null,"Justin Simpson","Justin","Simpson","Stereo","North",1863.86]
[null,null,null,null,null,"Edward Hill","Edward","Hill","TV","South",1736.52]
[null,null,null,null,null,"Isaac Clarkson","Isaac","Clarkson","Laptop","North",1814.02]
[null,null,null,null,null,"Michelle Sutherland","Michelle","Sutherland","Sofa","East",1521.05]
[null,null,null,null,null,"Andrea Welch","Andrea","Welch","Stereo","East",1195.2]
[null,null,null,null,null,"Grace Sharp","Grace","Sharp","Phone","East",1430.47]
[null,null,null,null,null,"Carl Piper","Carl","Piper","Phone","West",1233.22]
[null,null,null,null,null,"Simon Baker","Simon","Baker","TV","East",1478.92]
[null,null,null,null,null,"Megan Edmunds","Megan","Edmunds","TV","North",1619.69]
[null,null,null,null,null,"Stewart Alsop","Stewart","Alsop","Stereo","South",1742.69]
[null,null,null,null,null,"Robert Newman","Robert","Newman","Sofa","East",1611.46]
[null,null,null,null,null,"Sophie Langdon","Sophie","Langdon","TV","East",1177.56]
[null,null,null,null,null,"Yvonne Wright","Yvonne","Wright","Phone","South",1864.1]
[null,null,null,null,null,"Ryan Fraser","Ryan","Fraser","Phone","West",1819.34]
[null,null,null,null,null,"Christopher Dowd","Christopher","Dowd","TV","East",1874.32]
[null,null,null,null,null,"Diana Hudson","Diana","Hudson","Phone","South",1477.81]
[null,null,null,null,null,"Jake Slater","Jake","Slater","Stereo","West",1372.39]
[null,null,null,null,null,"Natalie Howard","Natalie","Howard","TV","North",1995.03]
[null,null,null,null,null,"Alexandra Kerr","Alexandra","Kerr","Laptop","West",1475.39]
[null,null,null,null,null,"Kylie Bond","Kylie","Bond","Sofa","South",1016.4]
[null,null,null,null,null,"Max Harris","Max","Harris","TV","West",1415.27]
[null,null,null,null,null,"Donna Churchill","Donna","Churchill","Phone","North",1117.02]
[null,null,null,null,null,"Evan Ellison","Evan","Ellison","Phone","East",1398.16]
[null,null,null,null,null,"Carl Reid","Carl","Reid","Sofa","North",1436.89]
[null,null,null,null,null,"Rose Paige","Rose","Paige","Stereo","North",1718.81]
[null,null,null,null,null,"Sebastian Ross","Sebastian","Ross","Phone","East",1437.12]
[null,null,null,null,null,"Mary Parsons","Mary","Parsons","Stereo","West",1716.27]
[null,null,null,null,null,"Megan Walsh","Megan","Walsh","Sofa","North",1653.59]
[null,null,null,null,null,"Alexander Dickens","Alexander","Dickens","Stereo","North",1672.94]
[null,null,null,null,null,"Deirdre Quinn","Deirdre","Quinn","Sofa","West",1559.87]
[null,null,null,null,null,"Brandon Black","Brandon","Black","Laptop","East",1479.36]
[null,null,null,null,null,"Grace Ball","Grace","Ball","Stereo","East",1154.22]
[null,null,null,null,null,"Elizabeth Slater","Elizabeth","Slater","TV","West",1872.72]
[null,null,null,null,null,"Sonia Campbell","Sonia","Campbell","Sofa","West",1042.28]
[null,null,null,null,null,"Nicola Howard","Nicola","Howard","Stereo","West",1349.97]
[null,null,null,null,null,"Luke Bower","Luke","Bower","Phone","East",1181.31]
[null,null,null,null,null,"Rose Manning","Rose","Manning","Sofa","North",1305.73]
[null,null,null,null,null,"Claire Dyer","Claire","Dyer","Phone","West",1220.71]
[null,null,null,null,null,"Maria Berry","Maria","Berry","TV","North",1254.57]
[null,null,null,null,null,"Kimberly Davidson","Kimberly","Davidson","Stereo","East",1607.96]
[null,null,null,null,null,"Edward Hart","Edward","Hart","TV","South",1196.74]
[null,null,null,null,null,"Joshua Scott","Joshua","Scott","Stereo","East",1805.67]
[null,null,null,null,null,"Jack Martin","Jack","Martin","Laptop","South",1963.66]
[null,null,null,null,null,"John Chapman","John","Chapman","TV","North",1008.3]
[null,null,null,null,null,"Victoria Mathis","Victoria","Mathis","Laptop","West",1713.9]
[null,null,null,null,null,"Evan Miller","Evan","Miller","Laptop","North",1860.78]
[null,null,null,null,null,"Julian Underwood","Julian","Underwood","Phone","North",1253.45]
[null,null,null,null,null,"Jennifer Young","Jennifer","Young","Laptop","West",1102.71]
[null,null,null,null,null,"Colin Skinner","Colin","Skinner","TV","West",1379.88]
[null,null,null,null,null,"Mary Clarkson","Mary","Clarkson","TV","East",1729.35]
[null,null,null,null,null,"Maria Hudson","Maria","Hudson","Sofa","East",1190.72]
[null,null,null,null,null,"Bernadette Hodges","Bernadette","Hodges","Laptop","North",1371.84]
[null,null,null,null,null,"Sam King","Sam","King","TV","West",1650.74]
[null,null,null,null,null,"Sonia Allan","Sonia","Allan","Laptop","South",1050.95]
[null,null,null,null,null,"Gabrielle Graham","Gabrielle","Graham","Laptop","North",1553.38]
[null,null,null,null,null,"Owen Bond","Owen","Bond","Laptop","West",1238.95]
[null,null,null,null,null,"Julian Terry","Julian","Terry","Stereo","North",1638.2]
[null,null,null,null,null,"Evan McDonald","Evan","McDonald","TV","East",1393.35]
[null,null,null,null,null,"Melanie Hemmings","Melanie","Hemmings","Stereo","South",1643.45]
[null,null,null,null,null,"Austin Mackenzie","Austin","Mackenzie","Sofa","South",1086.8399999999999]
[null,null,null,null,null,"Peter Mills","Peter","Mills","Phone","South",1916.65]
[null,null,null,null,null,"Jan Oliver","Jan","Oliver","TV","West",1280.69]
[null,null,null,null,null,"Richard Bailey","Richard","Bailey","TV","South",1522.88]
[null,null,null,null,null,"Stephen Smith","Stephen","Smith","Phone","South",1949.07]
[null,null,null,null,null,"Isaac Ball","Isaac","Ball","Phone","East",1431.15]
[null,null,null,null,null,"Una Randall","Una","Randall","Sofa","East",1404.05]
[null,null,null,null,null,"Joanne Lawrence","Joanne","Lawrence","Phone","East",1740.01]
[null,null,null,null,null,"Ian Clark","Ian","Clark","Phone","South",1796.19]
[null,null,null,null,null,"Edward Welch","Edward","Welch","Sofa","East",1475.31]
[null,null,null,null,null,"Hannah Ince","Hannah","Ince","Laptop","North",1310.54]
[null,null,null,null,null,"Penelope Lyman","Penelope","Lyman","Phone","South",1994.56]
[null,null,null,null,null,"Megan Clark","Megan","Clark","Laptop","West",1576.92]
[null,null,null,null,null,"Diane Newman","Diane","Newman","Phone","South",1763.2]
[null,null,null,null,null,"Stewart Morgan","Stewart","Morgan","Sofa","South",1246.32]
[null,null,null,null,null,"Oliver Welch","Oliver","Welch","Laptop","South",1888.83]
[null,null,null,null,null,"Julian Murray","Julian","Murray","Sofa","North",1527.04]
[null,null,null,null,null,"Emma McGrath","Emma","McGrath","Laptop","East",1911.16]
[null,null,null,null,null,"Deirdre Stewart","Deirdre","Stewart","Sofa","North",1791.49]
[null,null,null,null,null,"Sean Morrison","Sean","Morrison","Sofa","North",1152.46]
[null,null,null,null,null,"Justin Payne","Justin","Payne","Sofa","West",1578.78]
[null,null,null,null,null,"Adrian Payne","Adrian","Payne","Stereo","West",1870.32]
[null,null,null,null,null,"Paul Reid","Paul","Reid","Stereo","West",1605.59]
[null,null,null,null,null,"Ruth Parr","Ruth","Parr","TV","East",1141.75]
[null,null,null,null,null,"Ava Young","Ava","Young","Phone","West",1502.76]
[null,null,null,null,null,"Madeleine Stewart","Madeleine","Stewart","Sofa","North",1588.5]
[null,null,null,null,null,"Sarah Payne","Sarah","Payne","Phone","East",1939.26]
[null,null,null,null,null,"Zoe Abraham","Zoe","Abraham","Sofa","East",1937.47]
[null,null,null,null,null,"Michael Rutherford","Michael","Rutherford","TV","South",1569.6]
[null,null,null,null,null,"Sally Fraser","Sally","Fraser","TV","East",1709.82]
[null,null,null,null,null,"Samantha Clarkson","Samantha","Clarkson","Stereo","South",1694.17]
[null,null,null,null,null,"Joe Ross","Joe","Ross","Phone","West",1220.99]
[null,null,null,null,null,"Peter Bell","Peter","Bell","Stereo","South",1261.71]
[null,null,null,null,null,"Mary Underwood","Mary","Underwood","Stereo","West",1261.7]
[null,null,null,null,null,"Penelope Clarkson","Penelope","Clarkson","Stereo","North",1118.78]
[null,null,null,null,null,"Boris Young","Boris","Young","Phone","South",1391.12]
[null,null,null,null,null,"Sam Roberts","Sam","Roberts","Laptop","North",1532.87]
[null,null,null,null,null,"Jane Robertson","Jane","Robertson","Sofa","South",1973.54]
[null,null,null,null,null,"Alan Springer","Alan","Springer","Phone","South",1201.8]
[null,null,null,null,null,"Alan Lee","Alan","Lee","TV","West",1957.05]
[null,null,null,null,null,"Alexander Howard","Alexander","Howard","Sofa","North",1293.32]
[null,null,null,null,null,"Lillian Taylor","Lillian","Taylor","Laptop","North",1754.47]
[null,null,null,null,null,"Jan Robertson","Jan","Robertson","Stereo","East",1843.5]
[null,null,null,null,null,"Brandon Parsons","Brandon","Parsons","Laptop","West",1227.93]
[null,null,null,null,null,"Ruth Gill","Ruth","Gill","Phone","North",1680.51]
[null,null,null,null,null,"Leonard Davies","Leonard","Davies","Sofa","South",1458.9]
[null,null,null,null,null,"James Bell","James","Bell","Stereo","North",1251.0999999999999]
[null,null,null,null,null,"Ian Baker","Ian","Baker","Phone","East",1780.93]
[null,null,null,null,null,"Richard Wilson","Richard","Wilson","Stereo","West",1649]
[null,null,null,null,null,"Madeleine James","Madeleine","James","Laptop","South",1912.69]
[null,null,null,null,null,"Isaac Arnold","Isaac","Arnold","Laptop","West",1492.64]
[null,null,null,null,null,"Justin Mitchell","Justin","Mitchell","Phone","West",1665.33]
[null,null,null,null,null,"Ruth Lee","Ruth","Lee","Sofa","East",1307.31]
[null,null,null,null,null,"Zoe Hughes","Zoe","Hughes","Phone","South",1991.88]
[null,null,null,null,null,"Molly Ogden","Molly","Ogden","Phone","North",1331.07]
[null,null,null,null,null,"Michelle Ellison","Michelle","Ellison","Stereo","North",1286.68]
[null,null,null,null,null,"Victoria Mackenzie","Victoria","Mackenzie","Phone","North",1616.45]
[null,null,null,null,null,"Emma White","Emma","White","Laptop","West",1880.47]
[null,null,null,null,null,"Gordon Hunter","Gordon","Hunter","Phone","West",1877.49]
[null,null,null,null,null,"Anthony Abraham","Anthony","Abraham","TV","West",1494.63]
[null,null,null,null,null,"Jake Lawrence","Jake","Lawrence","Phone","North",1874.85]
[null,null,null,null,null,"Andrea Chapman","Andrea","Chapman","Sofa","East",1336.75]
[null,null,null,null,null,"Adrian Rees","Adrian","Rees","Phone","East",1302.21]
[null,null,null,null,null,"Adam Grant","Adam","Grant","Laptop","West",1812.4]
[null,null,null,null,null,"David Taylor","David","Taylor","Phone","West",1311.03]
[null,null,null,null,null,"Jonathan Arnold","Jonathan","Arnold","Stereo","West",1139.42]
[null,null,null,null,null,"Eric Sutherland","Eric","Sutherland","TV","West",1993.91]
[null,null,null,null,null,"Thomas Turner","Thomas","Turner","Sofa","North",1001.87]
[null,null,null,null,null,"Deirdre Turner","Deirdre","Turner","Stereo","North",1017.08]
[null,null,null,null,null,"Leah Bower","Leah","Bower","Laptop","North",1208.6199999999999]
[null,null,null,null,null,"Una Russell","Una","Russell","Phone","South",1057.95]
[null,null,null,null,null,"Victor Paterson","Victor","Paterson","TV","North",1505.91]
[null,null,null,null,null,"Leah Black","Leah","Black","Laptop","East",1216.8900000000001]
[null,null,null,null,null,"Brian Welch","Brian","Welch","Laptop","South",1585.02]
[null,null,null,null,null,"Abigail Bailey","Abigail","Bailey","Laptop","West",1168.97]
[null,null,null,null,null,"Christian Morgan","Christian","Morgan","Stereo","East",1210.3599999999999]
[null,null,null,null,null,"Melanie Kelly","Melanie","Kelly","TV","North",1889.38]
[null,null,null,null,null,"Phil Ellison","Phil","Ellison","TV","West",1040.71]
[null,null,null,null,null,"Jonathan Clarkson","Jonathan","Clarkson","Sofa","East",1768.16]
[null,null,null,null,null,"Yvonne Johnston","Yvonne","Johnston","Phone","East",1966.92]
[null,null,null,null,null,"Alan Mackay","Alan","Mackay","Stereo","East",1061.43]
[null,null,null,null,null,"Max Jackson","Max","Jackson","Phone","North",1223.21]
[null,null,null,null,null,"Austin Gill","Austin","Gill","Sofa","South",1506.29]
[null,null,null,null,null,"Max Thomson","Max","Thomson","Sofa","East",1501.46]
[null,null,null,null,null,"Sonia Piper","Sonia","Piper","TV","North",1778.34]
[null,null,null,null,null,"Stewart Sharp","Stewart","Sharp","Phone","East",1235.49]
[null,null,null,null,null,"Jane Roberts","Jane","Roberts","TV","East",1560.06]
[null,null,null,null,null,"Trevor Hill","Trevor","Hill","Sofa","West",1433.59]
[null,null,null,null,null,"Molly Abraham","Molly","Abraham","Phone","West",1129.1600000000001]
[null,null,null,null,null,"Charles Hunter","Charles","Hunter","Laptop","North",1539.54]
[null,null,null,null,null,"Cameron Pullman","Cameron","Pullman","Sofa","South",1057.9000000000001]
[null,null,null,null,null,"Frank Reid","Frank","Reid","Laptop","East",1208.47]
[null,null,null,null,null,"Kylie Randall","Kylie","Randall","Phone","West",1490.77]
[null,null,null,null,null,"Trevor Wilson","Trevor","Wilson","TV","South",1217.1099999999999]
[null,null,null,null,null,"Dominic Churchill","Dominic","Churchill","Sofa","South",1518.95]
[null,null,null,null,null,"Maria Fraser","Maria","Fraser","Phone","North",1056.51]
[null,null,null,null,null,"Wendy Reid","Wendy","Reid","TV","South",1887.09]
[null,null,null,null,null,"Tim Mackay","Tim","Mackay","Sofa","West",1614.03]
[null,null,null,null,null,"Ava Gill","Ava","Gill","Phone","North",1074.78]
[null,null,null,null,null,"Victor Rees","Victor","Rees","Sofa","North",1003.88]
[null,null,null,null,null,"Neil Smith","Neil","Smith","Sofa","North",1273.96]
[null,null,null,null,null,"Robert Skinner","Robert","Skinner","Laptop","East",1044.6099999999999]
[null,null,null,null,null,"Ryan Knox","Ryan","Knox","Laptop","West",1227.06]
[null,null,null,null,null,"Frank Mills","Frank","Mills","Laptop","South",1526.19]
[null,null,null,null,null,"Anthony Fraser","Anthony","Fraser","Laptop","South",1510.32]
[null,null,null,null,null,"Ella Hamilton","Ella","Hamilton","Stereo","South",1395.57]
[null,null,null,null,null,"Molly Jackson","Molly","Jackson","Phone","East",1303.17]
[null,null,null,null,null,"Brandon Hodges","Brandon","Hodges","TV","East",1927.35]
[null,null,null,null,null,"Austin Powell","Austin","Powell","Laptop","West",1829.41]
[null,null,null,null,null,"Rachel Martin","Rachel","Martin","Sofa","North",1858.39]
[null,null,null,null,null,"Justin Morrison","Justin","Morrison","Sofa","North",1449]
[null,null,null,null,null,"Gordon Gray","Gordon","Gray","TV","North",1305.97]
[null,null,null,null,null,"Abigail Gill","Abigail","Gill","TV","South",1064.32]
[null,null,null,null,null,"Deirdre Miller","Deirdre","Miller","Laptop","North",1090.04]
[null,null,null,null,null,"Chloe Ellison","Chloe","Ellison","TV","South",1665.93]
[null,null,null,null,null,"Bernadette Burgess","Bernadette","Burgess","Laptop","North",1201.3599999999999]
[null,null,null,null,null,"Samantha Gill","Samantha","Gill","TV","East",1947.61]
[null,null,null,null,null,"Madeleine Parr","Madeleine","Parr","TV","West",1678.9]
[null,null,null,null,null,"Ava Terry","Ava","Terry","TV","East",1809.49]
[null,null,null,null,null,"Joan Rees","Joan","Rees","Sofa","South",1225.42]
[null,null,null,null,null,"Dorothy Coleman","Dorothy","Coleman","Stereo","West",1075.6300000000001]
[null,null,null,null,null,"Maria Wallace","Maria","Wallace","Sofa","South",1537.4]
[null,null,null,null,null,"Nathan Chapman","Nathan","Chapman","Sofa","North",1699.05]
[null,null,null,null,null,"Sebastian Bower","Sebastian","Bower","Phone","South",1714.19]
[null,null,null,null,null,"Christian Taylor","Christian","Taylor","Sofa","East",1087.25]
[null,null,null,null,null,"Emma Dowd","Emma","Dowd","Stereo","East",1770.35]
[null,null,null,null,null,"Gordon Gill","Gordon","Gill","TV","North",1119.05]
[null,null,null,null,null,"Sarah Mitchell","Sarah","Mitchell","Stereo","South",1305.93]
[null,null,null,null,null,"Anthony Clarkson","Anthony","Clarkson","TV","West",1744.26]
[null,null,null,null,null,"Amanda Lambert","Amanda","Lambert","Stereo","East",1737.7]
[null,null,null,null,null,"Gordon Payne","Gordon","Payne","Phone","South",1340.84]
[null,null,null,null,null,"Elizabeth Martin","Elizabeth","Martin","Stereo","East",1922.39]
[null,null,null,null,null,"Jane Gray","Jane","Gray","Phone","North",1475.98]
[null,null,null,null,null,"James North","James","North","Sofa","South",1800.87]
[null,null,null,null,null,"Liam Scott","Liam","Scott","Phone","South",1738.49]
[null,null,null,null,null,"Dorothy King","Dorothy","King","Phone","North",1589.02]
[null,null,null,null,null,"Alan Wright","Alan","Wright","Phone","East",1445.14]
[null,null,null,null,null,"Joe Butler","Joe","Butler","Phone","East",1695.9]
[null,null,null,null,null,"Michelle Wilson","Michelle","Wilson","Laptop","West",1817.86]
[null,null,null,null,null,"Emma Paige","Emma","Paige","Sofa","North",1804.45]
[null,null,null,null,null,"Hannah Hardacre","Hannah","Hardacre","Stereo","East",1672.6]
[null,null,null,null,null,"Wendy Sutherland","Wendy","Sutherland","Sofa","South",1411.96]
[null,null,null,null,null,"Olivia MacDonald","Olivia","MacDonald","Phone","South",1959.83]
[null,null,null,null,null,"William Hill","William","Hill","Phone","West",1043.51]
[null,null,null,null,null,"Thomas Campbell","Thomas","Campbell","Stereo","South",1339.3]
[null,null,null,null,null,"Donna Peters","Donna","Peters","TV","North",1735.89]
[null,null,null,null,null,"Alan Kelly","Alan","Kelly","Stereo","North",1800.04]
[null,null,null,null,null,"John Smith","John","Smith","Laptop","East",1817.62]
[null,null,null,null,null,"Natalie Powell","Natalie","Powell","Sofa","North",1017.79]
[null,null,null,null,null,"Michelle Pullman","Michelle","Pullman","Sofa","North",1876.81]
[null,null,null,null,null,"Keith Ferguson","Keith","Ferguson","Phone","North",1938.6]
[null,null,null,null,null,"Thomas Slater","Thomas","Slater","TV","West",1056.44]
[null,null,null,null,null,"Stephanie Hill","Stephanie","Hill","Sofa","West",1304.18]
[null,null,null,null,null,"Sonia Gray","Sonia","Gray","Sofa","West",1241.49]
[null,null,null,null,null,"Natalie Wilson","Natalie","Wilson","Sofa","East",1497.49]
[null,null,null,null,null,"Bella Knox","Bella","Knox","Laptop","West",1190.79]
[null,null,null,null,null,"Julia Wilkins","Julia","Wilkins","Phone","North",1544.49]
[null,null,null,null,null,"Carl Cornish","Carl","Cornish","Laptop","North",1382.29]
[null,null,null,null,null,"Anna McDonald","Anna","McDonald","Stereo","South",1590.1]
[null,null,null,null,null,"Sally Mackay","Sally","Mackay","Sofa","South",1980.3]
[null,null,null,null,null,"Nicholas Davies","Nicholas","Davies","Sofa","West",1247.83]
[null,null,null,null,null,"Kimberly Wilkins","Kimberly","Wilkins","Stereo","West",1055.6600000000001]
[null,null,null,null,null,"Simon Johnston","Simon","Johnston","Sofa","South",1938.8]
[null,null,null,null,null,"Sean Bower","Sean","Bower","Laptop","West",1858.89]
[null,null,null,null,null,"Sam Mathis","Sam","Mathis","Phone","South",1527.08]
[null,null,null,null,null,"Felicity Roberts","Felicity","Roberts","TV","South",1286.1400000000001]
[null,null,null,null,null,"Austin Henderson","Austin","Henderson","Phone","North",1103.52]
[null,null,null,null,null,"William Hudson","William","Hudson","Stereo","West",1094.07]
[null,null,null,null,null,"Andrea Walsh","Andrea","Walsh","Stereo","West",1052.3699999999999]
[null,null,null,null,null,"Michael Buckland","Michael","Buckland","Stereo","North",1296.18]
[null,null,null,null,null,"Emma North","Emma","North","Stereo","East",1565.89]
[null,null,null,null,null,"Jasmine Gibson","Jasmine","Gibson","TV","South",1314.28]
[null,null,null,null,null,"Blake Murray","Blake","Murray","Phone","South",1919.16]
[null,null,null,null,null,"Irene McDonald","Irene","McDonald","Stereo","North",1062.52]
[null,null,null,null,null,"Diana Young","Diana","Young","Stereo","South",1684.93]
[null,null,null,null,null,"Jason Reid","Jason","Reid","Laptop","North",1004.87]
[null,null,null,null,null,"Katherine Bell","Katherine","Bell","TV","West",1518.84]
[null,null,null,null,null,"Andrew Slater","Andrew","Slater","Stereo","North",1958.22]
[null,null,null,null,null,"Sophie Ince","Sophie","Ince","Stereo","South",1707.55]
[null,null,null,null,null,"Kimberly Jackson","Kimberly","Jackson","Phone","North",1438.61]
[null,null,null,null,null,"Owen Vaughan","Owen","Vaughan","Laptop","East",1434.81]
[null,null,null,null,null,"Trevor Duncan","Trevor","Duncan","Phone","East",1755.16]
[null,null,null,null,null,"Dylan Edmunds","Dylan","Edmunds","TV","North",1081.46]
[null,null,null,null,null,"Leonard Wright","Leonard","Wright","TV","East",1342.3]
[null,null,null,null,null,"Stephen Simpson","Stephen","Simpson","Stereo","East",1931.35]
[null,null,null,null,null,"Heather Newman","Heather","Newman","Sofa","South",1246.67]
[null,null,null,null,null,"Joan Randall","Joan","Randall","Sofa","East",1473.63]
[null,null,null,null,null,"William Grant","William","Grant","Sofa","West",1133.93]
[null,null,null,null,null,"Amanda Tucker","Amanda","Tucker","Stereo","North",1691.24]
[null,null,null,null,null,"Nathan Bell","Nathan","Bell","Stereo","South",1338.48]
[null,null,null,null,null,"Matt Lewis","Matt","Lewis","TV","West",1884.76]
[null,null,null,null,null,"Sarah Robertson","Sarah","Robertson","Stereo","North",1860.98]
[null,null,null,null,null,"Emma Walsh","Emma","Walsh","Sofa","East",1491]
[null,null,null,null,null,"Diana Langdon","Diana","Langdon","Phone","East",1828.98]
[null,null,null,null,null,"Joseph Kelly","Joseph","Kelly","Phone","South",1347.9]
[null,null,null,null,null,"Amelia Parr","Amelia","Parr","TV","North",1954.75]
[null,null,null,null,null,"Piers Johnston","Piers","Johnston","Laptop","East",1021.8]
[null,null,null,null,null,"Una Manning","Una","Manning","Stereo","North",1415.41]
[null,null,null,null,null,"Luke Thomson","Luke","Thomson","TV","South",1516.82]
[null,null,null,null,null,"Michelle Arnold","Michelle","Arnold","Laptop","South",1980]
[null,null,null,null,null,"Connor Allan","Connor","Allan","Sofa","East",1812.89]
[null,null,null,null,null,"Matt Burgess","Matt","Burgess","Phone","West",1115.0899999999999]
[null,null,null,null,null,"Grace Lawrence","Grace","Lawrence","Sofa","West",1062.93]
[null,null,null,null,null,"Chloe Forsyth","Chloe","Forsyth","TV","West",1584.34]
[null,null,null,null,null,"Vanessa Mathis","Vanessa","Mathis","Phone","South",1108.55]
[null,null,null,null,null,"Christian Lambert","Christian","Lambert","Sofa","East",1251.28]
[null,null,null,null,null,"Jasmine MacDonald","Jasmine","MacDonald","Laptop","East",1308.52]
[null,null,null,null,null,"Alison Randall","Alison","Randall","Phone","South",1010.22]
[null,null,null,null,null,"Matt Parr","Matt","Parr","TV","South",1825.45]
[null,null,null,null,null,"Caroline Ellison","Caroline","Ellison","Sofa","West",1151.46]
[null,null,null,null,null,"Wendy Allan","Wendy","Allan","Phone","South",1622.58]
[null,null,null,null,null,"Sally Pullman","Sally","Pullman","Stereo","South",1214.75]
[null,null,null,null,null,"Gordon White","Gordon","White","Laptop","North",1480.41]
[null,null,null,null,null,"Leonard Young","Leonard","Young","TV","East",1590.51]
[null,null,null,null,null,"Peter Mathis","Peter","Mathis","Phone","East",1733.56]
[null,null,null,null,null,"Dominic Ellison","Dominic","Ellison","Sofa","East",1815]
[null,null,null,null,null,"Jennifer Lewis","Jennifer","Lewis","TV","West",1400.54]
[null,null,null,null,null,"Ella MacLeod","Ella","MacLeod","Laptop","East",1860.36]
[null,null,null,null,null,"Jan Manning","Jan","Manning","Laptop","North",1374.23]
[null,null,null,null,null,"Sean Gray","Sean","Gray","Phone","East",1948.56]
[null,null,null,null,null,"Thomas Russell","Thomas","Russell","Laptop","North",1456.58]
[null,null,null,null,null,"Oliver Davies","Oliver","Davies","TV","North",1049.7]
[null,null,null,null,null,"Jennifer Metcalfe","Jennifer","Metcalfe","Laptop","East",1721.53]
[null,null,null,null,null,"Liam Morgan","Liam","Morgan","Stereo","East",1957.06]
[null,null,null,null,null,"Wanda Stewart","Wanda","Stewart","Stereo","East",1465.77]
[null,null,null,null,null,"Piers Watson","Piers","Watson","Phone","West",1598.17]
[null,null,null,null,null,"Neil Morgan","Neil","Morgan","TV","North",1465.74]
[null,null,null,null,null,"Diana Gill","Diana","Gill","Phone","East",1563.02]
[null,null,null,null,null,"Andrea Ball","Andrea","Ball","Sofa","West",1656.26]
[null,null,null,null,null,"Rose Lawrence","Rose","Lawrence","TV","West",1554.38]
[null,null,null,null,null,"Victor Russell","Victor","Russell","TV","South",1060.6199999999999]
[null,null,null,null,null,"Alexander Lyman","Alexander","Lyman","TV","North",1488.26]
[null,null,null,null,null,"Dan Metcalfe","Dan","Metcalfe","Laptop","West",1928.62]
[null,null,null,null,null,"Wanda Dyer","Wanda","Dyer","Phone","West",1837.01]
[null,null,null,null,null,"Wanda Terry","Wanda","Terry","Laptop","North",1525.61]
[null,null,null,null,null,"Jonathan Underwood","Jonathan","Underwood","Stereo","North",1284]
[null,null,null,null,null,"Kevin Walsh","Kevin","Walsh","TV","East",1813.29]
[null,null,null,null,null,"Tim Hemmings","Tim","Hemmings","Laptop","West",1357.25]
[null,null,null,null,null,"Penelope Butler","Penelope","Butler","Laptop","South",1154.3699999999999]
[null,null,null,null,null,"Dylan Ogden","Dylan","Ogden","Laptop","North",1639.82]
[null,null,null,null,null,"Victoria White","Victoria","White","Phone","North",1361.71]
[null,null,null,null,null,"Austin Walsh","Austin","Walsh","TV","North",1561.39]
[null,null,null,null,null,"Lucas Lawrence","Lucas","Lawrence","TV","South",1170.57]
[null,null,null,null,null,"Pippa Hardacre","Pippa","Hardacre","TV","North",1737.46]
[null,null,null,null,null,"Una Scott","Una","Scott","TV","South",1139.67]
[null,null,null,null,null,"Victor Hudson","Victor","Hudson","TV","South",1920.02]
[null,null,null,null,null,"Alexandra Simpson","Alexandra","Simpson","Laptop","West",1285.6199999999999]
[null,null,null,null,null,"Heather Simpson","Heather","Simpson","Stereo","East",1886.69]
[null,null,null,null,null,"Isaac Butler","Isaac","Butler","Sofa","East",1983.09]
[null,null,null,null,null,"Andrew Terry","Andrew","Terry","Stereo","South",1502.89]
[null,null,null,null,null,"Hannah Peters","Hannah","Peters","Sofa","West",1564.72]
[null,null,null,null,null,"Sophie Dickens","Sophie","Dickens","Laptop","South",1346.3]
[null,null,null,null,null,"Claire Ross","Claire","Ross","Sofa","South",1079.5999999999999]
[null,null,null,null,null,"Piers Hudson","Piers","Hudson","Stereo","South",1884.94]
[null,null,null,null,null,"Grace MacLeod","Grace","MacLeod","Sofa","East",1137.1199999999999]
[null,null,null,null,null,"Paul Butler","Paul","Butler","Phone","South",1036.1400000000001]
[null,null,null,null,null,"Mary Short","Mary","Short","TV","West",1180.8399999999999]
[null,null,null,null,null,"Paul Pullman","Paul","Pullman","Stereo","East",1263.49]
[null,null,null,null,null,"Sebastian Murray","Sebastian","Murray","Phone","South",1300.52]
[null,null,null,null,null,"Jasmine Hodges","Jasmine","Hodges","Sofa","East",1660.91]
[null,null,null,null,null,"Phil Bailey","Phil","Bailey","Laptop","South",1572.95]
[null,null,null,null,null,"Stewart Hart","Stewart","Hart","Stereo","South",1135.92]
[null,null,null,null,null,"Jasmine Bond","Jasmine","Bond","Laptop","South",1365.71]
[null,null,null,null,null,"Sean Marshall","Sean","Marshall","Laptop","South",1171.53]
[null,null,null,null,null,"Una Henderson","Una","Henderson","TV","West",1667.17]
[null,null,null,null,null,"Ian Hemmings","Ian","Hemmings","TV","South",1115.57]
[null,null,null,null,null,"Kevin Henderson","Kevin","Henderson","TV","East",1946.04]
[null,null,null,null,null,"Grace Fraser","Grace","Fraser","TV","North",1538.29]
[null,null,null,null,null,"Joan Nash","Joan","Nash","Phone","East",1986.4]
[null,null,null,null,null,"Paul Arnold","Paul","Arnold","Laptop","East",1644.45]
[null,null,null,null,null,"Ruth Sharp","Ruth","Sharp","Stereo","South",1475.8]
[null,null,null,null,null,"Donna Hudson","Donna","Hudson","Phone","North",1664.85]
[null,null,null,null,null,"Tracey James","Tracey","James","Phone","South",1010.64]
[null,null,null,null,null,"Simon Buckland","Simon","Buckland","TV","West",1274.23]
[null,null,null,null,null,"Gavin Edmunds","Gavin","Edmunds","Laptop","West",1582.92]
[null,null,null,null,null,"Jasmine Piper","Jasmine","Piper","TV","West",1126.24]
[null,null,null,null,null,"Brian Bailey","Brian","Bailey","Phone","South",1936.15]
[null,null,null,null,null,"Andrew Quinn","Andrew","Quinn","Sofa","North",1864.4]
[null,null,null,null,null,"Michael Wallace","Michael","Wallace","Stereo","South",1116.98]
[null,null,null,null,null,"Richard Cornish","Richard","Cornish","Laptop","East",1227.19]
[null,null,null,null,null,"Stewart Bailey","Stewart","Bailey","Sofa","East",1865.55]
[null,null,null,null,null,"Christopher Slater","Christopher","Slater","Laptop","South",1764.94]
[null,null,null,null,null,"Fiona Chapman","Fiona","Chapman","Stereo","West",1526.12]
[null,null,null,null,null,"Phil Chapman","Phil","Chapman","Laptop","South",1559.95]
[null,null,null,null,null,"Donna Simpson","Donna","Simpson","Sofa","North",1926.84]
[null,null,null,null,null,"Amelia Vance","Amelia","Vance","Laptop","West",1282.95]
[null,null,null,null,null,"Faith Anderson","Faith","Anderson","TV","South",1247.9000000000001]
[null,null,null,null,null,"Nicholas Thomson","Nicholas","Thomson","TV","West",1521.32]
[null,null,null,null,null,"Keith Mills","Keith","Mills","Laptop","South",1784.73]
[null,null,null,null,null,"Gabrielle Parsons","Gabrielle","Parsons","Phone","West",1253.44]
[null,null,null,null,null,"Lisa Bailey","Lisa","Bailey","Sofa","South",1079.54]
[null,null,null,null,null,"Joshua Gill","Joshua","Gill","Stereo","North",1115.05]
[null,null,null,null,null,"Kevin Piper","Kevin","Piper","Stereo","West",1475.27]
[null,null,null,null,null,"Jennifer Parr","Jennifer","Parr","Laptop","West",1953.04]
[null,null,null,null,null,"Bella Russell","Bella","Russell","Sofa","South",1334.35]
[null,null,null,null,null,"Fiona Skinner","Fiona","Skinner","Phone","East",1324.18]
[null,null,null,null,null,"Nicola Wilson","Nicola","Wilson","TV","South",1625.52]
[null,null,null,null,null,"Christopher Ball","Christopher","Ball","Stereo","North",1917.59]
[null,null,null,null,null,"Anna Stewart","Anna","Stewart","Stereo","East",1970.1]
[null,null,null,null,null,"Andrew Bailey","Andrew","Bailey","Phone","South",1466.78]
[null,null,null,null,null,"Alexandra Walker","Alexandra","Walker","Phone","West",1881.44]
[null,null,null,null,null,"Joan Vaughan","Joan","Vaughan","Stereo","West",1213.3599999999999]
[null,null,null,null,null,"Anne Hodges","Anne","Hodges","Stereo","South",1902.83]
[null,null,null,null,null,"Sonia Hodges","Sonia","Hodges","Stereo","West",1354.09]
[null,null,null,null,null,"Bernadette Simpson","Bernadette","Simpson","Laptop","North",1658.11]
[null,null,null,null,null,"Neil Dowd","Neil","Dowd","Phone","East",1048.08]
[null,null,null,null,null,"Gabrielle Marshall","Gabrielle","Marshall","Sofa","North",1293.3699999999999]
[null,null,null,null,null,"Harry Lewis","Harry","Lewis","Sofa","South",1708.57]
[null,null,null,null,null,"Boris Chapman","Boris","Chapman","Stereo","West",1806.24]
[null,null,null,null,null,"Joanne Hardacre","Joanne","Hardacre","TV","South",1128.8]
[null,null,null,null,null,"Jack Vance","Jack","Vance","Sofa","West",1589.53]
[null,null,null,null,null,"Victor Underwood","Victor","Underwood","Phone","North",1998.79]
[null,null,null,null,null,"John Wallace","John","Wallace","Phone","South",1397.05]
[null,null,null,null,null,"Trevor Watson","Trevor","Watson","Laptop","West",1916.21]
[null,null,null,null,null,"Lillian Edmunds","Lillian","Edmunds","Phone","East",1967.38]
[null,null,null,null,null,"Ruth Vance","Ruth","Vance","Sofa","East",1403.46]
[null,null,null,null,null,"Faith Vaughan","Faith","Vaughan","TV","South",1276.0899999999999]
[null,null,null,null,null,"Charles Greene","Charles","Greene","Phone","South",1644.61]
[null,null,null,null,null,"Rebecca Slater","Rebecca","Slater","Laptop","East",1132.1300000000001]
[null,null,null,null,null,"Theresa Nash","Theresa","Nash","Stereo","South",1619.31]
[null,null,null,null,null,"Ava Fisher","Ava","Fisher","Sofa","West",1753.01]
[null,null,null,null,null,"David Mackenzie","David","Mackenzie","Laptop","East",1184.06]
[null,null,null,null,null,"Abigail Knox","Abigail","Knox","Laptop","West",1729.19]
[null,null,null,null,null,"Anne Lewis","Anne","Lewis","Phone","East",1112.45]
[null,null,null,null,null,"Ella Duncan","Ella","Duncan","TV","West",1927.74]
[null,null,null,null,null,"Virginia Grant","Virginia","Grant","Stereo","South",1992.4]
[null,null,null,null,null,"Alexander Rees","Alexander","Rees","Phone","West",1974.52]
[null,null,null,null,null,"Elizabeth MacDonald","Elizabeth","MacDonald","Stereo","West",1995.35]
[null,null,null,null,null,"Isaac Quinn","Isaac","Quinn","Sofa","East",1047.33]
[null,null,null,null,null,"Elizabeth Avery","Elizabeth","Avery","Laptop","West",1367.62]
[null,null,null,null,null,"Dominic Morgan","Dominic","Morgan","Phone","North",1613.74]
[null,null,null,null,null,"Brandon Greene","Brandon","Greene","Laptop","West",1620.63]
[null,null,null,null,null,"Richard Buckland","Richard","Buckland","Sofa","West",1019.89]
[null,null,null,null,null,"Robert Morgan","Robert","Morgan","TV","North",1276.47]
[null,null,null,null,null,"Steven Reid","Steven","Reid","Laptop","West",1426.02]
[null,null,null,null,null,"Lucas Ince","Lucas","Ince","Laptop","West",1353.62]
[null,null,null,null,null,"Stewart Mills","Stewart","Mills","Stereo","West",1693.95]
[null,null,null,null,null,"Wanda Watson","Wanda","Watson","Phone","West",1565.53]
[null,null,null,null,null,"Justin Ince","Justin","Ince","Stereo","North",1936.91]
[null,null,null,null,null,"Thomas Duncan","Thomas","Duncan","Phone","West",1455.81]
[null,null,null,null,null,"Deirdre Burgess","Deirdre","Burgess","Stereo","East",1706.7]
[null,null,null,null,null,"Evan Peters","Evan","Peters","Stereo","East",1255.47]
[null,null,null,null,null,"Tracey Blake","Tracey","Blake","TV","West",1266.8800000000001]
[null,null,null,null,null,"Alexandra Wilkins","Alexandra","Wilkins","Phone","South",1168.8800000000001]
[null,null,null,null,null,"Abigail Ellison","Abigail","Ellison","TV","East",1297.47]
[null,null,null,null,null,"Gordon McLean","Gordon","McLean","Laptop","South",1138.17]
[null,null,null,null,null,"Tim Knox","Tim","Knox","Phone","East",1503.34]
[null,null,null,null,null,"Alexandra Hill","Alexandra","Hill","Sofa","West",1385.13]
[null,null,null,null,null,"Chloe Graham","Chloe","Graham","Phone","West",1588.13]
[null,null,null,null,null,"Thomas Rampling","Thomas","Rampling","TV","North",1943.87]
[null,null,null,null,null,"Adam Churchill","Adam","Churchill","Sofa","South",1013.14]
[null,null,null,null,null,"Oliver Sutherland","Oliver","Sutherland","Laptop","South",1423.39]
[null,null,null,null,null,"Sam Marshall","Sam","Marshall","Stereo","West",1376.47]
[null,null,null,null,null,"Gordon Hughes","Gordon","Hughes","Laptop","West",1392.91]
[null,null,null,null,null,"Una MacLeod","Una","MacLeod","Phone","South",1154.8]
[null,null,null,null,null,"Justin Harris","Justin","Harris","Laptop","North",1069.6500000000001]
[null,null,null,null,null,"Carl Abraham","Carl","Abraham","Phone","East",1976.7]
[null,null,null,null,null,"Maria Young","Maria","Young","Laptop","South",1747.88]
[null,null,null,null,null,"Amy Dowd","Amy","Dowd","Stereo","East",1825.88]
[null,null,null,null,null,"Olivia Allan","Olivia","Allan","Laptop","East",1198.5999999999999]
[null,null,null,null,null,"Maria Dickens","Maria","Dickens","Sofa","South",1435.43]
[null,null,null,null,null,"Lillian Martin","Lillian","Martin","Laptop","South",1940.12]
[null,null,null,null,null,"Sonia Fisher","Sonia","Fisher","Sofa","North",1373.95]
[null,null,null,null,null,"Melanie Chapman","Melanie","Chapman","Stereo","South",1684.68]
[null,null,null,null,null,"Abigail MacLeod","Abigail","MacLeod","Stereo","South",1616.34]
[null,null,null,null,null,"Elizabeth Sutherland","Elizabeth","Sutherland","Sofa","West",1626]
[null,null,null,null,null,"Michael Newman","Michael","Newman","Phone","East",1841.54]
[null,null,null,null,null,"Abigail Morrison","Abigail","Morrison","Phone","West",1808.72]
[null,null,null,null,null,"Christian Watson","Christian","Watson","Stereo","West",1823.92]
[null,null,null,null,null,"Jonathan Wilson","Jonathan","Wilson","Laptop","East",1737.26]
[null,null,null,null,null,"Abigail Payne","Abigail","Payne","TV","West",1656]
[null,null,null,null,null,"Matt Churchill","Matt","Churchill","Sofa","South",1111.67]
[null,null,null,null,null,"Gavin Sanderson","Gavin","Sanderson","Stereo","West",1780.45]
[null,null,null,null,null,"Nicholas Hill","Nicholas","Hill","Phone","South",1188.54]
[null,null,null,null,null,"William Butler","William","Butler","Stereo","West",1670.24]
[null,null,null,null,null,"Julian Davies","Julian","Davies","Stereo","South",1396.78]
[null,null,null,null,null,"Melanie Wilkins","Melanie","Wilkins","Laptop","West",1636.28]
[null,null,null,null,null,"Ruth Hamilton","Ruth","Hamilton","Sofa","East",1298.55]
[null,null,null,null,null,"Justin Campbell","Justin","Campbell","Stereo","West",1906.73]
[null,null,null,null,null,"Victor Hunter","Victor","Hunter","Laptop","West",1849.35]
[null,null,null,null,null,"Owen Ferguson","Owen","Ferguson","Phone","East",1829.28]
[null,null,null,null,null,"Una Morgan","Una","Morgan","Stereo","North",1295.96]
[null,null,null,null,null,"Liam Manning","Liam","Manning","Stereo","West",1581.52]
[null,null,null,null,null,"David Greene","David","Greene","TV","North",1945.05]
[null,null,null,null,null,"Madeleine Powell","Madeleine","Powell","Sofa","East",1418.72]
[null,null,null,null,null,"Carol Carr","Carol","Carr","Phone","West",1312.62]
[null,null,null,null,null,"Stephanie Allan","Stephanie","Allan","Sofa","West",1442.43]
[null,null,null,null,null,"Frank Cameron","Frank","Cameron","Laptop","East",1866.77]
[null,null,null,null,null,"Anthony Greene","Anthony","Greene","Stereo","West",1689.93]
[null,null,null,null,null,"Ella Paterson","Ella","Paterson","TV","South",1243.3]
[null,null,null,null,null,"Jonathan Howard","Jonathan","Howard","Stereo","West",1019.04]
[null,null,null,null,null,"Ian Kerr","Ian","Kerr","Phone","West",1302.6400000000001]
[null,null,null,null,null,"Yvonne North","Yvonne","North","Phone","North",1330.39]
[null,null,null,null,null,"Benjamin Mills","Benjamin","Mills","TV","South",1954.32]
[null,null,null,null,null,"Michelle Hemmings","Michelle","Hemmings","Laptop","North",1241.96]
[null,null,null,null,null,"Dylan Allan","Dylan","Allan","Laptop","North",1523.79]
[null,null,null,null,null,"Amanda Campbell","Amanda","Campbell","Laptop","North",1668.35]
[null,null,null,null,null,"James Morgan","James","Morgan","TV","West",1173.72]
[null,null,null,null,null,"Ruth Gibson","Ruth","Gibson","Stereo","South",1760.88]
[null,null,null,null,null,"Penelope Buckland","Penelope","Buckland","Laptop","North",1640.26]
[null,null,null,null,null,"Heather Bell","Heather","Bell","Laptop","East",1240.74]
[null,null,null,null,null,"Penelope Pullman","Penelope","Pullman","Sofa","West",1424.81]
[null,null,null,null,null,"Molly Graham","Molly","Graham","Stereo","West",1282.18]
[null,null,null,null,null,"Dominic Gibson","Dominic","Gibson","Sofa","West",1845.87]
[null,null,null,null,null,"Anthony Wilson","Anthony","Wilson","Phone","West",1945.63]
[null,null,null,null,null,"Adam Wilkins","Adam","Wilkins","Sofa","West",1919.71]
[null,null,null,null,null,"Julian Cameron","Julian","Cameron","Laptop","West",1058.3900000000001]
[null,null,null,null,null,"Neil Vaughan","Neil","Vaughan","Stereo","West",1897.9]
[null,null,null,null,null,"Jonathan Newman","Jonathan","Newman","Laptop","North",1842.63]
[null,null,null,null,null,"Max Sanderson","Max","Sanderson","Sofa","East",1101.1400000000001]
[null,null,null,null,null,"Keith Dickens","Keith","Dickens","Stereo","South",1025.7]
[null,null,null,null,null,"Keith Sanderson","Keith","Sanderson","Phone","North",1381.62]
[null,null,null,null,null,"Dan Glover","Dan","Glover","Sofa","West",1901.86]
[null,null,null,null,null,"Dominic Chapman","Dominic","Chapman","Stereo","East",1319.16]
[null,null,null,null,null,"Joshua Allan","Joshua","Allan","Laptop","North",1768.05]
[null,null,null,null,null,"Jasmine Vaughan","Jasmine","Vaughan","Laptop","North",1412.9]
[null,null,null,null,null,"David Hart","David","Hart","TV","East",1915.43]
[null,null,null,null,null,"Jennifer Paige","Jennifer","Paige","TV","South",1205.6400000000001]
[null,null,null,null,null,"Boris Rutherford","Boris","Rutherford","Sofa","South",1235.17]
[null,null,null,null,null,"Jessica Lee","Jessica","Lee","Sofa","North",1136.51]
[null,null,null,null,null,"Amelia Arnold","Amelia","Arnold","Sofa","North",1980.73]
[null,null,null,null,null,"Ella Thomson","Ella","Thomson","Sofa","East",1970.49]
[null,null,null,null,null,"Diane Brown","Diane","Brown","Laptop","East",1374.58]
[null,null,null,null,null,"Owen Quinn","Owen","Quinn","TV","North",1428.75]
[null,null,null,null,null,"Una Kerr","Una","Kerr","Laptop","West",1657.44]
[null,null,null,null,null,"Amanda Bower","Amanda","Bower","Phone","West",1957.8]
[null,null,null,null,null,"Keith Manning","Keith","Manning","Laptop","East",1110.67]
[null,null,null,null,null,"Michael Graham","Michael","Graham","Stereo","East",1398.34]
[null,null,null,null,null,"Wendy Scott","Wendy","Scott","TV","South",1629.9]
[null,null,null,null,null,"Ruth Lawrence","Ruth","Lawrence","Sofa","South",1115.02]
[null,null,null,null,null,"Lucas Hill","Lucas","Hill","Phone","South",1354.06]
[null,null,null,null,null,"Alan Dyer","Alan","Dyer","Stereo","West",1289.56]
[null,null,null,null,null,"Bernadette North","Bernadette","North","Sofa","East",1598.85]
[null,null,null,null,null,"Jennifer Nash","Jennifer","Nash","Sofa","West",1762.4]
[null,null,null,null,null,"Jack Berry","Jack","Berry","Sofa","North",1154.95]
[null,null,null,null,null,"Alexandra Skinner","Alexandra","Skinner","Sofa","West",1639.47]
[null,null,null,null,null,"Bella Nash","Bella","Nash","TV","South",1709.44]
[null,null,null,null,null,"Felicity Kelly","Felicity","Kelly","TV","South",1254.74]
[null,null,null,null,null,"Leonard Wallace","Leonard","Wallace","Laptop","South",1233.32]
[null,null,null,null,null,"Karen Watson","Karen","Watson","Stereo","West",1871.29]
[null,null,null,null,null,"Joanne North","Joanne","North","Phone","South",1365.13]
[null,null,null,null,null,"Justin Taylor","Justin","Taylor","Stereo","West",1695.54]
[null,null,null,null,null,"Madeleine Baker","Madeleine","Baker","Sofa","West",1152.48]
[null,null,null,null,null,"Adrian Wright","Adrian","Wright","TV","East",1554.73]
[null,null,null,null,null,"Ella Ogden","Ella","Ogden","TV","South",1461.68]
[null,null,null,null,null,"Gavin Martin","Gavin","Martin","Sofa","South",1063.55]
[null,null,null,null,null,"Deirdre Greene","Deirdre","Greene","Laptop","West",1059.27]
[null,null,null,null,null,"Carl Davies","Carl","Davies","Sofa","East",1994.99]
[null,null,null,null,null,"Bella Fraser","Bella","Fraser","Sofa","North",1566.28]
[null,null,null,null,null,"Elizabeth Dowd","Elizabeth","Dowd","Laptop","South",1086.3599999999999]
[null,null,null,null,null,"Kylie MacLeod","Kylie","MacLeod","TV","North",1483.3]
[null,null,null,null,null,"Lillian Jackson","Lillian","Jackson","Stereo","South",1572.3]
[null,null,null,null,null,"Audrey Greene","Audrey","Greene","Phone","South",1388.23]
[null,null,null,null,null,"Carl Brown","Carl","Brown","Laptop","West",1346.95]
[null,null,null,null,null,"Felicity Quinn","Felicity","Quinn","Phone","North",1773.71]
[null,null,null,null,null,"Samantha White","Samantha","White","Laptop","East",1964.37]
[null,null,null,null,null,"Dylan Bond","Dylan","Bond","Stereo","West",1232.23]
[null,null,null,null,null,"Richard Short","Richard","Short","Stereo","North",1341.96]
[null,null,null,null,null,"Gordon Dickens","Gordon","Dickens","Stereo","East",1097.94]
[null,null,null,null,null,"Justin May","Justin","May","Sofa","East",1525.34]
[null,null,null,null,null,"David Anderson","David","Anderson","Stereo","South",1504.42]
[null,null,null,null,null,"Maria Vance","Maria","Vance","Stereo","South",1607.31]
[null,null,null,null,null,"Stephen Ferguson","Stephen","Ferguson","Stereo","South",1774.9]
[null,null,null,null,null,"Victor Henderson","Victor","Henderson","Laptop","South",1730.28]
[null,null,null,null,null,"Elizabeth Sharp","Elizabeth","Sharp","Sofa","East",1281.8900000000001]
[null,null,null,null,null,"John Roberts","John","Roberts","Sofa","East",1772.11]
[null,null,null,null,null,"Angela Welch","Angela","Welch","Phone","East",1344.64]
[null,null,null,null,null,"Joseph Mackenzie","Joseph","Mackenzie","TV","East",1635.62]
[null,null,null,null,null,"Rose Lewis","Rose","Lewis","Sofa","South",1550.72]
[null,null,null,null,null,"Sophie Greene","Sophie","Greene","Laptop","West",1677.44]
[null,null,null,null,null,"Kylie Slater","Kylie","Slater","Sofa","East",1368.84]
[null,null,null,null,null,"Blake Forsyth","Blake","Forsyth","Sofa","East",1758.66]
[null,null,null,null,null,"Dominic Powell","Dominic","Powell","TV","East",1685.32]
[null,null,null,null,null,"Diane Cornish","Diane","Cornish","Sofa","North",1727.44]
[null,null,null,null,null,"Simon Hunter","Simon","Hunter","TV","East",1441.83]
[null,null,null,null,null,"Grace Quinn","Grace","Quinn","Sofa","South",1000.51]
[null,null,null,null,null,"Pippa Ellison","Pippa","Ellison","Stereo","North",1494.86]
[null,null,null,null,null,"Sebastian Walsh","Sebastian","Walsh","Phone","West",1157.6199999999999]
[null,null,null,null,null,"Dan Short","Dan","Short","Laptop","East",1094.1199999999999]
[null,null,null,null,null,"Carl Grant","Carl","Grant","Laptop","South",1209.8]
[null,null,null,null,null,"Leonard Hamilton","Leonard","Hamilton","Sofa","West",1014.01]
[null,null,null,null,null,"Max Rutherford","Max","Rutherford","Laptop","East",1360.57]
[null,null,null,null,null,"Emma Paterson","Emma","Paterson","Sofa","South",1795.52]
[null,null,null,null,null,"Michelle MacLeod","Michelle","MacLeod","Laptop","South",1343.15]
[null,null,null,null,null,"Leah Dowd","Leah","Dowd","Sofa","North",1448.54]
[null,null,null,null,null,"Owen Jackson","Owen","Jackson","Sofa","North",1593.02]
[null,null,null,null,null,"Cameron Wright","Cameron","Wright","Stereo","West",1894.69]
[null,null,null,null,null,"Nicola Berry","Nicola","Berry","TV","South",1077.98]
[null,null,null,null,null,"Carl Dowd","Carl","Dowd","TV","South",1441.05]
[null,null,null,null,null,"Christian Campbell","Christian","Campbell","Sofa","West",1825.51]
[null,null,null,null,null,"Wendy Young","Wendy","Young","Sofa","East",1118.21]
[null,null,null,null,null,"Chloe Martin","Chloe","Martin","Phone","West",1686.34]
[null,null,null,null,null,"Yvonne Watson","Yvonne","Watson","Phone","North",1631.79]
[null,null,null,null,null,"Stephen Bower","Stephen","Bower","TV","South",1282.04]
[null,null,null,null,null,"Jennifer Roberts","Jennifer","Roberts","Phone","East",1921.8]
[null,null,null,null,null,"James Howard","James","Howard","Phone","East",1294.93]
[null,null,null,null,null,"Charles Lee","Charles","Lee","Phone","South",1021.79]
[null,null,null,null,null,"Warren Dickens","Warren","Dickens","TV","West",1826.63]
[null,null,null,null,null,"Ella Kelly","Ella","Kelly","Stereo","North",1007.71]
[null,null,null,null,null,"Lisa James","Lisa","James","Stereo","South",1492.52]
[null,null,null,null,null,"Simon Mackenzie","Simon","Mackenzie","Laptop","West",1388.92]
[null,null,null,null,null,"Heather King","Heather","King","Phone","West",1550.91]
[null,null,null,null,null,"Heather Davidson","Heather","Davidson","Sofa","North",1662.33]
[null,null,null,null,null,"Carl Skinner","Carl","Skinner","Phone","West",1052.8599999999999]
[null,null,null,null,null,"Edward Wallace","Edward","Wallace","Sofa","West",1710.76]
[null,null,null,null,null,"James Hunter","James","Hunter","Phone","East",1083.92]
[null,null,null,null,null,"Andrew Sharp","Andrew","Sharp","Stereo","West",1303.5899999999999]
[null,null,null,null,null,"Christopher Reid","Christopher","Reid","Phone","West",1140.96]
[null,null,null,null,null,"Virginia Lee","Virginia","Lee","Stereo","South",1152.9000000000001]
[null,null,null,null,null,"Lauren Vance","Lauren","Vance","Stereo","West",1181.8900000000001]
[null,null,null,null,null,"Jonathan Ferguson","Jonathan","Ferguson","TV","South",1305.1300000000001]
[null,null,null,null,null,"Sonia Thomson","Sonia","Thomson","Sofa","East",1092.44]
[null,null,null,null,null,"Yvonne Bailey","Yvonne","Bailey","Sofa","East",1259.56]
[null,null,null,null,null,"Charles Alsop","Charles","Alsop","TV","South",1208.79]
[null,null,null,null,null,"Alison Ellison","Alison","Ellison","Laptop","West",1553.52]
[null,null,null,null,null,"Theresa Paige","Theresa","Paige","Laptop","West",1457.65]
[null,null,null,null,null,"Lillian Nash","Lillian","Nash","Phone","West",1860.56]
[null,null,null,null,null,"James Harris","James","Harris","Phone","East",1522.72]
[null,null,null,null,null,"Thomas Reid","Thomas","Reid","Laptop","East",1427.26]
[null,null,null,null,null,"Andrew Paterson","Andrew","Paterson","Sofa","East",1433.22]
[null,null,null,null,null,"Warren MacDonald","Warren","MacDonald","Sofa","South",1880.3]
[null,null,null,null,null,"Lily Grant","Lily","Grant","Sofa","North",1988.02]
[null,null,null,null,null,"Ryan Campbell","Ryan","Campbell","Sofa","South",1089.72]
[null,null,null,null,null,"Robert Hodges","Robert","Hodges","Phone","North",1227.1600000000001]
[null,null,null,null,null,"Dylan May","Dylan","May","Laptop","North",1528.35]
[null,null,null,null,null,"Adam MacLeod","Adam","MacLeod","TV","West",1023.18]
[null,null,null,null,null,"Peter Simpson","Peter","Simpson","Stereo","North",1780.89]
[null,null,null,null,null,"Brandon Mackenzie","Brandon","Mackenzie","TV","North",1178.78]
[null,null,null,null,null,"Oliver Glover","Oliver","Glover","TV","South",1629.28]
[null,null,null,null,null,"Nicola Bond","Nicola","Bond","Stereo","South",1825.79]
[null,null,null,null,null,"Peter Cornish","Peter","Cornish","Sofa","West",1872.75]
[null,null,null,null,null,"Emma Graham","Emma","Graham","Sofa","North",1892.74]
[null,null,null,null,null,"Sarah MacDonald","Sarah","MacDonald","Stereo","East",1968.6]
[null,null,null,null,null,"Keith Rutherford","Keith","Rutherford","Sofa","North",1983.3]
[null,null,null,null,null,"Joe Gray","Joe","Gray","Stereo","North",1132.07]
[null,null,null,null,null,"Kevin Grant","Kevin","Grant","Phone","South",1870.63]
[null,null,null,null,null,"Fiona Oliver","Fiona","Oliver","TV","South",1782.02]
[null,null,null,null,null,"Max Short","Max","Short","Laptop","East",1798.96]
[null,null,null,null,null,"Jason Arnold","Jason","Arnold","Phone","South",1748.55]
[null,null,null,null,null,"Katherine Martin","Katherine","Martin","Stereo","East",1870.69]
[null,null,null,null,null,"Caroline Knox","Caroline","Knox","Stereo","West",1137.27]
[null,null,null,null,null,"Bernadette Wilson","Bernadette","Wilson","Stereo","East",1870.27]
[null,null,null,null,null,"Rebecca Lyman","Rebecca","Lyman","Laptop","East",1708.32]
[null,null,null,null,null,"Lucas Fisher","Lucas","Fisher","Laptop","East",1892.11]
[null,null,null,null,null,"Leonard Johnston","Leonard","Johnston","Laptop","West",1734.88]
[null,null,null,null,null,"Victor Taylor","Victor","Taylor","Laptop","South",1298.53]
[null,null,null,null,null,"Sophie Arnold","Sophie","Arnold","Sofa","South",1549.57]
[null,null,null,null,null,"Chloe Hudson","Chloe","Hudson","TV","North",1697.35]
[null,null,null,null,null,"Mary Davies","Mary","Davies","Sofa","West",1880.56]
[null,null,null,null,null,"Maria McLean","Maria","McLean","Phone","North",1156.17]
[null,null,null,null,null,"Warren Alsop","Warren","Alsop","TV","East",1644.67]
[null,null,null,null,null,"Carol Henderson","Carol","Henderson","Laptop","South",1716.14]
[null,null,null,null,null,"Jane McLean","Jane","McLean","Laptop","North",1320.06]
[null,null,null,null,null,"Abigail Clark","Abigail","Clark","Laptop","North",1832.8]
[null,null,null,null,null,"Bernadette Thomson","Bernadette","Thomson","Phone","East",1252.28]
[null,null,null,null,null,"Heather Russell","Heather","Russell","Laptop","North",1914.75]
[null,null,null,null,null,"Jasmine Quinn","Jasmine","Quinn","Laptop","South",1204.6500000000001]
[null,null,null,null,null,"Amy Stewart","Amy","Stewart","Sofa","East",1016.79]
[null,null,null,null,null,"Madeleine Tucker","Madeleine","Tucker","TV","West",1089.33]
[null,null,null,null,null,"Carol Vaughan","Carol","Vaughan","Sofa","East",1479.39]
[null,null,null,null,null,"Joanne Dickens","Joanne","Dickens","TV","North",1098.97]
[null,null,null,null,null,"Jack Glover","Jack","Glover","Stereo","South",1626.1]
[null,null,null,null,null,"Virginia Butler","Virginia","Butler","Sofa","East",1209.95]
[null,null,null,null,null,"Nicholas Wallace","Nicholas","Wallace","Sofa","North",1557.43]
[null,null,null,null,null,"Blake Miller","Blake","Miller","TV","South",1068.04]
[null,null,null,null,null,"Diane Black","Diane","Black","Stereo","West",1336.39]
[null,null,null,null,null,"Julian Pullman","Julian","Pullman","TV","North",1609.8]
[null,null,null,null,null,"Harry Gibson","Harry","Gibson","Phone","South",1914.94]
[null,null,null,null,null,"Sue Vaughan","Sue","Vaughan","Sofa","West",1391]
[null,null,null,null,null,"Zoe Arnold","Zoe","Arnold","Phone","East",1220.51]
[null,null,null,null,null,"Jonathan Hardacre","Jonathan","Hardacre","Stereo","West",1657.82]
[null,null,null,null,null,"Brian Bower","Brian","Bower","Laptop","West",1930.19]
[null,null,null,null,null,"Kylie Avery","Kylie","Avery","TV","East",1474.56]
[null,null,null,null,null,"Rose McDonald","Rose","McDonald","Sofa","North",1606.29]
[null,null,null,null,null,"Heather Hunter","Heather","Hunter","Sofa","East",1471.53]
[null,null,null,null,null,"Ava Ellison","Ava","Ellison","Laptop","East",1860.11]
[null,null,null,null,null,"Gordon Edmunds","Gordon","Edmunds","Sofa","North",1565.15]
[null,null,null,null,null,"Jane Arnold","Jane","Arnold","Sofa","South",1790.51]
[null,null,null,null,null,"Emily Graham","Emily","Graham","Sofa","South",1289.29]
[null,null,null,null,null,"Nathan Berry","Nathan","Berry","Sofa","East",1836.41]
[null,null,null,null,null,"Claire Knox","Claire","Knox","Sofa","East",1719.94]
[null,null,null,null,null,"Diana Ellison","Diana","Ellison","Sofa","West",1490.2]
[null,null,null,null,null,"Anne Rees","Anne","Rees","Laptop","West",1547.74]
[null,null,null,null,null,"Olivia Mackay","Olivia","Mackay","Phone","East",1958.05]
[null,null,null,null,null,"Evan Hemmings","Evan","Hemmings","Phone","East",1702.22]
[null,null,null,null,null,"Wendy Payne","Wendy","Payne","Sofa","South",1449.68]
[null,null,null,null,null,"Colin Short","Colin","Short","Phone","South",1521.67]
[null,null,null,null,null,"Audrey Hodges","Audrey","Hodges","TV","South",1453.46]
[null,null,null,null,null,"Joshua Clarkson","Joshua","Clarkson","TV","West",1164.51]
[null,null,null,null,null,"Andrew Walsh","Andrew","Walsh","Sofa","West",1451.18]
[null,null,null,null,null,"Connor Martin","Connor","Martin","Phone","East",1782.42]
[null,null,null,null,null,"Alison Fraser","Alison","Fraser","Sofa","East",1163.74]
[null,null,null,null,null,"Edward Morgan","Edward","Morgan","Sofa","North",1863.21]
[null,null,null,null,null,"Peter Hemmings","Peter","Hemmings","Phone","South",1775.77]
[null,null,null,null,null,"Dylan Rees","Dylan","Rees","Sofa","North",1083.54]
[null,null,null,null,null,"Dominic Stewart","Dominic","Stewart","Phone","North",1731.3]
[null,null,null,null,null,"Connor Clark","Connor","Clark","Stereo","North",1041.67]
[null,null,null,null,null,"Yvonne Oliver","Yvonne","Oliver","Phone","West",1365.34]
[null,null,null,null,null,"Olivia Carr","Olivia","Carr","Phone","South",1955.79]
[null,null,null,null,null,"Joe McGrath","Joe","McGrath","TV","West",1509.53]
[null,null,null,null,null,"David Forsyth","David","Forsyth","Sofa","South",1678.7]
[null,null,null,null,null,"Brandon Short","Brandon","Short","Stereo","East",1901.71]
[null,null,null,null,null,"Lillian Oliver","Lillian","Oliver","Stereo","West",1987.35]
[null,null,null,null,null,"Sam Taylor","Sam","Taylor","Stereo","South",1257.03]
[null,null,null,null,null,"Michael Walsh","Michael","Walsh","Phone","North",1187.03]
[null,null,null,null,null,"Justin Langdon","Justin","Langdon","Stereo","South",1908.37]
[null,null,null,null,null,"Ian Roberts","Ian","Roberts","Sofa","North",1087.3499999999999]
[null,null,null,null,null,"Hannah Hemmings","Hannah","Hemmings","Laptop","West",1675.64]
[null,null,null,null,null,"William Stewart","William","Stewart","Phone","South",1879.11]
[null,null,null,null,null,"Heather Vance","Heather","Vance","Stereo","West",1436.01]
[null,null,null,null,null,"Owen Langdon","Owen","Langdon","TV","South",1155.1600000000001]
[null,null,null,null,null,"Luke Bell","Luke","Bell","Phone","West",1893.06]
[null,null,null,null,null,"Lauren Sharp","Lauren","Sharp","Stereo","South",1169.6400000000001]
[null,null,null,null,null,"Victoria Anderson","Victoria","Anderson","Laptop","North",1634.45]
[null,null,null,null,null,"John Short","John","Short","Sofa","North",1429.24]
[null,null,null,null,null,"Irene Sharp","Irene","Sharp","Laptop","South",1539.01]
[null,null,null,null,null,"Frank Chapman","Frank","Chapman","Phone","West",1830.92]
[null,null,null,null,null,"Gabrielle Skinner","Gabrielle","Skinner","TV","South",1595.75]
[null,null,null,null,null,"Emma Cornish","Emma","Cornish","TV","West",1242.78]
[null,null,null,null,null,"Nicola Gibson","Nicola","Gibson","TV","South",1646.78]
[null,null,null,null,null,"Diane Blake","Diane","Blake","Phone","West",1330.41]
[null,null,null,null,null,"Gabrielle White","Gabrielle","White","Stereo","East",1903.62]
[null,null,null,null,null,"Owen Paige","Owen","Paige","Phone","West",1482.83]
[null,null,null,null,null,"Edward Alsop","Edward","Alsop","Phone","East",1438.85]
[null,null,null,null,null,"Theresa Miller","Theresa","Miller","TV","East",1013.8]
[null,null,null,null,null,"Alexander Mills","Alexander","Mills","Sofa","East",1089.82]
[null,null,null,null,null,"Abigail Blake","Abigail","Blake","Sofa","East",1509.58]
[null,null,null,null,null,"Felicity Buckland","Felicity","Buckland","TV","South",1738.2]
[null,null,null,null,null,"James Cornish","James","Cornish","TV","East",1264.78]
[null,null,null,null,null,"Joseph Peake","Joseph","Peake","Phone","West",1363.89]
[null,null,null,null,null,"Leah Clarkson","Leah","Clarkson","Phone","West",1710.62]
[null,null,null,null,null,"Gavin Knox","Gavin","Knox","Stereo","East",1456.23]
[null,null,null,null,null,"Angela Ince","Angela","Ince","TV","West",1711.4]
[null,null,null,null,null,"Dominic Hodges","Dominic","Hodges","Laptop","West",1269.8800000000001]
[null,null,null,null,null,"Chloe Oliver","Chloe","Oliver","Laptop","West",1961.62]
[null,null,null,null,null,"Anne Skinner","Anne","Skinner","TV","North",1380.12]
[null,null,null,null,null,"Blake Hughes","Blake","Hughes","Laptop","West",1960.77]
[null,null,null,null,null,"Paul Duncan","Paul","Duncan","Stereo","South",1499.64]
[null,null,null,null,null,"Sophie Bond","Sophie","Bond","Stereo","West",1654.75]
[null,null,null,null,null,"Mary Ince","Mary","Ince","Sofa","South",1702.4]
[null,null,null,null,null,"Jane Clarkson","Jane","Clarkson","TV","North",1123.9000000000001]
[null,null,null,null,null,"Chloe Underwood","Chloe","Underwood","Phone","South",1525.47]
[null,null,null,null,null,"Sonia Anderson","Sonia","Anderson","Stereo","East",1925.33]
[null,null,null,null,null,"Connor Miller","Connor","Miller","TV","West",1337.92]
[null,null,null,null,null,"Sean North","Sean","North","Sofa","North",1775.66]
[null,null,null,null,null,"Alexandra McDonald","Alexandra","McDonald","Stereo","North",1448.94]
[null,null,null,null,null,"Jake Payne","Jake","Payne","Laptop","East",1568.14]
[null,null,null,null,null,"Sally Springer","Sally","Springer","Laptop","North",1966.77]
[null,null,null,null,null,"Hannah Howard","Hannah","Howard","Phone","North",1637.95]
[null,null,null,null,null,"Ian Short","Ian","Short","Laptop","North",1599.34]
[null,null,null,null,null,"Molly Lambert","Molly","Lambert","Stereo","East",1232.52]
[null,null,null,null,null,"Anna Alsop","Anna","Alsop","Stereo","West",1667.05]
[null,null,null,null,null,"Ryan Slater","Ryan","Slater","Laptop","West",1918.56]
[null,null,null,null,null,"Chloe Reid","Chloe","Reid","Laptop","East",1215.52]
[null,null,null,null,null,"Deirdre Hemmings","Deirdre","Hemmings","Stereo","East",1428.35]
[null,null,null,null,null,"Andrew Parr","Andrew","Parr","Phone","North",1242.32]
[null,null,null,null,null,"Donna James","Donna","James","Laptop","West",1974.48]
[null,null,null,null,null,"Jennifer Gibson","Jennifer","Gibson","Stereo","East",1256.49]
[null,null,null,null,null,"Rachel Vaughan","Rachel","Vaughan","TV","South",1131.1199999999999]
[null,null,null,null,null,"Audrey Blake","Audrey","Blake","TV","West",1478.27]
[null,null,null,null,null,"Dan Manning","Dan","Manning","Phone","East",1330.86]
[null,null,null,null,null,"Megan Black","Megan","Black","Phone","South",1681.73]
[null,null,null,null,null,"Pippa Sutherland","Pippa","Sutherland","Stereo","South",1278.45]
[null,null,null,null,null,"Ruth Carr","Ruth","Carr","Stereo","South",1424.08]
[null,null,null,null,null,"Colin Anderson","Colin","Anderson","TV","West",1975.18]
[null,null,null,null,null,"Julian Tucker","Julian","Tucker","TV","North",1550.59]
[null,null,null,null,null,"Virginia Watson","Virginia","Watson","Sofa","South",1641.52]
[null,null,null,null,null,"Emily Tucker","Emily","Tucker","Phone","South",1143.42]
[null,null,null,null,null,"Wendy Parr","Wendy","Parr","Phone","West",1565.78]
[null,null,null,null,null,"Kimberly Miller","Kimberly","Miller","Laptop","North",1495.5]
[null,null,null,null,null,"Adam Johnston","Adam","Johnston","Laptop","South",1879.09]
[null,null,null,null,null,"Hannah Greene","Hannah","Greene","Stereo","North",1275.1400000000001]
[null,null,null,null,null,"Christopher Henderson","Christopher","Henderson","Laptop","West",1130.58]
[null,null,null,null,null,"Benjamin Arnold","Benjamin","Arnold","TV","West",1949.3]
[null,null,null,null,null,"Gordon Cornish","Gordon","Cornish","Sofa","South",1415.14]
[null,null,null,null,null,"Adam Wright","Adam","Wright","Stereo","West",1393.11]
[null,null,null,null,null,"Trevor Clarkson","Trevor","Clarkson","Phone","South",1673.38]
[null,null,null,null,null,"Bella Berry","Bella","Berry","TV","North",1633.79]
[null,null,null,null,null,"Christopher Fraser","Christopher","Fraser","Laptop","East",1620.04]
[null,null,null,null,null,"Amelia Taylor","Amelia","Taylor","TV","South",1301.6300000000001]
[null,null,null,null,null,"Tim Smith","Tim","Smith","Stereo","West",1671.36]
[null,null,null,null,null,"Joseph Anderson","Joseph","Anderson","Stereo","North",1106.71]
[null,null,null,null,null,"Rose Hodges","Rose","Hodges","TV","South",1811.66]
[null,null,null,null,null,"Brandon Smith","Brandon","Smith","TV","North",1230.1400000000001]
[null,null,null,null,null,"Grace Gill","Grace","Gill","TV","North",1057.8]
[null,null,null,null,null,"Felicity Simpson","Felicity","Simpson","TV","West",1340.22]
[null,null,null,null,null,"Stephen White","Stephen","White","Sofa","North",1069.3399999999999]
[null,null,null,null,null,"Alexandra Dowd","Alexandra","Dowd","Laptop","South",1880.79]
[null,null,null,null,null,"Melanie Johnston","Melanie","Johnston","Sofa","West",1100.3900000000001]
[null,null,null,null,null,"Piers James","Piers","James","Phone","South",1462.77]
[null,null,null,null,null,"Tim Davies","Tim","Davies","Laptop","North",1167.08]
[null,null,null,null,null,"Gordon Knox","Gordon","Knox","Stereo","West",1164.83]
[null,null,null,null,null,"Stewart Taylor","Stewart","Taylor","TV","East",1930.09]
[null,null,null,null,null,"Alison Metcalfe","Alison","Metcalfe","TV","East",1291.6500000000001]
[null,null,null,null,null,"Eric Blake","Eric","Blake","Phone","South",1193.1500000000001]
[null,null,null,null,null,"Anne Ogden","Anne","Ogden","Phone","North",1836.81]
[null,null,null,null,null,"Theresa Churchill","Theresa","Churchill","Stereo","East",1723.62]
[null,null,null,null,null,"Joshua May","Joshua","May","Phone","South",1214.3]
[null,null,null,null,null,"Amelia Alsop","Amelia","Alsop","Sofa","West",1057.93]
[null,null,null,null,null,"Abigail Forsyth","Abigail","Forsyth","Stereo","East",1653.42]
[null,null,null,null,null,"Lily Dowd","Lily","Dowd","Stereo","West",1584.19]
[null,null,null,null,null,"Adrian Sanderson","Adrian","Sanderson","Stereo","South",1643.29]
[null,null,null,null,null,"Grace Poole","Grace","Poole","TV","East",1496.1]
[null,null,null,null,null,"Max Turner","Max","Turner","Laptop","West",1930.56]
[null,null,null,null,null,"Una Morrison","Una","Morrison","Sofa","North",1340.23]
[null,null,null,null,null,"Mary Bell","Mary","Bell","Stereo","North",1205.8599999999999]
[null,null,null,null,null,"Lucas McLean","Lucas","McLean","Phone","West",1243.76]
[null,null,null,null,null,"Nicholas Martin","Nicholas","Martin","Phone","East",1566.2]
[null,null,null,null,null,"Stewart Lambert","Stewart","Lambert","Phone","North",1677.99]
[null,null,null,null,null,"Lauren Ellison","Lauren","Ellison","Laptop","East",1868.93]
[null,null,null,null,null,"Tracey Walsh","Tracey","Walsh","Stereo","East",1769.69]
[null,null,null,null,null,"Amy Rampling","Amy","Rampling","TV","North",1211.79]
[null,null,null,null,null,"Jake Grant","Jake","Grant","Stereo","North",1761.22]
[null,null,null,null,null,"Elizabeth Payne","Elizabeth","Payne","Stereo","West",1181.7]
[null,null,null,null,null,"Molly Morrison","Molly","Morrison","TV","North",1427.51]
[null,null,null,null,null,"Felicity Forsyth","Felicity","Forsyth","Laptop","South",1291.05]
[null,null,null,null,null,"Chloe Davidson","Chloe","Davidson","TV","West",1374.17]
[null,null,null,null,null,"Jason Peters","Jason","Peters","Laptop","East",1324.66]
[null,null,null,null,null,"Nathan Wilson","Nathan","Wilson","Laptop","South",1160.79]
[null,null,null,null,null,"Amy Tucker","Amy","Tucker","Phone","South",1510.41]
[null,null,null,null,null,"Leonard Cornish","Leonard","Cornish","TV","West",1291.03]
[null,null,null,null,null,"Amanda Ball","Amanda","Ball","Stereo","West",1327.1]
[null,null,null,null,null,"Wanda Duncan","Wanda","Duncan","Sofa","North",1173.47]
[null,null,null,null,null,"Karen Vance","Karen","Vance","Phone","South",1043.22]
[null,null,null,null,null,"Austin Russell","Austin","Russell","Stereo","South",1870.86]
[null,null,null,null,null,"Liam Coleman","Liam","Coleman","Phone","North",1349.58]
[null,null,null,null,null,"Joe Campbell","Joe","Campbell","Sofa","East",1248.71]
[null,null,null,null,null,"Luke Randall","Luke","Randall","Stereo","North",1185.8900000000001]
[null,null,null,null,null,"Julian Poole","Julian","Poole","Sofa","South",1445.65]
[null,null,null,null,null,"Theresa Rutherford","Theresa","Rutherford","Laptop","West",1122.5999999999999]
[null,null,null,null,null,"Justin Stewart","Justin","Stewart","Laptop","South",1338.6]
[null,null,null,null,null,"Zoe Cornish","Zoe","Cornish","TV","North",1242.6300000000001]
[null,null,null,null,null,"Wendy Hudson","Wendy","Hudson","Laptop","South",1269.49]
[null,null,null,null,null,"Owen Fraser","Owen","Fraser","Sofa","South",1388.05]
[null,null,null,null,null,"Carolyn Welch","Carolyn","Welch","Laptop","East",1734.17]
[null,null,null,null,null,"Julia Gray","Julia","Gray","Stereo","East",1072.6199999999999]
[null,null,null,null,null,"Bella Hodges","Bella","Hodges","Sofa","West",1395.15]
[null,null,null,null,null,"Alison Jackson","Alison","Jackson","TV","South",1873.02]
[null,null,null,null,null,"Dan Slater","Dan","Slater","Phone","North",1934.95]
[null,null,null,null,null,"Christian Anderson","Christian","Anderson","Stereo","East",1773.48]
[null,null,null,null,null,"Abigail Coleman","Abigail","Coleman","Phone","East",1164.6600000000001]
[null,null,null,null,null,"Richard Morrison","Richard","Morrison","Phone","West",1581.49]
[null,null,null,null,null,"Dorothy Harris","Dorothy","Harris","TV","South",1120.1500000000001]
[null,null,null,null,null,"Megan King","Megan","King","Phone","East",1437.36]
[null,null,null,null,null,"Stewart Paterson","Stewart","Paterson","Laptop","South",1313.44]
[null,null,null,null,null,"Dylan Rutherford","Dylan","Rutherford","Sofa","East",1892.51]
[null,null,null,null,null,"Sophie Nolan","Sophie","Nolan","TV","East",1997.42]
[null,null,null,null,null,"Phil Davidson","Phil","Davidson","Sofa","North",1963.05]
[null,null,null,null,null,"Adam Vaughan","Adam","Vaughan","Sofa","West",1758.48]
[null,null,null,null,null,"Sam James","Sam","James","Stereo","North",1904.55]
[null,null,null,null,null,"Elizabeth McLean","Elizabeth","McLean","Laptop","West",1536.54]
[null,null,null,null,null,"Oliver Bell","Oliver","Bell","Laptop","East",1419.55]
[null,null,null,null,null,"Heather Sharp","Heather","Sharp","Laptop","East",1482.23]
[null,null,null,null,null,"Nicola Allan","Nicola","Allan","TV","West",1429.22]
[null,null,null,null,null,"Peter Reid","Peter","Reid","Laptop","East",1910.12]
[null,null,null,null,null,"Sebastian Graham","Sebastian","Graham","Stereo","West",1009.23]
[null,null,null,null,null,"Piers Gray","Piers","Gray","Phone","North",1769.61]
[null,null,null,null,null,"Melanie James","Melanie","James","TV","North",1012.46]
[null,null,null,null,null,"Dan McGrath","Dan","McGrath","Sofa","West",1185.03]
[null,null,null,null,null,"Rachel Forsyth","Rachel","Forsyth","Phone","North",1494.17]
[null,null,null,null,null,"Evan Robertson","Evan","Robertson","Laptop","East",1055.57]
[null,null,null,null,null,"Jasmine Bower","Jasmine","Bower","Stereo","North",1471.74]
[null,null,null,null,null,"Brian Short","Brian","Short","Phone","East",1859.28]
[null,null,null,null,null,"Samantha Hughes","Samantha","Hughes","Laptop","North",1349.84]
[null,null,null,null,null,"Ian Glover","Ian","Glover","Sofa","South",1216.95]
[null,null,null,null,null,"Maria Piper","Maria","Piper","Stereo","South",1887.52]
[null,null,null,null,null,"Blake Rees","Blake","Rees","Sofa","West",1246.49]
[null,null,null,null,null,"Hannah Langdon","Hannah","Langdon","Stereo","South",1345.37]
[null,null,null,null,null,"Keith Kelly","Keith","Kelly","TV","West",1435.85]
[null,null,null,null,null,"Stewart Wilson","Stewart","Wilson","Phone","East",1006.31]
[null,null,null,null,null,"Leonard Hunter","Leonard","Hunter","Stereo","North",1221.6300000000001]
[null,null,null,null,null,"Ella Harris","Ella","Harris","Phone","East",1509.13]
[null,null,null,null,null,"Diana Rutherford","Diana","Rutherford","Stereo","East",1896.42]
[null,null,null,null,null,"Ruth Hunter","Ruth","Hunter","Sofa","West",1162.25]
[null,null,null,null,null,"Jason Lyman","Jason","Lyman","Laptop","South",1770.99]
[null,null,null,null,null,"Donna Buckland","Donna","Buckland","Stereo","South",1934.53]
[null,null,null,null,null,"Victor Marshall","Victor","Marshall","TV","North",1348.44]
[null,null,null,null,null,"Heather MacDonald","Heather","MacDonald","Sofa","North",1293.1199999999999]
[null,null,null,null,null,"Nicola Cornish","Nicola","Cornish","Phone","North",1573.97]
[null,null,null,null,null,"Bella Short","Bella","Short","Laptop","North",1328.31]
[null,null,null,null,null,"Eric Fisher","Eric","Fisher","Stereo","North",1893.22]
[null,null,null,null,null,"Grace Nash","Grace","Nash","Stereo","East",1867.97]
[null,null,null,null,null,"David Hill","David","Hill","Sofa","West",1586.02]
[null,null,null,null,null,"Wendy Campbell","Wendy","Campbell","Laptop","East",1407.29]
[null,null,null,null,null,"Samantha Wilson","Samantha","Wilson","Stereo","North",1204.6500000000001]
[null,null,null,null,null,"Adam Cameron","Adam","Cameron","TV","North",1244.8599999999999]
[null,null,null,null,null,"Alison Ogden","Alison","Ogden","Laptop","South",1759.3]
[null,null,null,null,null,"Eric Lyman","Eric","Lyman","TV","North",1518.71]
[null,null,null,null,null,"Megan Howard","Megan","Howard","TV","North",1561.01]
[null,null,null,null,null,"Wanda Ellison","Wanda","Ellison","Stereo","East",1982.53]
[null,null,null,null,null,"Olivia McDonald","Olivia","McDonald","TV","West",1581.18]
[null,null,null,null,null,"Diane North","Diane","North","Phone","West",1855.19]
[null,null,null,null,null,"Connor Morgan","Connor","Morgan","Stereo","North",1697.01]
[null,null,null,null,null,"Caroline Bell","Caroline","Bell","Stereo","North",1614.66]
[null,null,null,null,null,"Carol Lee","Carol","Lee","Phone","North",1141.06]
[null,null,null,null,null,"Diane Hardacre","Diane","Hardacre","Phone","North",1185.8499999999999]
[null,null,null,null,null,"Lily McGrath","Lily","McGrath","Stereo","West",1124.53]
[null,null,null,null,null,"Amelia Oliver","Amelia","Oliver","Laptop","South",1384.35]
[null,null,null,null,null,"Jennifer MacDonald","Jennifer","MacDonald","Sofa","East",1406.47]
[null,null,null,null,null,"Jennifer Lyman","Jennifer","Lyman","Stereo","West",1387.39]
[null,null,null,null,null,"Wendy Lambert","Wendy","Lambert","Laptop","South",1291.08]
[null,null,null,null,null,"Keith Vance","Keith","Vance","Laptop","East",1524.79]
[null,null,null,null,null,"Thomas Young","Thomas","Young","Laptop","East",1481.51]
[null,null,null,null,null,"Colin Bower","Colin","Bower","Laptop","East",1491.59]
[null,null,null,null,null,"Colin Watson","Colin","Watson","Stereo","North",1825.13]
[null,null,null,null,null,"Keith Lawrence","Keith","Lawrence","Stereo","South",1866.38]
[null,null,null,null,null,"Kimberly Ross","Kimberly","Ross","Laptop","East",1768.58]
[null,null,null,null,null,"Frank Mitchell","Frank","Mitchell","Phone","North",1462.95]
[null,null,null,null,null,"William Lewis","William","Lewis","Stereo","North",1495.49]
[null,null,null,null,null,"Trevor Arnold","Trevor","Arnold","TV","South",1660.6]
[null,null,null,null,null,"Audrey Henderson","Audrey","Henderson","Phone","South",1343.94]
[null,null,null,null,null,"Edward Avery","Edward","Avery","Laptop","West",1196.79]
[null,null,null,null,null,"Lucas Campbell","Lucas","Campbell","Laptop","South",1140.94]
[null,null,null,null,null,"Madeleine Henderson","Madeleine","Henderson","Stereo","East",1674.17]
[null,null,null,null,null,"Jack Duncan","Jack","Duncan","Stereo","South",1913.97]
[null,null,null,null,null,"Molly Pullman","Molly","Pullman","TV","South",1980.29]
[null,null,null,null,null,"Jacob Hill","Jacob","Hill","Laptop","North",1302.95]
[null,null,null,null,null,"Dorothy Hart","Dorothy","Hart","Phone","East",1392.06]
[null,null,null,null,null,"Peter Buckland","Peter","Buckland","Phone","South",1594.03]
[null,null,null,null,null,"Evan Tucker","Evan","Tucker","Sofa","West",1336.19]
[null,null,null,null,null,"Jane Bower","Jane","Bower","TV","South",1655.95]
[null,null,null,null,null,"Leah Brown","Leah","Brown","Laptop","North",1643.12]
[null,null,null,null,null,"Sam Henderson","Sam","Henderson","Sofa","West",1156.32]
[null,null,null,null,null,"Felicity Welch","Felicity","Welch","Sofa","South",1949.32]
[null,null,null,null,null,"Rose Grant","Rose","Grant","Phone","East",1175.77]
[null,null,null,null,null,"Stephanie Turner","Stephanie","Turner","Stereo","South",1221.08]
[null,null,null,null,null,"Heather Ellison","Heather","Ellison","Stereo","South",1971.19]
[null,null,null,null,null,"Isaac Walker","Isaac","Walker","TV","East",1112.83]
[null,null,null,null,null,"Megan Martin","Megan","Martin","Stereo","South",1640.54]
[null,null,null,null,null,"John Parr","John","Parr","Stereo","East",1090.53]
[null,null,null,null,null,"Stephanie Dyer","Stephanie","Dyer","Phone","South",1757.77]
[null,null,null,null,null,"Gavin Robertson","Gavin","Robertson","Stereo","South",1429.04]
[null,null,null,null,null,"Jessica Gibson","Jessica","Gibson","Sofa","South",1831.04]
[null,null,null,null,null,"Joan Hill","Joan","Hill","Sofa","North",1107.8399999999999]
[null,null,null,null,null,"Steven Duncan","Steven","Duncan","Sofa","East",1070.49]
[null,null,null,null,null,"Felicity Peters","Felicity","Peters","TV","West",1667.68]
[null,null,null,null,null,"Pippa McDonald","Pippa","McDonald","Stereo","North",1790.7]
[null,null,null,null,null,"Ian McGrath","Ian","McGrath","Sofa","South",1218.05]
[null,null,null,null,null,"Megan Wright","Megan","Wright","Laptop","South",1035.58]
[null,null,null,null,null,"Wendy Nolan","Wendy","Nolan","TV","North",1562.65]
[null,null,null,null,null,"Jonathan McDonald","Jonathan","McDonald","Sofa","West",1197.8499999999999]
[null,null,null,null,null,"Megan Hodges","Megan","Hodges","TV","West",1697.89]
[null,null,null,null,null,"Tracey Kelly","Tracey","Kelly","Phone","East",1080.0999999999999]
[null,null,null,null,null,"Joe Simpson","Joe","Simpson","TV","West",1307.74]
[null,null,null,null,null,"Sean Bailey","Sean","Bailey","Laptop","North",1145.4100000000001]
[null,null,null,null,null,"Trevor Glover","Trevor","Glover","TV","South",1448.28]
[null,null,null,null,null,"Lucas Avery","Lucas","Avery","TV","North",1155.4100000000001]
[null,null,null,null,null,"Dan Dickens","Dan","Dickens","TV","South",1569.38]
[null,null,null,null,null,"Trevor Parsons","Trevor","Parsons","Stereo","East",1630.16]
[null,null,null,null,null,"Gabrielle Wright","Gabrielle","Wright","Laptop","East",1099.47]
[null,null,null,null,null,"Dan Ferguson","Dan","Ferguson","Phone","North",1955.9]
[null,null,null,null,null,"Austin Peters","Austin","Peters","Sofa","West",1674.97]
[null,null,null,null,null,"Michael Powell","Michael","Powell","Laptop","South",1949.79]
[null,null,null,null,null,"Bella Taylor","Bella","Taylor","TV","South",1755.75]
[null,null,null,null,null,"Brandon Bond","Brandon","Bond","Phone","North",1904.5]
[null,null,null,null,null,"Anthony Hughes","Anthony","Hughes","TV","West",1861.13]
[null,null,null,null,null,"Neil Fisher","Neil","Fisher","Laptop","East",1123.5899999999999]
[null,null,null,null,null,"Molly Black","Molly","Black","TV","West",1451.81]
[null,null,null,null,null,"Amy King","Amy","King","Stereo","North",1582.42]
[null,null,null,null,null,"Sam Hart","Sam","Hart","Sofa","West",1784.19]
[null,null,null,null,null,"Brandon Chapman","Brandon","Chapman","Laptop","South",1260.54]
[null,null,null,null,null,"Jan MacDonald","Jan","MacDonald","Laptop","West",1205.23]
[null,null,null,null,null,"Tim McLean","Tim","McLean","Laptop","East",1170.69]
[null,null,null,null,null,"Elizabeth MacLeod","Elizabeth","MacLeod","Sofa","North",1539.5]
[null,null,null,null,null,"Diana Underwood","Diana","Underwood","Sofa","West",1625]
[null,null,null,null,null,"Jacob Mitchell","Jacob","Mitchell","Sofa","North",1545.28]
[null,null,null,null,null,"Joe Duncan","Joe","Duncan","Laptop","East",1601.02]
[null,null,null,null,null,"Carolyn Gill","Carolyn","Gill","TV","North",1727.75]
[null,null,null,null,null,"Frank Arnold","Frank","Arnold","Stereo","North",1684.78]
[null,null,null,null,null,"Sally Vaughan","Sally","Vaughan","TV","West",1841.34]
[null,null,null,null,null,"Michelle Walsh","Michelle","Walsh","Laptop","West",1538.64]
[null,null,null,null,null,"Jacob Welch","Jacob","Welch","Sofa","East",1266.69]
[null,null,null,null,null,"Abigail Gibson","Abigail","Gibson","Stereo","South",1067.06]
[null,null,null,null,null,"Amy Hemmings","Amy","Hemmings","Sofa","East",1393.88]
[null,null,null,null,null,"Joshua Ellison","Joshua","Ellison","Phone","North",1297.21]
[null,null,null,null,null,"Evan Kerr","Evan","Kerr","Stereo","South",1192.54]
[null,null,null,null,null,"Virginia King","Virginia","King","Stereo","West",1871.05]
[null,null,null,null,null,"Isaac May","Isaac","May","TV","South",1378.24]
[null,null,null,null,null,"Anna Cameron","Anna","Cameron","Phone","South",1270.45]
[null,null,null,null,null,"Wanda Davies","Wanda","Davies","Stereo","South",1583.54]
[null,null,null,null,null,"Una Anderson","Una","Anderson","Sofa","North",1555.89]
[null,null,null,null,null,"Sam Vaughan","Sam","Vaughan","Phone","East",1561.76]
[null,null,null,null,null,"Theresa Hunter","Theresa","Hunter","Phone","West",1340.31]
[null,null,null,null,null,"Chloe Morgan","Chloe","Morgan","Sofa","South",1427.9]
[null,null,null,null,null,"Gavin North","Gavin","North","Stereo","South",1064.52]
[null,null,null,null,null,"Faith Robertson","Faith","Robertson","TV","East",1564.07]
[null,null,null,null,null,"Theresa Ross","Theresa","Ross","TV","East",1649.5]
[null,null,null,null,null,"Julia Allan","Julia","Allan","Stereo","South",1988.74]
[null,null,null,null,null,"Fiona Sanderson","Fiona","Sanderson","Sofa","East",1607.16]
[null,null,null,null,null,"Anthony Johnston","Anthony","Johnston","TV","West",1211.3499999999999]
[null,null,null,null,null,"Peter Hodges","Peter","Hodges","TV","West",1681.8]
[null,null,null,null,null,"David Skinner","David","Skinner","Stereo","North",1558.32]
[null,null,null,null,null,"David Manning","David","Manning","Laptop","North",1202.9000000000001]
[null,null,null,null,null,"Lucas Watson","Lucas","Watson","Phone","South",1136.8399999999999]
[null,null,null,null,null,"Rebecca McGrath","Rebecca","McGrath","Phone","West",1105.7]
[null,null,null,null,null,"Sean Ross","Sean","Ross","Phone","East",1411.72]
[null,null,null,null,null,"Tracey Bond","Tracey","Bond","Phone","East",1864.56]
[null,null,null,null,null,"Phil Mackay","Phil","Mackay","Laptop","North",1657.58]
[null,null,null,null,null,"Leah Walker","Leah","Walker","Laptop","North",1388.8]
[null,null,null,null,null,"Paul Bell","Paul","Bell","Phone","East",1291.24]
[null,null,null,null,null,"Hannah Mathis","Hannah","Mathis","Stereo","East",1462.24]
[null,null,null,null,null,"Jonathan Parr","Jonathan","Parr","Phone","South",1848.5]
[null,null,null,null,null,"Boris Walsh","Boris","Walsh","Stereo","North",1724.69]
[null,null,null,null,null,"Robert Sharp","Robert","Sharp","Laptop","South",1517.62]
[null,null,null,null,null,"Edward Parsons","Edward","Parsons","Sofa","West",1569.35]
[null,null,null,null,null,"Alexander Sanderson","Alexander","Sanderson","TV","South",1113.46]
[null,null,null,null,null,"Jake Nolan","Jake","Nolan","Laptop","North",1118.32]
[null,null,null,null,null,"Nathan North","Nathan","North","Sofa","West",1129.3499999999999]
[null,null,null,null,null,"Carolyn Hunter","Carolyn","Hunter","Phone","North",1709.68]
[null,null,null,null,null,"Adrian Dickens","Adrian","Dickens","Phone","East",1941.59]
[null,null,null,null,null,"Stewart Sanderson","Stewart","Sanderson","Sofa","East",1163.03]
[null,null,null,null,null,"Audrey Mills","Audrey","Mills","Stereo","North",1788.18]
[null,null,null,null,null,"Deirdre Rees","Deirdre","Rees","Phone","West",1157.1400000000001]
[null,null,null,null,null,"Lisa Piper","Lisa","Piper","Sofa","East",1898.7]
[null,null,null,null,null,"Thomas Arnold","Thomas","Arnold","TV","South",1899.52]
[null,null,null,null,null,"Elizabeth Vaughan","Elizabeth","Vaughan","TV","North",1741.52]
[null,null,null,null,null,"Anthony Berry","Anthony","Berry","Stereo","East",1052.83]
[null,null,null,null,null,"Hannah Paterson","Hannah","Paterson","Sofa","North",1583.74]
[null,null,null,null,null,"Justin Allan","Justin","Allan","Sofa","North",1337.13]
[null,null,null,null,null,"Lisa Knox","Lisa","Knox","TV","North",1991.43]
[null,null,null,null,null,"Stephen Payne","Stephen","Payne","TV","South",1287.5899999999999]
[null,null,null,null,null,"Christian Langdon","Christian","Langdon","Sofa","North",1437.38]
[null,null,null,null,null,"Emma Lyman","Emma","Lyman","TV","West",1180.8800000000001]
[null,null,null,null,null,"Alison Gibson","Alison","Gibson","Sofa","South",1689.36]
[null,null,null,null,null,"Joan Payne","Joan","Payne","Phone","East",1012.47]
[null,null,null,null,null,"Justin Randall","Justin","Randall","Phone","East",1790.94]
[null,null,null,null,null,"Amanda Lawrence","Amanda","Lawrence","Laptop","North",1127.8499999999999]
[null,null,null,null,null,"Owen Mitchell","Owen","Mitchell","Sofa","North",1670.37]
[null,null,null,null,null,"Owen Parr","Owen","Parr","Phone","East",1989.51]
[null,null,null,null,null,"Neil Slater","Neil","Slater","Stereo","North",1408.96]
[null,null,null,null,null,"Stephanie Paterson","Stephanie","Paterson","Phone","West",1187.46]
[null,null,null,null,null,"Carol Russell","Carol","Russell","Sofa","East",1475.44]
[null,null,null,null,null,"Neil Newman","Neil","Newman","Sofa","West",1830.22]
[null,null,null,null,null,"Katherine Langdon","Katherine","Langdon","Sofa","West",1114.72]
[null,null,null,null,null,"Luke Burgess","Luke","Burgess","Phone","East",1240.53]
[null,null,null,null,null,"Richard Hill","Richard","Hill","Laptop","West",1669.26]
[null,null,null,null,null,"Ian Chapman","Ian","Chapman","TV","West",1007.44]
[null,null,null,null,null,"Michelle Burgess","Michelle","Burgess","Phone","North",1314.71]
[null,null,null,null,null,"Kylie Chapman","Kylie","Chapman","TV","West",1322.32]
[null,null,null,null,null,"Harry Bailey","Harry","Bailey","Sofa","West",1114.23]
[null,null,null,null,null,"Megan Paterson","Megan","Paterson","Sofa","South",1420.47]
[null,null,null,null,null,"Jack Mills","Jack","Mills","TV","East",1624.43]
[null,null,null,null,null,"Rachel Parr","Rachel","Parr","Phone","North",1751.75]
[null,null,null,null,null,"Sebastian Springer","Sebastian","Springer","Sofa","East",1257.8599999999999]
[null,null,null,null,null,"Blake Ince","Blake","Ince","TV","South",1289.68]
[null,null,null,null,null,"Austin Watson","Austin","Watson","Sofa","East",1454.73]
[null,null,null,null,null,"Anthony Reid","Anthony","Reid","Sofa","North",1021.03]
[null,null,null,null,null,"Katherine Ball","Katherine","Ball","Phone","East",1583.54]
[null,null,null,null,null,"Nathan Simpson","Nathan","Simpson","Stereo","North",1583.69]
[null,null,null,null,null,"Faith Blake","Faith","Blake","Sofa","West",1948.04]
[null,null,null,null,null,"Nicholas Murray","Nicholas","Murray","TV","South",1485.87]
[null,null,null,null,null,"Sean Carr","Sean","Carr","TV","East",1039.01]
[null,null,null,null,null,"Maria Quinn","Maria","Quinn","Phone","North",1527.21]
[null,null,null,null,null,"Joseph Lawrence","Joseph","Lawrence","Sofa","South",1042.83]
[null,null,null,null,null,"Piers Glover","Piers","Glover","TV","West",1111.5899999999999]
[null,null,null,null,null,"Dorothy McDonald","Dorothy","McDonald","Stereo","East",1159.5899999999999]
[null,null,null,null,null,"Abigail McDonald","Abigail","McDonald","TV","East",1981.99]
[null,null,null,null,null,"Michael Avery","Michael","Avery","Phone","East",1777.83]
[null,null,null,null,null,"Robert Bond","Robert","Bond","Sofa","North",1342.75]
[null,null,null,null,null,"Lucas Churchill","Lucas","Churchill","Phone","North",1443.73]
[null,null,null,null,null,"Trevor Cornish","Trevor","Cornish","Stereo","South",1274.2]
[null,null,null,null,null,"Megan Ellison","Megan","Ellison","Sofa","West",1718.14]
[null,null,null,null,null,"Max North","Max","North","Laptop","North",1901.83]
[null,null,null,null,null,"Lily Gibson","Lily","Gibson","Phone","South",1906.63]
[null,null,null,null,null,"Steven Fraser","Steven","Fraser","Sofa","West",1875.32]
[null,null,null,null,null,"Boris Underwood","Boris","Underwood","Laptop","North",1996.63]
[null,null,null,null,null,"Julia Dowd","Julia","Dowd","Phone","North",1638.15]
[null,null,null,null,null,"Brian Ferguson","Brian","Ferguson","Laptop","West",1593.19]
[null,null,null,null,null,"Victor Howard","Victor","Howard","Sofa","South",1815.27]
[null,null,null,null,null,"Sarah Lawrence","Sarah","Lawrence","Laptop","West",1217.06]
[null,null,null,null,null,"Harry Walsh","Harry","Walsh","Stereo","West",1659.77]
[null,null,null,null,null,"Charles Clarkson","Charles","Clarkson","Phone","East",1622.16]
[null,null,null,null,null,"Madeleine Hill","Madeleine","Hill","Sofa","North",1118.3499999999999]
[null,null,null,null,null,"Grace May","Grace","May","TV","West",1834.51]
[null,null,null,null,null,"Alexandra Miller","Alexandra","Miller","Phone","South",1988.01]
[null,null,null,null,null,"Fiona Cornish","Fiona","Cornish","Stereo","East",1294.94]
[null,null,null,null,null,"William Gibson","William","Gibson","Laptop","South",1008.74]
[null,null,null,null,null,"Pippa Clark","Pippa","Clark","Laptop","North",1826.75]
[null,null,null,null,null,"Lillian Peake","Lillian","Peake","TV","North",1107.8399999999999]
[null,null,null,null,null,"Bernadette Stewart","Bernadette","Stewart","Laptop","East",1701.97]
[null,null,null,null,null,"Sue Short","Sue","Short","Stereo","South",1859.79]
[null,null,null,null,null,"Frank Hunter","Frank","Hunter","TV","South",1917.59]
[null,null,null,null,null,"Faith Hemmings","Faith","Hemmings","Stereo","South",1876.73]
[null,null,null,null,null,"Max Ferguson","Max","Ferguson","Stereo","West",1325.78]
[null,null,null,null,null,"Ryan Churchill","Ryan","Churchill","Laptop","East",1327.94]
[null,null,null,null,null,"Ryan Underwood","Ryan","Underwood","Stereo","East",1399.68]
[null,null,null,null,null,"Nicholas Smith","Nicholas","Smith","Stereo","North",1380.26]
[null,null,null,null,null,"Stewart Howard","Stewart","Howard","Laptop","South",1652.18]
[null,null,null,null,null,"Harry Ball","Harry","Ball","Stereo","North",1121.96]
[null,null,null,null,null,"Anna Oliver","Anna","Oliver","Phone","South",1243.25]
[null,null,null,null,null,"Sonia Paige","Sonia","Paige","TV","West",1697.9]
[null,null,null,null,null,"Kimberly Bower","Kimberly","Bower","Laptop","West",1136.8499999999999]
[null,null,null,null,null,"Michelle Knox","Michelle","Knox","Laptop","North",1488.48]
[null,null,null,null,null,"Joseph Pullman","Joseph","Pullman","Phone","South",1355.15]
[null,null,null,null,null,"Brian Lambert","Brian","Lambert","Phone","East",1693.77]
[null,null,null,null,null,"Lillian Campbell","Lillian","Campbell","Stereo","South",1403.51]
[null,null,null,null,null,"Diane Clark","Diane","Clark","Stereo","East",1214.17]
[null,null,null,null,null,"Jack Mitchell","Jack","Mitchell","Stereo","West",1556.05]
[null,null,null,null,null,"Ella Lee","Ella","Lee","Laptop","East",1097]
[null,null,null,null,null,"Matt Hill","Matt","Hill","TV","South",1647.64]
[null,null,null,null,null,"Adam Smith","Adam","Smith","Stereo","North",1232.97]
[null,null,null,null,null,"Richard Lawrence","Richard","Lawrence","TV","West",1123.72]
[null,null,null,null,null,"Gavin Cornish","Gavin","Cornish","Stereo","East",1306.5]
[null,null,null,null,null,"Christian Harris","Christian","Harris","Laptop","North",1726.88]
[null,null,null,null,null,"Leonard Graham","Leonard","Graham","TV","East",1449.21]
[null,null,null,null,null,"Austin Reid","Austin","Reid","Phone","West",1356.84]
[null,null,null,null,null,"Stewart Scott","Stewart","Scott","Laptop","North",1319.79]
[null,null,null,null,null,"Luke Grant","Luke","Grant","TV","South",1624.7]
[null,null,null,null,null,"Gordon Smith","Gordon","Smith","Phone","South",1954.19]
[null,null,null,null,null,"Ava Greene","Ava","Greene","Laptop","West",1801.47]
[null,null,null,null,null,"Tim Blake","Tim","Blake","Stereo","West",1800.34]
[null,null,null,null,null,"Megan Smith","Megan","Smith","Phone","West",1407.68]
[null,null,null,null,null,"Lauren Payne","Lauren","Payne","Sofa","East",1192.69]
[null,null,null,null,null,"Olivia Hudson","Olivia","Hudson","Phone","East",1353.95]
[null,null,null,null,null,"Pippa Baker","Pippa","Baker","TV","South",1449.13]
[null,null,null,null,null,"Karen Duncan","Karen","Duncan","Laptop","East",1060.27]
[null,null,null,null,null,"Dylan Walker","Dylan","Walker","Phone","North",1382.32]
[null,null,null,null,null,"Natalie Chapman","Natalie","Chapman","Sofa","South",1347.37]
[null,null,null,null,null,"Sally Dowd","Sally","Dowd","Stereo","East",1642.04]
[null,null,null,null,null,"Rebecca Abraham","Rebecca","Abraham","Stereo","West",1703.51]
[null,null,null,null,null,"Andrea Coleman","Andrea","Coleman","Phone","West",1945.78]
[null,null,null,null,null,"James Mathis","James","Mathis","Phone","West",1519.95]
[null,null,null,null,null,"Virginia Wilson","Virginia","Wilson","Sofa","South",1468.05]
[null,null,null,null,null,"Ian Slater","Ian","Slater","Phone","South",1176.71]
[null,null,null,null,null,"Boris Mills","Boris","Mills","Stereo","East",1512.99]
[null,null,null,null,null,"Julia Campbell","Julia","Campbell","Sofa","West",1665.02]
[null,null,null,null,null,"Hannah Manning","Hannah","Manning","Sofa","West",1230.74]
[null,null,null,null,null,"Charles Mills","Charles","Mills","Laptop","West",1918.4]
[null,null,null,null,null,"Michael Robertson","Michael","Robertson","Sofa","South",1216.01]
[null,null,null,null,null,"Deirdre Martin","Deirdre","Martin","Laptop","West",1660.74]
[null,null,null,null,null,"Stephen Arnold","Stephen","Arnold","Phone","West",1205.74]
[null,null,null,null,null,"Christian Rutherford","Christian","Rutherford","Phone","West",1929.61]
[null,null,null,null,null,"Edward Howard","Edward","Howard","Phone","South",1187.05]
[null,null,null,null,null,"Liam Sharp","Liam","Sharp","Phone","North",1395.05]
[null,null,null,null,null,"Stephen Abraham","Stephen","Abraham","Phone","East",1386.41]
[null,null,null,null,null,"Gordon Hodges","Gordon","Hodges","Phone","South",1647.59]
[null,null,null,null,null,"Michael Churchill","Michael","Churchill","Laptop","East",1890.37]
[null,null,null,null,null,"Nicola Knox","Nicola","Knox","TV","East",1021.65]
[null,null,null,null,null,"Jonathan Greene","Jonathan","Greene","Stereo","East",1458.6]
[null,null,null,null,null,"Alexandra Marshall","Alexandra","Marshall","Stereo","East",1472.13]
[null,null,null,null,null,"Diana Allan","Diana","Allan","Sofa","South",1843.21]
[null,null,null,null,null,"Penelope Sanderson","Penelope","Sanderson","Sofa","North",1315.08]
[null,null,null,null,null,"Angela Hodges","Angela","Hodges","Stereo","South",1624.29]
[null,null,null,null,null,"Kylie Welch","Kylie","Welch","TV","North",1562.41]
[null,null,null,null,null,"Richard Churchill","Richard","Churchill","Phone","East",1016.95]
[null,null,null,null,null,"Karen Hughes","Karen","Hughes","Phone","South",1296.3800000000001]
[null,null,null,null,null,"Joe Hunter","Joe","Hunter","Sofa","South",1836.71]
[null,null,null,null,null,"Pippa Parr","Pippa","Parr","TV","North",1886.39]
[null,null,null,null,null,"Joan Smith","Joan","Smith","Stereo","North",1903.91]
[null,null,null,null,null,"Sebastian Dowd","Sebastian","Dowd","TV","South",1907.97]
[null,null,null,null,null,"Simon Ball","Simon","Ball","Phone","South",1368.95]
[null,null,null,null,null,"Frank Paige","Frank","Paige","Stereo","East",1860.45]
[null,null,null,null,null,"Matt Fisher","Matt","Fisher","Stereo","East",1074.81]
[null,null,null,null,null,"Owen Russell","Owen","Russell","Phone","North",1943.67]
[null,null,null,null,null,"Stewart Hardacre","Stewart","Hardacre","Sofa","North",1993.42]
[null,null,null,null,null,"Diane Glover","Diane","Glover","TV","South",1341.59]
[null,null,null,null,null,"Wendy Walker","Wendy","Walker","Sofa","East",1420.39]
[null,null,null,null,null,"Joseph Martin","Joseph","Martin","Laptop","West",1011.95]
[null,null,null,null,null,"Andrew North","Andrew","North","Sofa","South",1295.1400000000001]
[null,null,null,null,null,"Irene Grant","Irene","Grant","Phone","West",1681.74]
[null,null,null,null,null,"Leah Murray","Leah","Murray","Sofa","South",1896.16]
[null,null,null,null,null,"Gordon Terry","Gordon","Terry","Stereo","West",1764.81]
[null,null,null,null,null,"Yvonne Bond","Yvonne","Bond","Phone","North",1071.28]
[null,null,null,null,null,"Carl McDonald","Carl","McDonald","Stereo","North",1724.2]
[null,null,null,null,null,"Stewart Powell","Stewart","Powell","Sofa","North",1855.78]
[null,null,null,null,null,"Evan Burgess","Evan","Burgess","Sofa","West",1824.02]
[null,null,null,null,null,"Keith Dyer","Keith","Dyer","Sofa","North",1756.93]
[null,null,null,null,null,"Dylan Hudson","Dylan","Hudson","Phone","North",1474.15]
[null,null,null,null,null,"Fiona White","Fiona","White","Stereo","West",1055.3900000000001]
[null,null,null,null,null,"Ryan Nolan","Ryan","Nolan","Stereo","East",1669.42]
[null,null,null,null,null,"Blake Berry","Blake","Berry","Stereo","East",1031.72]
[null,null,null,null,null,"Harry Dyer","Harry","Dyer","Sofa","South",1027.79]
[null,null,null,null,null,"Elizabeth Wright","Elizabeth","Wright","Stereo","South",1912.11]
[null,null,null,null,null,"Richard Butler","Richard","Butler","TV","East",1881.89]
[null,null,null,null,null,"Stephen Lyman","Stephen","Lyman","Sofa","North",1243.3800000000001]
[null,null,null,null,null,"Julian Langdon","Julian","Langdon","Sofa","South",1473.46]
[null,null,null,null,null,"Leonard Oliver","Leonard","Oliver","Phone","East",1253.45]
[null,null,null,null,null,"Adrian Hughes","Adrian","Hughes","Stereo","North",1449.9]
[null,null,null,null,null,"Austin Forsyth","Austin","Forsyth","Laptop","East",1137.81]
[null,null,null,null,null,"Warren Greene","Warren","Greene","TV","South",1040.46]
[null,null,null,null,null,"Deirdre Clark","Deirdre","Clark","Laptop","East",1445.49]
[null,null,null,null,null,"Jasmine Manning","Jasmine","Manning","Laptop","North",1332.63]
[null,null,null,null,null,"Adrian Ellison","Adrian","Ellison","Sofa","North",1927.76]
[null,null,null,null,null,"Carl Vaughan","Carl","Vaughan","Sofa","South",1133.45]
[null,null,null,null,null,"Stephanie Greene","Stephanie","Greene","Stereo","West",1755.76]
[null,null,null,null,null,"Christopher Arnold","Christopher","Arnold","Laptop","West",1531.21]
[null,null,null,null,null,"Oliver Skinner","Oliver","Skinner","Stereo","North",1263.02]
[null,null,null,null,null,"Pippa Lewis","Pippa","Lewis","Sofa","North",1454.03]
[null,null,null,null,null,"Jennifer Harris","Jennifer","Harris","Sofa","East",1536.61]
[null,null,null,null,null,"Jack King","Jack","King","Laptop","North",1035.46]
[null,null,null,null,null,"Una Greene","Una","Greene","Sofa","North",1614.84]
[null,null,null,null,null,"Stewart Skinner","Stewart","Skinner","Phone","North",1972.64]
[null,null,null,null,null,"Anthony Glover","Anthony","Glover","Laptop","West",1628.77]
[null,null,null,null,null,"Gordon Coleman","Gordon","Coleman","Sofa","East",1784.14]
[null,null,null,null,null,"Dan Wilkins","Dan","Wilkins","Phone","East",1371.59]
[null,null,null,null,null,"Ian Payne","Ian","Payne","Laptop","North",1044.3599999999999]
[null,null,null,null,null,"Andrew Avery","Andrew","Avery","Phone","East",1572.35]
[null,null,null,null,null,"Heather Hart","Heather","Hart","Laptop","East",1016.73]
[null,null,null,null,null,"Jake Forsyth","Jake","Forsyth","Phone","South",1179.21]
[null,null,null,null,null,"Rebecca Edmunds","Rebecca","Edmunds","Laptop","North",1699.63]
[null,null,null,null,null,"Jessica MacLeod","Jessica","MacLeod","Stereo","East",1575.49]
[null,null,null,null,null,"Felicity May","Felicity","May","Sofa","West",1307.99]
[null,null,null,null,null,"Austin Clarkson","Austin","Clarkson","Sofa","East",1483.21]
[null,null,null,null,null,"Owen Watson","Owen","Watson","Stereo","East",1826.54]
[null,null,null,null,null,"Michael Clarkson","Michael","Clarkson","Phone","West",1068.3800000000001]
[null,null,null,null,null,"Oliver Lambert","Oliver","Lambert","Stereo","East",1197.8900000000001]
[null,null,null,null,null,"David James","David","James","Sofa","West",1578.23]
[null,null,null,null,null,"Dan Turner","Dan","Turner","TV","East",1470.42]
[null,null,null,null,null,"Maria Pullman","Maria","Pullman","Phone","East",1345.4]
[null,null,null,null,null,"Dylan MacLeod","Dylan","MacLeod","Phone","East",1146.8800000000001]
[null,null,null,null,null,"Emma Jones","Emma","Jones","Sofa","West",1213.95]
[null,null,null,null,null,"Piers Hemmings","Piers","Hemmings","Laptop","North",1341.83]
[null,null,null,null,null,"Madeleine Peters","Madeleine","Peters","TV","North",1606.22]
[null,null,null,null,null,"Adrian Metcalfe","Adrian","Metcalfe","Laptop","North",1369.82]
[null,null,null,null,null,"Sebastian Bond","Sebastian","Bond","Stereo","South",1250.93]
[null,null,null,null,null,"Cameron Lee","Cameron","Lee","Sofa","South",1513.53]
[null,null,null,null,null,"Karen Ince","Karen","Ince","Sofa","East",1757.19]
[null,null,null,null,null,"Edward Oliver","Edward","Oliver","Stereo","South",1744.9]
[null,null,null,null,null,"Zoe Young","Zoe","Young","Sofa","South",1562.85]
[null,null,null,null,null,"Thomas Jackson","Thomas","Jackson","Stereo","North",1882.44]
[null,null,null,null,null,"Amanda Butler","Amanda","Butler","Sofa","West",1180.54]
[null,null,null,null,null,"Robert Hamilton","Robert","Hamilton","Laptop","West",1489.45]
[null,null,null,null,null,"Stephanie Bailey","Stephanie","Bailey","Sofa","East",1331.15]
[null,null,null,null,null,"Neil Mills","Neil","Mills","Stereo","East",1122.25]
[null,null,null,null,null,"Donna Abraham","Donna","Abraham","TV","West",1708.41]
[null,null,null,null,null,"Victoria Randall","Victoria","Randall","Laptop","North",1425.31]
[null,null,null,null,null,"Boris Tucker","Boris","Tucker","TV","West",1817.5]
[null,null,null,null,null,"Ella Forsyth","Ella","Forsyth","Stereo","East",1712.71]
[null,null,null,null,null,"Max Ball","Max","Ball","Laptop","North",1307]
[null,null,null,null,null,"Amy Ellison","Amy","Ellison","Sofa","West",1844.02]
[null,null,null,null,null,"William Burgess","William","Burgess","Phone","South",1689.77]
[null,null,null,null,null,"Bella Grant","Bella","Grant","TV","North",1076.43]
[null,null,null,null,null,"Dylan Sharp","Dylan","Sharp","TV","South",1707.95]
[null,null,null,null,null,"Ella Johnston","Ella","Johnston","Laptop","North",1194.74]
[null,null,null,null,null,"Steven Martin","Steven","Martin","Sofa","South",1465.66]
[null,null,null,null,null,"Owen Chapman","Owen","Chapman","TV","North",1871.02]
[null,null,null,null,null,"Joan Turner","Joan","Turner","Sofa","North",1732.96]
[null,null,null,null,null,"Megan Chapman","Megan","Chapman","TV","East",1320.98]
[null,null,null,null,null,"Evan Stewart","Evan","Stewart","Laptop","South",1769.89]
[null,null,null,null,null,"Connor Paterson","Connor","Paterson","TV","West",1842.19]
[null,null,null,null,null,"Sophie Avery","Sophie","Avery","TV","North",1803.07]
[null,null,null,null,null,"Ian Ellison","Ian","Ellison","Stereo","East",1716.42]
[null,null,null,null,null,"Donna Underwood","Donna","Underwood","Phone","South",1634.97]
[null,null,null,null,null,"Max Ogden","Max","Ogden","Stereo","West",1570.01]
[null,null,null,null,null,"Jack Mackenzie","Jack","Mackenzie","TV","South",1015.45]
[null,null,null,null,null,"David Paige","David","Paige","Phone","East",1274.3800000000001]
[null,null,null,null,null,"Adam Powell","Adam","Powell","Laptop","East",1398.11]
[null,null,null,null,null,"Isaac Nash","Isaac","Nash","Sofa","South",1676.21]
[null,null,null,null,null,"Lauren Manning","Lauren","Manning","Sofa","North",1338.26]
[null,null,null,null,null,"Wanda Rees","Wanda","Rees","Sofa","South",1921.82]
[null,null,null,null,null,"Anna Vaughan","Anna","Vaughan","TV","North",1236.56]
[null,null,null,null,null,"Jake Henderson","Jake","Henderson","Sofa","South",1556.92]
[null,null,null,null,null,"Anna Butler","Anna","Butler","TV","North",1527.03]
[null,null,null,null,null,"Sebastian Nash","Sebastian","Nash","Stereo","South",1284.8]
[null,null,null,null,null,"Joe Hill","Joe","Hill","Phone","North",1556.47]
[null,null,null,null,null,"Mary Gibson","Mary","Gibson","TV","South",1853.79]
[null,null,null,null,null,"Katherine King","Katherine","King","Sofa","South",1771.46]
[null,null,null,null,null,"Alan Sanderson","Alan","Sanderson","Sofa","North",1214.57]
[null,null,null,null,null,"Virginia Tucker","Virginia","Tucker","Laptop","North",1969.45]
[null,null,null,null,null,"Ian Hamilton","Ian","Hamilton","TV","North",1505.21]
[null,null,null,null,null,"Rose Mitchell","Rose","Mitchell","Sofa","South",1279.71]
[null,null,null,null,null,"Ian Wilson","Ian","Wilson","Laptop","East",1773.57]
[null,null,null,null,null,"Dylan Kelly","Dylan","Kelly","Stereo","North",1844.98]
[null,null,null,null,null,"Jack Gill","Jack","Gill","Sofa","South",1883.06]
[null,null,null,null,null,"Olivia Arnold","Olivia","Arnold","Sofa","East",1275.43]
[null,null,null,null,null,"Sue Miller","Sue","Miller","TV","East",1002.2]
[null,null,null,null,null,"Heather Langdon","Heather","Langdon","Sofa","West",1616.47]
[null,null,null,null,null,"Steven Simpson","Steven","Simpson","Laptop","North",1830.37]
[null,null,null,null,null,"Sam Peake","Sam","Peake","TV","West",1643.58]
[null,null,null,null,null,"Carol Clark","Carol","Clark","Laptop","West",1638.48]
[null,null,null,null,null,"Matt Walsh","Matt","Walsh","Laptop","North",1231.1099999999999]
[null,null,null,null,null,"Steven Ellison","Steven","Ellison","Sofa","West",1373.86]
[null,null,null,null,null,"Luke Underwood","Luke","Underwood","Stereo","East",1591.46]
[null,null,null,null,null,"Carol Jackson","Carol","Jackson","Sofa","North",1538.93]
[null,null,null,null,null,"Vanessa Knox","Vanessa","Knox","Phone","West",1877.63]
[null,null,null,null,null,"Alison Wilkins","Alison","Wilkins","Sofa","East",1978.96]
[null,null,null,null,null,"Edward Underwood","Edward","Underwood","Laptop","West",1720.98]
[null,null,null,null,null,"Alexandra Martin","Alexandra","Martin","TV","West",1264.54]
[null,null,null,null,null,"Stephen Rutherford","Stephen","Rutherford","TV","East",1490.26]
[null,null,null,null,null,"Rebecca Walsh","Rebecca","Walsh","Sofa","South",1691.38]
[null,null,null,null,null,"Sonia Lewis","Sonia","Lewis","Phone","West",1575.25]
[null,null,null,null,null,"Oliver Arnold","Oliver","Arnold","Stereo","North",1295.6600000000001]
[null,null,null,null,null,"Paul North","Paul","North","Laptop","North",1552.39]
[null,null,null,null,null,"Mary Berry","Mary","Berry","TV","West",1011.59]
[null,null,null,null,null,"Natalie Hodges","Natalie","Hodges","Stereo","North",1527.69]
[null,null,null,null,null,"Evan Thomson","Evan","Thomson","Stereo","North",1905.97]
[null,null,null,null,null,"Richard Langdon","Richard","Langdon","Laptop","West",1884.36]
[null,null,null,null,null,"Owen Robertson","Owen","Robertson","Stereo","West",1485.27]
[null,null,null,null,null,"Katherine MacDonald","Katherine","MacDonald","Laptop","East",1808.62]
[null,null,null,null,null,"Zoe Lambert","Zoe","Lambert","Sofa","West",1813.35]
[null,null,null,null,null,"Theresa Avery","Theresa","Avery","Stereo","East",1378.62]
[null,null,null,null,null,"Tim Alsop","Tim","Alsop","Stereo","South",1954.96]
[null,null,null,null,null,"Matt Robertson","Matt","Robertson","Laptop","East",1904.74]
[null,null,null,null,null,"Harry Hardacre","Harry","Hardacre","Laptop","North",1582.4]
[null,null,null,null,null,"Jasmine North","Jasmine","North","Phone","South",1344.16]

{"sheet":"Error Checks","index":6,"n_rows":17,"n_cols":9,"rows_kept":17,"cut":false,"hidden":false,"merged":[[0,8,0,9],[2,0,2,4]]}
[{"$f":"IF(ISERROR(RIGHT(CELL(\"filename\",A1),LEN(CELL(\"filename\",A1))-FIND(\"]\",CELL(\"filename\",A1)))),\n\"\",\nRIGHT(CELL(\"filename\",A1),LEN(CELL(\"filename\",A1))-FIND(\"]\",CELL(\"filename\",A1))))","v":"Error Checks"}]
[{"$f":"Model_Name","v":"SP Searching Slicers Example.xlsm"}]
["Navigator"]
[null,"Error Checks:",null,null,null,{"$f":"Overall_Error_Check","v":0}]
[]
[null,{"$f":"MAX($B$5:$B5)+1","v":1},"Error Checks"]
[]
[null,null,"Summary of Errors"]
[]
[null,null,null,"Assumptions"]
[]
[null,null,null,null,"None in use"]
[]
[]
[]
[]
[null,null,null,null,{"$f":"C8","v":"Summary of Errors"},null,null,null,{"$f":"MIN(1,SUM(I11:I15))","v":0}]